Workbook

Sheet INTRO
C1: The current version should be used in countries endemic for Loasis
B2: PC Joint Reporting Form v.3.1 (L)
B4: The purpose of this template Joint Reporting Form (JRF) - available as an Excel file - is to provide national health authorities and data managers with a standardized tool to address these reporting challenges, facilitate integration and thereby further contribute to improving overall programme management. This template aims to standardize national reporting of programme implementation outcomes, improve availability and coordination of preventive chemotherapy data across the World Health Organization regions. National authorities are requested to complete this form for submission to the World Health Organization any time before 15 August of the current year for reporting data on PC interventions implemented during the previous year.
B6: Structure of the application (worksheets):
B8: INTRO | C8: This worksheet includes guides on how to complete the joint reporting form and information about status of PC for endemic diseases in the country
B9: COUNTRY_INFO | C9: This worksheet includes information about administrative structure of the country, population by age group, status of endemicity for each disease, population requiring PC, planned interventions and interventions implemented
B10: MDA1, MDA4, MDA3, T1, T2 and T3 | C10: These worksheets include information about endemic districts targeted for treatment with specified PC medicines, treatment plan, and number of people who received treatment by age group
B11: DISTRICT | C11: This worksheet includes summary of people treated by disease at the level of implementation. If data by gender is available, it requires to enter.
B12: SUMMARY | C12: This worksheet includes summary of people treated by disease and by PC intervention. Before generating the report (run macros) please select the disease for which you need the report. Follow the same rule to generate various reports. This worksheet should be printed and submitted as a Joint Report (see the instruction for submission in the SUMMARY worksheet).
B14: Instruction for data entry
B16: Most of the cells in the above-mentioned worksheets include formula that are calculated automatically according to the treatment policy recommended by WHO for each disease. See the link http://www.who.int/neglected_diseases/preventive_chemotherapy/pct_manual/en/index.html
B18: Please enter your data into the cells according to their colour code:
C20: White - cell is not protected. Please enter the value of the requested indicator.
C22: Yellow - cell is protected and includes name of indicator. No data entry required.
C24: Orange - cell is not protected and includes a drop-down menu. Please select the value from the drop-down list.
C27: Green - cell is not protected and includes formula. Please change the value only if your data are different from those that are calculated automatically.
C30: Blue - cell is protected and includes formula. No data entry required.
B32: Country data
B34: COUNTRY | E34: Congo
B36: Year of reporting data | E36: 2018
B38: Is country endemic for lymphatic filariasis (LF)? | E38: Endemic
B40: Is country endemic for onchocerciasis (ONCHO)? | E40: Endemic
B42: Is country endemic for soil-transmitted helminthiases (STH)? | E42: Endemic
B44: Is country endemic for schistosomiasis (SCH)? | E44: Endemic
B46: How many administrative units in the country? | E46: 43
B47: If demographical data at the second administrative level are not available by age group, please enter the proportion (%) of population by age group in the country. If data are available, please leave these cells blank.
B48: 1-4 years age | C48: Preschool-age children (PreSAC) | E48: 0.16
B49: 5-14 years age | C49: School-age children (SAC) | E49: 0.24
B50: 15 years + | C50: Adults | E50: 0.553

Sheet COUNTRY_INFO
A1: COUNTRY INFORMATION
A2: Administrative structure, population by age group, endemicity status, planned interventions and interventions implemented
A4: TOTAL | D4: =SUM(D$9:D$1000) -> 4561479 | E4: =SUM(E$9:E$1000) -> 729839 | F4: =SUM(F$9:F$1000) -> 1094753 | G4: =SUM(G$9:G$1000) -> 2522494 | M4: =SUM(M$9:M$1000) -> 962668 | N4: =SUM(N$9:N$1000) -> 678758 | O4: =SUM(O$9:O$1000) -> 725950 | P4: =SUM(P$9:P$1000) -> 176253
A6: Country administrative structure | D6: Population | H6: Endemicity | M6: Population requiring PC | Q6: Number of treatment rounds planned for the year | U6: PC implemented
A7: Country | B7: Province/State | C7: District | D7: Total | E7: PreSAC | F7: SAC | G7: Adults | H7: LF | I7: Oncho | J7: STH | K7: SCH | L7: Loa | M7: LF | N7: Oncho | O7: STH | P7: SCH | Q7: LF | R7: Oncho | S7: STH | T7: SCH | U7: ROUND 1 | V7: ROUND2 | W7: IU_ID | X7: IU_NAME
A9: =IF(INTRO!$E$34<>0,INTRO!$E$34,"") -> Congo | B9: Bouenza | C9: Loudima | D9: 145798 | E9: =IF(INTRO!$E$48="","",ROUND($D9*INTRO!$E$48,0)) -> 23328 | F9: =IF(INTRO!$E$49="","",ROUND($D9*INTRO!$E$49,0)) -> 34992 | G9: =IF(INTRO!$E$50="","",ROUND($D9*INTRO!$E$50,0)) -> 80626 | H9: 0 | I9: 1 | J9: 2 | K9: 1 | L9: 1 | M9: =IF(INTRO!$E$38="Endemic", IF($H9>0, IF($H9=4,"Unknown", IF($H9=99,"Stopped", $D9)), 0),"Not required") -> 0 | N9: 48342 | O9: =IF(INTRO!$E$42="Endemic", IF(AND($J9>1,$J9<5), IF($J9=4, "Unknown", E9+F9), 0),"Not required") -> 58320 | P9: =IF(INTRO!$E$44="Endemic", IF(AND($K9>0,$K9<5), IF($K9=4,"Unknown", IF($K9=1, $F9*0.33, IF($K9=2, $F9*0.5+$G9*0.2, SUM(F9:G9)))), 0),"Not required") -> 11547.36 | Q9: 0 | R9: 1 | S9: 1 | T9: 1 | U9: MDA3 (IVM) | V9: T1 (PZQ+ALB/MBD) | W9: 12762 | X9: Loudima
A10: =IF(INTRO!$E$34<>0,INTRO!$E$34,"") -> Congo | B10: Bouenza | C10: Loutété | D10: 54968 | E10: =IF(INTRO!$E$48="","",ROUND($D10*INTRO!$E$48,0)) -> 8795 | F10: =IF(INTRO!$E$49="","",ROUND($D10*INTRO!$E$49,0)) -> 13192 | G10: =IF(INTRO!$E$50="","",ROUND($D10*INTRO!$E$50,0)) -> 30397 | H10: 1 | I10: 1 | J10: 2 | K10: 1 | L10: 1 | M10: =IF(INTRO!$E$38="Endemic", IF($H10>0, IF($H10=4,"Unknown", IF($H10=99,"Stopped", $D10)), 0),"Not required") -> 54968 | N10: 30819 | O10: =IF(INTRO!$E$42="Endemic", IF(AND($J10>1,$J10<5), IF($J10=4, "Unknown", E10+F10), 0),"Not required") -> 21987 | P10: =IF(INTRO!$E$44="Endemic", IF(AND($K10>0,$K10<5), IF($K10=4,"Unknown", IF($K10=1, $F10*0.33, IF($K10=2, $F10*0.5+$G10*0.2, SUM(F10:G10)))), 0),"Not required") -> 4353.36 | Q10: 1 | R10: 1 | S10: 2 | T10: 1 | U10: MDA1 (IVM+ALB) | V10: T1 (PZQ+ALB/MBD) | W10: 12823 | X10: Loutété
A11: =IF(INTRO!$E$34<>0,INTRO!$E$34,"") -> Congo | B11: Bouenza | C11: Madingou | D11: 108222 | E11: =IF(INTRO!$E$48="","",ROUND($D11*INTRO!$E$48,0)) -> 17316 | F11: =IF(INTRO!$E$49="","",ROUND($D11*INTRO!$E$49,0)) -> 25973 | G11: =IF(INTRO!$E$50="","",ROUND($D11*INTRO!$E$50,0)) -> 59847 | H11: 1 | I11: 1 | J11: 2 | K11: 1 | L11: 1 | M11: =IF(INTRO!$E$38="Endemic", IF($H11>0, IF($H11=4,"Unknown", IF($H11=99,"Stopped", $D11)), 0),"Not required") -> 108222 | N11: 48886 | O11: =IF(INTRO!$E$42="Endemic", IF(AND($J11>1,$J11<5), IF($J11=4, "Unknown", E11+F11), 0),"Not required") -> 43289 | P11: =IF(INTRO!$E$44="Endemic", IF(AND($K11>0,$K11<5), IF($K11=4,"Unknown", IF($K11=1, $F11*0.33, IF($K11=2, $F11*0.5+$G11*0.2, SUM(F11:G11)))), 0),"Not required") -> 8571.09 | Q11: 1 | R11: 1 | S11: 2 | T11: 0 | U11: MDA1 (IVM+ALB) | V11: T3 (ALB/MBD) | W11: 12763 | X11: Madingou
A12: =IF(INTRO!$E$34<>0,INTRO!$E$34,"") -> Congo | B12: Bouenza | C12: Mouyondzi | D12: 74489 | E12: =IF(INTRO!$E$48="","",ROUND($D12*INTRO!$E$48,0)) -> 11918 | F12: =IF(INTRO!$E$49="","",ROUND($D12*INTRO!$E$49,0)) -> 17877 | G12: =IF(INTRO!$E$50="","",ROUND($D12*INTRO!$E$50,0)) -> 41192 | H12: 1 | I12: 1 | J12: 3 | K12: 1 | L12: 1 | M12: =IF(INTRO!$E$38="Endemic", IF($H12>0, IF($H12=4,"Unknown", IF($H12=99,"Stopped", $D12)), 0),"Not required") -> 74489 | N12: 33612 | O12: =IF(INTRO!$E$42="Endemic", IF(AND($J12>1,$J12<5), IF($J12=4, "Unknown", E12+F12), 0),"Not required") -> 29795 | P12: =IF(INTRO!$E$44="Endemic", IF(AND($K12>0,$K12<5), IF($K12=4,"Unknown", IF($K12=1, $F12*0.33, IF($K12=2, $F12*0.5+$G12*0.2, SUM(F12:G12)))), 0),"Not required") -> 5899.41 | Q12: 1 | R12: 1 | S12: 2 | T12: 1 | U12: MDA1 (IVM+ALB) | V12: T1 (PZQ+ALB/MBD) | W12: 12765 | X12: Mouyondzi
A13: =IF(INTRO!$E$34<>0,INTRO!$E$34,"") -> Congo | B13: Brazzaville | C13: Bacongo | D13: 122688 | E13: =IF(INTRO!$E$48="","",ROUND($D13*INTRO!$E$48,0)) -> 19630 | F13: =IF(INTRO!$E$49="","",ROUND($D13*INTRO!$E$49,0)) -> 29445 | G13: =IF(INTRO!$E$50="","",ROUND($D13*INTRO!$E$50,0)) -> 67846 | H13: 0 | I13: 1 | J13: 1 | K13: 1 | L13: 0 | M13: =IF(INTRO!$E$38="Endemic", IF($H13>0, IF($H13=4,"Unknown", IF($H13=99,"Stopped", $D13)), 0),"Not required") -> 0 | N13: 120222 | O13: =IF(INTRO!$E$42="Endemic", IF(AND($J13>1,$J13<5), IF($J13=4, "Unknown", E13+F13), 0),"Not required") -> 0 | P13: =IF(INTRO!$E$44="Endemic", IF(AND($K13>0,$K13<5), IF($K13=4,"Unknown", IF($K13=1, $F13*0.33, IF($K13=2, $F13*0.5+$G13*0.2, SUM(F13:G13)))), 0),"Not required") -> 9716.85 | Q13: 0 | R13: 1 | S13: 1 | T13: 0 | U13: MDA3 (IVM) | V13: T3 (ALB/MBD) | W13: 12800 | X13: Bacongo
A14: =IF(INTRO!$E$34<>0,INTRO!$E$34,"") -> Congo | B14: Brazzaville | C14: Makélékélé | D14: 219240 | E14: =IF(INTRO!$E$48="","",ROUND($D14*INTRO!$E$48,0)) -> 35078 | F14: =IF(INTRO!$E$49="","",ROUND($D14*INTRO!$E$49,0)) -> 52618 | G14: =IF(INTRO!$E$50="","",ROUND($D14*INTRO!$E$50,0)) -> 121240 | H14: 0 | I14: 1 | J14: 1 | K14: 0 | L14: 0 | M14: =IF(INTRO!$E$38="Endemic", IF($H14>0, IF($H14=4,"Unknown", IF($H14=99,"Stopped", $D14)), 0),"Not required") -> 0 | N14: 89151 | O14: =IF(INTRO!$E$42="Endemic", IF(AND($J14>1,$J14<5), IF($J14=4, "Unknown", E14+F14), 0),"Not required") -> 0 | P14: =IF(INTRO!$E$44="Endemic", IF(AND($K14>0,$K14<5), IF($K14=4,"Unknown", IF($K14=1, $F14*0.33, IF($K14=2, $F14*0.5+$G14*0.2, SUM(F14:G14)))), 0),"Not required") -> 0 | Q14: 0 | R14: 1 | S14: 1 | T14: 0 | U14: MDA3 (IVM) | V14: T3 (ALB/MBD) | W14: 12805 | X14: Makélékélé
A15: =IF(INTRO!$E$34<>0,INTRO!$E$34,"") -> Congo | B15: Brazzaville | C15: Mfilou | D15: 244214 | E15: =IF(INTRO!$E$48="","",ROUND($D15*INTRO!$E$48,0)) -> 39074 | F15: =IF(INTRO!$E$49="","",ROUND($D15*INTRO!$E$49,0)) -> 58611 | G15: =IF(INTRO!$E$50="","",ROUND($D15*INTRO!$E$50,0)) -> 135050 | H15: 0 | I15: 1 | J15: 1 | K15: 0 | L15: 0 | M15: =IF(INTRO!$E$38="Endemic", IF($H15>0, IF($H15=4,"Unknown", IF($H15=99,"Stopped", $D15)), 0),"Not required") -> 0 | N15: 75367 | O15: =IF(INTRO!$E$42="Endemic", IF(AND($J15>1,$J15<5), IF($J15=4, "Unknown", E15+F15), 0),"Not required") -> 0 | P15: =IF(INTRO!$E$44="Endemic", IF(AND($K15>0,$K15<5), IF($K15=4,"Unknown", IF($K15=1, $F15*0.33, IF($K15=2, $F15*0.5+$G15*0.2, SUM(F15:G15)))), 0),"Not required") -> 0 | Q15: 0 | R15: 1 | S15: 1 | T15: 0 | U15: MDA3 (IVM) | V15: T3 (ALB/MBD) | W15: 12806 | X15: Mfilou
A16: =IF(INTRO!$E$34<>0,INTRO!$E$34,"") -> Congo | B16: Brazzaville | C16: Moungali | D16: 207190 | E16: =IF(INTRO!$E$48="","",ROUND($D16*INTRO!$E$48,0)) -> 33150 | F16: =IF(INTRO!$E$49="","",ROUND($D16*INTRO!$E$49,0)) -> 49726 | G16: =IF(INTRO!$E$50="","",ROUND($D16*INTRO!$E$50,0)) -> 114576 | H16: 0 | I16: 4 | J16: 1 | K16: 1 | L16: 0 | M16: =IF(INTRO!$E$38="Endemic", IF($H16>0, IF($H16=4,"Unknown", IF($H16=99,"Stopped", $D16)), 0),"Not required") -> 0 | N16: 0 | O16: =IF(INTRO!$E$42="Endemic", IF(AND($J16>1,$J16<5), IF($J16=4, "Unknown", E16+F16), 0),"Not required") -> 0 | P16: =IF(INTRO!$E$44="Endemic", IF(AND($K16>0,$K16<5), IF($K16=4,"Unknown", IF($K16=1, $F16*0.33, IF($K16=2, $F16*0.5+$G16*0.2, SUM(F16:G16)))), 0),"Not required") -> 16409.58 | Q16: 0 | R16: 0 | S16: 1 | T16: 0 | U16: T3 (ALB/MBD) | W16: 12808 | X16: Moungali
A17: =IF(INTRO!$E$34<>0,INTRO!$E$34,"") -> Congo | B17: Brazzaville | C17: Ouenzé | D17: 225997 | E17: =IF(INTRO!$E$48="","",ROUND($D17*INTRO!$E$48,0)) -> 36160 | F17: =IF(INTRO!$E$49="","",ROUND($D17*INTRO!$E$49,0)) -> 54239 | G17: =IF(INTRO!$E$50="","",ROUND($D17*INTRO!$E$50,0)) -> 124976 | H17: 0 | I17: 4 | J17: 1 | K17: 1 | L17: 0 | M17: =IF(INTRO!$E$38="Endemic", IF($H17>0, IF($H17=4,"Unknown", IF($H17=99,"Stopped", $D17)), 0),"Not required") -> 0 | N17: 0 | O17: =IF(INTRO!$E$42="Endemic", IF(AND($J17>1,$J17<5), IF($J17=4, "Unknown", E17+F17), 0),"Not required") -> 0 | P17: =IF(INTRO!$E$44="Endemic", IF(AND($K17>0,$K17<5), IF($K17=4,"Unknown", IF($K17=1, $F17*0.33, IF($K17=2, $F17*0.5+$G17*0.2, SUM(F17:G17)))), 0),"Not required") -> 17898.87 | Q17: 0 | R17: 0 | S17: 1 | T17: 0 | U17: T3 (ALB/MBD) | W17: 12810 | X17: Ouenzé
A18: =IF(INTRO!$E$34<>0,INTRO!$E$34,"") -> Congo | B18: Brazzaville | C18: Poto-Poto | D18: 115535 | E18: =IF(INTRO!$E$48="","",ROUND($D18*INTRO!$E$48,0)) -> 18486 | F18: =IF(INTRO!$E$49="","",ROUND($D18*INTRO!$E$49,0)) -> 27728 | G18: =IF(INTRO!$E$50="","",ROUND($D18*INTRO!$E$50,0)) -> 63891 | H18: 0 | I18: 4 | J18: 1 | K18: 0 | L18: 0 | M18: =IF(INTRO!$E$38="Endemic", IF($H18>0, IF($H18=4,"Unknown", IF($H18=99,"Stopped", $D18)), 0),"Not required") -> 0 | N18: 0 | O18: =IF(INTRO!$E$42="Endemic", IF(AND($J18>1,$J18<5), IF($J18=4, "Unknown", E18+F18), 0),"Not required") -> 0 | P18: =IF(INTRO!$E$44="Endemic", IF(AND($K18>0,$K18<5), IF($K18=4,"Unknown", IF($K18=1, $F18*0.33, IF($K18=2, $F18*0.5+$G18*0.2, SUM(F18:G18)))), 0),"Not required") -> 0 | Q18: 0 | R18: 0 | S18: 1 | T18: 0 | U18: T3 (ALB/MBD) | W18: 12811 | X18: Poto-Poto
A19: =IF(INTRO!$E$34<>0,INTRO!$E$34,"") -> Congo | B19: Brazzaville | C19: Talangaî | D19: 269872 | E19: =IF(INTRO!$E$48="","",ROUND($D19*INTRO!$E$48,0)) -> 43180 | F19: =IF(INTRO!$E$49="","",ROUND($D19*INTRO!$E$49,0)) -> 64769 | G19: =IF(INTRO!$E$50="","",ROUND($D19*INTRO!$E$50,0)) -> 149239 | H19: 0 | I19: 4 | J19: 1 | K19: 0 | L19: 0 | M19: =IF(INTRO!$E$38="Endemic", IF($H19>0, IF($H19=4,"Unknown", IF($H19=99,"Stopped", $D19)), 0),"Not required") -> 0 | N19: 0 | O19: =IF(INTRO!$E$42="Endemic", IF(AND($J19>1,$J19<5), IF($J19=4, "Unknown", E19+F19), 0),"Not required") -> 0 | P19: =IF(INTRO!$E$44="Endemic", IF(AND($K19>0,$K19<5), IF($K19=4,"Unknown", IF($K19=1, $F19*0.33, IF($K19=2, $F19*0.5+$G19*0.2, SUM(F19:G19)))), 0),"Not required") -> 0 | Q19: 0 | R19: 0 | S19: 1 | T19: 0 | U19: T3 (ALB/MBD) | W19: 12812 | X19: Talangaî
A20: =IF(INTRO!$E$34<>0,INTRO!$E$34,"") -> Congo | B20: Brazzaville | C20: Madibou | D20: 151105 | E20: =IF(INTRO!$E$48="","",ROUND($D20*INTRO!$E$48,0)) -> 24177 | F20: =IF(INTRO!$E$49="","",ROUND($D20*INTRO!$E$49,0)) -> 36265 | G20: =IF(INTRO!$E$50="","",ROUND($D20*INTRO!$E$50,0)) -> 83561 | H20: 0 | I20: 1 | J20: 1 | K20: 0 | L20: 0 | M20: =IF(INTRO!$E$38="Endemic", IF($H20>0, IF($H20=4,"Unknown", IF($H20=99,"Stopped", $D20)), 0),"Not required") -> 0 | N20: 101185 | O20: =IF(INTRO!$E$42="Endemic", IF(AND($J20>1,$J20<5), IF($J20=4, "Unknown", E20+F20), 0),"Not required") -> 0 | P20: =IF(INTRO!$E$44="Endemic", IF(AND($K20>0,$K20<5), IF($K20=4,"Unknown", IF($K20=1, $F20*0.33, IF($K20=2, $F20*0.5+$G20*0.2, SUM(F20:G20)))), 0),"Not required") -> 0 | Q20: 0 | R20: 1 | S20: 1 | T20: 0 | U20: MDA3 (IVM) | V20: T3 (ALB/MBD) | W20: 12824 | X20: Madibou
A21: =IF(INTRO!$E$34<>0,INTRO!$E$34,"") -> Congo | B21: Brazzaville | C21: Djiri | D21: 150018 | E21: =IF(INTRO!$E$48="","",ROUND($D21*INTRO!$E$48,0)) -> 24003 | F21: =IF(INTRO!$E$49="","",ROUND($D21*INTRO!$E$49,0)) -> 36004 | G21: =IF(INTRO!$E$50="","",ROUND($D21*INTRO!$E$50,0)) -> 82960 | H21: 0 | I21: 4 | J21: 1 | K21: 0 | L21: 0 | M21: =IF(INTRO!$E$38="Endemic", IF($H21>0, IF($H21=4,"Unknown", IF($H21=99,"Stopped", $D21)), 0),"Not required") -> 0 | N21: 0 | O21: =IF(INTRO!$E$42="Endemic", IF(AND($J21>1,$J21<5), IF($J21=4, "Unknown", E21+F21), 0),"Not required") -> 0 | P21: =IF(INTRO!$E$44="Endemic", IF(AND($K21>0,$K21<5), IF($K21=4,"Unknown", IF($K21=1, $F21*0.33, IF($K21=2, $F21*0.5+$G21*0.2, SUM(F21:G21)))), 0),"Not required") -> 0 | Q21: 0 | R21: 0 | S21: 1 | T21: 0 | U21: T3 (ALB/MBD) | W21: 12821 | X21: Djiri
A22: =IF(INTRO!$E$34<>0,INTRO!$E$34,"") -> Congo | B22: Cuvette | C22: Mossaka Loukoléla | D22: 58415 | E22: =IF(INTRO!$E$48="","",ROUND($D22*INTRO!$E$48,0)) -> 9346 | F22: =IF(INTRO!$E$49="","",ROUND($D22*INTRO!$E$49,0)) -> 14020 | G22: =IF(INTRO!$E$50="","",ROUND($D22*INTRO!$E$50,0)) -> 32303 | H22: 0 | I22: 4 | J22: 2 | K22: 1 | L22: 0 | M22: =IF(INTRO!$E$38="Endemic", IF($H22>0, IF($H22=4,"Unknown", IF($H22=99,"Stopped", $D22)), 0),"Not required") -> 0 | N22: 0 | O22: =IF(INTRO!$E$42="Endemic", IF(AND($J22>1,$J22<5), IF($J22=4, "Unknown", E22+F22), 0),"Not required") -> 23366 | P22: =IF(INTRO!$E$44="Endemic", IF(AND($K22>0,$K22<5), IF($K22=4,"Unknown", IF($K22=1, $F22*0.33, IF($K22=2, $F22*0.5+$G22*0.2, SUM(F22:G22)))), 0),"Not required") -> 4626.6 | Q22: 0 | R22: 0 | S22: 1 | T22: 0 | U22: T3 (ALB/MBD) | W22: 12773 | X22: Mossaka Loukoléla
A23: =IF(INTRO!$E$34<>0,INTRO!$E$34,"") -> Congo | B23: Cuvette | C23: Owando | D23: 85697 | E23: =IF(INTRO!$E$48="","",ROUND($D23*INTRO!$E$48,0)) -> 13712 | F23: =IF(INTRO!$E$49="","",ROUND($D23*INTRO!$E$49,0)) -> 20567 | G23: =IF(INTRO!$E$50="","",ROUND($D23*INTRO!$E$50,0)) -> 47390 | H23: 1 | I23: 4 | J23: 1 | K23: 1 | L23: 1 | M23: =IF(INTRO!$E$38="Endemic", IF($H23>0, IF($H23=4,"Unknown", IF($H23=99,"Stopped", $D23)), 0),"Not required") -> 85697 | N23: 0 | O23: =IF(INTRO!$E$42="Endemic", IF(AND($J23>1,$J23<5), IF($J23=4, "Unknown", E23+F23), 0),"Not required") -> 0 | P23: =IF(INTRO!$E$44="Endemic", IF(AND($K23>0,$K23<5), IF($K23=4,"Unknown", IF($K23=1, $F23*0.33, IF($K23=2, $F23*0.5+$G23*0.2, SUM(F23:G23)))), 0),"Not required") -> 6787.11 | Q23: 1 | R23: 0 | S23: 1 | T23: 0 | V23: T3 (ALB/MBD) | W23: 12775 | X23: Owando
A24: =IF(INTRO!$E$34<>0,INTRO!$E$34,"") -> Congo | B24: Cuvette | C24: Oyo | D24: 49584 | E24: =IF(INTRO!$E$48="","",ROUND($D24*INTRO!$E$48,0)) -> 7933 | F24: =IF(INTRO!$E$49="","",ROUND($D24*INTRO!$E$49,0)) -> 11900 | G24: =IF(INTRO!$E$50="","",ROUND($D24*INTRO!$E$50,0)) -> 27420 | H24: 0 | I24: 4 | J24: 1 | K24: 0 | L24: 1 | M24: =IF(INTRO!$E$38="Endemic", IF($H24>0, IF($H24=4,"Unknown", IF($H24=99,"Stopped", $D24)), 0),"Not required") -> 0 | N24: 0 | O24: =IF(INTRO!$E$42="Endemic", IF(AND($J24>1,$J24<5), IF($J24=4, "Unknown", E24+F24), 0),"Not required") -> 0 | P24: =IF(INTRO!$E$44="Endemic", IF(AND($K24>0,$K24<5), IF($K24=4,"Unknown", IF($K24=1, $F24*0.33, IF($K24=2, $F24*0.5+$G24*0.2, SUM(F24:G24)))), 0),"Not required") -> 0 | Q24: 0 | R24: 0 | S24: 1 | T24: 0 | U24: T3 (ALB/MBD) | W24: 12829 | X24: Oyo
A25: =IF(INTRO!$E$34<>0,INTRO!$E$34,"") -> Congo | B25: Cuvette-Ouest | C25: Etoumbi | D25: 43125 | E25: =IF(INTRO!$E$48="","",ROUND($D25*INTRO!$E$48,0)) -> 6900 | F25: =IF(INTRO!$E$49="","",ROUND($D25*INTRO!$E$49,0)) -> 10350 | G25: =IF(INTRO!$E$50="","",ROUND($D25*INTRO!$E$50,0)) -> 23848 | H25: 1 | I25: 4 | J25: 2 | K25: 0 | L25: 1 | M25: =IF(INTRO!$E$38="Endemic", IF($H25>0, IF($H25=4,"Unknown", IF($H25=99,"Stopped", $D25)), 0),"Not required") -> 43125 | N25: 0 | O25: =IF(INTRO!$E$42="Endemic", IF(AND($J25>1,$J25<5), IF($J25=4, "Unknown", E25+F25), 0),"Not required") -> 17250 | P25: =IF(INTRO!$E$44="Endemic", IF(AND($K25>0,$K25<5), IF($K25=4,"Unknown", IF($K25=1, $F25*0.33, IF($K25=2, $F25*0.5+$G25*0.2, SUM(F25:G25)))), 0),"Not required") -> 0 | Q25: 1 | R25: 0 | S25: 1 | T25: 0 | V25: T3 (ALB/MBD) | W25: 12822 | X25: Etoumbi
A26: =IF(INTRO!$E$34<>0,INTRO!$E$34,"") -> Congo | B26: Cuvette-Ouest | C26: Ewo | D26: 47449 | E26: =IF(INTRO!$E$48="","",ROUND($D26*INTRO!$E$48,0)) -> 7592 | F26: =IF(INTRO!$E$49="","",ROUND($D26*INTRO!$E$49,0)) -> 11388 | G26: =IF(INTRO!$E$50="","",ROUND($D26*INTRO!$E$50,0)) -> 26239 | H26: 1 | I26: 4 | J26: 2 | K26: 1 | L26: 1 | M26: =IF(INTRO!$E$38="Endemic", IF($H26>0, IF($H26=4,"Unknown", IF($H26=99,"Stopped", $D26)), 0),"Not required") -> 47449 | N26: 0 | O26: =IF(INTRO!$E$42="Endemic", IF(AND($J26>1,$J26<5), IF($J26=4, "Unknown", E26+F26), 0),"Not required") -> 18980 | P26: =IF(INTRO!$E$44="Endemic", IF(AND($K26>0,$K26<5), IF($K26=4,"Unknown", IF($K26=1, $F26*0.33, IF($K26=2, $F26*0.5+$G26*0.2, SUM(F26:G26)))), 0),"Not required") -> 3758.04 | Q26: 1 | R26: 0 | S26: 1 | T26: 0 | V26: T3 (ALB/MBD) | W26: 12768 | X26: Ewo
A27: =IF(INTRO!$E$34<>0,INTRO!$E$34,"") -> Congo | B27: Kouilou | C27: Hinda-Mvouti | D27: 84059 | E27: =IF(INTRO!$E$48="","",ROUND($D27*INTRO!$E$48,0)) -> 13449 | F27: =IF(INTRO!$E$49="","",ROUND($D27*INTRO!$E$49,0)) -> 20174 | G27: =IF(INTRO!$E$50="","",ROUND($D27*INTRO!$E$50,0)) -> 46485 | H27: 0 | I27: 4 | J27: 3 | K27: 1 | L27: 1 | M27: =IF(INTRO!$E$38="Endemic", IF($H27>0, IF($H27=4,"Unknown", IF($H27=99,"Stopped", $D27)), 0),"Not required") -> 0 | N27: 0 | O27: =IF(INTRO!$E$42="Endemic", IF(AND($J27>1,$J27<5), IF($J27=4, "Unknown", E27+F27), 0),"Not required") -> 33623 | P27: =IF(INTRO!$E$44="Endemic", IF(AND($K27>0,$K27<5), IF($K27=4,"Unknown", IF($K27=1, $F27*0.33, IF($K27=2, $F27*0.5+$G27*0.2, SUM(F27:G27)))), 0),"Not required") -> 6657.42 | Q27: 0 | R27: 0 | S27: 1 | T27: 1 | U27: T1 (PZQ+ALB/MBD) | W27: 12781 | X27: Hinda-Mvouti
A28: =IF(INTRO!$E$34<>0,INTRO!$E$34,"") -> Congo | B28: Kouilou | C28: Madingo Kayes | D28: 30079 | E28: =IF(INTRO!$E$48="","",ROUND($D28*INTRO!$E$48,0)) -> 4813 | F28: =IF(INTRO!$E$49="","",ROUND($D28*INTRO!$E$49,0)) -> 7219 | G28: =IF(INTRO!$E$50="","",ROUND($D28*INTRO!$E$50,0)) -> 16634 | H28: 0 | I28: 1 | J28: 3 | K28: 1 | L28: 1 | M28: =IF(INTRO!$E$38="Endemic", IF($H28>0, IF($H28=4,"Unknown", IF($H28=99,"Stopped", $D28)), 0),"Not required") -> 0 | N28: 1134 | O28: =IF(INTRO!$E$42="Endemic", IF(AND($J28>1,$J28<5), IF($J28=4, "Unknown", E28+F28), 0),"Not required") -> 12032 | P28: =IF(INTRO!$E$44="Endemic", IF(AND($K28>0,$K28<5), IF($K28=4,"Unknown", IF($K28=1, $F28*0.33, IF($K28=2, $F28*0.5+$G28*0.2, SUM(F28:G28)))), 0),"Not required") -> 2382.27 | Q28: 0 | R28: 1 | S28: 1 | T28: 1 | U28: MDA3 (IVM) | V28: T1 (PZQ+ALB/MBD) | W28: 12816 | X28: Madingo Kayes
A29: =IF(INTRO!$E$34<>0,INTRO!$E$34,"") -> Congo | B29: Lékoumou | C29: Sibiti | D29: 92876 | E29: =IF(INTRO!$E$48="","",ROUND($D29*INTRO!$E$48,0)) -> 14860 | F29: =IF(INTRO!$E$49="","",ROUND($D29*INTRO!$E$49,0)) -> 22290 | G29: =IF(INTRO!$E$50="","",ROUND($D29*INTRO!$E$50,0)) -> 51360 | H29: 0 | I29: 1 | J29: 3 | K29: 1 | L29: 1 | M29: =IF(INTRO!$E$38="Endemic", IF($H29>0, IF($H29=4,"Unknown", IF($H29=99,"Stopped", $D29)), 0),"Not required") -> 0 | N29: 595 | O29: =IF(INTRO!$E$42="Endemic", IF(AND($J29>1,$J29<5), IF($J29=4, "Unknown", E29+F29), 0),"Not required") -> 37150 | P29: =IF(INTRO!$E$44="Endemic", IF(AND($K29>0,$K29<5), IF($K29=4,"Unknown", IF($K29=1, $F29*0.33, IF($K29=2, $F29*0.5+$G29*0.2, SUM(F29:G29)))), 0),"Not required") -> 7355.7 | Q29: 0 | R29: 1 | S29: 1 | T29: 1 | U29: MDA3 (IVM) | V29: T1 (PZQ+ALB/MBD) | W29: 12784 | X29: Sibiti
A30: =IF(INTRO!$E$34<>0,INTRO!$E$34,"") -> Congo | B30: Lékoumou | C30: Zanaga | D30: 26742 | E30: =IF(INTRO!$E$48="","",ROUND($D30*INTRO!$E$48,0)) -> 4279 | F30: =IF(INTRO!$E$49="","",ROUND($D30*INTRO!$E$49,0)) -> 6418 | G30: =IF(INTRO!$E$50="","",ROUND($D30*INTRO!$E$50,0)) -> 14788 | H30: 0 | I30: 4 | J30: 3 | K30: 0 | L30: 1 | M30: =IF(INTRO!$E$38="Endemic", IF($H30>0, IF($H30=4,"Unknown", IF($H30=99,"Stopped", $D30)), 0),"Not required") -> 0 | N30: 0 | O30: =IF(INTRO!$E$42="Endemic", IF(AND($J30>1,$J30<5), IF($J30=4, "Unknown", E30+F30), 0),"Not required") -> 10697 | P30: =IF(INTRO!$E$44="Endemic", IF(AND($K30>0,$K30<5), IF($K30=4,"Unknown", IF($K30=1, $F30*0.33, IF($K30=2, $F30*0.5+$G30*0.2, SUM(F30:G30)))), 0),"Not required") -> 0 | Q30: 0 | R30: 0 | S30: 1 | T30: 0 | U30: T3 (ALB/MBD) | W30: 12785 | X30: Zanaga
A31: =IF(INTRO!$E$34<>0,INTRO!$E$34,"") -> Congo | B31: Likouala | C31: Bétou | D31: 63198 | E31: =IF(INTRO!$E$48="","",ROUND($D31*INTRO!$E$48,0)) -> 10112 | F31: =IF(INTRO!$E$49="","",ROUND($D31*INTRO!$E$49,0)) -> 15168 | G31: =IF(INTRO!$E$50="","",ROUND($D31*INTRO!$E$50,0)) -> 34948 | H31: 0 | I31: 4 | J31: 2 | K31: 0 | L31: 1 | M31: =IF(INTRO!$E$38="Endemic", IF($H31>0, IF($H31=4,"Unknown", IF($H31=99,"Stopped", $D31)), 0),"Not required") -> 0 | N31: 0 | O31: =IF(INTRO!$E$42="Endemic", IF(AND($J31>1,$J31<5), IF($J31=4, "Unknown", E31+F31), 0),"Not required") -> 25280 | P31: =IF(INTRO!$E$44="Endemic", IF(AND($K31>0,$K31<5), IF($K31=4,"Unknown", IF($K31=1, $F31*0.33, IF($K31=2, $F31*0.5+$G31*0.2, SUM(F31:G31)))), 0),"Not required") -> 0 | Q31: 0 | R31: 0 | S31: 1 | T31: 0 | U31: T3 (ALB/MBD) | W31: 12786 | X31: Bétou
A32: =IF(INTRO!$E$34<>0,INTRO!$E$34,"") -> Congo | B32: Likouala | C32: Impfondo | D32: 128037 | E32: =IF(INTRO!$E$48="","",ROUND($D32*INTRO!$E$48,0)) -> 20486 | F32: =IF(INTRO!$E$49="","",ROUND($D32*INTRO!$E$49,0)) -> 30729 | G32: =IF(INTRO!$E$50="","",ROUND($D32*INTRO!$E$50,0)) -> 70804 | H32: 1 | I32: 4 | J32: 2 | K32: 0 | L32: 1 | M32: =IF(INTRO!$E$38="Endemic", IF($H32>0, IF($H32=4,"Unknown", IF($H32=99,"Stopped", $D32)), 0),"Not required") -> 128037 | N32: 0 | O32: =IF(INTRO!$E$42="Endemic", IF(AND($J32>1,$J32<5), IF($J32=4, "Unknown", E32+F32), 0),"Not required") -> 51215 | P32: =IF(INTRO!$E$44="Endemic", IF(AND($K32>0,$K32<5), IF($K32=4,"Unknown", IF($K32=1, $F32*0.33, IF($K32=2, $F32*0.5+$G32*0.2, SUM(F32:G32)))), 0),"Not required") -> 0 | Q32: 1 | R32: 0 | S32: 1 | T32: 0 | V32: T3 (ALB/MBD) | W32: 12789 | X32: Impfondo
A33: =IF(INTRO!$E$34<>0,INTRO!$E$34,"") -> Congo | B33: Niari | C33: Dolisie | D33: 172567 | E33: =IF(INTRO!$E$48="","",ROUND($D33*INTRO!$E$48,0)) -> 27611 | F33: =IF(INTRO!$E$49="","",ROUND($D33*INTRO!$E$49,0)) -> 41416 | G33: =IF(INTRO!$E$50="","",ROUND($D33*INTRO!$E$50,0)) -> 95430 | H33: 1 | I33: 1 | J33: 3 | K33: 1 | L33: 1 | M33: =IF(INTRO!$E$38="Endemic", IF($H33>0, IF($H33=4,"Unknown", IF($H33=99,"Stopped", $D33)), 0),"Not required") -> 172567 | N33: 8525 | O33: =IF(INTRO!$E$42="Endemic", IF(AND($J33>1,$J33<5), IF($J33=4, "Unknown", E33+F33), 0),"Not required") -> 69027 | P33: =IF(INTRO!$E$44="Endemic", IF(AND($K33>0,$K33<5), IF($K33=4,"Unknown", IF($K33=1, $F33*0.33, IF($K33=2, $F33*0.5+$G33*0.2, SUM(F33:G33)))), 0),"Not required") -> 13667.28 | Q33: 1 | R33: 1 | S33: 2 | T33: 0 | U33: MDA1 (IVM+ALB) | V33: T3 (ALB/MBD) | W33: 12827 | X33: Dolisie
A34: =IF(INTRO!$E$34<>0,INTRO!$E$34,"") -> Congo | B34: Niari | C34: Kibangou | D34: 59226 | E34: =IF(INTRO!$E$48="","",ROUND($D34*INTRO!$E$48,0)) -> 9476 | F34: =IF(INTRO!$E$49="","",ROUND($D34*INTRO!$E$49,0)) -> 14214 | G34: =IF(INTRO!$E$50="","",ROUND($D34*INTRO!$E$50,0)) -> 32752 | H34: 1 | I34: 1 | J34: 3 | K34: 0 | L34: 1 | M34: =IF(INTRO!$E$38="Endemic", IF($H34>0, IF($H34=4,"Unknown", IF($H34=99,"Stopped", $D34)), 0),"Not required") -> 59226 | N34: 11479 | O34: =IF(INTRO!$E$42="Endemic", IF(AND($J34>1,$J34<5), IF($J34=4, "Unknown", E34+F34), 0),"Not required") -> 23690 | P34: =IF(INTRO!$E$44="Endemic", IF(AND($K34>0,$K34<5), IF($K34=4,"Unknown", IF($K34=1, $F34*0.33, IF($K34=2, $F34*0.5+$G34*0.2, SUM(F34:G34)))), 0),"Not required") -> 0 | Q34: 1 | R34: 1 | S34: 2 | T34: 0 | U34: MDA1 (IVM+ALB) | V34: T3 (ALB/MBD) | W34: 12791 | X34: Kibangou
A35: =IF(INTRO!$E$34<>0,INTRO!$E$34,"") -> Congo | B35: Niari | C35: Mossendjo | D35: 55144 | E35: =IF(INTRO!$E$48="","",ROUND($D35*INTRO!$E$48,0)) -> 8823 | F35: =IF(INTRO!$E$49="","",ROUND($D35*INTRO!$E$49,0)) -> 13235 | G35: =IF(INTRO!$E$50="","",ROUND($D35*INTRO!$E$50,0)) -> 30495 | H35: 0 | I35: 4 | J35: 3 | K35: 0 | L35: 1 | M35: =IF(INTRO!$E$38="Endemic", IF($H35>0, IF($H35=4,"Unknown", IF($H35=99,"Stopped", $D35)), 0),"Not required") -> 0 | N35: 0 | O35: =IF(INTRO!$E$42="Endemic", IF(AND($J35>1,$J35<5), IF($J35=4, "Unknown", E35+F35), 0),"Not required") -> 22058 | P35: =IF(INTRO!$E$44="Endemic", IF(AND($K35>0,$K35<5), IF($K35=4,"Unknown", IF($K35=1, $F35*0.33, IF($K35=2, $F35*0.5+$G35*0.2, SUM(F35:G35)))), 0),"Not required") -> 0 | Q35: 0 | R35: 0 | S35: 1 | T35: 0 | U35: T3 (ALB/MBD) | W35: 12795 | X35: Mossendjo
A36: =IF(INTRO!$E$34<>0,INTRO!$E$34,"") -> Congo | B36: Plateaux | C36: Abala | D36: 46164 | E36: =IF(INTRO!$E$48="","",ROUND($D36*INTRO!$E$48,0)) -> 7386 | F36: =IF(INTRO!$E$49="","",ROUND($D36*INTRO!$E$49,0)) -> 11079 | G36: =IF(INTRO!$E$50="","",ROUND($D36*INTRO!$E$50,0)) -> 25529 | H36: 0 | I36: 4 | J36: 1 | K36: 0 | L36: 1 | M36: =IF(INTRO!$E$38="Endemic", IF($H36>0, IF($H36=4,"Unknown", IF($H36=99,"Stopped", $D36)), 0),"Not required") -> 0 | N36: 0 | O36: =IF(INTRO!$E$42="Endemic", IF(AND($J36>1,$J36<5), IF($J36=4, "Unknown", E36+F36), 0),"Not required") -> 0 | P36: =IF(INTRO!$E$44="Endemic", IF(AND($K36>0,$K36<5), IF($K36=4,"Unknown", IF($K36=1, $F36*0.33, IF($K36=2, $F36*0.5+$G36*0.2, SUM(F36:G36)))), 0),"Not required") -> 0 | Q36: 0 | R36: 0 | S36: 1 | T36: 0 | U36: T3 (ALB/MBD) | W36: 12830 | X36: Abala
A37: =IF(INTRO!$E$34<>0,INTRO!$E$34,"") -> Congo | B37: Plateaux | C37: Djambala-Lékana | D37: 78441 | E37: =IF(INTRO!$E$48="","",ROUND($D37*INTRO!$E$48,0)) -> 12551 | F37: =IF(INTRO!$E$49="","",ROUND($D37*INTRO!$E$49,0)) -> 18826 | G37: =IF(INTRO!$E$50="","",ROUND($D37*INTRO!$E$50,0)) -> 43378 | H37: 0 | I37: 4 | J37: 3 | K37: 0 | L37: 1 | M37: =IF(INTRO!$E$38="Endemic", IF($H37>0, IF($H37=4,"Unknown", IF($H37=99,"Stopped", $D37)), 0),"Not required") -> 0 | N37: 0 | O37: =IF(INTRO!$E$42="Endemic", IF(AND($J37>1,$J37<5), IF($J37=4, "Unknown", E37+F37), 0),"Not required") -> 31377 | P37: =IF(INTRO!$E$44="Endemic", IF(AND($K37>0,$K37<5), IF($K37=4,"Unknown", IF($K37=1, $F37*0.33, IF($K37=2, $F37*0.5+$G37*0.2, SUM(F37:G37)))), 0),"Not required") -> 0 | Q37: 0 | R37: 0 | S37: 1 | T37: 0 | U37: T3 (ALB/MBD) | W37: 12797 | X37: Djambala-Lékana
A38: =IF(INTRO!$E$34<>0,INTRO!$E$34,"") -> Congo | B38: Plateaux | C38: Gamboma | D38: 92016 | E38: =IF(INTRO!$E$48="","",ROUND($D38*INTRO!$E$48,0)) -> 14723 | F38: =IF(INTRO!$E$49="","",ROUND($D38*INTRO!$E$49,0)) -> 22084 | G38: =IF(INTRO!$E$50="","",ROUND($D38*INTRO!$E$50,0)) -> 50885 | H38: 0 | I38: 4 | J38: 3 | K38: 0 | L38: 1 | M38: =IF(INTRO!$E$38="Endemic", IF($H38>0, IF($H38=4,"Unknown", IF($H38=99,"Stopped", $D38)), 0),"Not required") -> 0 | N38: 0 | O38: =IF(INTRO!$E$42="Endemic", IF(AND($J38>1,$J38<5), IF($J38=4, "Unknown", E38+F38), 0),"Not required") -> 36807 | P38: =IF(INTRO!$E$44="Endemic", IF(AND($K38>0,$K38<5), IF($K38=4,"Unknown", IF($K38=1, $F38*0.33, IF($K38=2, $F38*0.5+$G38*0.2, SUM(F38:G38)))), 0),"Not required") -> 0 | Q38: 0 | R38: 0 | S38: 1 | T38: 0 | U38: T3 (ALB/MBD) | W38: 12798 | X38: Gamboma
A39: =IF(INTRO!$E$34<>0,INTRO!$E$34,"") -> Congo | B39: Pointe-Noire | C39: Ngoyo | D39: 32108 | E39: =IF(INTRO!$E$48="","",ROUND($D39*INTRO!$E$48,0)) -> 5137 | F39: =IF(INTRO!$E$49="","",ROUND($D39*INTRO!$E$49,0)) -> 7706 | G39: =IF(INTRO!$E$50="","",ROUND($D39*INTRO!$E$50,0)) -> 17756 | H39: 0 | I39: 4 | J39: 1 | K39: 0 | L39: 0 | M39: =IF(INTRO!$E$38="Endemic", IF($H39>0, IF($H39=4,"Unknown", IF($H39=99,"Stopped", $D39)), 0),"Not required") -> 0 | N39: 0 | O39: =IF(INTRO!$E$42="Endemic", IF(AND($J39>1,$J39<5), IF($J39=4, "Unknown", E39+F39), 0),"Not required") -> 0 | P39: =IF(INTRO!$E$44="Endemic", IF(AND($K39>0,$K39<5), IF($K39=4,"Unknown", IF($K39=1, $F39*0.33, IF($K39=2, $F39*0.5+$G39*0.2, SUM(F39:G39)))), 0),"Not required") -> 0 | Q39: 0 | R39: 0 | S39: 1 | T39: 0 | U39: T3 (ALB/MBD) | W39: 12826 | X39: Ngoyo
A40: =IF(INTRO!$E$34<>0,INTRO!$E$34,"") -> Congo | B40: Pointe-Noire | C40: Mongo-Poukou | D40: 118017 | E40: =IF(INTRO!$E$48="","",ROUND($D40*INTRO!$E$48,0)) -> 18883 | F40: =IF(INTRO!$E$49="","",ROUND($D40*INTRO!$E$49,0)) -> 28324 | G40: =IF(INTRO!$E$50="","",ROUND($D40*INTRO!$E$50,0)) -> 65263 | H40: 0 | I40: 4 | J40: 1 | K40: 0 | L40: 0 | M40: =IF(INTRO!$E$38="Endemic", IF($H40>0, IF($H40=4,"Unknown", IF($H40=99,"Stopped", $D40)), 0),"Not required") -> 0 | N40: 0 | O40: =IF(INTRO!$E$42="Endemic", IF(AND($J40>1,$J40<5), IF($J40=4, "Unknown", E40+F40), 0),"Not required") -> 0 | P40: =IF(INTRO!$E$44="Endemic", IF(AND($K40>0,$K40<5), IF($K40=4,"Unknown", IF($K40=1, $F40*0.33, IF($K40=2, $F40*0.5+$G40*0.2, SUM(F40:G40)))), 0),"Not required") -> 0 | Q40: 0 | R40: 0 | S40: 1 | T40: 0 | U40: T3 (ALB/MBD) | W40: 12825 | X40: Mongo-Poukou
A41: =IF(INTRO!$E$34<>0,INTRO!$E$34,"") -> Congo | B41: Pointe-Noire | C41: Loandjili | D41: 245687 | E41: =IF(INTRO!$E$48="","",ROUND($D41*INTRO!$E$48,0)) -> 39310 | F41: =IF(INTRO!$E$49="","",ROUND($D41*INTRO!$E$49,0)) -> 58965 | G41: =IF(INTRO!$E$50="","",ROUND($D41*INTRO!$E$50,0)) -> 135865 | H41: 0 | I41: 4 | J41: 1 | K41: 1 | L41: 0 | M41: =IF(INTRO!$E$38="Endemic", IF($H41>0, IF($H41=4,"Unknown", IF($H41=99,"Stopped", $D41)), 0),"Not required") -> 0 | N41: 0 | O41: =IF(INTRO!$E$42="Endemic", IF(AND($J41>1,$J41<5), IF($J41=4, "Unknown", E41+F41), 0),"Not required") -> 0 | P41: =IF(INTRO!$E$44="Endemic", IF(AND($K41>0,$K41<5), IF($K41=4,"Unknown", IF($K41=1, $F41*0.33, IF($K41=2, $F41*0.5+$G41*0.2, SUM(F41:G41)))), 0),"Not required") -> 19458.45 | Q41: 0 | R41: 0 | S41: 1 | T41: 0 | U41: T3 (ALB/MBD) | W41: 12777 | X41: Loandjili
A42: =IF(INTRO!$E$34<>0,INTRO!$E$34,"") -> Congo | B42: Pointe-Noire | C42: Lumumba | D42: 135185 | E42: =IF(INTRO!$E$48="","",ROUND($D42*INTRO!$E$48,0)) -> 21630 | F42: =IF(INTRO!$E$49="","",ROUND($D42*INTRO!$E$49,0)) -> 32444 | G42: =IF(INTRO!$E$50="","",ROUND($D42*INTRO!$E$50,0)) -> 74757 | H42: 0 | I42: 4 | J42: 1 | K42: 1 | L42: 0 | M42: =IF(INTRO!$E$38="Endemic", IF($H42>0, IF($H42=4,"Unknown", IF($H42=99,"Stopped", $D42)), 0),"Not required") -> 0 | N42: 0 | O42: =IF(INTRO!$E$42="Endemic", IF(AND($J42>1,$J42<5), IF($J42=4, "Unknown", E42+F42), 0),"Not required") -> 0 | P42: =IF(INTRO!$E$44="Endemic", IF(AND($K42>0,$K42<5), IF($K42=4,"Unknown", IF($K42=1, $F42*0.33, IF($K42=2, $F42*0.5+$G42*0.2, SUM(F42:G42)))), 0),"Not required") -> 10706.52 | Q42: 0 | R42: 0 | S42: 1 | T42: 0 | U42: T3 (ALB/MBD) | W42: 12778 | X42: Lumumba
A43: =IF(INTRO!$E$34<>0,INTRO!$E$34,"") -> Congo | B43: Pointe-Noire | C43: Mvoumvou | D43: 108307 | E43: =IF(INTRO!$E$48="","",ROUND($D43*INTRO!$E$48,0)) -> 17329 | F43: =IF(INTRO!$E$49="","",ROUND($D43*INTRO!$E$49,0)) -> 25994 | G43: =IF(INTRO!$E$50="","",ROUND($D43*INTRO!$E$50,0)) -> 59894 | H43: 0 | I43: 4 | J43: 1 | K43: 1 | L43: 0 | M43: =IF(INTRO!$E$38="Endemic", IF($H43>0, IF($H43=4,"Unknown", IF($H43=99,"Stopped", $D43)), 0),"Not required") -> 0 | N43: 0 | O43: =IF(INTRO!$E$42="Endemic", IF(AND($J43>1,$J43<5), IF($J43=4, "Unknown", E43+F43), 0),"Not required") -> 0 | P43: =IF(INTRO!$E$44="Endemic", IF(AND($K43>0,$K43<5), IF($K43=4,"Unknown", IF($K43=1, $F43*0.33, IF($K43=2, $F43*0.5+$G43*0.2, SUM(F43:G43)))), 0),"Not required") -> 8578.02 | Q43: 0 | R43: 0 | S43: 1 | T43: 0 | U43: T3 (ALB/MBD) | W43: 12780 | X43: Mvoumvou
A44: =IF(INTRO!$E$34<>0,INTRO!$E$34,"") -> Congo | B44: Pointe-Noire | C44: Tie-Tie | D44: 220002 | E44: =IF(INTRO!$E$48="","",ROUND($D44*INTRO!$E$48,0)) -> 35200 | F44: =IF(INTRO!$E$49="","",ROUND($D44*INTRO!$E$49,0)) -> 52800 | G44: =IF(INTRO!$E$50="","",ROUND($D44*INTRO!$E$50,0)) -> 121661 | H44: 0 | I44: 4 | J44: 1 | K44: 0 | L44: 0 | M44: =IF(INTRO!$E$38="Endemic", IF($H44>0, IF($H44=4,"Unknown", IF($H44=99,"Stopped", $D44)), 0),"Not required") -> 0 | N44: 0 | O44: =IF(INTRO!$E$42="Endemic", IF(AND($J44>1,$J44<5), IF($J44=4, "Unknown", E44+F44), 0),"Not required") -> 0 | P44: =IF(INTRO!$E$44="Endemic", IF(AND($K44>0,$K44<5), IF($K44=4,"Unknown", IF($K44=1, $F44*0.33, IF($K44=2, $F44*0.5+$G44*0.2, SUM(F44:G44)))), 0),"Not required") -> 0 | Q44: 0 | R44: 0 | S44: 1 | T44: 0 | U44: T3 (ALB/MBD) | W44: 12819 | X44: Tie-Tie
A45: =IF(INTRO!$E$34<>0,INTRO!$E$34,"") -> Congo | B45: Pool | C45: Goma tsétsé | D45: 31454 | E45: =IF(INTRO!$E$48="","",ROUND($D45*INTRO!$E$48,0)) -> 5033 | F45: =IF(INTRO!$E$49="","",ROUND($D45*INTRO!$E$49,0)) -> 7549 | G45: =IF(INTRO!$E$50="","",ROUND($D45*INTRO!$E$50,0)) -> 17394 | H45: 0 | I45: 1 | J45: 2 | K45: 0 | L45: 1 | M45: =IF(INTRO!$E$38="Endemic", IF($H45>0, IF($H45=4,"Unknown", IF($H45=99,"Stopped", $D45)), 0),"Not required") -> 0 | N45: 16644 | O45: =IF(INTRO!$E$42="Endemic", IF(AND($J45>1,$J45<5), IF($J45=4, "Unknown", E45+F45), 0),"Not required") -> 12582 | P45: =IF(INTRO!$E$44="Endemic", IF(AND($K45>0,$K45<5), IF($K45=4,"Unknown", IF($K45=1, $F45*0.33, IF($K45=2, $F45*0.5+$G45*0.2, SUM(F45:G45)))), 0),"Not required") -> 0 | Q45: 0 | R45: 1 | S45: 1 | T45: 0 | U45: MDA3 (IVM) | V45: T3 (ALB/MBD) | W45: 12802 | X45: Goma tsétsé
A46: =IF(INTRO!$E$34<>0,INTRO!$E$34,"") -> Congo | B46: Pool | C46: Ignié | D46: 82407 | E46: =IF(INTRO!$E$48="","",ROUND($D46*INTRO!$E$48,0)) -> 13185 | F46: =IF(INTRO!$E$49="","",ROUND($D46*INTRO!$E$49,0)) -> 19778 | G46: =IF(INTRO!$E$50="","",ROUND($D46*INTRO!$E$50,0)) -> 45571 | H46: 1 | I46: 1 | J46: 2 | K46: 1 | L46: 1 | M46: =IF(INTRO!$E$38="Endemic", IF($H46>0, IF($H46=4,"Unknown", IF($H46=99,"Stopped", $D46)), 0),"Not required") -> 82407 | N46: 2155 | O46: =IF(INTRO!$E$42="Endemic", IF(AND($J46>1,$J46<5), IF($J46=4, "Unknown", E46+F46), 0),"Not required") -> 32963 | P46: =IF(INTRO!$E$44="Endemic", IF(AND($K46>0,$K46<5), IF($K46=4,"Unknown", IF($K46=1, $F46*0.33, IF($K46=2, $F46*0.5+$G46*0.2, SUM(F46:G46)))), 0),"Not required") -> 6526.74 | Q46: 1 | R46: 1 | S46: 2 | T46: 0 | U46: MDA1 (IVM+ALB) | V46: T3 (ALB/MBD) | W46: 12828 | X46: Ignié
A47: =IF(INTRO!$E$34<>0,INTRO!$E$34,"") -> Congo | B47: Pool | C47: Kindamba | D47: 34393 | E47: =IF(INTRO!$E$48="","",ROUND($D47*INTRO!$E$48,0)) -> 5503 | F47: =IF(INTRO!$E$49="","",ROUND($D47*INTRO!$E$49,0)) -> 8254 | G47: =IF(INTRO!$E$50="","",ROUND($D47*INTRO!$E$50,0)) -> 19019 | H47: 0 | I47: 1 | J47: 2 | K47: 0 | L47: 1 | M47: =IF(INTRO!$E$38="Endemic", IF($H47>0, IF($H47=4,"Unknown", IF($H47=99,"Stopped", $D47)), 0),"Not required") -> 0 | N47: 11504 | O47: =IF(INTRO!$E$42="Endemic", IF(AND($J47>1,$J47<5), IF($J47=4, "Unknown", E47+F47), 0),"Not required") -> 13757 | P47: =IF(INTRO!$E$44="Endemic", IF(AND($K47>0,$K47<5), IF($K47=4,"Unknown", IF($K47=1, $F47*0.33, IF($K47=2, $F47*0.5+$G47*0.2, SUM(F47:G47)))), 0),"Not required") -> 0 | Q47: 0 | R47: 1 | S47: 1 | T47: 0 | U47: MDA3 (IVM) | V47: T3 (ALB/MBD) | W47: 12803 | X47: Kindamba
A48: =IF(INTRO!$E$34<>0,INTRO!$E$34,"") -> Congo | B48: Pool | C48: Kinkala-Boko | D48: 78805 | E48: =IF(INTRO!$E$48="","",ROUND($D48*INTRO!$E$48,0)) -> 12609 | F48: =IF(INTRO!$E$49="","",ROUND($D48*INTRO!$E$49,0)) -> 18913 | G48: =IF(INTRO!$E$50="","",ROUND($D48*INTRO!$E$50,0)) -> 43579 | H48: 0 | I48: 1 | J48: 2 | K48: 0 | L48: 1 | M48: =IF(INTRO!$E$38="Endemic", IF($H48>0, IF($H48=4,"Unknown", IF($H48=99,"Stopped", $D48)), 0),"Not required") -> 0 | N48: 39419 | O48: =IF(INTRO!$E$42="Endemic", IF(AND($J48>1,$J48<5), IF($J48=4, "Unknown", E48+F48), 0),"Not required") -> 31522 | P48: =IF(INTRO!$E$44="Endemic", IF(AND($K48>0,$K48<5), IF($K48=4,"Unknown", IF($K48=1, $F48*0.33, IF($K48=2, $F48*0.5+$G48*0.2, SUM(F48:G48)))), 0),"Not required") -> 0 | Q48: 0 | R48: 1 | S48: 1 | T48: 0 | U48: MDA3 (IVM) | V48: T3 (ALB/MBD) | W48: 12804 | X48: Kinkala-Boko
A49: =IF(INTRO!$E$34<>0,INTRO!$E$34,"") -> Congo | B49: Pool | C49: Mindouli | D49: 66478 | E49: =IF(INTRO!$E$48="","",ROUND($D49*INTRO!$E$48,0)) -> 10636 | F49: =IF(INTRO!$E$49="","",ROUND($D49*INTRO!$E$49,0)) -> 15955 | G49: =IF(INTRO!$E$50="","",ROUND($D49*INTRO!$E$50,0)) -> 36762 | H49: 0 | I49: 1 | J49: 2 | K49: 1 | L49: 1 | M49: =IF(INTRO!$E$38="Endemic", IF($H49>0, IF($H49=4,"Unknown", IF($H49=99,"Stopped", $D49)), 0),"Not required") -> 0 | N49: 39719 | O49: =IF(INTRO!$E$42="Endemic", IF(AND($J49>1,$J49<5), IF($J49=4, "Unknown", E49+F49), 0),"Not required") -> 26591 | P49: =IF(INTRO!$E$44="Endemic", IF(AND($K49>0,$K49<5), IF($K49=4,"Unknown", IF($K49=1, $F49*0.33, IF($K49=2, $F49*0.5+$G49*0.2, SUM(F49:G49)))), 0),"Not required") -> 5265.15 | Q49: 0 | R49: 1 | S49: 1 | T49: 0 | U49: MDA3 (IVM) | V49: T3 (ALB/MBD) | W49: 12807 | X49: Mindouli
A50: =IF(INTRO!$E$34<>0,INTRO!$E$34,"") -> Congo | B50: Sangha | C50: Ouesso | D50: 76859 | E50: =IF(INTRO!$E$48="","",ROUND($D50*INTRO!$E$48,0)) -> 12297 | F50: =IF(INTRO!$E$49="","",ROUND($D50*INTRO!$E$49,0)) -> 18446 | G50: =IF(INTRO!$E$50="","",ROUND($D50*INTRO!$E$50,0)) -> 42503 | H50: 1 | I50: 4 | J50: 3 | K50: 1 | L50: 1 | M50: =IF(INTRO!$E$38="Endemic", IF($H50>0, IF($H50=4,"Unknown", IF($H50=99,"Stopped", $D50)), 0),"Not required") -> 76859 | N50: 0 | O50: =IF(INTRO!$E$42="Endemic", IF(AND($J50>1,$J50<5), IF($J50=4, "Unknown", E50+F50), 0),"Not required") -> 30743 | P50: =IF(INTRO!$E$44="Endemic", IF(AND($K50>0,$K50<5), IF($K50=4,"Unknown", IF($K50=1, $F50*0.33, IF($K50=2, $F50*0.5+$G50*0.2, SUM(F50:G50)))), 0),"Not required") -> 6087.18 | Q50: 1 | R50: 0 | S50: 1 | T50: 0 | V50: T3 (ALB/MBD) | W50: 12813 | X50: Ouesso
A51: =IF(INTRO!$E$34<>0,INTRO!$E$34,"") -> Congo | B51: Sangha | C51: Sembé-Souanké | D51: 29622 | E51: =IF(INTRO!$E$48="","",ROUND($D51*INTRO!$E$48,0)) -> 4740 | F51: =IF(INTRO!$E$49="","",ROUND($D51*INTRO!$E$49,0)) -> 7109 | G51: =IF(INTRO!$E$50="","",ROUND($D51*INTRO!$E$50,0)) -> 16381 | H51: 1 | I51: 4 | J51: 3 | K51: 0 | L51: 1 | M51: =IF(INTRO!$E$38="Endemic", IF($H51>0, IF($H51=4,"Unknown", IF($H51=99,"Stopped", $D51)), 0),"Not required") -> 29622 | N51: 0 | O51: =IF(INTRO!$E$42="Endemic", IF(AND($J51>1,$J51<5), IF($J51=4, "Unknown", E51+F51), 0),"Not required") -> 11849 | P51: =IF(INTRO!$E$44="Endemic", IF(AND($K51>0,$K51<5), IF($K51=4,"Unknown", IF($K51=1, $F51*0.33, IF($K51=2, $F51*0.5+$G51*0.2, SUM(F51:G51)))), 0),"Not required") -> 0 | Q51: 1 | R51: 0 | S51: 1 | T51: 0 | V51: T3 (ALB/MBD) | W51: 12814 | X51: Sembé-Souanké

Sheet MDA1
A1: MDA 1 - Ivermectin (IVM) and Albendazole (ALB)
A2: Administrative structure, population requiring PC by age group, population treated by age group and coverage
A4: TOTAL | G4: =SUM(G$9:G$1000) -> 32515 | H4: =SUM(H$9:H$1000) -> 102761 | I4: =SUM(I$9:I$1000) -> 135276 | K4: =SUM(K$9:K$1000) -> 31586.24338 | L4: =SUM(L$9:L$1000) -> 73529.75662 | M4: =SUM(M$9:M$1000) -> 105116 | O4: =IF(G4<>0, IF(K4/G4*100=0, "-", K4/G4*100), " ") -> 97.14360566 | P4: =IF(H4<>0, IF(L4/H4*100=0, "-", L4/H4*100), " ") -> 71.55414663 | Q4: =IF(I4<>0, IF(M4/I4*100=0, "-", M4/I4*100), " ") -> 77.70484047
D6: PC implemented | E6: Date | F6: Population targeted for MDA 1 | J6: Population treated | N6: Programme coverage (%)
A7: Country | B7: Province/State | C7: District | F7: PreSAC | G7: SAC | H7: Adults | I7: Total | J7: PreSAC | K7: SAC | L7: Adults | M7: Total | N7: PreSAC | O7: SAC | P7: Adults | Q7: Total
A9: =IF(COUNTRY_INFO!A9=0," ",COUNTRY_INFO!A9) -> Congo | B9: =IF(COUNTRY_INFO!B9=0," ",COUNTRY_INFO!B9) -> Bouenza | C9: =IF(COUNTRY_INFO!C9=0," ",COUNTRY_INFO!C9) -> Loudima | D9: =IF(COUNTRY_INFO!$U$9:$U$1000="MDA1 (IVM+ALB)", COUNTRY_INFO!$U$9:$U$1000, " ") ->  | I9: =SUM(F9:H9) -> 0 | M9: =SUM(J9:L9) -> 0 | O9: =IF(G9<>0, IF(K9/G9*100=0, "-", K9/G9*100), " ") ->  | P9: =IF(H9<>0, IF(L9/H9*100=0, "-", L9/H9*100), " ") -> 
A10: =IF(COUNTRY_INFO!A10=0," ",COUNTRY_INFO!A10) -> Congo | B10: =IF(COUNTRY_INFO!B10=0," ",COUNTRY_INFO!B10) -> Bouenza | C10: =IF(COUNTRY_INFO!C10=0," ",COUNTRY_INFO!C10) -> Loutété | D10: =IF(COUNTRY_INFO!$U$9:$U$1000="MDA1 (IVM+ALB)", COUNTRY_INFO!$U$9:$U$1000, " ") -> MDA1 (IVM+ALB) | E10: Août-Nov | G10: 7397 | H10: 23422 | I10: =SUM(F10:H10) -> 30819 | K10: 7397 | L10: 17066 | M10: =SUM(J10:L10) -> 24463 | O10: =IF(G10<>0, IF(K10/G10*100=0, "-", K10/G10*100), " ") -> 100 | P10: =IF(H10<>0, IF(L10/H10*100=0, "-", L10/H10*100), " ") -> 72.86312014 | Q10: =IF(I10<>0, IF(M10/I10*100=0, "-", M10/I10*100), " ") -> 79.37635874
A11: =IF(COUNTRY_INFO!A11=0," ",COUNTRY_INFO!A11) -> Congo | B11: =IF(COUNTRY_INFO!B11=0," ",COUNTRY_INFO!B11) -> Bouenza | C11: =IF(COUNTRY_INFO!C11=0," ",COUNTRY_INFO!C11) -> Madingou | D11: =IF(COUNTRY_INFO!$U$9:$U$1000="MDA1 (IVM+ALB)", COUNTRY_INFO!$U$9:$U$1000, " ") -> MDA1 (IVM+ALB) | E11: Août-Nov | G11: 11733 | H11: 37153 | I11: 48886 | K11: 10826.33039 | L11: 24945.66961 | M11: 35772 | O11: 92.27248266 | P11: 67.14308295 | Q11: 73.17432394
A12: =IF(COUNTRY_INFO!A12=0," ",COUNTRY_INFO!A12) -> Congo | B12: =IF(COUNTRY_INFO!B12=0," ",COUNTRY_INFO!B12) -> Bouenza | C12: =IF(COUNTRY_INFO!C12=0," ",COUNTRY_INFO!C12) -> Mouyondzi | D12: =IF(COUNTRY_INFO!$U$9:$U$1000="MDA1 (IVM+ALB)", COUNTRY_INFO!$U$9:$U$1000, " ") -> MDA1 (IVM+ALB) | E12: Août-Nov | G12: 8067 | H12: 25545 | I12: 33612 | K12: 8067 | L12: 19129 | M12: 27196 | O12: 100 | P12: 74.88353885 | Q12: 80.9115792
A13: =IF(COUNTRY_INFO!A13=0," ",COUNTRY_INFO!A13) -> Congo | B13: =IF(COUNTRY_INFO!B13=0," ",COUNTRY_INFO!B13) -> Brazzaville | C13: =IF(COUNTRY_INFO!C13=0," ",COUNTRY_INFO!C13) -> Bacongo | D13: =IF(COUNTRY_INFO!$U$9:$U$1000="MDA1 (IVM+ALB)", COUNTRY_INFO!$U$9:$U$1000, " ") ->  | I13: 0 | M13: 0
A14: =IF(COUNTRY_INFO!A14=0," ",COUNTRY_INFO!A14) -> Congo | B14: =IF(COUNTRY_INFO!B14=0," ",COUNTRY_INFO!B14) -> Brazzaville | C14: =IF(COUNTRY_INFO!C14=0," ",COUNTRY_INFO!C14) -> Makélékélé | D14: =IF(COUNTRY_INFO!$U$9:$U$1000="MDA1 (IVM+ALB)", COUNTRY_INFO!$U$9:$U$1000, " ") ->  | I14: 0 | M14: 0
A15: =IF(COUNTRY_INFO!A15=0," ",COUNTRY_INFO!A15) -> Congo | B15: =IF(COUNTRY_INFO!B15=0," ",COUNTRY_INFO!B15) -> Brazzaville | C15: =IF(COUNTRY_INFO!C15=0," ",COUNTRY_INFO!C15) -> Mfilou | D15: =IF(COUNTRY_INFO!$U$9:$U$1000="MDA1 (IVM+ALB)", COUNTRY_INFO!$U$9:$U$1000, " ") ->  | I15: 0 | M15: 0
A16: =IF(COUNTRY_INFO!A16=0," ",COUNTRY_INFO!A16) -> Congo | B16: =IF(COUNTRY_INFO!B16=0," ",COUNTRY_INFO!B16) -> Brazzaville | C16: =IF(COUNTRY_INFO!C16=0," ",COUNTRY_INFO!C16) -> Moungali | D16: =IF(COUNTRY_INFO!$U$9:$U$1000="MDA1 (IVM+ALB)", COUNTRY_INFO!$U$9:$U$1000, " ") ->  | I16: 0 | M16: 0
A17: =IF(COUNTRY_INFO!A17=0," ",COUNTRY_INFO!A17) -> Congo | B17: =IF(COUNTRY_INFO!B17=0," ",COUNTRY_INFO!B17) -> Brazzaville | C17: =IF(COUNTRY_INFO!C17=0," ",COUNTRY_INFO!C17) -> Ouenzé | D17: =IF(COUNTRY_INFO!$U$9:$U$1000="MDA1 (IVM+ALB)", COUNTRY_INFO!$U$9:$U$1000, " ") ->  | I17: 0 | M17: 0
A18: =IF(COUNTRY_INFO!A18=0," ",COUNTRY_INFO!A18) -> Congo | B18: =IF(COUNTRY_INFO!B18=0," ",COUNTRY_INFO!B18) -> Brazzaville | C18: =IF(COUNTRY_INFO!C18=0," ",COUNTRY_INFO!C18) -> Poto-Poto | D18: =IF(COUNTRY_INFO!$U$9:$U$1000="MDA1 (IVM+ALB)", COUNTRY_INFO!$U$9:$U$1000, " ") ->  | I18: 0 | M18: 0
A19: =IF(COUNTRY_INFO!A19=0," ",COUNTRY_INFO!A19) -> Congo | B19: =IF(COUNTRY_INFO!B19=0," ",COUNTRY_INFO!B19) -> Brazzaville | C19: =IF(COUNTRY_INFO!C19=0," ",COUNTRY_INFO!C19) -> Talangaî | D19: =IF(COUNTRY_INFO!$U$9:$U$1000="MDA1 (IVM+ALB)", COUNTRY_INFO!$U$9:$U$1000, " ") ->  | I19: 0 | M19: 0
A20: =IF(COUNTRY_INFO!A20=0," ",COUNTRY_INFO!A20) -> Congo | B20: =IF(COUNTRY_INFO!B20=0," ",COUNTRY_INFO!B20) -> Brazzaville | C20: =IF(COUNTRY_INFO!C20=0," ",COUNTRY_INFO!C20) -> Madibou | D20: =IF(COUNTRY_INFO!$U$9:$U$1000="MDA1 (IVM+ALB)", COUNTRY_INFO!$U$9:$U$1000, " ") ->  | I20: 0 | M20: 0
A21: =IF(COUNTRY_INFO!A21=0," ",COUNTRY_INFO!A21) -> Congo | B21: =IF(COUNTRY_INFO!B21=0," ",COUNTRY_INFO!B21) -> Brazzaville | C21: =IF(COUNTRY_INFO!C21=0," ",COUNTRY_INFO!C21) -> Djiri | D21: =IF(COUNTRY_INFO!$U$9:$U$1000="MDA1 (IVM+ALB)", COUNTRY_INFO!$U$9:$U$1000, " ") ->  | I21: 0 | M21: 0
A22: =IF(COUNTRY_INFO!A22=0," ",COUNTRY_INFO!A22) -> Congo | B22: =IF(COUNTRY_INFO!B22=0," ",COUNTRY_INFO!B22) -> Cuvette | C22: =IF(COUNTRY_INFO!C22=0," ",COUNTRY_INFO!C22) -> Mossaka Loukoléla | D22: =IF(COUNTRY_INFO!$U$9:$U$1000="MDA1 (IVM+ALB)", COUNTRY_INFO!$U$9:$U$1000, " ") ->  | I22: 0 | M22: 0
A23: =IF(COUNTRY_INFO!A23=0," ",COUNTRY_INFO!A23) -> Congo | B23: =IF(COUNTRY_INFO!B23=0," ",COUNTRY_INFO!B23) -> Cuvette | C23: =IF(COUNTRY_INFO!C23=0," ",COUNTRY_INFO!C23) -> Owando | D23: =IF(COUNTRY_INFO!$U$9:$U$1000="MDA1 (IVM+ALB)", COUNTRY_INFO!$U$9:$U$1000, " ") ->  | I23: 0 | M23: 0
A24: =IF(COUNTRY_INFO!A24=0," ",COUNTRY_INFO!A24) -> Congo | B24: =IF(COUNTRY_INFO!B24=0," ",COUNTRY_INFO!B24) -> Cuvette | C24: =IF(COUNTRY_INFO!C24=0," ",COUNTRY_INFO!C24) -> Oyo | D24: =IF(COUNTRY_INFO!$U$9:$U$1000="MDA1 (IVM+ALB)", COUNTRY_INFO!$U$9:$U$1000, " ") ->  | I24: 0 | M24: 0
A25: =IF(COUNTRY_INFO!A25=0," ",COUNTRY_INFO!A25) -> Congo | B25: =IF(COUNTRY_INFO!B25=0," ",COUNTRY_INFO!B25) -> Cuvette-Ouest | C25: =IF(COUNTRY_INFO!C25=0," ",COUNTRY_INFO!C25) -> Etoumbi | D25: =IF(COUNTRY_INFO!$U$9:$U$1000="MDA1 (IVM+ALB)", COUNTRY_INFO!$U$9:$U$1000, " ") ->  | I25: 0 | M25: 0
A26: =IF(COUNTRY_INFO!A26=0," ",COUNTRY_INFO!A26) -> Congo | B26: =IF(COUNTRY_INFO!B26=0," ",COUNTRY_INFO!B26) -> Cuvette-Ouest | C26: =IF(COUNTRY_INFO!C26=0," ",COUNTRY_INFO!C26) -> Ewo | D26: =IF(COUNTRY_INFO!$U$9:$U$1000="MDA1 (IVM+ALB)", COUNTRY_INFO!$U$9:$U$1000, " ") ->  | I26: 0 | M26: 0
A27: =IF(COUNTRY_INFO!A27=0," ",COUNTRY_INFO!A27) -> Congo | B27: =IF(COUNTRY_INFO!B27=0," ",COUNTRY_INFO!B27) -> Kouilou | C27: =IF(COUNTRY_INFO!C27=0," ",COUNTRY_INFO!C27) -> Hinda-Mvouti | D27: =IF(COUNTRY_INFO!$U$9:$U$1000="MDA1 (IVM+ALB)", COUNTRY_INFO!$U$9:$U$1000, " ") ->  | I27: 0 | M27: 0
A28: =IF(COUNTRY_INFO!A28=0," ",COUNTRY_INFO!A28) -> Congo | B28: =IF(COUNTRY_INFO!B28=0," ",COUNTRY_INFO!B28) -> Kouilou | C28: =IF(COUNTRY_INFO!C28=0," ",COUNTRY_INFO!C28) -> Madingo Kayes | D28: =IF(COUNTRY_INFO!$U$9:$U$1000="MDA1 (IVM+ALB)", COUNTRY_INFO!$U$9:$U$1000, " ") ->  | I28: 0 | M28: 0
A29: =IF(COUNTRY_INFO!A29=0," ",COUNTRY_INFO!A29) -> Congo | B29: =IF(COUNTRY_INFO!B29=0," ",COUNTRY_INFO!B29) -> Lékoumou | C29: =IF(COUNTRY_INFO!C29=0," ",COUNTRY_INFO!C29) -> Sibiti | D29: =IF(COUNTRY_INFO!$U$9:$U$1000="MDA1 (IVM+ALB)", COUNTRY_INFO!$U$9:$U$1000, " ") ->  | I29: 0 | M29: 0
A30: =IF(COUNTRY_INFO!A30=0," ",COUNTRY_INFO!A30) -> Congo | B30: =IF(COUNTRY_INFO!B30=0," ",COUNTRY_INFO!B30) -> Lékoumou | C30: =IF(COUNTRY_INFO!C30=0," ",COUNTRY_INFO!C30) -> Zanaga | D30: =IF(COUNTRY_INFO!$U$9:$U$1000="MDA1 (IVM+ALB)", COUNTRY_INFO!$U$9:$U$1000, " ") ->  | I30: 0 | M30: 0
A31: =IF(COUNTRY_INFO!A31=0," ",COUNTRY_INFO!A31) -> Congo | B31: =IF(COUNTRY_INFO!B31=0," ",COUNTRY_INFO!B31) -> Likouala | C31: =IF(COUNTRY_INFO!C31=0," ",COUNTRY_INFO!C31) -> Bétou | D31: =IF(COUNTRY_INFO!$U$9:$U$1000="MDA1 (IVM+ALB)", COUNTRY_INFO!$U$9:$U$1000, " ") ->  | I31: 0 | M31: 0
A32: =IF(COUNTRY_INFO!A32=0," ",COUNTRY_INFO!A32) -> Congo | B32: =IF(COUNTRY_INFO!B32=0," ",COUNTRY_INFO!B32) -> Likouala | C32: =IF(COUNTRY_INFO!C32=0," ",COUNTRY_INFO!C32) -> Impfondo | D32: =IF(COUNTRY_INFO!$U$9:$U$1000="MDA1 (IVM+ALB)", COUNTRY_INFO!$U$9:$U$1000, " ") ->  | I32: 0 | M32: 0
A33: =IF(COUNTRY_INFO!A33=0," ",COUNTRY_INFO!A33) -> Congo | B33: =IF(COUNTRY_INFO!B33=0," ",COUNTRY_INFO!B33) -> Niari | C33: =IF(COUNTRY_INFO!C33=0," ",COUNTRY_INFO!C33) -> Dolisie | D33: =IF(COUNTRY_INFO!$U$9:$U$1000="MDA1 (IVM+ALB)", COUNTRY_INFO!$U$9:$U$1000, " ") -> MDA1 (IVM+ALB) | E33: Août-Nov | G33: 2046 | H33: 6479 | I33: 8525 | K33: 2046 | L33: 4777 | M33: 6823 | O33: 100 | P33: 73.73051397 | Q33: 80.03519062
A34: =IF(COUNTRY_INFO!A34=0," ",COUNTRY_INFO!A34) -> Congo | B34: =IF(COUNTRY_INFO!B34=0," ",COUNTRY_INFO!B34) -> Niari | C34: =IF(COUNTRY_INFO!C34=0," ",COUNTRY_INFO!C34) -> Kibangou | D34: =IF(COUNTRY_INFO!$U$9:$U$1000="MDA1 (IVM+ALB)", COUNTRY_INFO!$U$9:$U$1000, " ") -> MDA1 (IVM+ALB) | E34: Août-Nov | G34: 2755 | H34: 8524 | I34: 11279 | K34: 2732.912989 | L34: 6297.087011 | M34: 9030 | O34: 99.1982936 | P34: 73.87478896 | Q34: 80.06028903
A35: =IF(COUNTRY_INFO!A35=0," ",COUNTRY_INFO!A35) -> Congo | B35: =IF(COUNTRY_INFO!B35=0," ",COUNTRY_INFO!B35) -> Niari | C35: =IF(COUNTRY_INFO!C35=0," ",COUNTRY_INFO!C35) -> Mossendjo | D35: =IF(COUNTRY_INFO!$U$9:$U$1000="MDA1 (IVM+ALB)", COUNTRY_INFO!$U$9:$U$1000, " ") ->  | I35: 0 | M35: 0
A36: =IF(COUNTRY_INFO!A36=0," ",COUNTRY_INFO!A36) -> Congo | B36: =IF(COUNTRY_INFO!B36=0," ",COUNTRY_INFO!B36) -> Plateaux | C36: =IF(COUNTRY_INFO!C36=0," ",COUNTRY_INFO!C36) -> Abala | D36: =IF(COUNTRY_INFO!$U$9:$U$1000="MDA1 (IVM+ALB)", COUNTRY_INFO!$U$9:$U$1000, " ") ->  | I36: 0 | M36: 0
A37: =IF(COUNTRY_INFO!A37=0," ",COUNTRY_INFO!A37) -> Congo | B37: =IF(COUNTRY_INFO!B37=0," ",COUNTRY_INFO!B37) -> Plateaux | C37: =IF(COUNTRY_INFO!C37=0," ",COUNTRY_INFO!C37) -> Djambala-Lékana | D37: =IF(COUNTRY_INFO!$U$9:$U$1000="MDA1 (IVM+ALB)", COUNTRY_INFO!$U$9:$U$1000, " ") ->  | I37: 0 | M37: 0
A38: =IF(COUNTRY_INFO!A38=0," ",COUNTRY_INFO!A38) -> Congo | B38: =IF(COUNTRY_INFO!B38=0," ",COUNTRY_INFO!B38) -> Plateaux | C38: =IF(COUNTRY_INFO!C38=0," ",COUNTRY_INFO!C38) -> Gamboma | D38: =IF(COUNTRY_INFO!$U$9:$U$1000="MDA1 (IVM+ALB)", COUNTRY_INFO!$U$9:$U$1000, " ") ->  | I38: 0 | M38: 0
A39: =IF(COUNTRY_INFO!A39=0," ",COUNTRY_INFO!A39) -> Congo | B39: =IF(COUNTRY_INFO!B39=0," ",COUNTRY_INFO!B39) -> Pointe-Noire | C39: =IF(COUNTRY_INFO!C39=0," ",COUNTRY_INFO!C39) -> Ngoyo | D39: =IF(COUNTRY_INFO!$U$9:$U$1000="MDA1 (IVM+ALB)", COUNTRY_INFO!$U$9:$U$1000, " ") ->  | I39: 0 | M39: 0
A40: =IF(COUNTRY_INFO!A40=0," ",COUNTRY_INFO!A40) -> Congo | B40: =IF(COUNTRY_INFO!B40=0," ",COUNTRY_INFO!B40) -> Pointe-Noire | C40: =IF(COUNTRY_INFO!C40=0," ",COUNTRY_INFO!C40) -> Mongo-Poukou | D40: =IF(COUNTRY_INFO!$U$9:$U$1000="MDA1 (IVM+ALB)", COUNTRY_INFO!$U$9:$U$1000, " ") ->  | I40: 0 | M40: 0
A41: =IF(COUNTRY_INFO!A41=0," ",COUNTRY_INFO!A41) -> Congo | B41: =IF(COUNTRY_INFO!B41=0," ",COUNTRY_INFO!B41) -> Pointe-Noire | C41: =IF(COUNTRY_INFO!C41=0," ",COUNTRY_INFO!C41) -> Loandjili | D41: =IF(COUNTRY_INFO!$U$9:$U$1000="MDA1 (IVM+ALB)", COUNTRY_INFO!$U$9:$U$1000, " ") ->  | I41: 0 | M41: 0
A42: =IF(COUNTRY_INFO!A42=0," ",COUNTRY_INFO!A42) -> Congo | B42: =IF(COUNTRY_INFO!B42=0," ",COUNTRY_INFO!B42) -> Pointe-Noire | C42: =IF(COUNTRY_INFO!C42=0," ",COUNTRY_INFO!C42) -> Lumumba | D42: =IF(COUNTRY_INFO!$U$9:$U$1000="MDA1 (IVM+ALB)", COUNTRY_INFO!$U$9:$U$1000, " ") ->  | I42: 0 | M42: 0
A43: =IF(COUNTRY_INFO!A43=0," ",COUNTRY_INFO!A43) -> Congo | B43: =IF(COUNTRY_INFO!B43=0," ",COUNTRY_INFO!B43) -> Pointe-Noire | C43: =IF(COUNTRY_INFO!C43=0," ",COUNTRY_INFO!C43) -> Mvoumvou | D43: =IF(COUNTRY_INFO!$U$9:$U$1000="MDA1 (IVM+ALB)", COUNTRY_INFO!$U$9:$U$1000, " ") ->  | I43: 0 | M43: 0
A44: =IF(COUNTRY_INFO!A44=0," ",COUNTRY_INFO!A44) -> Congo | B44: =IF(COUNTRY_INFO!B44=0," ",COUNTRY_INFO!B44) -> Pointe-Noire | C44: =IF(COUNTRY_INFO!C44=0," ",COUNTRY_INFO!C44) -> Tie-Tie | D44: =IF(COUNTRY_INFO!$U$9:$U$1000="MDA1 (IVM+ALB)", COUNTRY_INFO!$U$9:$U$1000, " ") ->  | I44: 0 | M44: 0
A45: =IF(COUNTRY_INFO!A45=0," ",COUNTRY_INFO!A45) -> Congo | B45: =IF(COUNTRY_INFO!B45=0," ",COUNTRY_INFO!B45) -> Pool | C45: =IF(COUNTRY_INFO!C45=0," ",COUNTRY_INFO!C45) -> Goma tsétsé | D45: =IF(COUNTRY_INFO!$U$9:$U$1000="MDA1 (IVM+ALB)", COUNTRY_INFO!$U$9:$U$1000, " ") ->  | I45: 0 | M45: 0
A46: =IF(COUNTRY_INFO!A46=0," ",COUNTRY_INFO!A46) -> Congo | B46: =IF(COUNTRY_INFO!B46=0," ",COUNTRY_INFO!B46) -> Pool | C46: =IF(COUNTRY_INFO!C46=0," ",COUNTRY_INFO!C46) -> Ignié | D46: =IF(COUNTRY_INFO!$U$9:$U$1000="MDA1 (IVM+ALB)", COUNTRY_INFO!$U$9:$U$1000, " ") -> MDA1 (IVM+ALB) | E46: Août-Nov | G46: 517 | H46: 1638 | I46: 2155 | K46: 517 | L46: 1315 | M46: 1832 | O46: 100 | P46: 80.28083028 | Q46: 85.01160093
A47: =IF(COUNTRY_INFO!A47=0," ",COUNTRY_INFO!A47) -> Congo | B47: =IF(COUNTRY_INFO!B47=0," ",COUNTRY_INFO!B47) -> Pool | C47: =IF(COUNTRY_INFO!C47=0," ",COUNTRY_INFO!C47) -> Kindamba | D47: =IF(COUNTRY_INFO!$U$9:$U$1000="MDA1 (IVM+ALB)", COUNTRY_INFO!$U$9:$U$1000, " ") ->  | I47: 0 | M47: 0
A48: =IF(COUNTRY_INFO!A48=0," ",COUNTRY_INFO!A48) -> Congo | B48: =IF(COUNTRY_INFO!B48=0," ",COUNTRY_INFO!B48) -> Pool | C48: =IF(COUNTRY_INFO!C48=0," ",COUNTRY_INFO!C48) -> Kinkala-Boko | D48: =IF(COUNTRY_INFO!$U$9:$U$1000="MDA1 (IVM+ALB)", COUNTRY_INFO!$U$9:$U$1000, " ") ->  | I48: 0 | M48: 0
A49: =IF(COUNTRY_INFO!A49=0," ",COUNTRY_INFO!A49) -> Congo | B49: =IF(COUNTRY_INFO!B49=0," ",COUNTRY_INFO!B49) -> Pool | C49: =IF(COUNTRY_INFO!C49=0," ",COUNTRY_INFO!C49) -> Mindouli | D49: =IF(COUNTRY_INFO!$U$9:$U$1000="MDA1 (IVM+ALB)", COUNTRY_INFO!$U$9:$U$1000, " ") ->  | I49: 0 | M49: 0
A50: =IF(COUNTRY_INFO!A50=0," ",COUNTRY_INFO!A50) -> Congo | B50: =IF(COUNTRY_INFO!B50=0," ",COUNTRY_INFO!B50) -> Sangha | C50: =IF(COUNTRY_INFO!C50=0," ",COUNTRY_INFO!C50) -> Ouesso | D50: =IF(COUNTRY_INFO!$U$9:$U$1000="MDA1 (IVM+ALB)", COUNTRY_INFO!$U$9:$U$1000, " ") ->  | I50: 0 | M50: 0
A51: =IF(COUNTRY_INFO!A51=0," ",COUNTRY_INFO!A51) -> Congo | B51: =IF(COUNTRY_INFO!B51=0," ",COUNTRY_INFO!B51) -> Sangha | C51: =IF(COUNTRY_INFO!C51=0," ",COUNTRY_INFO!C51) -> Sembé-Souanké | D51: =IF(COUNTRY_INFO!$U$9:$U$1000="MDA1 (IVM+ALB)", COUNTRY_INFO!$U$9:$U$1000, " ") ->  | I51: 0 | M51: 0

Sheet MDA4
A1: MDA 4 - Albendazole (ALB) or 2 x Albendazole (ALB)
A2: Administrative structure, population requiring PC by age group, population treated by age group and coverage
A4: TOTAL | F4: =SUM(F$9:F$1000) -> 0 | G4: =SUM(G$9:G$1000) -> 40851.44 | H4: 129362.64 | I4: 170214.08 | J4: 0 | K4: 40851.44 | L4: 129362.64 | M4: 170214.08 | N4: 0 | O4: 27442 | P4: 144072 | Q4: 171514 | R4: 0 | S4: =SUM(S$9:S$1000) -> 42226.84 | T4: 144455.88 | U4: 186682.72 | V4: =IF(F4<>0, IF(R4/F4*100=0, "-", R4/F4*100), " ") ->  | W4: =IF(G4<>0, IF(S4/G4*100=0, "-", S4/G4*100), " ") -> 103.3668336 | X4: =IF(H4<>0, IF(T4/H4*100=0, "-", T4/H4*100), " ") -> 111.6673871 | Y4: =IF(I4<>0, IF(U4/I4*100=0, "-", U4/I4*100), " ") -> 109.6752513
D6: PC implemented | E6: Date | F6: Population targeted for MDA 4 | J6: Population treated - 1st round | N6: Population treated - 2nd round | R6: Population treated | V6: Programme coverage (%)
A7: Country | B7: Province/State | C7: District | F7: PreSAC | G7: SAC | H7: Adults | I7: Total | J7: PreSAC | K7: SAC | L7: Adults | M7: Total | N7: PreSAC | O7: SAC | P7: Adults | Q7: Total | R7: PreSAC | S7: SAC | T7: Adults | U7: Total | V7: PreSAC | W7: SAC | X7: Adults | Y7: Total
A9: =IF(COUNTRY_INFO!A9=0," ",COUNTRY_INFO!A9) -> Congo | B9: =IF(COUNTRY_INFO!B9=0," ",COUNTRY_INFO!B9) -> Bouenza | C9: =IF(COUNTRY_INFO!C9=0," ",COUNTRY_INFO!C9) -> Loudima | D9: =IF(COUNTRY_INFO!$U$9:$U$1000="MDA4 (ALB/2*ALB)", COUNTRY_INFO!$U$9:$U$1000, " ") ->  | I9: =SUM(F9:H9) -> 0 | K9: 0 | L9: 0 | M9: =SUM(J9:L9) -> 0 | Q9: =SUM(N9:P9) -> 0 | R9: =MAX(J9,N9) -> 0 | S9: =MAX(K9,O9) -> 0 | T9: 0 | U9: =SUM(R9:T9) -> 0 | V9: =IF(F9<>0, IF(R9/F9*100=0, "-", R9/F9*100), " ") ->  | W9: =IF(G9<>0, IF(S9/G9*100=0, "-", S9/G9*100), " ") ->  | X9: =IF(H9<>0, IF(T9/H9*100=0, "-", T9/H9*100), " ") ->  | Y9: =IF(I9<>0, IF(U9/I9*100=0, "-", U9/I9*100), " ") ->  | AA9: ='MDA1'!D9 ->  | AE9: =T3_R1!D9 -> 
A10: =IF(COUNTRY_INFO!A10=0," ",COUNTRY_INFO!A10) -> Congo | B10: =IF(COUNTRY_INFO!B10=0," ",COUNTRY_INFO!B10) -> Bouenza | C10: =IF(COUNTRY_INFO!C10=0," ",COUNTRY_INFO!C10) -> Loutété | D10: MDA4 (ALB/2*ALB) | G10: 506 | H10: 1602.08 | I10: =SUM(F10:H10) -> 2108.08 | K10: 506 | L10: 1602.08 | M10: =SUM(J10:L10) -> 2108.08 | O10: 367 | P10: 1924 | Q10: =SUM(N10:P10) -> 2291 | R10: 0 | S10: =MAX(K10,O10) -> 506 | T10: =MAX(L10,P10) -> 1924 | U10: =SUM(R10:T10) -> 2430 | V10: =IF(F10<>0, IF(R10/F10*100=0, "-", R10/F10*100), " ") ->  | W10: =IF(G10<>0, IF(S10/G10*100=0, "-", S10/G10*100), " ") -> 100 | X10: =IF(H10<>0, IF(T10/H10*100=0, "-", T10/H10*100), " ") -> 120.093878 | Y10: =IF(I10<>0, IF(U10/I10*100=0, "-", U10/I10*100), " ") -> 115.2707677 | Z10: =D10 -> MDA4 (ALB/2*ALB) | AA10: ='MDA1'!D10 -> MDA1 (IVM+ALB) | AC10: ='T1'!D10 -> T1 (PZQ+ALB/MBD) | AE10: =T3_R1!D10 -> 
A11: =IF(COUNTRY_INFO!A11=0," ",COUNTRY_INFO!A11) -> Congo | B11: =IF(COUNTRY_INFO!B11=0," ",COUNTRY_INFO!B11) -> Bouenza | C11: =IF(COUNTRY_INFO!C11=0," ",COUNTRY_INFO!C11) -> Madingou | D11: MDA4 (ALB/2*ALB) | G11: 3268.32 | H11: 10349.68 | I11: 13618 | K11: 3268.32 | L11: 10349.68 | M11: 13618 | O11: 2215 | P11: 11630 | Q11: 13845 | R11: 0 | S11: =MAX(K11,J1) -> 3268.32 | T11: 11630 | U11: 14898.32 | W11: 100 | X11: 112.370624 | Y11: 109.4016743 | Z11: =D11 -> MDA4 (ALB/2*ALB) | AA11: ='MDA1'!D11 -> MDA1 (IVM+ALB) | AC11: ='T1'!D11 ->  | AE11: =T3_R1!D11 -> T3 (ALB/MBD)
A12: =IF(COUNTRY_INFO!A12=0," ",COUNTRY_INFO!A12) -> Congo | B12: =IF(COUNTRY_INFO!B12=0," ",COUNTRY_INFO!B12) -> Bouenza | C12: =IF(COUNTRY_INFO!C12=0," ",COUNTRY_INFO!C12) -> Mouyondzi | D12: MDA4 (ALB/2*ALB) | G12: 1491.6 | H12: 4723.4 | I12: 6215 | K12: 1491.6 | L12: 4723.4 | M12: 6215 | O12: 994 | P12: 5221 | Q12: 6215 | R12: 0 | S12: =MAX(K12,O19) -> 1491.6 | T12: =MAX(L12,P19) -> 4723.4 | U12: 6215 | W12: 100 | X12: 100 | Y12: 100 | Z12: MDA4 (ALB/2*ALB) | AA12: ='MDA1'!D12 -> MDA1 (IVM+ALB) | AC12: ='T1'!D12 -> T1 (PZQ+ALB/MBD) | AE12: =T3_R1!D12 -> 
A13: =IF(COUNTRY_INFO!A13=0," ",COUNTRY_INFO!A13) -> Congo | B13: =IF(COUNTRY_INFO!B13=0," ",COUNTRY_INFO!B13) -> Brazzaville | C13: =IF(COUNTRY_INFO!C13=0," ",COUNTRY_INFO!C13) -> Bacongo | D13: =IF(COUNTRY_INFO!$U$9:$U$1000="MDA4 (ALB/2*ALB)", COUNTRY_INFO!$U$9:$U$1000, " ") ->  | I13: 0 | K13: 0 | L13: 0 | M13: 0 | Q13: 0 | R13: 0 | S13: 0 | T13: 0 | U13: 0 | AA13: ='MDA1'!D13 -> 
A14: =IF(COUNTRY_INFO!A14=0," ",COUNTRY_INFO!A14) -> Congo | B14: =IF(COUNTRY_INFO!B14=0," ",COUNTRY_INFO!B14) -> Brazzaville | C14: =IF(COUNTRY_INFO!C14=0," ",COUNTRY_INFO!C14) -> Makélékélé | D14: =IF(COUNTRY_INFO!$U$9:$U$1000="MDA4 (ALB/2*ALB)", COUNTRY_INFO!$U$9:$U$1000, " ") ->  | I14: 0 | K14: 0 | L14: 0 | M14: 0 | Q14: 0 | R14: 0 | S14: 0 | T14: 0 | U14: 0 | AA14: ='MDA1'!D14 -> 
A15: =IF(COUNTRY_INFO!A15=0," ",COUNTRY_INFO!A15) -> Congo | B15: =IF(COUNTRY_INFO!B15=0," ",COUNTRY_INFO!B15) -> Brazzaville | C15: =IF(COUNTRY_INFO!C15=0," ",COUNTRY_INFO!C15) -> Mfilou | D15: =IF(COUNTRY_INFO!$U$9:$U$1000="MDA4 (ALB/2*ALB)", COUNTRY_INFO!$U$9:$U$1000, " ") ->  | I15: 0 | K15: 0 | L15: 0 | M15: 0 | Q15: 0 | R15: 0 | S15: 0 | T15: 0 | U15: 0 | AA15: ='MDA1'!D15 -> 
A16: =IF(COUNTRY_INFO!A16=0," ",COUNTRY_INFO!A16) -> Congo | B16: =IF(COUNTRY_INFO!B16=0," ",COUNTRY_INFO!B16) -> Brazzaville | C16: =IF(COUNTRY_INFO!C16=0," ",COUNTRY_INFO!C16) -> Moungali | D16: =IF(COUNTRY_INFO!$U$9:$U$1000="MDA4 (ALB/2*ALB)", COUNTRY_INFO!$U$9:$U$1000, " ") ->  | I16: 0 | K16: 0 | L16: 0 | M16: 0 | Q16: 0 | R16: 0 | S16: 0 | T16: 0 | U16: 0 | AA16: ='MDA1'!D16 -> 
A17: =IF(COUNTRY_INFO!A17=0," ",COUNTRY_INFO!A17) -> Congo | B17: =IF(COUNTRY_INFO!B17=0," ",COUNTRY_INFO!B17) -> Brazzaville | C17: =IF(COUNTRY_INFO!C17=0," ",COUNTRY_INFO!C17) -> Ouenzé | D17: =IF(COUNTRY_INFO!$U$9:$U$1000="MDA4 (ALB/2*ALB)", COUNTRY_INFO!$U$9:$U$1000, " ") ->  | I17: 0 | K17: 0 | L17: 0 | M17: 0 | Q17: 0 | R17: 0 | S17: 0 | T17: 0 | U17: 0 | AA17: ='MDA1'!D17 -> 
A18: =IF(COUNTRY_INFO!A18=0," ",COUNTRY_INFO!A18) -> Congo | B18: =IF(COUNTRY_INFO!B18=0," ",COUNTRY_INFO!B18) -> Brazzaville | C18: =IF(COUNTRY_INFO!C18=0," ",COUNTRY_INFO!C18) -> Poto-Poto | D18: =IF(COUNTRY_INFO!$U$9:$U$1000="MDA4 (ALB/2*ALB)", COUNTRY_INFO!$U$9:$U$1000, " ") ->  | I18: 0 | K18: 0 | L18: 0 | M18: 0 | Q18: 0 | R18: 0 | S18: 0 | T18: 0 | U18: 0 | AA18: ='MDA1'!D18 -> 
A19: =IF(COUNTRY_INFO!A19=0," ",COUNTRY_INFO!A19) -> Congo | B19: =IF(COUNTRY_INFO!B19=0," ",COUNTRY_INFO!B19) -> Brazzaville | C19: =IF(COUNTRY_INFO!C19=0," ",COUNTRY_INFO!C19) -> Talangaî | D19: =IF(COUNTRY_INFO!$U$9:$U$1000="MDA4 (ALB/2*ALB)", COUNTRY_INFO!$U$9:$U$1000, " ") ->  | I19: 0 | K19: 0 | L19: 0 | M19: 0 | Q19: =SUM(N19:P19) -> 0 | R19: 0 | U19: 0 | AA19: ='MDA1'!D19 -> 
A20: =IF(COUNTRY_INFO!A20=0," ",COUNTRY_INFO!A20) -> Congo | B20: =IF(COUNTRY_INFO!B20=0," ",COUNTRY_INFO!B20) -> Brazzaville | C20: =IF(COUNTRY_INFO!C20=0," ",COUNTRY_INFO!C20) -> Madibou | D20: =IF(COUNTRY_INFO!$U$9:$U$1000="MDA4 (ALB/2*ALB)", COUNTRY_INFO!$U$9:$U$1000, " ") ->  | I20: 0 | K20: 0 | L20: 0 | M20: 0 | Q20: 0 | R20: 0 | S20: 0 | T20: 0 | U20: 0 | AA20: ='MDA1'!D20 -> 
A21: =IF(COUNTRY_INFO!A21=0," ",COUNTRY_INFO!A21) -> Congo | B21: =IF(COUNTRY_INFO!B21=0," ",COUNTRY_INFO!B21) -> Brazzaville | C21: =IF(COUNTRY_INFO!C21=0," ",COUNTRY_INFO!C21) -> Djiri | D21: =IF(COUNTRY_INFO!$U$9:$U$1000="MDA4 (ALB/2*ALB)", COUNTRY_INFO!$U$9:$U$1000, " ") ->  | I21: 0 | K21: 0 | L21: 0 | M21: 0 | Q21: 0 | R21: 0 | S21: 0 | T21: 0 | U21: 0 | AA21: ='MDA1'!D21 -> 
A22: =IF(COUNTRY_INFO!A22=0," ",COUNTRY_INFO!A22) -> Congo | B22: =IF(COUNTRY_INFO!B22=0," ",COUNTRY_INFO!B22) -> Cuvette | C22: =IF(COUNTRY_INFO!C22=0," ",COUNTRY_INFO!C22) -> Mossaka Loukoléla | D22: =IF(COUNTRY_INFO!$U$9:$U$1000="MDA4 (ALB/2*ALB)", COUNTRY_INFO!$U$9:$U$1000, " ") ->  | I22: 0 | K22: 0 | L22: 0 | M22: 0 | Q22: 0 | R22: 0 | S22: 0 | T22: 0 | U22: 0 | AA22: ='MDA1'!D22 -> 
A23: =IF(COUNTRY_INFO!A23=0," ",COUNTRY_INFO!A23) -> Congo | B23: =IF(COUNTRY_INFO!B23=0," ",COUNTRY_INFO!B23) -> Cuvette | C23: =IF(COUNTRY_INFO!C23=0," ",COUNTRY_INFO!C23) -> Owando | D23: =IF(COUNTRY_INFO!$U$9:$U$1000="MDA4 (ALB/2*ALB)", COUNTRY_INFO!$U$9:$U$1000, " ") ->  | I23: 0 | K23: 0 | L23: 0 | M23: 0 | Q23: 0 | R23: 0 | S23: 0 | T23: 0 | U23: 0 | AA23: ='MDA1'!D23 -> 
A24: =IF(COUNTRY_INFO!A24=0," ",COUNTRY_INFO!A24) -> Congo | B24: =IF(COUNTRY_INFO!B24=0," ",COUNTRY_INFO!B24) -> Cuvette | C24: =IF(COUNTRY_INFO!C24=0," ",COUNTRY_INFO!C24) -> Oyo | D24: =IF(COUNTRY_INFO!$U$9:$U$1000="MDA4 (ALB/2*ALB)", COUNTRY_INFO!$U$9:$U$1000, " ") ->  | I24: 0 | K24: 0 | L24: 0 | M24: 0 | Q24: 0 | R24: 0 | S24: 0 | T24: 0 | U24: 0 | AA24: ='MDA1'!D24 -> 
A25: =IF(COUNTRY_INFO!A25=0," ",COUNTRY_INFO!A25) -> Congo | B25: =IF(COUNTRY_INFO!B25=0," ",COUNTRY_INFO!B25) -> Cuvette-Ouest | C25: =IF(COUNTRY_INFO!C25=0," ",COUNTRY_INFO!C25) -> Etoumbi | D25: =IF(COUNTRY_INFO!$U$9:$U$1000="MDA4 (ALB/2*ALB)", COUNTRY_INFO!$U$9:$U$1000, " ") ->  | I25: 0 | K25: 0 | L25: 0 | M25: 0 | Q25: 0 | R25: 0 | S25: 0 | T25: 0 | U25: 0 | AA25: ='MDA1'!D25 -> 
A26: =IF(COUNTRY_INFO!A26=0," ",COUNTRY_INFO!A26) -> Congo | B26: =IF(COUNTRY_INFO!B26=0," ",COUNTRY_INFO!B26) -> Cuvette-Ouest | C26: =IF(COUNTRY_INFO!C26=0," ",COUNTRY_INFO!C26) -> Ewo | D26: =IF(COUNTRY_INFO!$U$9:$U$1000="MDA4 (ALB/2*ALB)", COUNTRY_INFO!$U$9:$U$1000, " ") ->  | I26: 0 | K26: 0 | L26: 0 | M26: 0 | Q26: 0 | R26: 0 | S26: 0 | T26: 0 | U26: 0 | AA26: ='MDA1'!D26 -> 
A27: =IF(COUNTRY_INFO!A27=0," ",COUNTRY_INFO!A27) -> Congo | B27: =IF(COUNTRY_INFO!B27=0," ",COUNTRY_INFO!B27) -> Kouilou | C27: =IF(COUNTRY_INFO!C27=0," ",COUNTRY_INFO!C27) -> Hinda-Mvouti | D27: =IF(COUNTRY_INFO!$U$9:$U$1000="MDA4 (ALB/2*ALB)", COUNTRY_INFO!$U$9:$U$1000, " ") ->  | I27: 0 | K27: 0 | L27: 0 | M27: 0 | Q27: 0 | R27: 0 | S27: 0 | T27: 0 | U27: 0 | AA27: ='MDA1'!D27 -> 
A28: =IF(COUNTRY_INFO!A28=0," ",COUNTRY_INFO!A28) -> Congo | B28: =IF(COUNTRY_INFO!B28=0," ",COUNTRY_INFO!B28) -> Kouilou | C28: =IF(COUNTRY_INFO!C28=0," ",COUNTRY_INFO!C28) -> Madingo Kayes | D28: =IF(COUNTRY_INFO!$U$9:$U$1000="MDA4 (ALB/2*ALB)", COUNTRY_INFO!$U$9:$U$1000, " ") ->  | I28: 0 | K28: 0 | L28: 0 | M28: 0 | Q28: 0 | R28: 0 | S28: 0 | T28: 0 | U28: 0 | AA28: ='MDA1'!D28 -> 
A29: =IF(COUNTRY_INFO!A29=0," ",COUNTRY_INFO!A29) -> Congo | B29: =IF(COUNTRY_INFO!B29=0," ",COUNTRY_INFO!B29) -> Lékoumou | C29: =IF(COUNTRY_INFO!C29=0," ",COUNTRY_INFO!C29) -> Sibiti | D29: =IF(COUNTRY_INFO!$U$9:$U$1000="MDA4 (ALB/2*ALB)", COUNTRY_INFO!$U$9:$U$1000, " ") ->  | I29: 0 | K29: 0 | L29: 0 | M29: 0 | Q29: 0 | R29: 0 | S29: 0 | T29: 0 | U29: 0 | AA29: ='MDA1'!D29 -> 
A30: =IF(COUNTRY_INFO!A30=0," ",COUNTRY_INFO!A30) -> Congo | B30: =IF(COUNTRY_INFO!B30=0," ",COUNTRY_INFO!B30) -> Lékoumou | C30: =IF(COUNTRY_INFO!C30=0," ",COUNTRY_INFO!C30) -> Zanaga | D30: =IF(COUNTRY_INFO!$U$9:$U$1000="MDA4 (ALB/2*ALB)", COUNTRY_INFO!$U$9:$U$1000, " ") ->  | I30: 0 | K30: 0 | L30: 0 | M30: 0 | Q30: 0 | R30: 0 | S30: 0 | T30: 0 | U30: 0 | AA30: ='MDA1'!D30 -> 
A31: =IF(COUNTRY_INFO!A31=0," ",COUNTRY_INFO!A31) -> Congo | B31: =IF(COUNTRY_INFO!B31=0," ",COUNTRY_INFO!B31) -> Likouala | C31: =IF(COUNTRY_INFO!C31=0," ",COUNTRY_INFO!C31) -> Bétou | D31: =IF(COUNTRY_INFO!$U$9:$U$1000="MDA4 (ALB/2*ALB)", COUNTRY_INFO!$U$9:$U$1000, " ") ->  | I31: 0 | K31: 0 | L31: 0 | M31: 0 | Q31: 0 | R31: 0 | S31: 0 | T31: 0 | U31: 0 | AA31: ='MDA1'!D31 -> 
A32: =IF(COUNTRY_INFO!A32=0," ",COUNTRY_INFO!A32) -> Congo | B32: =IF(COUNTRY_INFO!B32=0," ",COUNTRY_INFO!B32) -> Likouala | C32: =IF(COUNTRY_INFO!C32=0," ",COUNTRY_INFO!C32) -> Impfondo | D32: =IF(COUNTRY_INFO!$U$9:$U$1000="MDA4 (ALB/2*ALB)", COUNTRY_INFO!$U$9:$U$1000, " ") ->  | I32: 0 | K32: 0 | L32: 0 | M32: 0 | Q32: 0 | R32: 0 | S32: 0 | T32: 0 | U32: 0 | AA32: ='MDA1'!D32 -> 
A33: =IF(COUNTRY_INFO!A33=0," ",COUNTRY_INFO!A33) -> Congo | B33: =IF(COUNTRY_INFO!B33=0," ",COUNTRY_INFO!B33) -> Niari | C33: =IF(COUNTRY_INFO!C33=0," ",COUNTRY_INFO!C33) -> Dolisie | D33: MDA4 (ALB/2*ALB) | G33: 23975.52 | H33: 75922.48 | I33: 99898 | K33: 23975.52 | L33: 75922.48 | M33: 99898 | O33: 14294 | P33: 75041 | Q33: 89335 | R33: 0 | S33: 23975.52 | T33: 75922.48 | U33: 99898 | W33: 100 | X33: 100 | Y33: 100 | Z33: =D33 -> MDA4 (ALB/2*ALB) | AA33: ='MDA1'!D33 -> MDA1 (IVM+ALB) | AC33: ='T1'!D33 ->  | AE33: =T3_R1!D33 -> T3 (ALB/MBD)
A34: =IF(COUNTRY_INFO!A34=0," ",COUNTRY_INFO!A34) -> Congo | B34: =IF(COUNTRY_INFO!B34=0," ",COUNTRY_INFO!B34) -> Niari | C34: =IF(COUNTRY_INFO!C34=0," ",COUNTRY_INFO!C34) -> Kibangou | D34: MDA4 (ALB/2*ALB) | G34: 1323.6 | H34: 4191.4 | I34: 5515 | K34: 1323.6 | L34: 4191.4 | M34: 5515 | O34: 2699 | P34: 14171 | Q34: 16870 | R34: 0 | S34: 2699 | T34: 14171 | U34: 16870 | W34: 203.9135691 | X34: 338.0970559 | Y34: 305.893019 | Z34: MDA4 (ALB/2*ALB) | AA34: ='MDA1'!D34 -> MDA1 (IVM+ALB) | AC34: ='T1'!D34 ->  | AE34: =T3_R1!D34 -> T3 (ALB/MBD)
A35: =IF(COUNTRY_INFO!A35=0," ",COUNTRY_INFO!A35) -> Congo | B35: =IF(COUNTRY_INFO!B35=0," ",COUNTRY_INFO!B35) -> Niari | C35: =IF(COUNTRY_INFO!C35=0," ",COUNTRY_INFO!C35) -> Mossendjo | D35: =IF(COUNTRY_INFO!$U$9:$U$1000="MDA4 (ALB/2*ALB)", COUNTRY_INFO!$U$9:$U$1000, " ") ->  | I35: 0 | K35: 0 | L35: 0 | M35: 0 | Q35: 0 | R35: 0 | S35: 0 | T35: 0 | U35: 0 | AA35: ='MDA1'!D35 ->  | AC35: ='T1'!D35 -> 
A36: =IF(COUNTRY_INFO!A36=0," ",COUNTRY_INFO!A36) -> Congo | B36: =IF(COUNTRY_INFO!B36=0," ",COUNTRY_INFO!B36) -> Plateaux | C36: =IF(COUNTRY_INFO!C36=0," ",COUNTRY_INFO!C36) -> Abala | D36: =IF(COUNTRY_INFO!$U$9:$U$1000="MDA4 (ALB/2*ALB)", COUNTRY_INFO!$U$9:$U$1000, " ") ->  | I36: 0 | K36: 0 | L36: 0 | M36: 0 | Q36: 0 | R36: 0 | S36: 0 | T36: 0 | U36: 0 | AA36: ='MDA1'!D36 ->  | AC36: ='T1'!D36 -> 
A37: =IF(COUNTRY_INFO!A37=0," ",COUNTRY_INFO!A37) -> Congo | B37: =IF(COUNTRY_INFO!B37=0," ",COUNTRY_INFO!B37) -> Plateaux | C37: =IF(COUNTRY_INFO!C37=0," ",COUNTRY_INFO!C37) -> Djambala-Lékana | D37: =IF(COUNTRY_INFO!$U$9:$U$1000="MDA4 (ALB/2*ALB)", COUNTRY_INFO!$U$9:$U$1000, " ") ->  | I37: 0 | K37: 0 | L37: 0 | M37: 0 | Q37: 0 | R37: 0 | S37: 0 | T37: 0 | U37: 0 | AA37: ='MDA1'!D37 ->  | AC37: ='T1'!D37 -> 
A38: =IF(COUNTRY_INFO!A38=0," ",COUNTRY_INFO!A38) -> Congo | B38: =IF(COUNTRY_INFO!B38=0," ",COUNTRY_INFO!B38) -> Plateaux | C38: =IF(COUNTRY_INFO!C38=0," ",COUNTRY_INFO!C38) -> Gamboma | D38: =IF(COUNTRY_INFO!$U$9:$U$1000="MDA4 (ALB/2*ALB)", COUNTRY_INFO!$U$9:$U$1000, " ") ->  | I38: 0 | K38: 0 | L38: 0 | M38: 0 | Q38: 0 | R38: 0 | S38: 0 | T38: 0 | U38: 0 | AA38: ='MDA1'!D38 ->  | AC38: ='T1'!D38 -> 
A39: =IF(COUNTRY_INFO!A39=0," ",COUNTRY_INFO!A39) -> Congo | B39: =IF(COUNTRY_INFO!B39=0," ",COUNTRY_INFO!B39) -> Pointe-Noire | C39: =IF(COUNTRY_INFO!C39=0," ",COUNTRY_INFO!C39) -> Ngoyo | D39: =IF(COUNTRY_INFO!$U$9:$U$1000="MDA4 (ALB/2*ALB)", COUNTRY_INFO!$U$9:$U$1000, " ") ->  | I39: 0 | K39: 0 | L39: 0 | M39: 0 | Q39: 0 | R39: 0 | S39: 0 | T39: 0 | U39: 0 | AA39: ='MDA1'!D39 ->  | AC39: ='T1'!D39 -> 
A40: =IF(COUNTRY_INFO!A40=0," ",COUNTRY_INFO!A40) -> Congo | B40: =IF(COUNTRY_INFO!B40=0," ",COUNTRY_INFO!B40) -> Pointe-Noire | C40: =IF(COUNTRY_INFO!C40=0," ",COUNTRY_INFO!C40) -> Mongo-Poukou | D40: =IF(COUNTRY_INFO!$U$9:$U$1000="MDA4 (ALB/2*ALB)", COUNTRY_INFO!$U$9:$U$1000, " ") ->  | I40: 0 | K40: 0 | L40: 0 | M40: 0 | Q40: 0 | R40: 0 | S40: 0 | T40: 0 | U40: 0 | AA40: ='MDA1'!D40 ->  | AC40: ='T1'!D40 -> 
A41: =IF(COUNTRY_INFO!A41=0," ",COUNTRY_INFO!A41) -> Congo | B41: =IF(COUNTRY_INFO!B41=0," ",COUNTRY_INFO!B41) -> Pointe-Noire | C41: =IF(COUNTRY_INFO!C41=0," ",COUNTRY_INFO!C41) -> Loandjili | D41: =IF(COUNTRY_INFO!$U$9:$U$1000="MDA4 (ALB/2*ALB)", COUNTRY_INFO!$U$9:$U$1000, " ") ->  | I41: 0 | K41: 0 | L41: 0 | M41: 0 | Q41: 0 | R41: 0 | S41: 0 | T41: 0 | U41: 0 | AA41: ='MDA1'!D41 ->  | AC41: ='T1'!D41 -> 
A42: =IF(COUNTRY_INFO!A42=0," ",COUNTRY_INFO!A42) -> Congo | B42: =IF(COUNTRY_INFO!B42=0," ",COUNTRY_INFO!B42) -> Pointe-Noire | C42: =IF(COUNTRY_INFO!C42=0," ",COUNTRY_INFO!C42) -> Lumumba | D42: =IF(COUNTRY_INFO!$U$9:$U$1000="MDA4 (ALB/2*ALB)", COUNTRY_INFO!$U$9:$U$1000, " ") ->  | I42: 0 | K42: 0 | L42: 0 | M42: 0 | Q42: 0 | R42: 0 | S42: 0 | T42: 0 | U42: 0 | AA42: ='MDA1'!D42 ->  | AC42: ='T1'!D42 -> 
A43: =IF(COUNTRY_INFO!A43=0," ",COUNTRY_INFO!A43) -> Congo | B43: =IF(COUNTRY_INFO!B43=0," ",COUNTRY_INFO!B43) -> Pointe-Noire | C43: =IF(COUNTRY_INFO!C43=0," ",COUNTRY_INFO!C43) -> Mvoumvou | D43: =IF(COUNTRY_INFO!$U$9:$U$1000="MDA4 (ALB/2*ALB)", COUNTRY_INFO!$U$9:$U$1000, " ") ->  | I43: 0 | K43: 0 | L43: 0 | M43: 0 | Q43: 0 | R43: 0 | S43: 0 | T43: 0 | U43: 0 | AA43: ='MDA1'!D43 ->  | AC43: ='T1'!D43 -> 
A44: =IF(COUNTRY_INFO!A44=0," ",COUNTRY_INFO!A44) -> Congo | B44: =IF(COUNTRY_INFO!B44=0," ",COUNTRY_INFO!B44) -> Pointe-Noire | C44: =IF(COUNTRY_INFO!C44=0," ",COUNTRY_INFO!C44) -> Tie-Tie | D44: =IF(COUNTRY_INFO!$U$9:$U$1000="MDA4 (ALB/2*ALB)", COUNTRY_INFO!$U$9:$U$1000, " ") ->  | I44: 0 | K44: 0 | L44: 0 | M44: 0 | Q44: 0 | R44: 0 | S44: 0 | T44: 0 | U44: 0 | AA44: ='MDA1'!D44 ->  | AC44: ='T1'!D44 -> 
A45: =IF(COUNTRY_INFO!A45=0," ",COUNTRY_INFO!A45) -> Congo | B45: =IF(COUNTRY_INFO!B45=0," ",COUNTRY_INFO!B45) -> Pool | C45: =IF(COUNTRY_INFO!C45=0," ",COUNTRY_INFO!C45) -> Goma tsétsé | D45: =IF(COUNTRY_INFO!$U$9:$U$1000="MDA4 (ALB/2*ALB)", COUNTRY_INFO!$U$9:$U$1000, " ") ->  | I45: 0 | K45: 0 | L45: 0 | M45: 0 | Q45: 0 | R45: 0 | S45: 0 | T45: 0 | U45: 0 | AA45: ='MDA1'!D45 ->  | AC45: ='T1'!D45 -> 
A46: =IF(COUNTRY_INFO!A46=0," ",COUNTRY_INFO!A46) -> Congo | B46: =IF(COUNTRY_INFO!B46=0," ",COUNTRY_INFO!B46) -> Pool | C46: =IF(COUNTRY_INFO!C46=0," ",COUNTRY_INFO!C46) -> Ignié | D46: MDA4 (ALB/2*ALB) | G46: 10286.4 | H46: 32573.6 | I46: 42860 | K46: 10286.4 | L46: 32573.6 | M46: 42860 | O46: 6873 | P46: 36085 | Q46: 42958 | R46: 0 | S46: 10286.4 | T46: 36085 | U46: 46371.4 | W46: 100 | X46: 110.7798954 | Y46: 108.1927205 | Z46: =D46 -> MDA4 (ALB/2*ALB) | AA46: ='MDA1'!D46 -> MDA1 (IVM+ALB) | AC46: ='T1'!D46 ->  | AE46: =T3_R1!D46 -> T3 (ALB/MBD)
A47: =IF(COUNTRY_INFO!A47=0," ",COUNTRY_INFO!A47) -> Congo | B47: =IF(COUNTRY_INFO!B47=0," ",COUNTRY_INFO!B47) -> Pool | C47: =IF(COUNTRY_INFO!C47=0," ",COUNTRY_INFO!C47) -> Kindamba | D47: =IF(COUNTRY_INFO!$U$9:$U$1000="MDA4 (ALB/2*ALB)", COUNTRY_INFO!$U$9:$U$1000, " ") ->  | I47: 0 | K47: 0 | L47: 0 | M47: 0 | Q47: 0 | R47: 0 | S47: 0 | T47: 0 | U47: 0 | AA47: ='MDA1'!D47 ->  | AC47: ='T1'!D47 -> 
A48: =IF(COUNTRY_INFO!A48=0," ",COUNTRY_INFO!A48) -> Congo | B48: =IF(COUNTRY_INFO!B48=0," ",COUNTRY_INFO!B48) -> Pool | C48: =IF(COUNTRY_INFO!C48=0," ",COUNTRY_INFO!C48) -> Kinkala-Boko | D48: =IF(COUNTRY_INFO!$U$9:$U$1000="MDA4 (ALB/2*ALB)", COUNTRY_INFO!$U$9:$U$1000, " ") ->  | I48: 0 | K48: 0 | L48: 0 | M48: 0 | Q48: 0 | R48: 0 | S48: 0 | T48: 0 | U48: 0 | AA48: ='MDA1'!D48 ->  | AC48: ='T1'!D48 -> 
A49: =IF(COUNTRY_INFO!A49=0," ",COUNTRY_INFO!A49) -> Congo | B49: =IF(COUNTRY_INFO!B49=0," ",COUNTRY_INFO!B49) -> Pool | C49: =IF(COUNTRY_INFO!C49=0," ",COUNTRY_INFO!C49) -> Mindouli | D49: =IF(COUNTRY_INFO!$U$9:$U$1000="MDA4 (ALB/2*ALB)", COUNTRY_INFO!$U$9:$U$1000, " ") ->  | I49: 0 | K49: 0 | L49: 0 | M49: 0 | Q49: 0 | R49: 0 | S49: 0 | T49: 0 | U49: 0 | AA49: ='MDA1'!D49 ->  | AC49: ='T1'!D49 -> 
A50: =IF(COUNTRY_INFO!A50=0," ",COUNTRY_INFO!A50) -> Congo | B50: =IF(COUNTRY_INFO!B50=0," ",COUNTRY_INFO!B50) -> Sangha | C50: =IF(COUNTRY_INFO!C50=0," ",COUNTRY_INFO!C50) -> Ouesso | D50: =IF(COUNTRY_INFO!$U$9:$U$1000="MDA4 (ALB/2*ALB)", COUNTRY_INFO!$U$9:$U$1000, " ") ->  | I50: 0 | K50: 0 | L50: 0 | M50: 0 | Q50: 0 | R50: 0 | S50: 0 | T50: 0 | U50: 0 | AA50: ='MDA1'!D50 ->  | AC50: ='T1'!D50 -> 
A51: =IF(COUNTRY_INFO!A51=0," ",COUNTRY_INFO!A51) -> Congo | B51: =IF(COUNTRY_INFO!B51=0," ",COUNTRY_INFO!B51) -> Sangha | C51: =IF(COUNTRY_INFO!C51=0," ",COUNTRY_INFO!C51) -> Sembé-Souanké | D51: =IF(COUNTRY_INFO!$U$9:$U$1000="MDA4 (ALB/2*ALB)", COUNTRY_INFO!$U$9:$U$1000, " ") ->  | I51: 0 | K51: 0 | L51: 0 | M51: 0 | Q51: 0 | R51: 0 | S51: 0 | T51: 0 | U51: 0 | AA51: ='MDA1'!D51 ->  | AC51: ='T1'!D51 -> 

Sheet MDA3
A1: MDA 3 - Ivermectin (IVM)
A2: Administrative structure, population requiring PC by age group, population treated by age group and coverage
A4: TOTAL | F4: =SUM(F$9:F$1000) -> 131530 | G4: 388821 | H4: 520351 | I4: 123260.9433 | J4: 320310 | K4: 443570.9433 | L4: 0 | M4: 0 | N4: 0 | O4: 123260.9433 | P4: 320310 | Q4: 443570.9433 | R4: =IF(F4<>0, IF(O4/F4*100=0, "-", O4/F4*100), " ") -> 93.71317817 | S4: =IF(G4<>0, IF(P4/G4*100=0, "-", P4/G4*100), " ") -> 82.37980973 | T4: =IF(H4<>0, IF(Q4/H4*100=0, "-", Q4/H4*100), " ") -> 85.24456439
D6: PC implemented | E6: Date | F6: Population targeted for MDA 3 | I6: Population treated - 1st round | L6: Population treated - 2nd round | O6: Population treated | R6: Programme coverage (%)
A7: Country | B7: Province/State | C7: District | F7: SAC | G7: Adults | H7: Total | I7: SAC | J7: Adults | K7: Total | L7: SAC | M7: Adults | N7: Total | O7: SAC | P7: Adults | Q7: Total | R7: SAC | S7: Adults | T7: Total
A9: =IF(COUNTRY_INFO!A9=0," ",COUNTRY_INFO!A9) -> Congo | B9: =IF(COUNTRY_INFO!B9=0," ",COUNTRY_INFO!B9) -> Bouenza | C9: =IF(COUNTRY_INFO!C9=0," ",COUNTRY_INFO!C9) -> Loudima | D9: =IF(COUNTRY_INFO!$U$9:$U$1000="MDA3 (IVM)", COUNTRY_INFO!$U$9:$U$1000, " ") -> MDA3 (IVM) | E9: Aout à Nov | F9: 12152 | G9: 36190 | H9: =SUM(F9:G9) -> 48342 | I9: 11602 | J9: 28549 | K9: =SUM(I9:J9) -> 40151 | N9: =SUM(L9:M9) -> 0 | O9: =MAX(I9,L9) -> 11602 | P9: 28549 | Q9: =SUM(O9:P9) -> 40151 | R9: =IF(F9<>0, IF(MAX(I9,L9)/F9*100=0, "-", MAX(I9,L9)/F9*100), " ") -> 95.47399605 | S9: 78.88643272 | T9: =IF(H9<>0, IF((MAX(I9,L9)+MAX(J9,M9))/H9*100=0, "-",(MAX(I9,L9)+MAX(J9,M9))/H9*100), " ") -> 83.05614166
A10: =IF(COUNTRY_INFO!A10=0," ",COUNTRY_INFO!A10) -> Congo | B10: =IF(COUNTRY_INFO!B10=0," ",COUNTRY_INFO!B10) -> Bouenza | C10: =IF(COUNTRY_INFO!C10=0," ",COUNTRY_INFO!C10) -> Loutété | D10: =IF(COUNTRY_INFO!$U$9:$U$1000="MDA3 (IVM)", COUNTRY_INFO!$U$9:$U$1000, " ") ->  | H10: =SUM(F10:G10) -> 0 | K10: =SUM(I10:J10) -> 0 | N10: =SUM(L10:M10) -> 0 | O10: =MAX(I10,L10) -> 0 | P10: =MAX(J10,M10) -> 0 | Q10: =SUM(O10:P10) -> 0 | R10: =IF(F10<>0, IF(MAX(I10,L10)/F10*100=0, "-", MAX(I10,L10)/F10*100), " ") ->  | S10: =IF(G10<>0, IF(MAX(J10,M10)/G10*100=0, "-", MAX(J10,M10)/G10*100), " ") ->  | T10: =IF(H10<>0, IF((MAX(I10,L10)+MAX(J10,M10))/H10*100=0, "-",(MAX(I10,L10)+MAX(J10,M10))/H10*100), " ") -> 
A11: =IF(COUNTRY_INFO!A11=0," ",COUNTRY_INFO!A11) -> Congo | B11: =IF(COUNTRY_INFO!B11=0," ",COUNTRY_INFO!B11) -> Bouenza | C11: =IF(COUNTRY_INFO!C11=0," ",COUNTRY_INFO!C11) -> Madingou | D11: =IF(COUNTRY_INFO!$U$9:$U$1000="MDA3 (IVM)", COUNTRY_INFO!$U$9:$U$1000, " ") ->  | H11: 0 | K11: 0 | N11: 0 | O11: 0 | P11: 0 | Q11: 0
A12: =IF(COUNTRY_INFO!A12=0," ",COUNTRY_INFO!A12) -> Congo | B12: =IF(COUNTRY_INFO!B12=0," ",COUNTRY_INFO!B12) -> Bouenza | C12: =IF(COUNTRY_INFO!C12=0," ",COUNTRY_INFO!C12) -> Mouyondzi | D12: =IF(COUNTRY_INFO!$U$9:$U$1000="MDA3 (IVM)", COUNTRY_INFO!$U$9:$U$1000, " ") ->  | H12: 0 | K12: 0 | N12: 0 | O12: 0 | P12: 0 | Q12: 0
A13: =IF(COUNTRY_INFO!A13=0," ",COUNTRY_INFO!A13) -> Congo | B13: =IF(COUNTRY_INFO!B13=0," ",COUNTRY_INFO!B13) -> Brazzaville | C13: =IF(COUNTRY_INFO!C13=0," ",COUNTRY_INFO!C13) -> Bacongo | D13: =IF(COUNTRY_INFO!$U$9:$U$1000="MDA3 (IVM)", COUNTRY_INFO!$U$9:$U$1000, " ") -> MDA3 (IVM) | E13: Aout à Nov | F13: 29445 | G13: 67846 | H13: 97291 | I13: 29444.94325 | J13: 68252 | K13: 97696.94325 | N13: 0 | O13: 29444.94325 | P13: 68252 | Q13: 97696.94325 | R13: 99.99980728 | S13: 100.5984141 | T13: 100.4172465
A14: =IF(COUNTRY_INFO!A14=0," ",COUNTRY_INFO!A14) -> Congo | B14: =IF(COUNTRY_INFO!B14=0," ",COUNTRY_INFO!B14) -> Brazzaville | C14: =IF(COUNTRY_INFO!C14=0," ",COUNTRY_INFO!C14) -> Makélékélé | D14: =IF(COUNTRY_INFO!$U$9:$U$1000="MDA3 (IVM)", COUNTRY_INFO!$U$9:$U$1000, " ") -> MDA3 (IVM) | E14: Aout à Nov | F14: 21396 | G14: 67755 | H14: 89151 | I14: 21301 | J14: 53480 | K14: 74781 | N14: 0 | O14: 21301 | P14: 53480 | Q14: 74781 | R14: 99.55599177 | S14: 78.93144417 | T14: 83.88128008
A15: =IF(COUNTRY_INFO!A15=0," ",COUNTRY_INFO!A15) -> Congo | B15: =IF(COUNTRY_INFO!B15=0," ",COUNTRY_INFO!B15) -> Brazzaville | C15: =IF(COUNTRY_INFO!C15=0," ",COUNTRY_INFO!C15) -> Mfilou | D15: =IF(COUNTRY_INFO!$U$9:$U$1000="MDA3 (IVM)", COUNTRY_INFO!$U$9:$U$1000, " ") -> MDA3 (IVM) | E15: Aout à Nov | F15: 18088 | G15: 57279 | H15: 75367 | I15: 14174 | J15: 44883 | K15: 59057 | N15: 0 | O15: 14174 | P15: 44883 | Q15: 59057 | R15: 78.36134454 | S15: 78.35856073 | T15: 78.35922884
A16: =IF(COUNTRY_INFO!A16=0," ",COUNTRY_INFO!A16) -> Congo | B16: =IF(COUNTRY_INFO!B16=0," ",COUNTRY_INFO!B16) -> Brazzaville | C16: =IF(COUNTRY_INFO!C16=0," ",COUNTRY_INFO!C16) -> Moungali | D16: =IF(COUNTRY_INFO!$U$9:$U$1000="MDA3 (IVM)", COUNTRY_INFO!$U$9:$U$1000, " ") ->  | H16: 0 | K16: 0 | N16: 0 | O16: 0 | P16: 0 | Q16: 0
A17: =IF(COUNTRY_INFO!A17=0," ",COUNTRY_INFO!A17) -> Congo | B17: =IF(COUNTRY_INFO!B17=0," ",COUNTRY_INFO!B17) -> Brazzaville | C17: =IF(COUNTRY_INFO!C17=0," ",COUNTRY_INFO!C17) -> Ouenzé | D17: =IF(COUNTRY_INFO!$U$9:$U$1000="MDA3 (IVM)", COUNTRY_INFO!$U$9:$U$1000, " ") ->  | H17: 0 | K17: 0 | N17: 0 | O17: 0 | P17: 0 | Q17: 0
A18: =IF(COUNTRY_INFO!A18=0," ",COUNTRY_INFO!A18) -> Congo | B18: =IF(COUNTRY_INFO!B18=0," ",COUNTRY_INFO!B18) -> Brazzaville | C18: =IF(COUNTRY_INFO!C18=0," ",COUNTRY_INFO!C18) -> Poto-Poto | D18: =IF(COUNTRY_INFO!$U$9:$U$1000="MDA3 (IVM)", COUNTRY_INFO!$U$9:$U$1000, " ") ->  | H18: 0 | K18: 0 | N18: 0 | O18: 0 | P18: 0 | Q18: 0
A19: =IF(COUNTRY_INFO!A19=0," ",COUNTRY_INFO!A19) -> Congo | B19: =IF(COUNTRY_INFO!B19=0," ",COUNTRY_INFO!B19) -> Brazzaville | C19: =IF(COUNTRY_INFO!C19=0," ",COUNTRY_INFO!C19) -> Talangaî | D19: =IF(COUNTRY_INFO!$U$9:$U$1000="MDA3 (IVM)", COUNTRY_INFO!$U$9:$U$1000, " ") ->  | H19: 0 | K19: 0 | N19: 0 | O19: 0 | P19: 0 | Q19: 0
A20: =IF(COUNTRY_INFO!A20=0," ",COUNTRY_INFO!A20) -> Congo | B20: =IF(COUNTRY_INFO!B20=0," ",COUNTRY_INFO!B20) -> Brazzaville | C20: =IF(COUNTRY_INFO!C20=0," ",COUNTRY_INFO!C20) -> Madibou | D20: =IF(COUNTRY_INFO!$U$9:$U$1000="MDA3 (IVM)", COUNTRY_INFO!$U$9:$U$1000, " ") -> MDA3 (IVM) | E20: Aout à Nov | F20: 24284 | G20: 76901 | H20: 101185 | I20: 21176 | J20: 61350 | K20: 82526 | N20: 0 | O20: 21176 | P20: 61350 | Q20: 82526 | R20: 87.20144951 | S20: 79.77789626 | T20: 81.55951969
A21: =IF(COUNTRY_INFO!A21=0," ",COUNTRY_INFO!A21) -> Congo | B21: =IF(COUNTRY_INFO!B21=0," ",COUNTRY_INFO!B21) -> Brazzaville | C21: =IF(COUNTRY_INFO!C21=0," ",COUNTRY_INFO!C21) -> Djiri | D21: =IF(COUNTRY_INFO!$U$9:$U$1000="MDA3 (IVM)", COUNTRY_INFO!$U$9:$U$1000, " ") ->  | H21: 0 | K21: 0 | N21: 0 | O21: 0 | P21: 0 | Q21: 0
A22: =IF(COUNTRY_INFO!A22=0," ",COUNTRY_INFO!A22) -> Congo | B22: =IF(COUNTRY_INFO!B22=0," ",COUNTRY_INFO!B22) -> Cuvette | C22: =IF(COUNTRY_INFO!C22=0," ",COUNTRY_INFO!C22) -> Mossaka Loukoléla | D22: =IF(COUNTRY_INFO!$U$9:$U$1000="MDA3 (IVM)", COUNTRY_INFO!$U$9:$U$1000, " ") ->  | H22: 0 | K22: 0 | N22: 0 | O22: 0 | P22: 0 | Q22: 0
A23: =IF(COUNTRY_INFO!A23=0," ",COUNTRY_INFO!A23) -> Congo | B23: =IF(COUNTRY_INFO!B23=0," ",COUNTRY_INFO!B23) -> Cuvette | C23: =IF(COUNTRY_INFO!C23=0," ",COUNTRY_INFO!C23) -> Owando | D23: =IF(COUNTRY_INFO!$U$9:$U$1000="MDA3 (IVM)", COUNTRY_INFO!$U$9:$U$1000, " ") ->  | H23: 0 | K23: 0 | N23: 0 | O23: 0 | P23: 0 | Q23: 0
A24: =IF(COUNTRY_INFO!A24=0," ",COUNTRY_INFO!A24) -> Congo | B24: =IF(COUNTRY_INFO!B24=0," ",COUNTRY_INFO!B24) -> Cuvette | C24: =IF(COUNTRY_INFO!C24=0," ",COUNTRY_INFO!C24) -> Oyo | D24: =IF(COUNTRY_INFO!$U$9:$U$1000="MDA3 (IVM)", COUNTRY_INFO!$U$9:$U$1000, " ") ->  | H24: 0 | K24: 0 | N24: 0 | O24: 0 | P24: 0 | Q24: 0
A25: =IF(COUNTRY_INFO!A25=0," ",COUNTRY_INFO!A25) -> Congo | B25: =IF(COUNTRY_INFO!B25=0," ",COUNTRY_INFO!B25) -> Cuvette-Ouest | C25: =IF(COUNTRY_INFO!C25=0," ",COUNTRY_INFO!C25) -> Etoumbi | D25: =IF(COUNTRY_INFO!$U$9:$U$1000="MDA3 (IVM)", COUNTRY_INFO!$U$9:$U$1000, " ") ->  | H25: 0 | K25: 0 | N25: 0 | O25: 0 | P25: 0 | Q25: 0
A26: =IF(COUNTRY_INFO!A26=0," ",COUNTRY_INFO!A26) -> Congo | B26: =IF(COUNTRY_INFO!B26=0," ",COUNTRY_INFO!B26) -> Cuvette-Ouest | C26: =IF(COUNTRY_INFO!C26=0," ",COUNTRY_INFO!C26) -> Ewo | D26: =IF(COUNTRY_INFO!$U$9:$U$1000="MDA3 (IVM)", COUNTRY_INFO!$U$9:$U$1000, " ") ->  | H26: 0 | K26: 0 | N26: 0 | O26: 0 | P26: 0 | Q26: 0
A27: =IF(COUNTRY_INFO!A27=0," ",COUNTRY_INFO!A27) -> Congo | B27: =IF(COUNTRY_INFO!B27=0," ",COUNTRY_INFO!B27) -> Kouilou | C27: =IF(COUNTRY_INFO!C27=0," ",COUNTRY_INFO!C27) -> Hinda-Mvouti | D27: =IF(COUNTRY_INFO!$U$9:$U$1000="MDA3 (IVM)", COUNTRY_INFO!$U$9:$U$1000, " ") ->  | H27: 0 | K27: 0 | N27: 0 | O27: 0 | P27: 0 | Q27: 0
A28: =IF(COUNTRY_INFO!A28=0," ",COUNTRY_INFO!A28) -> Congo | B28: =IF(COUNTRY_INFO!B28=0," ",COUNTRY_INFO!B28) -> Kouilou | C28: =IF(COUNTRY_INFO!C28=0," ",COUNTRY_INFO!C28) -> Madingo Kayes | D28: =IF(COUNTRY_INFO!$U$9:$U$1000="MDA3 (IVM)", COUNTRY_INFO!$U$9:$U$1000, " ") -> MDA3 (IVM) | E28: Aout à Nov | F28: 272 | G28: 862 | H28: 1134 | I28: 184 | J28: 754 | K28: 938 | N28: 0 | O28: 184 | P28: 754 | Q28: 938 | R28: 67.64705882 | S28: 87.47099768 | T28: 82.71604938
A29: =IF(COUNTRY_INFO!A29=0," ",COUNTRY_INFO!A29) -> Congo | B29: =IF(COUNTRY_INFO!B29=0," ",COUNTRY_INFO!B29) -> Lékoumou | C29: =IF(COUNTRY_INFO!C29=0," ",COUNTRY_INFO!C29) -> Sibiti | D29: =IF(COUNTRY_INFO!$U$9:$U$1000="MDA3 (IVM)", COUNTRY_INFO!$U$9:$U$1000, " ") -> MDA3 (IVM) | E29: Aout à Nov | F29: 143 | G29: 452 | H29: 595 | I29: 107 | J29: 413 | K29: 520 | N29: 0 | O29: 107 | P29: 413 | Q29: 520 | R29: 74.82517483 | S29: 91.37168142 | T29: 87.39495798
A30: =IF(COUNTRY_INFO!A30=0," ",COUNTRY_INFO!A30) -> Congo | B30: =IF(COUNTRY_INFO!B30=0," ",COUNTRY_INFO!B30) -> Lékoumou | C30: =IF(COUNTRY_INFO!C30=0," ",COUNTRY_INFO!C30) -> Zanaga | D30: =IF(COUNTRY_INFO!$U$9:$U$1000="MDA3 (IVM)", COUNTRY_INFO!$U$9:$U$1000, " ") ->  | H30: 0 | K30: 0 | N30: 0 | O30: 0 | P30: 0 | Q30: 0
A31: =IF(COUNTRY_INFO!A31=0," ",COUNTRY_INFO!A31) -> Congo | B31: =IF(COUNTRY_INFO!B31=0," ",COUNTRY_INFO!B31) -> Likouala | C31: =IF(COUNTRY_INFO!C31=0," ",COUNTRY_INFO!C31) -> Bétou | D31: =IF(COUNTRY_INFO!$U$9:$U$1000="MDA3 (IVM)", COUNTRY_INFO!$U$9:$U$1000, " ") ->  | H31: 0 | K31: 0 | N31: 0 | O31: 0 | P31: 0 | Q31: 0
A32: =IF(COUNTRY_INFO!A32=0," ",COUNTRY_INFO!A32) -> Congo | B32: =IF(COUNTRY_INFO!B32=0," ",COUNTRY_INFO!B32) -> Likouala | C32: =IF(COUNTRY_INFO!C32=0," ",COUNTRY_INFO!C32) -> Impfondo | D32: =IF(COUNTRY_INFO!$U$9:$U$1000="MDA3 (IVM)", COUNTRY_INFO!$U$9:$U$1000, " ") ->  | H32: 0 | K32: 0 | N32: 0 | O32: 0 | P32: 0 | Q32: 0
A33: =IF(COUNTRY_INFO!A33=0," ",COUNTRY_INFO!A33) -> Congo | B33: =IF(COUNTRY_INFO!B33=0," ",COUNTRY_INFO!B33) -> Niari | C33: =IF(COUNTRY_INFO!C33=0," ",COUNTRY_INFO!C33) -> Dolisie | D33: =IF(COUNTRY_INFO!$U$9:$U$1000="MDA3 (IVM)", COUNTRY_INFO!$U$9:$U$1000, " ") ->  | H33: 0 | K33: 0 | N33: 0 | O33: 0 | P33: 0 | Q33: 0
A34: =IF(COUNTRY_INFO!A34=0," ",COUNTRY_INFO!A34) -> Congo | B34: =IF(COUNTRY_INFO!B34=0," ",COUNTRY_INFO!B34) -> Niari | C34: =IF(COUNTRY_INFO!C34=0," ",COUNTRY_INFO!C34) -> Kibangou | D34: =IF(COUNTRY_INFO!$U$9:$U$1000="MDA3 (IVM)", COUNTRY_INFO!$U$9:$U$1000, " ") ->  | H34: 0 | K34: 0 | N34: 0 | O34: 0 | P34: 0 | Q34: 0
A35: =IF(COUNTRY_INFO!A35=0," ",COUNTRY_INFO!A35) -> Congo | B35: =IF(COUNTRY_INFO!B35=0," ",COUNTRY_INFO!B35) -> Niari | C35: =IF(COUNTRY_INFO!C35=0," ",COUNTRY_INFO!C35) -> Mossendjo | D35: =IF(COUNTRY_INFO!$U$9:$U$1000="MDA3 (IVM)", COUNTRY_INFO!$U$9:$U$1000, " ") ->  | H35: 0 | K35: 0 | N35: 0 | O35: 0 | P35: 0 | Q35: 0
A36: =IF(COUNTRY_INFO!A36=0," ",COUNTRY_INFO!A36) -> Congo | B36: =IF(COUNTRY_INFO!B36=0," ",COUNTRY_INFO!B36) -> Plateaux | C36: =IF(COUNTRY_INFO!C36=0," ",COUNTRY_INFO!C36) -> Abala | D36: =IF(COUNTRY_INFO!$U$9:$U$1000="MDA3 (IVM)", COUNTRY_INFO!$U$9:$U$1000, " ") ->  | H36: 0 | K36: 0 | N36: 0 | O36: 0 | P36: 0 | Q36: 0
A37: =IF(COUNTRY_INFO!A37=0," ",COUNTRY_INFO!A37) -> Congo | B37: =IF(COUNTRY_INFO!B37=0," ",COUNTRY_INFO!B37) -> Plateaux | C37: =IF(COUNTRY_INFO!C37=0," ",COUNTRY_INFO!C37) -> Djambala-Lékana | D37: =IF(COUNTRY_INFO!$U$9:$U$1000="MDA3 (IVM)", COUNTRY_INFO!$U$9:$U$1000, " ") ->  | H37: 0 | K37: 0 | N37: 0 | O37: 0 | P37: 0 | Q37: 0
A38: =IF(COUNTRY_INFO!A38=0," ",COUNTRY_INFO!A38) -> Congo | B38: =IF(COUNTRY_INFO!B38=0," ",COUNTRY_INFO!B38) -> Plateaux | C38: =IF(COUNTRY_INFO!C38=0," ",COUNTRY_INFO!C38) -> Gamboma | D38: =IF(COUNTRY_INFO!$U$9:$U$1000="MDA3 (IVM)", COUNTRY_INFO!$U$9:$U$1000, " ") ->  | H38: 0 | K38: 0 | N38: 0 | O38: 0 | P38: 0 | Q38: 0
A39: =IF(COUNTRY_INFO!A39=0," ",COUNTRY_INFO!A39) -> Congo | B39: =IF(COUNTRY_INFO!B39=0," ",COUNTRY_INFO!B39) -> Pointe-Noire | C39: =IF(COUNTRY_INFO!C39=0," ",COUNTRY_INFO!C39) -> Ngoyo | D39: =IF(COUNTRY_INFO!$U$9:$U$1000="MDA3 (IVM)", COUNTRY_INFO!$U$9:$U$1000, " ") ->  | H39: 0 | K39: 0 | N39: 0 | O39: 0 | P39: 0 | Q39: 0
A40: =IF(COUNTRY_INFO!A40=0," ",COUNTRY_INFO!A40) -> Congo | B40: =IF(COUNTRY_INFO!B40=0," ",COUNTRY_INFO!B40) -> Pointe-Noire | C40: =IF(COUNTRY_INFO!C40=0," ",COUNTRY_INFO!C40) -> Mongo-Poukou | D40: =IF(COUNTRY_INFO!$U$9:$U$1000="MDA3 (IVM)", COUNTRY_INFO!$U$9:$U$1000, " ") ->  | H40: 0 | K40: 0 | N40: 0 | O40: 0 | P40: 0 | Q40: 0
A41: =IF(COUNTRY_INFO!A41=0," ",COUNTRY_INFO!A41) -> Congo | B41: =IF(COUNTRY_INFO!B41=0," ",COUNTRY_INFO!B41) -> Pointe-Noire | C41: =IF(COUNTRY_INFO!C41=0," ",COUNTRY_INFO!C41) -> Loandjili | D41: =IF(COUNTRY_INFO!$U$9:$U$1000="MDA3 (IVM)", COUNTRY_INFO!$U$9:$U$1000, " ") ->  | H41: 0 | K41: 0 | N41: 0 | O41: 0 | P41: 0 | Q41: 0
A42: =IF(COUNTRY_INFO!A42=0," ",COUNTRY_INFO!A42) -> Congo | B42: =IF(COUNTRY_INFO!B42=0," ",COUNTRY_INFO!B42) -> Pointe-Noire | C42: =IF(COUNTRY_INFO!C42=0," ",COUNTRY_INFO!C42) -> Lumumba | D42: =IF(COUNTRY_INFO!$U$9:$U$1000="MDA3 (IVM)", COUNTRY_INFO!$U$9:$U$1000, " ") ->  | H42: 0 | K42: 0 | N42: 0 | O42: 0 | P42: 0 | Q42: 0
A43: =IF(COUNTRY_INFO!A43=0," ",COUNTRY_INFO!A43) -> Congo | B43: =IF(COUNTRY_INFO!B43=0," ",COUNTRY_INFO!B43) -> Pointe-Noire | C43: =IF(COUNTRY_INFO!C43=0," ",COUNTRY_INFO!C43) -> Mvoumvou | D43: =IF(COUNTRY_INFO!$U$9:$U$1000="MDA3 (IVM)", COUNTRY_INFO!$U$9:$U$1000, " ") ->  | H43: 0 | K43: 0 | N43: 0 | O43: 0 | P43: 0 | Q43: 0
A44: =IF(COUNTRY_INFO!A44=0," ",COUNTRY_INFO!A44) -> Congo | B44: =IF(COUNTRY_INFO!B44=0," ",COUNTRY_INFO!B44) -> Pointe-Noire | C44: =IF(COUNTRY_INFO!C44=0," ",COUNTRY_INFO!C44) -> Tie-Tie | D44: =IF(COUNTRY_INFO!$U$9:$U$1000="MDA3 (IVM)", COUNTRY_INFO!$U$9:$U$1000, " ") ->  | H44: 0 | K44: 0 | N44: 0 | O44: 0 | P44: 0 | Q44: 0
A45: =IF(COUNTRY_INFO!A45=0," ",COUNTRY_INFO!A45) -> Congo | B45: =IF(COUNTRY_INFO!B45=0," ",COUNTRY_INFO!B45) -> Pool | C45: =IF(COUNTRY_INFO!C45=0," ",COUNTRY_INFO!C45) -> Goma tsétsé | D45: =IF(COUNTRY_INFO!$U$9:$U$1000="MDA3 (IVM)", COUNTRY_INFO!$U$9:$U$1000, " ") -> MDA3 (IVM) | E45: Aout à Nov | F45: 3995 | G45: 12649 | H45: 16644 | I45: 3995 | J45: 9639 | K45: 13634 | N45: 0 | O45: 3995 | P45: 9639 | Q45: 13634 | R45: 100 | S45: 76.20365246 | T45: 81.91540495
A46: =IF(COUNTRY_INFO!A46=0," ",COUNTRY_INFO!A46) -> Congo | B46: =IF(COUNTRY_INFO!B46=0," ",COUNTRY_INFO!B46) -> Pool | C46: =IF(COUNTRY_INFO!C46=0," ",COUNTRY_INFO!C46) -> Ignié | D46: =IF(COUNTRY_INFO!$U$9:$U$1000="MDA3 (IVM)", COUNTRY_INFO!$U$9:$U$1000, " ") ->  | H46: 0 | K46: 0 | N46: 0 | O46: 0 | P46: 0 | Q46: 0
A47: =IF(COUNTRY_INFO!A47=0," ",COUNTRY_INFO!A47) -> Congo | B47: =IF(COUNTRY_INFO!B47=0," ",COUNTRY_INFO!B47) -> Pool | C47: =IF(COUNTRY_INFO!C47=0," ",COUNTRY_INFO!C47) -> Kindamba | D47: =IF(COUNTRY_INFO!$U$9:$U$1000="MDA3 (IVM)", COUNTRY_INFO!$U$9:$U$1000, " ") -> MDA3 (IVM) | E47: Aout à Nov | F47: 2761 | G47: 8743 | H47: 11504 | I47: 2645 | J47: 6756 | K47: 9401 | N47: 0 | O47: 2645 | P47: 6756 | Q47: 9401 | R47: 95.79862369 | S47: 77.27324717 | T47: 81.71940195
A48: =IF(COUNTRY_INFO!A48=0," ",COUNTRY_INFO!A48) -> Congo | B48: =IF(COUNTRY_INFO!B48=0," ",COUNTRY_INFO!B48) -> Pool | C48: =IF(COUNTRY_INFO!C48=0," ",COUNTRY_INFO!C48) -> Kinkala-Boko | D48: =IF(COUNTRY_INFO!$U$9:$U$1000="MDA3 (IVM)", COUNTRY_INFO!$U$9:$U$1000, " ") -> MDA3 (IVM) | E48: Aout à Nov | F48: 9461 | G48: 29958 | H48: 39419 | I48: 9216 | J48: 22886 | K48: 32102 | N48: 0 | O48: 9216 | P48: 22886 | Q48: 32102 | R48: 97.41042173 | S48: 76.39361773 | T48: 81.43788528
A49: =IF(COUNTRY_INFO!A49=0," ",COUNTRY_INFO!A49) -> Congo | B49: =IF(COUNTRY_INFO!B49=0," ",COUNTRY_INFO!B49) -> Pool | C49: =IF(COUNTRY_INFO!C49=0," ",COUNTRY_INFO!C49) -> Mindouli | D49: =IF(COUNTRY_INFO!$U$9:$U$1000="MDA3 (IVM)", COUNTRY_INFO!$U$9:$U$1000, " ") -> MDA3 (IVM) | E49: Aout à Nov | F49: 9533 | G49: 30186 | H49: 39719 | I49: 9416 | J49: 23348 | K49: 32764 | N49: 0 | O49: 9416 | P49: 23348 | Q49: 32764 | R49: 98.77268436 | S49: 77.34711456 | T49: 82.48948866
A50: =IF(COUNTRY_INFO!A50=0," ",COUNTRY_INFO!A50) -> Congo | B50: =IF(COUNTRY_INFO!B50=0," ",COUNTRY_INFO!B50) -> Sangha | C50: =IF(COUNTRY_INFO!C50=0," ",COUNTRY_INFO!C50) -> Ouesso | D50: =IF(COUNTRY_INFO!$U$9:$U$1000="MDA3 (IVM)", COUNTRY_INFO!$U$9:$U$1000, " ") ->  | H50: 0 | K50: 0 | N50: 0 | O50: 0 | P50: 0 | Q50: 0
A51: =IF(COUNTRY_INFO!A51=0," ",COUNTRY_INFO!A51) -> Congo | B51: =IF(COUNTRY_INFO!B51=0," ",COUNTRY_INFO!B51) -> Sangha | C51: =IF(COUNTRY_INFO!C51=0," ",COUNTRY_INFO!C51) -> Sembé-Souanké | D51: =IF(COUNTRY_INFO!$U$9:$U$1000="MDA3 (IVM)", COUNTRY_INFO!$U$9:$U$1000, " ") ->  | H51: 0 | K51: 0 | N51: 0 | O51: 0 | P51: 0 | Q51: 0

Sheet T1
A1: T 1 - Praziquantel (PZQ) and Albendazole (ALB) or Mebendazole (MBD)
A2: Administrative structure, population requiring PC by age group, population treated by age group and coverage
A4: TOTAL | G4: =SUM(G$9:G$1000) -> 0 | H4: 101293 | I4: 101293 | J4: 0 | K4: =SUM(K$9:K$1000) -> 101293 | L4: 0 | M4: 65895 | N4: 924 | O4: 66819 | P4: =IF(G4<>0, IF(L4/G4*100=0, "-", L4/G4*100), " ") ->  | Q4: =IF(OR(I4<>0,H4<>0), IF(M4/MAX(H4,I4)*100=0, "-", M4/MAX(H4,I4)*100), " ") -> 65.05385367 | R4: =IF(J4<>0, IF(N4/J4*100=0, "-", N4/J4*100), " ") ->  | S4: =IF(K4<>0, IF(O4/K4*100=0, "-", O4/K4*100), " ") -> 65.96605886
D6: PC implemented | E6: Medicine | F6: Date | G6: Population targeted for T1 | L6: Population treated | P6: Programme coverage (%)
A7: Country | B7: Province/State | C7: District | G7: PreSAC (ALB) | H7: SAC (ALB) | I7: SAC (PZQ) | J7: Adults (PZQ) | K7: Total | L7: PreSAC | M7: SAC | N7: Adults | O7: Total | P7: PreSAC | Q7: SAC | R7: Adults | S7: Total
A9: =IF(COUNTRY_INFO!A9=0," ",COUNTRY_INFO!A9) -> Congo | B9: =IF(COUNTRY_INFO!B9=0," ",COUNTRY_INFO!B9) -> Bouenza | C9: =IF(COUNTRY_INFO!C9=0," ",COUNTRY_INFO!C9) -> Loudima | D9: =IF(OR(COUNTRY_INFO!$U$9:$U$1000="T1 (PZQ+ALB/MBD)",COUNTRY_INFO!$V$9:$V$1000="T1 (PZQ+ALB/MBD)"), "T1 (PZQ+ALB/MBD)", " ") -> T1 (PZQ+ALB/MBD) | E9: PZQ+ALB | F9: Nov 2018 | H9: 26702 | I9: 26702 | K9: =MAX(H9:I9)+G9+J9 -> 26702 | M9: 17873 | N9: 137 | O9: =SUM(L9:N9) -> 18010 | P9: =IF(G9<>0, IF(L9/G9*100=0, "-", L9/G9*100), " ") ->  | Q9: =IF(OR(I9<>0,H9<>0), IF(M9/MAX(H9,I9)*100=0, "-", M9/MAX(H9,I9)*100), " ") -> 66.93506104 | R9: =IF(J9<>0, IF(N9/J9*100=0, "-", N9/J9*100), " ") ->  | S9: 67.44813123
A10: =IF(COUNTRY_INFO!A10=0," ",COUNTRY_INFO!A10) -> Congo | B10: =IF(COUNTRY_INFO!B10=0," ",COUNTRY_INFO!B10) -> Bouenza | C10: =IF(COUNTRY_INFO!C10=0," ",COUNTRY_INFO!C10) -> Loutété | D10: =IF(OR(COUNTRY_INFO!$U$9:$U$1000="T1 (PZQ+ALB/MBD)",COUNTRY_INFO!$V$9:$V$1000="T1 (PZQ+ALB/MBD)"), "T1 (PZQ+ALB/MBD)", " ") -> T1 (PZQ+ALB/MBD) | E10: PZQ+ALB | F10: Nov 2018 | H10: 13563 | I10: 13563 | K10: =MAX(H10:I10)+G10+J10 -> 13563 | M10: 7241 | N10: 80 | O10: =SUM(L10:N10) -> 7321 | P10: =IF(G10<>0, IF(L10/G10*100=0, "-", L10/G10*100), " ") ->  | Q10: =IF(OR(I10<>0,H10<>0), IF(M10/MAX(H10,I10)*100=0, "-", M10/MAX(H10,I10)*100), " ") -> 53.38789353 | R10: =IF(J10<>0, IF(N10/J10*100=0, "-", N10/J10*100), " ") ->  | S10: =IF(K10<>0, IF(O10/K10*100=0, "-", O10/K10*100), " ") -> 53.97773354
A11: =IF(COUNTRY_INFO!A11=0," ",COUNTRY_INFO!A11) -> Congo | B11: =IF(COUNTRY_INFO!B11=0," ",COUNTRY_INFO!B11) -> Bouenza | C11: =IF(COUNTRY_INFO!C11=0," ",COUNTRY_INFO!C11) -> Madingou | D11: =IF(OR(COUNTRY_INFO!$U$9:$U$1000="T1 (PZQ+ALB/MBD)",COUNTRY_INFO!$V$9:$V$1000="T1 (PZQ+ALB/MBD)"), "T1 (PZQ+ALB/MBD)", " ") ->  | K11: 0 | O11: 0
A12: =IF(COUNTRY_INFO!A12=0," ",COUNTRY_INFO!A12) -> Congo | B12: =IF(COUNTRY_INFO!B12=0," ",COUNTRY_INFO!B12) -> Bouenza | C12: =IF(COUNTRY_INFO!C12=0," ",COUNTRY_INFO!C12) -> Mouyondzi | D12: =IF(OR(COUNTRY_INFO!$U$9:$U$1000="T1 (PZQ+ALB/MBD)",COUNTRY_INFO!$V$9:$V$1000="T1 (PZQ+ALB/MBD)"), "T1 (PZQ+ALB/MBD)", " ") -> T1 (PZQ+ALB/MBD) | E12: PZQ+ALB | F12: Nov 2018 | H12: 18376 | I12: 18376 | K12: 18376 | M12: 9300 | N12: 90 | O12: 9390 | Q12: 50.60949064 | S12: 51.0992599
A13: =IF(COUNTRY_INFO!A13=0," ",COUNTRY_INFO!A13) -> Congo | B13: =IF(COUNTRY_INFO!B13=0," ",COUNTRY_INFO!B13) -> Brazzaville | C13: =IF(COUNTRY_INFO!C13=0," ",COUNTRY_INFO!C13) -> Bacongo | D13: =IF(OR(COUNTRY_INFO!$U$9:$U$1000="T1 (PZQ+ALB/MBD)",COUNTRY_INFO!$V$9:$V$1000="T1 (PZQ+ALB/MBD)"), "T1 (PZQ+ALB/MBD)", " ") ->  | K13: 0 | O13: 0
A14: =IF(COUNTRY_INFO!A14=0," ",COUNTRY_INFO!A14) -> Congo | B14: =IF(COUNTRY_INFO!B14=0," ",COUNTRY_INFO!B14) -> Brazzaville | C14: =IF(COUNTRY_INFO!C14=0," ",COUNTRY_INFO!C14) -> Makélékélé | D14: =IF(OR(COUNTRY_INFO!$U$9:$U$1000="T1 (PZQ+ALB/MBD)",COUNTRY_INFO!$V$9:$V$1000="T1 (PZQ+ALB/MBD)"), "T1 (PZQ+ALB/MBD)", " ") ->  | K14: 0 | O14: 0
A15: =IF(COUNTRY_INFO!A15=0," ",COUNTRY_INFO!A15) -> Congo | B15: =IF(COUNTRY_INFO!B15=0," ",COUNTRY_INFO!B15) -> Brazzaville | C15: =IF(COUNTRY_INFO!C15=0," ",COUNTRY_INFO!C15) -> Mfilou | D15: =IF(OR(COUNTRY_INFO!$U$9:$U$1000="T1 (PZQ+ALB/MBD)",COUNTRY_INFO!$V$9:$V$1000="T1 (PZQ+ALB/MBD)"), "T1 (PZQ+ALB/MBD)", " ") ->  | K15: 0 | O15: 0
A16: =IF(COUNTRY_INFO!A16=0," ",COUNTRY_INFO!A16) -> Congo | B16: =IF(COUNTRY_INFO!B16=0," ",COUNTRY_INFO!B16) -> Brazzaville | C16: =IF(COUNTRY_INFO!C16=0," ",COUNTRY_INFO!C16) -> Moungali | D16: =IF(OR(COUNTRY_INFO!$U$9:$U$1000="T1 (PZQ+ALB/MBD)",COUNTRY_INFO!$V$9:$V$1000="T1 (PZQ+ALB/MBD)"), "T1 (PZQ+ALB/MBD)", " ") ->  | K16: 0 | O16: 0
A17: =IF(COUNTRY_INFO!A17=0," ",COUNTRY_INFO!A17) -> Congo | B17: =IF(COUNTRY_INFO!B17=0," ",COUNTRY_INFO!B17) -> Brazzaville | C17: =IF(COUNTRY_INFO!C17=0," ",COUNTRY_INFO!C17) -> Ouenzé | D17: =IF(OR(COUNTRY_INFO!$U$9:$U$1000="T1 (PZQ+ALB/MBD)",COUNTRY_INFO!$V$9:$V$1000="T1 (PZQ+ALB/MBD)"), "T1 (PZQ+ALB/MBD)", " ") ->  | K17: 0 | O17: 0
A18: =IF(COUNTRY_INFO!A18=0," ",COUNTRY_INFO!A18) -> Congo | B18: =IF(COUNTRY_INFO!B18=0," ",COUNTRY_INFO!B18) -> Brazzaville | C18: =IF(COUNTRY_INFO!C18=0," ",COUNTRY_INFO!C18) -> Poto-Poto | D18: =IF(OR(COUNTRY_INFO!$U$9:$U$1000="T1 (PZQ+ALB/MBD)",COUNTRY_INFO!$V$9:$V$1000="T1 (PZQ+ALB/MBD)"), "T1 (PZQ+ALB/MBD)", " ") ->  | K18: 0 | O18: 0
A19: =IF(COUNTRY_INFO!A19=0," ",COUNTRY_INFO!A19) -> Congo | B19: =IF(COUNTRY_INFO!B19=0," ",COUNTRY_INFO!B19) -> Brazzaville | C19: =IF(COUNTRY_INFO!C19=0," ",COUNTRY_INFO!C19) -> Talangaî | D19: =IF(OR(COUNTRY_INFO!$U$9:$U$1000="T1 (PZQ+ALB/MBD)",COUNTRY_INFO!$V$9:$V$1000="T1 (PZQ+ALB/MBD)"), "T1 (PZQ+ALB/MBD)", " ") ->  | K19: 0 | O19: 0
A20: =IF(COUNTRY_INFO!A20=0," ",COUNTRY_INFO!A20) -> Congo | B20: =IF(COUNTRY_INFO!B20=0," ",COUNTRY_INFO!B20) -> Brazzaville | C20: =IF(COUNTRY_INFO!C20=0," ",COUNTRY_INFO!C20) -> Madibou | D20: =IF(OR(COUNTRY_INFO!$U$9:$U$1000="T1 (PZQ+ALB/MBD)",COUNTRY_INFO!$V$9:$V$1000="T1 (PZQ+ALB/MBD)"), "T1 (PZQ+ALB/MBD)", " ") ->  | K20: 0 | O20: 0
A21: =IF(COUNTRY_INFO!A21=0," ",COUNTRY_INFO!A21) -> Congo | B21: =IF(COUNTRY_INFO!B21=0," ",COUNTRY_INFO!B21) -> Brazzaville | C21: =IF(COUNTRY_INFO!C21=0," ",COUNTRY_INFO!C21) -> Djiri | D21: =IF(OR(COUNTRY_INFO!$U$9:$U$1000="T1 (PZQ+ALB/MBD)",COUNTRY_INFO!$V$9:$V$1000="T1 (PZQ+ALB/MBD)"), "T1 (PZQ+ALB/MBD)", " ") ->  | K21: 0 | O21: 0
A22: =IF(COUNTRY_INFO!A22=0," ",COUNTRY_INFO!A22) -> Congo | B22: =IF(COUNTRY_INFO!B22=0," ",COUNTRY_INFO!B22) -> Cuvette | C22: =IF(COUNTRY_INFO!C22=0," ",COUNTRY_INFO!C22) -> Mossaka Loukoléla | D22: =IF(OR(COUNTRY_INFO!$U$9:$U$1000="T1 (PZQ+ALB/MBD)",COUNTRY_INFO!$V$9:$V$1000="T1 (PZQ+ALB/MBD)"), "T1 (PZQ+ALB/MBD)", " ") ->  | K22: 0 | O22: 0
A23: =IF(COUNTRY_INFO!A23=0," ",COUNTRY_INFO!A23) -> Congo | B23: =IF(COUNTRY_INFO!B23=0," ",COUNTRY_INFO!B23) -> Cuvette | C23: =IF(COUNTRY_INFO!C23=0," ",COUNTRY_INFO!C23) -> Owando | D23: =IF(OR(COUNTRY_INFO!$U$9:$U$1000="T1 (PZQ+ALB/MBD)",COUNTRY_INFO!$V$9:$V$1000="T1 (PZQ+ALB/MBD)"), "T1 (PZQ+ALB/MBD)", " ") ->  | K23: 0 | O23: 0
A24: =IF(COUNTRY_INFO!A24=0," ",COUNTRY_INFO!A24) -> Congo | B24: =IF(COUNTRY_INFO!B24=0," ",COUNTRY_INFO!B24) -> Cuvette | C24: =IF(COUNTRY_INFO!C24=0," ",COUNTRY_INFO!C24) -> Oyo | D24: =IF(OR(COUNTRY_INFO!$U$9:$U$1000="T1 (PZQ+ALB/MBD)",COUNTRY_INFO!$V$9:$V$1000="T1 (PZQ+ALB/MBD)"), "T1 (PZQ+ALB/MBD)", " ") ->  | K24: 0 | O24: 0
A25: =IF(COUNTRY_INFO!A25=0," ",COUNTRY_INFO!A25) -> Congo | B25: =IF(COUNTRY_INFO!B25=0," ",COUNTRY_INFO!B25) -> Cuvette-Ouest | C25: =IF(COUNTRY_INFO!C25=0," ",COUNTRY_INFO!C25) -> Etoumbi | D25: =IF(OR(COUNTRY_INFO!$U$9:$U$1000="T1 (PZQ+ALB/MBD)",COUNTRY_INFO!$V$9:$V$1000="T1 (PZQ+ALB/MBD)"), "T1 (PZQ+ALB/MBD)", " ") ->  | K25: 0 | O25: 0
A26: =IF(COUNTRY_INFO!A26=0," ",COUNTRY_INFO!A26) -> Congo | B26: =IF(COUNTRY_INFO!B26=0," ",COUNTRY_INFO!B26) -> Cuvette-Ouest | C26: =IF(COUNTRY_INFO!C26=0," ",COUNTRY_INFO!C26) -> Ewo | D26: =IF(OR(COUNTRY_INFO!$U$9:$U$1000="T1 (PZQ+ALB/MBD)",COUNTRY_INFO!$V$9:$V$1000="T1 (PZQ+ALB/MBD)"), "T1 (PZQ+ALB/MBD)", " ") ->  | K26: 0 | O26: 0
A27: =IF(COUNTRY_INFO!A27=0," ",COUNTRY_INFO!A27) -> Congo | B27: =IF(COUNTRY_INFO!B27=0," ",COUNTRY_INFO!B27) -> Kouilou | C27: =IF(COUNTRY_INFO!C27=0," ",COUNTRY_INFO!C27) -> Hinda-Mvouti | D27: =IF(OR(COUNTRY_INFO!$U$9:$U$1000="T1 (PZQ+ALB/MBD)",COUNTRY_INFO!$V$9:$V$1000="T1 (PZQ+ALB/MBD)"), "T1 (PZQ+ALB/MBD)", " ") -> T1 (PZQ+ALB/MBD) | E27: PZQ+ALB | F27: Nov 2018 | H27: 12318 | I27: 12318 | K27: 12318 | M27: 6535 | N27: 221 | O27: 6756 | Q27: 53.05244358 | S27: 54.846566
A28: =IF(COUNTRY_INFO!A28=0," ",COUNTRY_INFO!A28) -> Congo | B28: =IF(COUNTRY_INFO!B28=0," ",COUNTRY_INFO!B28) -> Kouilou | C28: =IF(COUNTRY_INFO!C28=0," ",COUNTRY_INFO!C28) -> Madingo Kayes | D28: =IF(OR(COUNTRY_INFO!$U$9:$U$1000="T1 (PZQ+ALB/MBD)",COUNTRY_INFO!$V$9:$V$1000="T1 (PZQ+ALB/MBD)"), "T1 (PZQ+ALB/MBD)", " ") -> T1 (PZQ+ALB/MBD) | E28: PZQ+ALB | F28: Nov 2018 | H28: 7420 | I28: 7420 | K28: 7420 | M28: 8684 | N28: 103 | O28: 8787 | Q28: 117.0350404 | S28: 118.4231806
A29: =IF(COUNTRY_INFO!A29=0," ",COUNTRY_INFO!A29) -> Congo | B29: =IF(COUNTRY_INFO!B29=0," ",COUNTRY_INFO!B29) -> Lékoumou | C29: =IF(COUNTRY_INFO!C29=0," ",COUNTRY_INFO!C29) -> Sibiti | D29: =IF(OR(COUNTRY_INFO!$U$9:$U$1000="T1 (PZQ+ALB/MBD)",COUNTRY_INFO!$V$9:$V$1000="T1 (PZQ+ALB/MBD)"), "T1 (PZQ+ALB/MBD)", " ") -> T1 (PZQ+ALB/MBD) | E29: PZQ+ALB | F29: Nov 2018 | H29: 22914 | I29: 22914 | K29: 22914 | M29: 16262 | N29: 293 | O29: 16555 | Q29: 70.96971284 | S29: 72.24840709
A30: =IF(COUNTRY_INFO!A30=0," ",COUNTRY_INFO!A30) -> Congo | B30: =IF(COUNTRY_INFO!B30=0," ",COUNTRY_INFO!B30) -> Lékoumou | C30: =IF(COUNTRY_INFO!C30=0," ",COUNTRY_INFO!C30) -> Zanaga | D30: =IF(OR(COUNTRY_INFO!$U$9:$U$1000="T1 (PZQ+ALB/MBD)",COUNTRY_INFO!$V$9:$V$1000="T1 (PZQ+ALB/MBD)"), "T1 (PZQ+ALB/MBD)", " ") ->  | K30: 0 | O30: 0
A31: =IF(COUNTRY_INFO!A31=0," ",COUNTRY_INFO!A31) -> Congo | B31: =IF(COUNTRY_INFO!B31=0," ",COUNTRY_INFO!B31) -> Likouala | C31: =IF(COUNTRY_INFO!C31=0," ",COUNTRY_INFO!C31) -> Bétou | D31: =IF(OR(COUNTRY_INFO!$U$9:$U$1000="T1 (PZQ+ALB/MBD)",COUNTRY_INFO!$V$9:$V$1000="T1 (PZQ+ALB/MBD)"), "T1 (PZQ+ALB/MBD)", " ") ->  | K31: 0 | O31: 0
A32: =IF(COUNTRY_INFO!A32=0," ",COUNTRY_INFO!A32) -> Congo | B32: =IF(COUNTRY_INFO!B32=0," ",COUNTRY_INFO!B32) -> Likouala | C32: =IF(COUNTRY_INFO!C32=0," ",COUNTRY_INFO!C32) -> Impfondo | D32: =IF(OR(COUNTRY_INFO!$U$9:$U$1000="T1 (PZQ+ALB/MBD)",COUNTRY_INFO!$V$9:$V$1000="T1 (PZQ+ALB/MBD)"), "T1 (PZQ+ALB/MBD)", " ") ->  | K32: 0 | O32: 0
A33: =IF(COUNTRY_INFO!A33=0," ",COUNTRY_INFO!A33) -> Congo | B33: =IF(COUNTRY_INFO!B33=0," ",COUNTRY_INFO!B33) -> Niari | C33: =IF(COUNTRY_INFO!C33=0," ",COUNTRY_INFO!C33) -> Dolisie | D33: =IF(OR(COUNTRY_INFO!$U$9:$U$1000="T1 (PZQ+ALB/MBD)",COUNTRY_INFO!$V$9:$V$1000="T1 (PZQ+ALB/MBD)"), "T1 (PZQ+ALB/MBD)", " ") ->  | K33: 0 | O33: 0
A34: =IF(COUNTRY_INFO!A34=0," ",COUNTRY_INFO!A34) -> Congo | B34: =IF(COUNTRY_INFO!B34=0," ",COUNTRY_INFO!B34) -> Niari | C34: =IF(COUNTRY_INFO!C34=0," ",COUNTRY_INFO!C34) -> Kibangou | D34: =IF(OR(COUNTRY_INFO!$U$9:$U$1000="T1 (PZQ+ALB/MBD)",COUNTRY_INFO!$V$9:$V$1000="T1 (PZQ+ALB/MBD)"), "T1 (PZQ+ALB/MBD)", " ") ->  | K34: 0 | O34: 0
A35: =IF(COUNTRY_INFO!A35=0," ",COUNTRY_INFO!A35) -> Congo | B35: =IF(COUNTRY_INFO!B35=0," ",COUNTRY_INFO!B35) -> Niari | C35: =IF(COUNTRY_INFO!C35=0," ",COUNTRY_INFO!C35) -> Mossendjo | D35: =IF(OR(COUNTRY_INFO!$U$9:$U$1000="T1 (PZQ+ALB/MBD)",COUNTRY_INFO!$V$9:$V$1000="T1 (PZQ+ALB/MBD)"), "T1 (PZQ+ALB/MBD)", " ") ->  | K35: 0 | O35: 0
A36: =IF(COUNTRY_INFO!A36=0," ",COUNTRY_INFO!A36) -> Congo | B36: =IF(COUNTRY_INFO!B36=0," ",COUNTRY_INFO!B36) -> Plateaux | C36: =IF(COUNTRY_INFO!C36=0," ",COUNTRY_INFO!C36) -> Abala | D36: =IF(OR(COUNTRY_INFO!$U$9:$U$1000="T1 (PZQ+ALB/MBD)",COUNTRY_INFO!$V$9:$V$1000="T1 (PZQ+ALB/MBD)"), "T1 (PZQ+ALB/MBD)", " ") ->  | K36: 0 | O36: 0
A37: =IF(COUNTRY_INFO!A37=0," ",COUNTRY_INFO!A37) -> Congo | B37: =IF(COUNTRY_INFO!B37=0," ",COUNTRY_INFO!B37) -> Plateaux | C37: =IF(COUNTRY_INFO!C37=0," ",COUNTRY_INFO!C37) -> Djambala-Lékana | D37: =IF(OR(COUNTRY_INFO!$U$9:$U$1000="T1 (PZQ+ALB/MBD)",COUNTRY_INFO!$V$9:$V$1000="T1 (PZQ+ALB/MBD)"), "T1 (PZQ+ALB/MBD)", " ") ->  | K37: 0 | O37: 0
A38: =IF(COUNTRY_INFO!A38=0," ",COUNTRY_INFO!A38) -> Congo | B38: =IF(COUNTRY_INFO!B38=0," ",COUNTRY_INFO!B38) -> Plateaux | C38: =IF(COUNTRY_INFO!C38=0," ",COUNTRY_INFO!C38) -> Gamboma | D38: =IF(OR(COUNTRY_INFO!$U$9:$U$1000="T1 (PZQ+ALB/MBD)",COUNTRY_INFO!$V$9:$V$1000="T1 (PZQ+ALB/MBD)"), "T1 (PZQ+ALB/MBD)", " ") ->  | K38: 0 | O38: 0
A39: =IF(COUNTRY_INFO!A39=0," ",COUNTRY_INFO!A39) -> Congo | B39: =IF(COUNTRY_INFO!B39=0," ",COUNTRY_INFO!B39) -> Pointe-Noire | C39: =IF(COUNTRY_INFO!C39=0," ",COUNTRY_INFO!C39) -> Ngoyo | D39: =IF(OR(COUNTRY_INFO!$U$9:$U$1000="T1 (PZQ+ALB/MBD)",COUNTRY_INFO!$V$9:$V$1000="T1 (PZQ+ALB/MBD)"), "T1 (PZQ+ALB/MBD)", " ") ->  | K39: 0 | O39: 0
A40: =IF(COUNTRY_INFO!A40=0," ",COUNTRY_INFO!A40) -> Congo | B40: =IF(COUNTRY_INFO!B40=0," ",COUNTRY_INFO!B40) -> Pointe-Noire | C40: =IF(COUNTRY_INFO!C40=0," ",COUNTRY_INFO!C40) -> Mongo-Poukou | D40: =IF(OR(COUNTRY_INFO!$U$9:$U$1000="T1 (PZQ+ALB/MBD)",COUNTRY_INFO!$V$9:$V$1000="T1 (PZQ+ALB/MBD)"), "T1 (PZQ+ALB/MBD)", " ") ->  | K40: 0 | O40: 0
A41: =IF(COUNTRY_INFO!A41=0," ",COUNTRY_INFO!A41) -> Congo | B41: =IF(COUNTRY_INFO!B41=0," ",COUNTRY_INFO!B41) -> Pointe-Noire | C41: =IF(COUNTRY_INFO!C41=0," ",COUNTRY_INFO!C41) -> Loandjili | D41: =IF(OR(COUNTRY_INFO!$U$9:$U$1000="T1 (PZQ+ALB/MBD)",COUNTRY_INFO!$V$9:$V$1000="T1 (PZQ+ALB/MBD)"), "T1 (PZQ+ALB/MBD)", " ") ->  | K41: 0 | O41: 0
A42: =IF(COUNTRY_INFO!A42=0," ",COUNTRY_INFO!A42) -> Congo | B42: =IF(COUNTRY_INFO!B42=0," ",COUNTRY_INFO!B42) -> Pointe-Noire | C42: =IF(COUNTRY_INFO!C42=0," ",COUNTRY_INFO!C42) -> Lumumba | D42: =IF(OR(COUNTRY_INFO!$U$9:$U$1000="T1 (PZQ+ALB/MBD)",COUNTRY_INFO!$V$9:$V$1000="T1 (PZQ+ALB/MBD)"), "T1 (PZQ+ALB/MBD)", " ") ->  | K42: 0 | O42: 0
A43: =IF(COUNTRY_INFO!A43=0," ",COUNTRY_INFO!A43) -> Congo | B43: =IF(COUNTRY_INFO!B43=0," ",COUNTRY_INFO!B43) -> Pointe-Noire | C43: =IF(COUNTRY_INFO!C43=0," ",COUNTRY_INFO!C43) -> Mvoumvou | D43: =IF(OR(COUNTRY_INFO!$U$9:$U$1000="T1 (PZQ+ALB/MBD)",COUNTRY_INFO!$V$9:$V$1000="T1 (PZQ+ALB/MBD)"), "T1 (PZQ+ALB/MBD)", " ") ->  | K43: 0 | O43: 0
A44: =IF(COUNTRY_INFO!A44=0," ",COUNTRY_INFO!A44) -> Congo | B44: =IF(COUNTRY_INFO!B44=0," ",COUNTRY_INFO!B44) -> Pointe-Noire | C44: =IF(COUNTRY_INFO!C44=0," ",COUNTRY_INFO!C44) -> Tie-Tie | D44: =IF(OR(COUNTRY_INFO!$U$9:$U$1000="T1 (PZQ+ALB/MBD)",COUNTRY_INFO!$V$9:$V$1000="T1 (PZQ+ALB/MBD)"), "T1 (PZQ+ALB/MBD)", " ") ->  | K44: 0 | O44: 0
A45: =IF(COUNTRY_INFO!A45=0," ",COUNTRY_INFO!A45) -> Congo | B45: =IF(COUNTRY_INFO!B45=0," ",COUNTRY_INFO!B45) -> Pool | C45: =IF(COUNTRY_INFO!C45=0," ",COUNTRY_INFO!C45) -> Goma tsétsé | D45: =IF(OR(COUNTRY_INFO!$U$9:$U$1000="T1 (PZQ+ALB/MBD)",COUNTRY_INFO!$V$9:$V$1000="T1 (PZQ+ALB/MBD)"), "T1 (PZQ+ALB/MBD)", " ") ->  | K45: 0 | O45: 0
A46: =IF(COUNTRY_INFO!A46=0," ",COUNTRY_INFO!A46) -> Congo | B46: =IF(COUNTRY_INFO!B46=0," ",COUNTRY_INFO!B46) -> Pool | C46: =IF(COUNTRY_INFO!C46=0," ",COUNTRY_INFO!C46) -> Ignié | D46: =IF(OR(COUNTRY_INFO!$U$9:$U$1000="T1 (PZQ+ALB/MBD)",COUNTRY_INFO!$V$9:$V$1000="T1 (PZQ+ALB/MBD)"), "T1 (PZQ+ALB/MBD)", " ") ->  | K46: 0 | O46: 0
A47: =IF(COUNTRY_INFO!A47=0," ",COUNTRY_INFO!A47) -> Congo | B47: =IF(COUNTRY_INFO!B47=0," ",COUNTRY_INFO!B47) -> Pool | C47: =IF(COUNTRY_INFO!C47=0," ",COUNTRY_INFO!C47) -> Kindamba | D47: =IF(OR(COUNTRY_INFO!$U$9:$U$1000="T1 (PZQ+ALB/MBD)",COUNTRY_INFO!$V$9:$V$1000="T1 (PZQ+ALB/MBD)"), "T1 (PZQ+ALB/MBD)", " ") ->  | K47: 0 | O47: 0
A48: =IF(COUNTRY_INFO!A48=0," ",COUNTRY_INFO!A48) -> Congo | B48: =IF(COUNTRY_INFO!B48=0," ",COUNTRY_INFO!B48) -> Pool | C48: =IF(COUNTRY_INFO!C48=0," ",COUNTRY_INFO!C48) -> Kinkala-Boko | D48: =IF(OR(COUNTRY_INFO!$U$9:$U$1000="T1 (PZQ+ALB/MBD)",COUNTRY_INFO!$V$9:$V$1000="T1 (PZQ+ALB/MBD)"), "T1 (PZQ+ALB/MBD)", " ") ->  | K48: 0 | O48: 0
A49: =IF(COUNTRY_INFO!A49=0," ",COUNTRY_INFO!A49) -> Congo | B49: =IF(COUNTRY_INFO!B49=0," ",COUNTRY_INFO!B49) -> Pool | C49: =IF(COUNTRY_INFO!C49=0," ",COUNTRY_INFO!C49) -> Mindouli | D49: =IF(OR(COUNTRY_INFO!$U$9:$U$1000="T1 (PZQ+ALB/MBD)",COUNTRY_INFO!$V$9:$V$1000="T1 (PZQ+ALB/MBD)"), "T1 (PZQ+ALB/MBD)", " ") ->  | K49: 0 | O49: 0
A50: =IF(COUNTRY_INFO!A50=0," ",COUNTRY_INFO!A50) -> Congo | B50: =IF(COUNTRY_INFO!B50=0," ",COUNTRY_INFO!B50) -> Sangha | C50: =IF(COUNTRY_INFO!C50=0," ",COUNTRY_INFO!C50) -> Ouesso | D50: =IF(OR(COUNTRY_INFO!$U$9:$U$1000="T1 (PZQ+ALB/MBD)",COUNTRY_INFO!$V$9:$V$1000="T1 (PZQ+ALB/MBD)"), "T1 (PZQ+ALB/MBD)", " ") ->  | K50: 0 | O50: 0
A51: =IF(COUNTRY_INFO!A51=0," ",COUNTRY_INFO!A51) -> Congo | B51: =IF(COUNTRY_INFO!B51=0," ",COUNTRY_INFO!B51) -> Sangha | C51: =IF(COUNTRY_INFO!C51=0," ",COUNTRY_INFO!C51) -> Sembé-Souanké | D51: =IF(OR(COUNTRY_INFO!$U$9:$U$1000="T1 (PZQ+ALB/MBD)",COUNTRY_INFO!$V$9:$V$1000="T1 (PZQ+ALB/MBD)"), "T1 (PZQ+ALB/MBD)", " ") ->  | K51: 0 | O51: 0

Sheet T2
A1: T 2 - Praziquantel (PZQ)
A2: Administrative structure, population requiring PC by age group, population treated by age group and coverage
A4: TOTAL | F4: =SUM(F$9:F$1000) -> 0 | G4: 0 | H4: 0 | I4: 0 | J4: 0 | K4: 0 | L4: 0 | M4: 0 | N4: =IF(F4<>0, IF(J4/F4*100=0, "-", J4/F4*100), " ") ->  | O4: =IF(G4<>0, IF(K4/G4*100=0, "-", K4/G4*100), " ") ->  | P4: =IF(H4<>0, IF(L4/H4*100=0, "-", L4/H4*100), " ") ->  | Q4: =IF(I4<>0, IF(M4/I4*100=0, "-", M4/I4*100), " ") -> 
D6: PC implemented | E6: Date | F6: Population targeted for T2 | J6: Population treated | N6: Programme coverage (%)
A7: Country | B7: Province/State | C7: District | F7: PreSAC | G7: SAC | H7: Adults | I7: Total | J7: PreSAC | K7: SAC | L7: Adults | M7: Total | N7: PreSAC | O7: SAC | P7: Adults | Q7: Total
A9: =IF(COUNTRY_INFO!A9=0," ",COUNTRY_INFO!A9) -> Congo | B9: =IF(COUNTRY_INFO!B9=0," ",COUNTRY_INFO!B9) -> Bouenza | C9: =IF(COUNTRY_INFO!C9=0," ",COUNTRY_INFO!C9) -> Loudima | D9: =IF(OR(COUNTRY_INFO!$U$9:$U$1000="T2 (PZQ)",COUNTRY_INFO!$V$9:$V$1000="T2 (PZQ)"), "T2 (PZQ)", " ") ->  | I9: =SUM(F9:H9) -> 0 | M9: =SUM(J9:L9) -> 0 | N9: =IF(F9<>0, IF(J9/F9*100=0, "-", J9/F9*100), " ") -> 
A10: =IF(COUNTRY_INFO!A10=0," ",COUNTRY_INFO!A10) -> Congo | B10: =IF(COUNTRY_INFO!B10=0," ",COUNTRY_INFO!B10) -> Bouenza | C10: =IF(COUNTRY_INFO!C10=0," ",COUNTRY_INFO!C10) -> Loutété | D10: =IF(OR(COUNTRY_INFO!$U$9:$U$1000="T2 (PZQ)",COUNTRY_INFO!$V$9:$V$1000="T2 (PZQ)"), "T2 (PZQ)", " ") ->  | I10: =SUM(F10:H10) -> 0 | M10: =SUM(J10:L10) -> 0 | N10: =IF(F10<>0, IF(J10/F10*100=0, "-", J10/F10*100), " ") ->  | O10: =IF(G10<>0, IF(K10/G10*100=0, "-", K10/G10*100), " ") ->  | P10: =IF(H10<>0, IF(L10/H10*100=0, "-", L10/H10*100), " ") ->  | Q10: =IF(I10<>0, IF(M10/I10*100=0, "-", M10/I10*100), " ") -> 
A11: =IF(COUNTRY_INFO!A11=0," ",COUNTRY_INFO!A11) -> Congo | B11: =IF(COUNTRY_INFO!B11=0," ",COUNTRY_INFO!B11) -> Bouenza | C11: =IF(COUNTRY_INFO!C11=0," ",COUNTRY_INFO!C11) -> Madingou | D11: =IF(OR(COUNTRY_INFO!$U$9:$U$1000="T2 (PZQ)",COUNTRY_INFO!$V$9:$V$1000="T2 (PZQ)"), "T2 (PZQ)", " ") ->  | I11: 0 | M11: 0
A12: =IF(COUNTRY_INFO!A12=0," ",COUNTRY_INFO!A12) -> Congo | B12: =IF(COUNTRY_INFO!B12=0," ",COUNTRY_INFO!B12) -> Bouenza | C12: =IF(COUNTRY_INFO!C12=0," ",COUNTRY_INFO!C12) -> Mouyondzi | D12: =IF(OR(COUNTRY_INFO!$U$9:$U$1000="T2 (PZQ)",COUNTRY_INFO!$V$9:$V$1000="T2 (PZQ)"), "T2 (PZQ)", " ") ->  | I12: 0 | M12: 0
A13: =IF(COUNTRY_INFO!A13=0," ",COUNTRY_INFO!A13) -> Congo | B13: =IF(COUNTRY_INFO!B13=0," ",COUNTRY_INFO!B13) -> Brazzaville | C13: =IF(COUNTRY_INFO!C13=0," ",COUNTRY_INFO!C13) -> Bacongo | D13: =IF(OR(COUNTRY_INFO!$U$9:$U$1000="T2 (PZQ)",COUNTRY_INFO!$V$9:$V$1000="T2 (PZQ)"), "T2 (PZQ)", " ") ->  | I13: 0 | M13: 0
A14: =IF(COUNTRY_INFO!A14=0," ",COUNTRY_INFO!A14) -> Congo | B14: =IF(COUNTRY_INFO!B14=0," ",COUNTRY_INFO!B14) -> Brazzaville | C14: =IF(COUNTRY_INFO!C14=0," ",COUNTRY_INFO!C14) -> Makélékélé | D14: =IF(OR(COUNTRY_INFO!$U$9:$U$1000="T2 (PZQ)",COUNTRY_INFO!$V$9:$V$1000="T2 (PZQ)"), "T2 (PZQ)", " ") ->  | I14: 0 | M14: 0
A15: =IF(COUNTRY_INFO!A15=0," ",COUNTRY_INFO!A15) -> Congo | B15: =IF(COUNTRY_INFO!B15=0," ",COUNTRY_INFO!B15) -> Brazzaville | C15: =IF(COUNTRY_INFO!C15=0," ",COUNTRY_INFO!C15) -> Mfilou | D15: =IF(OR(COUNTRY_INFO!$U$9:$U$1000="T2 (PZQ)",COUNTRY_INFO!$V$9:$V$1000="T2 (PZQ)"), "T2 (PZQ)", " ") ->  | I15: 0 | M15: 0
A16: =IF(COUNTRY_INFO!A16=0," ",COUNTRY_INFO!A16) -> Congo | B16: =IF(COUNTRY_INFO!B16=0," ",COUNTRY_INFO!B16) -> Brazzaville | C16: =IF(COUNTRY_INFO!C16=0," ",COUNTRY_INFO!C16) -> Moungali | D16: =IF(OR(COUNTRY_INFO!$U$9:$U$1000="T2 (PZQ)",COUNTRY_INFO!$V$9:$V$1000="T2 (PZQ)"), "T2 (PZQ)", " ") ->  | I16: 0 | M16: 0
A17: =IF(COUNTRY_INFO!A17=0," ",COUNTRY_INFO!A17) -> Congo | B17: =IF(COUNTRY_INFO!B17=0," ",COUNTRY_INFO!B17) -> Brazzaville | C17: =IF(COUNTRY_INFO!C17=0," ",COUNTRY_INFO!C17) -> Ouenzé | D17: =IF(OR(COUNTRY_INFO!$U$9:$U$1000="T2 (PZQ)",COUNTRY_INFO!$V$9:$V$1000="T2 (PZQ)"), "T2 (PZQ)", " ") ->  | I17: 0 | M17: 0
A18: =IF(COUNTRY_INFO!A18=0," ",COUNTRY_INFO!A18) -> Congo | B18: =IF(COUNTRY_INFO!B18=0," ",COUNTRY_INFO!B18) -> Brazzaville | C18: =IF(COUNTRY_INFO!C18=0," ",COUNTRY_INFO!C18) -> Poto-Poto | D18: =IF(OR(COUNTRY_INFO!$U$9:$U$1000="T2 (PZQ)",COUNTRY_INFO!$V$9:$V$1000="T2 (PZQ)"), "T2 (PZQ)", " ") ->  | I18: 0 | M18: 0
A19: =IF(COUNTRY_INFO!A19=0," ",COUNTRY_INFO!A19) -> Congo | B19: =IF(COUNTRY_INFO!B19=0," ",COUNTRY_INFO!B19) -> Brazzaville | C19: =IF(COUNTRY_INFO!C19=0," ",COUNTRY_INFO!C19) -> Talangaî | D19: =IF(OR(COUNTRY_INFO!$U$9:$U$1000="T2 (PZQ)",COUNTRY_INFO!$V$9:$V$1000="T2 (PZQ)"), "T2 (PZQ)", " ") ->  | I19: 0 | M19: 0
A20: =IF(COUNTRY_INFO!A20=0," ",COUNTRY_INFO!A20) -> Congo | B20: =IF(COUNTRY_INFO!B20=0," ",COUNTRY_INFO!B20) -> Brazzaville | C20: =IF(COUNTRY_INFO!C20=0," ",COUNTRY_INFO!C20) -> Madibou | D20: =IF(OR(COUNTRY_INFO!$U$9:$U$1000="T2 (PZQ)",COUNTRY_INFO!$V$9:$V$1000="T2 (PZQ)"), "T2 (PZQ)", " ") ->  | I20: 0 | M20: 0
A21: =IF(COUNTRY_INFO!A21=0," ",COUNTRY_INFO!A21) -> Congo | B21: =IF(COUNTRY_INFO!B21=0," ",COUNTRY_INFO!B21) -> Brazzaville | C21: =IF(COUNTRY_INFO!C21=0," ",COUNTRY_INFO!C21) -> Djiri | D21: =IF(OR(COUNTRY_INFO!$U$9:$U$1000="T2 (PZQ)",COUNTRY_INFO!$V$9:$V$1000="T2 (PZQ)"), "T2 (PZQ)", " ") ->  | I21: 0 | M21: 0
A22: =IF(COUNTRY_INFO!A22=0," ",COUNTRY_INFO!A22) -> Congo | B22: =IF(COUNTRY_INFO!B22=0," ",COUNTRY_INFO!B22) -> Cuvette | C22: =IF(COUNTRY_INFO!C22=0," ",COUNTRY_INFO!C22) -> Mossaka Loukoléla | D22: =IF(OR(COUNTRY_INFO!$U$9:$U$1000="T2 (PZQ)",COUNTRY_INFO!$V$9:$V$1000="T2 (PZQ)"), "T2 (PZQ)", " ") ->  | I22: 0 | M22: 0
A23: =IF(COUNTRY_INFO!A23=0," ",COUNTRY_INFO!A23) -> Congo | B23: =IF(COUNTRY_INFO!B23=0," ",COUNTRY_INFO!B23) -> Cuvette | C23: =IF(COUNTRY_INFO!C23=0," ",COUNTRY_INFO!C23) -> Owando | D23: =IF(OR(COUNTRY_INFO!$U$9:$U$1000="T2 (PZQ)",COUNTRY_INFO!$V$9:$V$1000="T2 (PZQ)"), "T2 (PZQ)", " ") ->  | I23: 0 | M23: 0
A24: =IF(COUNTRY_INFO!A24=0," ",COUNTRY_INFO!A24) -> Congo | B24: =IF(COUNTRY_INFO!B24=0," ",COUNTRY_INFO!B24) -> Cuvette | C24: =IF(COUNTRY_INFO!C24=0," ",COUNTRY_INFO!C24) -> Oyo | D24: =IF(OR(COUNTRY_INFO!$U$9:$U$1000="T2 (PZQ)",COUNTRY_INFO!$V$9:$V$1000="T2 (PZQ)"), "T2 (PZQ)", " ") ->  | I24: 0 | M24: 0
A25: =IF(COUNTRY_INFO!A25=0," ",COUNTRY_INFO!A25) -> Congo | B25: =IF(COUNTRY_INFO!B25=0," ",COUNTRY_INFO!B25) -> Cuvette-Ouest | C25: =IF(COUNTRY_INFO!C25=0," ",COUNTRY_INFO!C25) -> Etoumbi | D25: =IF(OR(COUNTRY_INFO!$U$9:$U$1000="T2 (PZQ)",COUNTRY_INFO!$V$9:$V$1000="T2 (PZQ)"), "T2 (PZQ)", " ") ->  | I25: 0 | M25: 0
A26: =IF(COUNTRY_INFO!A26=0," ",COUNTRY_INFO!A26) -> Congo | B26: =IF(COUNTRY_INFO!B26=0," ",COUNTRY_INFO!B26) -> Cuvette-Ouest | C26: =IF(COUNTRY_INFO!C26=0," ",COUNTRY_INFO!C26) -> Ewo | D26: =IF(OR(COUNTRY_INFO!$U$9:$U$1000="T2 (PZQ)",COUNTRY_INFO!$V$9:$V$1000="T2 (PZQ)"), "T2 (PZQ)", " ") ->  | I26: 0 | M26: 0
A27: =IF(COUNTRY_INFO!A27=0," ",COUNTRY_INFO!A27) -> Congo | B27: =IF(COUNTRY_INFO!B27=0," ",COUNTRY_INFO!B27) -> Kouilou | C27: =IF(COUNTRY_INFO!C27=0," ",COUNTRY_INFO!C27) -> Hinda-Mvouti | D27: =IF(OR(COUNTRY_INFO!$U$9:$U$1000="T2 (PZQ)",COUNTRY_INFO!$V$9:$V$1000="T2 (PZQ)"), "T2 (PZQ)", " ") ->  | I27: 0 | M27: 0
A28: =IF(COUNTRY_INFO!A28=0," ",COUNTRY_INFO!A28) -> Congo | B28: =IF(COUNTRY_INFO!B28=0," ",COUNTRY_INFO!B28) -> Kouilou | C28: =IF(COUNTRY_INFO!C28=0," ",COUNTRY_INFO!C28) -> Madingo Kayes | D28: =IF(OR(COUNTRY_INFO!$U$9:$U$1000="T2 (PZQ)",COUNTRY_INFO!$V$9:$V$1000="T2 (PZQ)"), "T2 (PZQ)", " ") ->  | I28: 0 | M28: 0
A29: =IF(COUNTRY_INFO!A29=0," ",COUNTRY_INFO!A29) -> Congo | B29: =IF(COUNTRY_INFO!B29=0," ",COUNTRY_INFO!B29) -> Lékoumou | C29: =IF(COUNTRY_INFO!C29=0," ",COUNTRY_INFO!C29) -> Sibiti | D29: =IF(OR(COUNTRY_INFO!$U$9:$U$1000="T2 (PZQ)",COUNTRY_INFO!$V$9:$V$1000="T2 (PZQ)"), "T2 (PZQ)", " ") ->  | I29: 0 | M29: 0
A30: =IF(COUNTRY_INFO!A30=0," ",COUNTRY_INFO!A30) -> Congo | B30: =IF(COUNTRY_INFO!B30=0," ",COUNTRY_INFO!B30) -> Lékoumou | C30: =IF(COUNTRY_INFO!C30=0," ",COUNTRY_INFO!C30) -> Zanaga | D30: =IF(OR(COUNTRY_INFO!$U$9:$U$1000="T2 (PZQ)",COUNTRY_INFO!$V$9:$V$1000="T2 (PZQ)"), "T2 (PZQ)", " ") ->  | I30: 0 | M30: 0
A31: =IF(COUNTRY_INFO!A31=0," ",COUNTRY_INFO!A31) -> Congo | B31: =IF(COUNTRY_INFO!B31=0," ",COUNTRY_INFO!B31) -> Likouala | C31: =IF(COUNTRY_INFO!C31=0," ",COUNTRY_INFO!C31) -> Bétou | D31: =IF(OR(COUNTRY_INFO!$U$9:$U$1000="T2 (PZQ)",COUNTRY_INFO!$V$9:$V$1000="T2 (PZQ)"), "T2 (PZQ)", " ") ->  | I31: 0 | M31: 0
A32: =IF(COUNTRY_INFO!A32=0," ",COUNTRY_INFO!A32) -> Congo | B32: =IF(COUNTRY_INFO!B32=0," ",COUNTRY_INFO!B32) -> Likouala | C32: =IF(COUNTRY_INFO!C32=0," ",COUNTRY_INFO!C32) -> Impfondo | D32: =IF(OR(COUNTRY_INFO!$U$9:$U$1000="T2 (PZQ)",COUNTRY_INFO!$V$9:$V$1000="T2 (PZQ)"), "T2 (PZQ)", " ") ->  | I32: 0 | M32: 0
A33: =IF(COUNTRY_INFO!A33=0," ",COUNTRY_INFO!A33) -> Congo | B33: =IF(COUNTRY_INFO!B33=0," ",COUNTRY_INFO!B33) -> Niari | C33: =IF(COUNTRY_INFO!C33=0," ",COUNTRY_INFO!C33) -> Dolisie | D33: =IF(OR(COUNTRY_INFO!$U$9:$U$1000="T2 (PZQ)",COUNTRY_INFO!$V$9:$V$1000="T2 (PZQ)"), "T2 (PZQ)", " ") ->  | I33: 0 | M33: 0
A34: =IF(COUNTRY_INFO!A34=0," ",COUNTRY_INFO!A34) -> Congo | B34: =IF(COUNTRY_INFO!B34=0," ",COUNTRY_INFO!B34) -> Niari | C34: =IF(COUNTRY_INFO!C34=0," ",COUNTRY_INFO!C34) -> Kibangou | D34: =IF(OR(COUNTRY_INFO!$U$9:$U$1000="T2 (PZQ)",COUNTRY_INFO!$V$9:$V$1000="T2 (PZQ)"), "T2 (PZQ)", " ") ->  | I34: 0 | M34: 0
A35: =IF(COUNTRY_INFO!A35=0," ",COUNTRY_INFO!A35) -> Congo | B35: =IF(COUNTRY_INFO!B35=0," ",COUNTRY_INFO!B35) -> Niari | C35: =IF(COUNTRY_INFO!C35=0," ",COUNTRY_INFO!C35) -> Mossendjo | D35: =IF(OR(COUNTRY_INFO!$U$9:$U$1000="T2 (PZQ)",COUNTRY_INFO!$V$9:$V$1000="T2 (PZQ)"), "T2 (PZQ)", " ") ->  | I35: 0 | M35: 0
A36: =IF(COUNTRY_INFO!A36=0," ",COUNTRY_INFO!A36) -> Congo | B36: =IF(COUNTRY_INFO!B36=0," ",COUNTRY_INFO!B36) -> Plateaux | C36: =IF(COUNTRY_INFO!C36=0," ",COUNTRY_INFO!C36) -> Abala | D36: =IF(OR(COUNTRY_INFO!$U$9:$U$1000="T2 (PZQ)",COUNTRY_INFO!$V$9:$V$1000="T2 (PZQ)"), "T2 (PZQ)", " ") ->  | I36: 0 | M36: 0
A37: =IF(COUNTRY_INFO!A37=0," ",COUNTRY_INFO!A37) -> Congo | B37: =IF(COUNTRY_INFO!B37=0," ",COUNTRY_INFO!B37) -> Plateaux | C37: =IF(COUNTRY_INFO!C37=0," ",COUNTRY_INFO!C37) -> Djambala-Lékana | D37: =IF(OR(COUNTRY_INFO!$U$9:$U$1000="T2 (PZQ)",COUNTRY_INFO!$V$9:$V$1000="T2 (PZQ)"), "T2 (PZQ)", " ") ->  | I37: 0 | M37: 0
A38: =IF(COUNTRY_INFO!A38=0," ",COUNTRY_INFO!A38) -> Congo | B38: =IF(COUNTRY_INFO!B38=0," ",COUNTRY_INFO!B38) -> Plateaux | C38: =IF(COUNTRY_INFO!C38=0," ",COUNTRY_INFO!C38) -> Gamboma | D38: =IF(OR(COUNTRY_INFO!$U$9:$U$1000="T2 (PZQ)",COUNTRY_INFO!$V$9:$V$1000="T2 (PZQ)"), "T2 (PZQ)", " ") ->  | I38: 0 | M38: 0
A39: =IF(COUNTRY_INFO!A39=0," ",COUNTRY_INFO!A39) -> Congo | B39: =IF(COUNTRY_INFO!B39=0," ",COUNTRY_INFO!B39) -> Pointe-Noire | C39: =IF(COUNTRY_INFO!C39=0," ",COUNTRY_INFO!C39) -> Ngoyo | D39: =IF(OR(COUNTRY_INFO!$U$9:$U$1000="T2 (PZQ)",COUNTRY_INFO!$V$9:$V$1000="T2 (PZQ)"), "T2 (PZQ)", " ") ->  | I39: 0 | M39: 0
A40: =IF(COUNTRY_INFO!A40=0," ",COUNTRY_INFO!A40) -> Congo | B40: =IF(COUNTRY_INFO!B40=0," ",COUNTRY_INFO!B40) -> Pointe-Noire | C40: =IF(COUNTRY_INFO!C40=0," ",COUNTRY_INFO!C40) -> Mongo-Poukou | D40: =IF(OR(COUNTRY_INFO!$U$9:$U$1000="T2 (PZQ)",COUNTRY_INFO!$V$9:$V$1000="T2 (PZQ)"), "T2 (PZQ)", " ") ->  | I40: 0 | M40: 0
A41: =IF(COUNTRY_INFO!A41=0," ",COUNTRY_INFO!A41) -> Congo | B41: =IF(COUNTRY_INFO!B41=0," ",COUNTRY_INFO!B41) -> Pointe-Noire | C41: =IF(COUNTRY_INFO!C41=0," ",COUNTRY_INFO!C41) -> Loandjili | D41: =IF(OR(COUNTRY_INFO!$U$9:$U$1000="T2 (PZQ)",COUNTRY_INFO!$V$9:$V$1000="T2 (PZQ)"), "T2 (PZQ)", " ") ->  | I41: 0 | M41: 0
A42: =IF(COUNTRY_INFO!A42=0," ",COUNTRY_INFO!A42) -> Congo | B42: =IF(COUNTRY_INFO!B42=0," ",COUNTRY_INFO!B42) -> Pointe-Noire | C42: =IF(COUNTRY_INFO!C42=0," ",COUNTRY_INFO!C42) -> Lumumba | D42: =IF(OR(COUNTRY_INFO!$U$9:$U$1000="T2 (PZQ)",COUNTRY_INFO!$V$9:$V$1000="T2 (PZQ)"), "T2 (PZQ)", " ") ->  | I42: 0 | M42: 0
A43: =IF(COUNTRY_INFO!A43=0," ",COUNTRY_INFO!A43) -> Congo | B43: =IF(COUNTRY_INFO!B43=0," ",COUNTRY_INFO!B43) -> Pointe-Noire | C43: =IF(COUNTRY_INFO!C43=0," ",COUNTRY_INFO!C43) -> Mvoumvou | D43: =IF(OR(COUNTRY_INFO!$U$9:$U$1000="T2 (PZQ)",COUNTRY_INFO!$V$9:$V$1000="T2 (PZQ)"), "T2 (PZQ)", " ") ->  | I43: 0 | M43: 0
A44: =IF(COUNTRY_INFO!A44=0," ",COUNTRY_INFO!A44) -> Congo | B44: =IF(COUNTRY_INFO!B44=0," ",COUNTRY_INFO!B44) -> Pointe-Noire | C44: =IF(COUNTRY_INFO!C44=0," ",COUNTRY_INFO!C44) -> Tie-Tie | D44: =IF(OR(COUNTRY_INFO!$U$9:$U$1000="T2 (PZQ)",COUNTRY_INFO!$V$9:$V$1000="T2 (PZQ)"), "T2 (PZQ)", " ") ->  | I44: 0 | M44: 0
A45: =IF(COUNTRY_INFO!A45=0," ",COUNTRY_INFO!A45) -> Congo | B45: =IF(COUNTRY_INFO!B45=0," ",COUNTRY_INFO!B45) -> Pool | C45: =IF(COUNTRY_INFO!C45=0," ",COUNTRY_INFO!C45) -> Goma tsétsé | D45: =IF(OR(COUNTRY_INFO!$U$9:$U$1000="T2 (PZQ)",COUNTRY_INFO!$V$9:$V$1000="T2 (PZQ)"), "T2 (PZQ)", " ") ->  | I45: 0 | M45: 0
A46: =IF(COUNTRY_INFO!A46=0," ",COUNTRY_INFO!A46) -> Congo | B46: =IF(COUNTRY_INFO!B46=0," ",COUNTRY_INFO!B46) -> Pool | C46: =IF(COUNTRY_INFO!C46=0," ",COUNTRY_INFO!C46) -> Ignié | D46: =IF(OR(COUNTRY_INFO!$U$9:$U$1000="T2 (PZQ)",COUNTRY_INFO!$V$9:$V$1000="T2 (PZQ)"), "T2 (PZQ)", " ") ->  | I46: 0 | M46: 0
A47: =IF(COUNTRY_INFO!A47=0," ",COUNTRY_INFO!A47) -> Congo | B47: =IF(COUNTRY_INFO!B47=0," ",COUNTRY_INFO!B47) -> Pool | C47: =IF(COUNTRY_INFO!C47=0," ",COUNTRY_INFO!C47) -> Kindamba | D47: =IF(OR(COUNTRY_INFO!$U$9:$U$1000="T2 (PZQ)",COUNTRY_INFO!$V$9:$V$1000="T2 (PZQ)"), "T2 (PZQ)", " ") ->  | I47: 0 | M47: 0
A48: =IF(COUNTRY_INFO!A48=0," ",COUNTRY_INFO!A48) -> Congo | B48: =IF(COUNTRY_INFO!B48=0," ",COUNTRY_INFO!B48) -> Pool | C48: =IF(COUNTRY_INFO!C48=0," ",COUNTRY_INFO!C48) -> Kinkala-Boko | D48: =IF(OR(COUNTRY_INFO!$U$9:$U$1000="T2 (PZQ)",COUNTRY_INFO!$V$9:$V$1000="T2 (PZQ)"), "T2 (PZQ)", " ") ->  | I48: 0 | M48: 0
A49: =IF(COUNTRY_INFO!A49=0," ",COUNTRY_INFO!A49) -> Congo | B49: =IF(COUNTRY_INFO!B49=0," ",COUNTRY_INFO!B49) -> Pool | C49: =IF(COUNTRY_INFO!C49=0," ",COUNTRY_INFO!C49) -> Mindouli | D49: =IF(OR(COUNTRY_INFO!$U$9:$U$1000="T2 (PZQ)",COUNTRY_INFO!$V$9:$V$1000="T2 (PZQ)"), "T2 (PZQ)", " ") ->  | I49: 0 | M49: 0
A50: =IF(COUNTRY_INFO!A50=0," ",COUNTRY_INFO!A50) -> Congo | B50: =IF(COUNTRY_INFO!B50=0," ",COUNTRY_INFO!B50) -> Sangha | C50: =IF(COUNTRY_INFO!C50=0," ",COUNTRY_INFO!C50) -> Ouesso | D50: =IF(OR(COUNTRY_INFO!$U$9:$U$1000="T2 (PZQ)",COUNTRY_INFO!$V$9:$V$1000="T2 (PZQ)"), "T2 (PZQ)", " ") ->  | I50: 0 | M50: 0
A51: =IF(COUNTRY_INFO!A51=0," ",COUNTRY_INFO!A51) -> Congo | B51: =IF(COUNTRY_INFO!B51=0," ",COUNTRY_INFO!B51) -> Sangha | C51: =IF(COUNTRY_INFO!C51=0," ",COUNTRY_INFO!C51) -> Sembé-Souanké | D51: =IF(OR(COUNTRY_INFO!$U$9:$U$1000="T2 (PZQ)",COUNTRY_INFO!$V$9:$V$1000="T2 (PZQ)"), "T2 (PZQ)", " ") ->  | I51: 0 | M51: 0

Sheet T3_R1
A1: T 3 - Albendazole (ALB) or Mebendazole (MBD) - Round 1
A2: Administrative structure, population requiring PC by age group, population treated by age group and coverage
A4: TOTAL | G4: =SUM(G$9:G$1000) -> 0 | H4: 851924 | I4: 0 | J4: 851924 | K4: 0 | L4: 825528 | M4: 7659 | N4: 833187 | O4: =IF(G4<>0, IF(K4/G4*100=0, "-", K4/G4*100), " ") ->  | P4: =IF(H4<>0, IF(L4/H4*100=0, "-", L4/H4*100), " ") -> 96.90160155 | Q4: =IF(I4<>0, IF(M4/I4*100=0, "-", M4/I4*100), " ") ->  | R4: =IF(J4<>0, IF(N4/J4*100=0, "-", N4/J4*100), " ") -> 97.80062541
D6: PC implemented | E6: Medicine | F6: Date | G6: Population targeted for T3 | K6: Population treated | O6: Programme coverage (%)
A7: Country | B7: Province/State | C7: District | G7: PreSAC | H7: SAC | I7: Adults | J7: Total | K7: PreSAC | L7: SAC | M7: Adults | N7: Total | O7: PreSAC | P7: SAC | Q7: Adults | R7: Total
A9: =IF(COUNTRY_INFO!A9=0," ",COUNTRY_INFO!A9) -> Congo | B9: =IF(COUNTRY_INFO!B9=0," ",COUNTRY_INFO!B9) -> Bouenza | C9: =IF(COUNTRY_INFO!C9=0," ",COUNTRY_INFO!C9) -> Loudima | D9: =IF(OR(COUNTRY_INFO!$U$9:$U$1000="T3 (ALB/MBD)",COUNTRY_INFO!$V$9:$V$1000="T3 (ALB/MBD)"), "T3 (ALB/MBD)", " ") ->  | J9: =SUM(G9:I9) -> 0 | N9: =SUM(K9:M9) -> 0 | O9: =IF(G9<>0, IF(K9/G9*100=0, "-", K9/G9*100), " ") -> 
A10: =IF(COUNTRY_INFO!A10=0," ",COUNTRY_INFO!A10) -> Congo | B10: =IF(COUNTRY_INFO!B10=0," ",COUNTRY_INFO!B10) -> Bouenza | C10: =IF(COUNTRY_INFO!C10=0," ",COUNTRY_INFO!C10) -> Loutété | D10: =IF(OR(COUNTRY_INFO!$U$9:$U$1000="T3 (ALB/MBD)",COUNTRY_INFO!$V$9:$V$1000="T3 (ALB/MBD)"), "T3 (ALB/MBD)", " ") ->  | J10: =SUM(G10:I10) -> 0 | N10: =SUM(K10:M10) -> 0 | O10: =IF(G10<>0, IF(K10/G10*100=0, "-", K10/G10*100), " ") ->  | P10: =IF(H10<>0, IF(L10/H10*100=0, "-", L10/H10*100), " ") ->  | Q10: =IF(I10<>0, IF(M10/I10*100=0, "-", M10/I10*100), " ") ->  | R10: =IF(J10<>0, IF(N10/J10*100=0, "-", N10/J10*100), " ") -> 
A11: =IF(COUNTRY_INFO!A11=0," ",COUNTRY_INFO!A11) -> Congo | B11: =IF(COUNTRY_INFO!B11=0," ",COUNTRY_INFO!B11) -> Bouenza | C11: =IF(COUNTRY_INFO!C11=0," ",COUNTRY_INFO!C11) -> Madingou | D11: =IF(OR(COUNTRY_INFO!$U$9:$U$1000="T3 (ALB/MBD)",COUNTRY_INFO!$V$9:$V$1000="T3 (ALB/MBD)"), "T3 (ALB/MBD)", " ") -> T3 (ALB/MBD) | F11: Nov 2018 | H11: 26702 | J11: 26702 | L11: 17873 | M11: 125 | N11: 17998 | P11: 66.93506104 | R11: 67.40319077
A12: =IF(COUNTRY_INFO!A12=0," ",COUNTRY_INFO!A12) -> Congo | B12: =IF(COUNTRY_INFO!B12=0," ",COUNTRY_INFO!B12) -> Bouenza | C12: =IF(COUNTRY_INFO!C12=0," ",COUNTRY_INFO!C12) -> Mouyondzi | D12: =IF(OR(COUNTRY_INFO!$U$9:$U$1000="T3 (ALB/MBD)",COUNTRY_INFO!$V$9:$V$1000="T3 (ALB/MBD)"), "T3 (ALB/MBD)", " ") ->  | J12: 0 | N12: 0
A13: =IF(COUNTRY_INFO!A13=0," ",COUNTRY_INFO!A13) -> Congo | B13: =IF(COUNTRY_INFO!B13=0," ",COUNTRY_INFO!B13) -> Brazzaville | C13: =IF(COUNTRY_INFO!C13=0," ",COUNTRY_INFO!C13) -> Bacongo | D13: =IF(OR(COUNTRY_INFO!$U$9:$U$1000="T3 (ALB/MBD)",COUNTRY_INFO!$V$9:$V$1000="T3 (ALB/MBD)"), "T3 (ALB/MBD)", " ") -> T3 (ALB/MBD) | F13: Nov 2018 | H13: 12003 | J13: 12003 | L13: 11337 | M13: 6 | N13: 11343 | P13: 94.45138715 | R13: 94.50137466
A14: =IF(COUNTRY_INFO!A14=0," ",COUNTRY_INFO!A14) -> Congo | B14: =IF(COUNTRY_INFO!B14=0," ",COUNTRY_INFO!B14) -> Brazzaville | C14: =IF(COUNTRY_INFO!C14=0," ",COUNTRY_INFO!C14) -> Makélékélé | D14: =IF(OR(COUNTRY_INFO!$U$9:$U$1000="T3 (ALB/MBD)",COUNTRY_INFO!$V$9:$V$1000="T3 (ALB/MBD)"), "T3 (ALB/MBD)", " ") -> T3 (ALB/MBD) | F14: Nov 2018 | H14: 39351 | J14: 39351 | L14: 32264 | M14: 234 | N14: 32498 | P14: 81.9902925 | R14: 82.58494066
A15: =IF(COUNTRY_INFO!A15=0," ",COUNTRY_INFO!A15) -> Congo | B15: =IF(COUNTRY_INFO!B15=0," ",COUNTRY_INFO!B15) -> Brazzaville | C15: =IF(COUNTRY_INFO!C15=0," ",COUNTRY_INFO!C15) -> Mfilou | D15: =IF(OR(COUNTRY_INFO!$U$9:$U$1000="T3 (ALB/MBD)",COUNTRY_INFO!$V$9:$V$1000="T3 (ALB/MBD)"), "T3 (ALB/MBD)", " ") -> T3 (ALB/MBD) | F15: Nov 2018 | H15: 44172 | J15: 44172 | L15: 48469 | M15: 318 | N15: 48787 | P15: 109.7278819 | R15: 110.447795
A16: =IF(COUNTRY_INFO!A16=0," ",COUNTRY_INFO!A16) -> Congo | B16: =IF(COUNTRY_INFO!B16=0," ",COUNTRY_INFO!B16) -> Brazzaville | C16: =IF(COUNTRY_INFO!C16=0," ",COUNTRY_INFO!C16) -> Moungali | D16: =IF(OR(COUNTRY_INFO!$U$9:$U$1000="T3 (ALB/MBD)",COUNTRY_INFO!$V$9:$V$1000="T3 (ALB/MBD)"), "T3 (ALB/MBD)", " ") -> T3 (ALB/MBD) | F16: Nov 2018 | H16: 28007 | J16: 28007 | L16: 24802 | M16: 657 | N16: 25459 | P16: 88.55643232 | R16: 90.90227443
A17: =IF(COUNTRY_INFO!A17=0," ",COUNTRY_INFO!A17) -> Congo | B17: =IF(COUNTRY_INFO!B17=0," ",COUNTRY_INFO!B17) -> Brazzaville | C17: =IF(COUNTRY_INFO!C17=0," ",COUNTRY_INFO!C17) -> Ouenzé | D17: =IF(OR(COUNTRY_INFO!$U$9:$U$1000="T3 (ALB/MBD)",COUNTRY_INFO!$V$9:$V$1000="T3 (ALB/MBD)"), "T3 (ALB/MBD)", " ") -> T3 (ALB/MBD) | F17: Nov 2018 | H17: 39438 | J17: 39438 | L17: 33744 | M17: 414 | N17: 34158 | P17: 85.56214818 | R17: 86.61189716
A18: =IF(COUNTRY_INFO!A18=0," ",COUNTRY_INFO!A18) -> Congo | B18: =IF(COUNTRY_INFO!B18=0," ",COUNTRY_INFO!B18) -> Brazzaville | C18: =IF(COUNTRY_INFO!C18=0," ",COUNTRY_INFO!C18) -> Poto-Poto | D18: =IF(OR(COUNTRY_INFO!$U$9:$U$1000="T3 (ALB/MBD)",COUNTRY_INFO!$V$9:$V$1000="T3 (ALB/MBD)"), "T3 (ALB/MBD)", " ") -> T3 (ALB/MBD) | F18: Nov 2018 | H18: 11409 | J18: 11409 | L18: 9487 | M18: 110 | N18: 9597 | P18: 83.15365063 | R18: 84.11780174
A19: =IF(COUNTRY_INFO!A19=0," ",COUNTRY_INFO!A19) -> Congo | B19: =IF(COUNTRY_INFO!B19=0," ",COUNTRY_INFO!B19) -> Brazzaville | C19: =IF(COUNTRY_INFO!C19=0," ",COUNTRY_INFO!C19) -> Talangaî | D19: =IF(OR(COUNTRY_INFO!$U$9:$U$1000="T3 (ALB/MBD)",COUNTRY_INFO!$V$9:$V$1000="T3 (ALB/MBD)"), "T3 (ALB/MBD)", " ") -> T3 (ALB/MBD) | F19: Nov 2018 | H19: 47708 | J19: 47708 | L19: 44859 | M19: 606 | N19: 45465 | P19: 94.02825522 | R19: 95.29848243
A20: =IF(COUNTRY_INFO!A20=0," ",COUNTRY_INFO!A20) -> Congo | B20: =IF(COUNTRY_INFO!B20=0," ",COUNTRY_INFO!B20) -> Brazzaville | C20: =IF(COUNTRY_INFO!C20=0," ",COUNTRY_INFO!C20) -> Madibou | D20: =IF(OR(COUNTRY_INFO!$U$9:$U$1000="T3 (ALB/MBD)",COUNTRY_INFO!$V$9:$V$1000="T3 (ALB/MBD)"), "T3 (ALB/MBD)", " ") -> T3 (ALB/MBD) | F20: Nov 2018 | H20: 36904 | J20: 36904 | L20: 34042 | M20: 28 | N20: 34070 | P20: 92.24474312 | R20: 92.32061565
A21: =IF(COUNTRY_INFO!A21=0," ",COUNTRY_INFO!A21) -> Congo | B21: =IF(COUNTRY_INFO!B21=0," ",COUNTRY_INFO!B21) -> Brazzaville | C21: =IF(COUNTRY_INFO!C21=0," ",COUNTRY_INFO!C21) -> Djiri | D21: =IF(OR(COUNTRY_INFO!$U$9:$U$1000="T3 (ALB/MBD)",COUNTRY_INFO!$V$9:$V$1000="T3 (ALB/MBD)"), "T3 (ALB/MBD)", " ") -> T3 (ALB/MBD) | F21: Nov 2018 | H21: 40314 | J21: 40314 | L21: 36129 | M21: 266 | N21: 36395 | P21: 89.61899092 | R21: 90.27881133
A22: =IF(COUNTRY_INFO!A22=0," ",COUNTRY_INFO!A22) -> Congo | B22: =IF(COUNTRY_INFO!B22=0," ",COUNTRY_INFO!B22) -> Cuvette | C22: =IF(COUNTRY_INFO!C22=0," ",COUNTRY_INFO!C22) -> Mossaka Loukoléla | D22: =IF(OR(COUNTRY_INFO!$U$9:$U$1000="T3 (ALB/MBD)",COUNTRY_INFO!$V$9:$V$1000="T3 (ALB/MBD)"), "T3 (ALB/MBD)", " ") -> T3 (ALB/MBD) | F22: Nov 2018 | H22: 12045 | J22: 12045 | L22: 9579 | M22: 40 | N22: 9619 | P22: 79.5267746 | R22: 79.8588626
A23: =IF(COUNTRY_INFO!A23=0," ",COUNTRY_INFO!A23) -> Congo | B23: =IF(COUNTRY_INFO!B23=0," ",COUNTRY_INFO!B23) -> Cuvette | C23: =IF(COUNTRY_INFO!C23=0," ",COUNTRY_INFO!C23) -> Owando | D23: =IF(OR(COUNTRY_INFO!$U$9:$U$1000="T3 (ALB/MBD)",COUNTRY_INFO!$V$9:$V$1000="T3 (ALB/MBD)"), "T3 (ALB/MBD)", " ") -> T3 (ALB/MBD) | F23: Nov 2018 | H23: 21629 | J23: 21629 | L23: 14638 | M23: 332 | N23: 14970 | P23: 67.677655 | R23: 69.21263119
A24: =IF(COUNTRY_INFO!A24=0," ",COUNTRY_INFO!A24) -> Congo | B24: =IF(COUNTRY_INFO!B24=0," ",COUNTRY_INFO!B24) -> Cuvette | C24: =IF(COUNTRY_INFO!C24=0," ",COUNTRY_INFO!C24) -> Oyo | D24: =IF(OR(COUNTRY_INFO!$U$9:$U$1000="T3 (ALB/MBD)",COUNTRY_INFO!$V$9:$V$1000="T3 (ALB/MBD)"), "T3 (ALB/MBD)", " ") -> T3 (ALB/MBD) | F24: Nov 2018 | H24: 13160 | J24: 13160 | L24: 11976 | M24: 75 | N24: 12051 | P24: 91.00303951 | R24: 91.57294833
A25: =IF(COUNTRY_INFO!A25=0," ",COUNTRY_INFO!A25) -> Congo | B25: =IF(COUNTRY_INFO!B25=0," ",COUNTRY_INFO!B25) -> Cuvette-Ouest | C25: =IF(COUNTRY_INFO!C25=0," ",COUNTRY_INFO!C25) -> Etoumbi | D25: =IF(OR(COUNTRY_INFO!$U$9:$U$1000="T3 (ALB/MBD)",COUNTRY_INFO!$V$9:$V$1000="T3 (ALB/MBD)"), "T3 (ALB/MBD)", " ") -> T3 (ALB/MBD) | F25: Nov 2018 | H25: 10617 | J25: 10617 | L25: 4014 | M25: 208 | N25: 4222 | P25: 37.80729019 | R25: 39.76641236
A26: =IF(COUNTRY_INFO!A26=0," ",COUNTRY_INFO!A26) -> Congo | B26: =IF(COUNTRY_INFO!B26=0," ",COUNTRY_INFO!B26) -> Cuvette-Ouest | C26: =IF(COUNTRY_INFO!C26=0," ",COUNTRY_INFO!C26) -> Ewo | D26: =IF(OR(COUNTRY_INFO!$U$9:$U$1000="T3 (ALB/MBD)",COUNTRY_INFO!$V$9:$V$1000="T3 (ALB/MBD)"), "T3 (ALB/MBD)", " ") -> T3 (ALB/MBD) | F26: Nov 2018 | H26: 11730 | J26: 11730 | L26: 9659 | M26: 96 | N26: 9755 | P26: 82.34441603 | R26: 83.16283035
A27: =IF(COUNTRY_INFO!A27=0," ",COUNTRY_INFO!A27) -> Congo | B27: =IF(COUNTRY_INFO!B27=0," ",COUNTRY_INFO!B27) -> Kouilou | C27: =IF(COUNTRY_INFO!C27=0," ",COUNTRY_INFO!C27) -> Hinda-Mvouti | D27: =IF(OR(COUNTRY_INFO!$U$9:$U$1000="T3 (ALB/MBD)",COUNTRY_INFO!$V$9:$V$1000="T3 (ALB/MBD)"), "T3 (ALB/MBD)", " ") ->  | J27: 0 | N27: 0
A28: =IF(COUNTRY_INFO!A28=0," ",COUNTRY_INFO!A28) -> Congo | B28: =IF(COUNTRY_INFO!B28=0," ",COUNTRY_INFO!B28) -> Kouilou | C28: =IF(COUNTRY_INFO!C28=0," ",COUNTRY_INFO!C28) -> Madingo Kayes | D28: =IF(OR(COUNTRY_INFO!$U$9:$U$1000="T3 (ALB/MBD)",COUNTRY_INFO!$V$9:$V$1000="T3 (ALB/MBD)"), "T3 (ALB/MBD)", " ") ->  | J28: 0 | N28: 0
A29: =IF(COUNTRY_INFO!A29=0," ",COUNTRY_INFO!A29) -> Congo | B29: =IF(COUNTRY_INFO!B29=0," ",COUNTRY_INFO!B29) -> Lékoumou | C29: =IF(COUNTRY_INFO!C29=0," ",COUNTRY_INFO!C29) -> Sibiti | D29: =IF(OR(COUNTRY_INFO!$U$9:$U$1000="T3 (ALB/MBD)",COUNTRY_INFO!$V$9:$V$1000="T3 (ALB/MBD)"), "T3 (ALB/MBD)", " ") ->  | J29: 0 | N29: 0
A30: =IF(COUNTRY_INFO!A30=0," ",COUNTRY_INFO!A30) -> Congo | B30: =IF(COUNTRY_INFO!B30=0," ",COUNTRY_INFO!B30) -> Lékoumou | C30: =IF(COUNTRY_INFO!C30=0," ",COUNTRY_INFO!C30) -> Zanaga | D30: =IF(OR(COUNTRY_INFO!$U$9:$U$1000="T3 (ALB/MBD)",COUNTRY_INFO!$V$9:$V$1000="T3 (ALB/MBD)"), "T3 (ALB/MBD)", " ") -> T3 (ALB/MBD) | F30: Nov 2018 | H30: 6598 | J30: 6598 | L30: 5065 | M30: 28 | N30: 5093 | P30: 76.76568657 | R30: 77.19005759
A31: =IF(COUNTRY_INFO!A31=0," ",COUNTRY_INFO!A31) -> Congo | B31: =IF(COUNTRY_INFO!B31=0," ",COUNTRY_INFO!B31) -> Likouala | C31: =IF(COUNTRY_INFO!C31=0," ",COUNTRY_INFO!C31) -> Bétou | D31: =IF(OR(COUNTRY_INFO!$U$9:$U$1000="T3 (ALB/MBD)",COUNTRY_INFO!$V$9:$V$1000="T3 (ALB/MBD)"), "T3 (ALB/MBD)", " ") -> T3 (ALB/MBD) | F31: Nov 2018 | H31: 15593 | J31: 15593 | L31: 9428 | M31: 518 | N31: 9946 | P31: 60.46302828 | R31: 63.78503175
A32: =IF(COUNTRY_INFO!A32=0," ",COUNTRY_INFO!A32) -> Congo | B32: =IF(COUNTRY_INFO!B32=0," ",COUNTRY_INFO!B32) -> Likouala | C32: =IF(COUNTRY_INFO!C32=0," ",COUNTRY_INFO!C32) -> Impfondo | D32: =IF(OR(COUNTRY_INFO!$U$9:$U$1000="T3 (ALB/MBD)",COUNTRY_INFO!$V$9:$V$1000="T3 (ALB/MBD)"), "T3 (ALB/MBD)", " ") -> T3 (ALB/MBD) | F32: Nov 2018 | H32: 31588 | J32: 31588 | L32: 21332 | M32: 319 | N32: 21651 | P32: 67.53197417 | R32: 68.54185134
A33: =IF(COUNTRY_INFO!A33=0," ",COUNTRY_INFO!A33) -> Congo | B33: =IF(COUNTRY_INFO!B33=0," ",COUNTRY_INFO!B33) -> Niari | C33: =IF(COUNTRY_INFO!C33=0," ",COUNTRY_INFO!C33) -> Dolisie | D33: =IF(OR(COUNTRY_INFO!$U$9:$U$1000="T3 (ALB/MBD)",COUNTRY_INFO!$V$9:$V$1000="T3 (ALB/MBD)"), "T3 (ALB/MBD)", " ") -> T3 (ALB/MBD) | F33: Nov 2018 | H33: 45638 | J33: 45638 | L33: 39477 | M33: 217 | N33: 39694 | P33: 86.50028485 | R33: 86.97576581
A34: =IF(COUNTRY_INFO!A34=0," ",COUNTRY_INFO!A34) -> Congo | B34: =IF(COUNTRY_INFO!B34=0," ",COUNTRY_INFO!B34) -> Niari | C34: =IF(COUNTRY_INFO!C34=0," ",COUNTRY_INFO!C34) -> Kibangou | D34: =IF(OR(COUNTRY_INFO!$U$9:$U$1000="T3 (ALB/MBD)",COUNTRY_INFO!$V$9:$V$1000="T3 (ALB/MBD)"), "T3 (ALB/MBD)", " ") -> T3 (ALB/MBD) | F34: Nov 2018 | H34: 9251 | J34: 9251 | L34: 7436 | M34: 255 | N34: 7691 | P34: 80.38049941 | R34: 83.13695817
A35: =IF(COUNTRY_INFO!A35=0," ",COUNTRY_INFO!A35) -> Congo | B35: =IF(COUNTRY_INFO!B35=0," ",COUNTRY_INFO!B35) -> Niari | C35: =IF(COUNTRY_INFO!C35=0," ",COUNTRY_INFO!C35) -> Mossendjo | D35: =IF(OR(COUNTRY_INFO!$U$9:$U$1000="T3 (ALB/MBD)",COUNTRY_INFO!$V$9:$V$1000="T3 (ALB/MBD)"), "T3 (ALB/MBD)", " ") -> T3 (ALB/MBD) | F35: Nov 2018 | H35: 14461 | J35: 14461 | L35: 10073 | M35: 177 | N35: 10250 | P35: 69.65631699 | R35: 70.88029873
A36: =IF(COUNTRY_INFO!A36=0," ",COUNTRY_INFO!A36) -> Congo | B36: =IF(COUNTRY_INFO!B36=0," ",COUNTRY_INFO!B36) -> Plateaux | C36: =IF(COUNTRY_INFO!C36=0," ",COUNTRY_INFO!C36) -> Abala | D36: =IF(OR(COUNTRY_INFO!$U$9:$U$1000="T3 (ALB/MBD)",COUNTRY_INFO!$V$9:$V$1000="T3 (ALB/MBD)"), "T3 (ALB/MBD)", " ") -> T3 (ALB/MBD) | F36: Nov 2018 | H36: 11389 | J36: 11389 | L36: 11326 | M36: 42 | N36: 11368 | P36: 99.44683467 | R36: 99.81561156
A37: =IF(COUNTRY_INFO!A37=0," ",COUNTRY_INFO!A37) -> Congo | B37: =IF(COUNTRY_INFO!B37=0," ",COUNTRY_INFO!B37) -> Plateaux | C37: =IF(COUNTRY_INFO!C37=0," ",COUNTRY_INFO!C37) -> Djambala-Lékana | D37: =IF(OR(COUNTRY_INFO!$U$9:$U$1000="T3 (ALB/MBD)",COUNTRY_INFO!$V$9:$V$1000="T3 (ALB/MBD)"), "T3 (ALB/MBD)", " ") -> T3 (ALB/MBD) | F37: Nov 2018 | H37: 19353 | J37: 19353 | L37: 15737 | M37: 455 | N37: 16192 | P37: 81.31555831 | R37: 83.666615
A38: =IF(COUNTRY_INFO!A38=0," ",COUNTRY_INFO!A38) -> Congo | B38: =IF(COUNTRY_INFO!B38=0," ",COUNTRY_INFO!B38) -> Plateaux | C38: =IF(COUNTRY_INFO!C38=0," ",COUNTRY_INFO!C38) -> Gamboma | D38: =IF(OR(COUNTRY_INFO!$U$9:$U$1000="T3 (ALB/MBD)",COUNTRY_INFO!$V$9:$V$1000="T3 (ALB/MBD)"), "T3 (ALB/MBD)", " ") -> T3 (ALB/MBD) | F38: Nov 2018 | H38: 22702 | J38: 22702 | L38: 23866 | M38: 286 | N38: 24152 | P38: 105.1273016 | R38: 106.3871025
A39: =IF(COUNTRY_INFO!A39=0," ",COUNTRY_INFO!A39) -> Congo | B39: =IF(COUNTRY_INFO!B39=0," ",COUNTRY_INFO!B39) -> Pointe-Noire | C39: =IF(COUNTRY_INFO!C39=0," ",COUNTRY_INFO!C39) -> Ngoyo | D39: =IF(OR(COUNTRY_INFO!$U$9:$U$1000="T3 (ALB/MBD)",COUNTRY_INFO!$V$9:$V$1000="T3 (ALB/MBD)"), "T3 (ALB/MBD)", " ") -> T3 (ALB/MBD) | F39: Nov 2018 | H39: =COUNTRY_INFO!F39 -> 7706 | J39: 7706 | L39: 53934 | M39: 24 | N39: 53958 | P39: 699.8961848 | R39: 700.2076304
A40: =IF(COUNTRY_INFO!A40=0," ",COUNTRY_INFO!A40) -> Congo | B40: =IF(COUNTRY_INFO!B40=0," ",COUNTRY_INFO!B40) -> Pointe-Noire | C40: =IF(COUNTRY_INFO!C40=0," ",COUNTRY_INFO!C40) -> Mongo-Poukou | D40: =IF(OR(COUNTRY_INFO!$U$9:$U$1000="T3 (ALB/MBD)",COUNTRY_INFO!$V$9:$V$1000="T3 (ALB/MBD)"), "T3 (ALB/MBD)", " ") -> T3 (ALB/MBD) | F40: Nov 2018 | H40: =COUNTRY_INFO!F40 -> 28324 | J40: 28324 | L40: 51428 | M40: 31 | N40: 51459 | P40: 181.5703997 | R40: 181.6798475
A41: =IF(COUNTRY_INFO!A41=0," ",COUNTRY_INFO!A41) -> Congo | B41: =IF(COUNTRY_INFO!B41=0," ",COUNTRY_INFO!B41) -> Pointe-Noire | C41: =IF(COUNTRY_INFO!C41=0," ",COUNTRY_INFO!C41) -> Loandjili | D41: =IF(OR(COUNTRY_INFO!$U$9:$U$1000="T3 (ALB/MBD)",COUNTRY_INFO!$V$9:$V$1000="T3 (ALB/MBD)"), "T3 (ALB/MBD)", " ") -> T3 (ALB/MBD) | F41: Nov 2018 | H41: =COUNTRY_INFO!F41 -> 58965 | J41: 58965 | L41: 58005 | M41: 294 | N41: 58299 | P41: 98.37191554 | R41: 98.87051641
A42: =IF(COUNTRY_INFO!A42=0," ",COUNTRY_INFO!A42) -> Congo | B42: =IF(COUNTRY_INFO!B42=0," ",COUNTRY_INFO!B42) -> Pointe-Noire | C42: =IF(COUNTRY_INFO!C42=0," ",COUNTRY_INFO!C42) -> Lumumba | D42: =IF(OR(COUNTRY_INFO!$U$9:$U$1000="T3 (ALB/MBD)",COUNTRY_INFO!$V$9:$V$1000="T3 (ALB/MBD)"), "T3 (ALB/MBD)", " ") -> T3 (ALB/MBD) | F42: Nov 2018 | H42: 20728 | J42: 20728 | L42: 23438 | M42: 136 | N42: 23574 | P42: 113.0741027 | R42: 113.73022
A43: =IF(COUNTRY_INFO!A43=0," ",COUNTRY_INFO!A43) -> Congo | B43: =IF(COUNTRY_INFO!B43=0," ",COUNTRY_INFO!B43) -> Pointe-Noire | C43: =IF(COUNTRY_INFO!C43=0," ",COUNTRY_INFO!C43) -> Mvoumvou | D43: =IF(OR(COUNTRY_INFO!$U$9:$U$1000="T3 (ALB/MBD)",COUNTRY_INFO!$V$9:$V$1000="T3 (ALB/MBD)"), "T3 (ALB/MBD)", " ") -> T3 (ALB/MBD) | F43: Nov 2018 | H43: 12945 | J43: 12945 | L43: 14897 | M43: 61 | N43: 14958 | P43: 115.0791812 | R43: 115.5504056
A44: =IF(COUNTRY_INFO!A44=0," ",COUNTRY_INFO!A44) -> Congo | B44: =IF(COUNTRY_INFO!B44=0," ",COUNTRY_INFO!B44) -> Pointe-Noire | C44: =IF(COUNTRY_INFO!C44=0," ",COUNTRY_INFO!C44) -> Tie-Tie | D44: =IF(OR(COUNTRY_INFO!$U$9:$U$1000="T3 (ALB/MBD)",COUNTRY_INFO!$V$9:$V$1000="T3 (ALB/MBD)"), "T3 (ALB/MBD)", " ") -> T3 (ALB/MBD) | F44: Nov 2018 | H44: =COUNTRY_INFO!F44 -> 52800 | J44: 52800 | L44: 63072 | M44: 570 | N44: 63642 | P44: 119.4545455 | R44: 120.5340909
A45: =IF(COUNTRY_INFO!A45=0," ",COUNTRY_INFO!A45) -> Congo | B45: =IF(COUNTRY_INFO!B45=0," ",COUNTRY_INFO!B45) -> Pool | C45: =IF(COUNTRY_INFO!C45=0," ",COUNTRY_INFO!C45) -> Goma tsétsé | D45: =IF(OR(COUNTRY_INFO!$U$9:$U$1000="T3 (ALB/MBD)",COUNTRY_INFO!$V$9:$V$1000="T3 (ALB/MBD)"), "T3 (ALB/MBD)", " ") -> T3 (ALB/MBD) | F45: Nov 2018 | H45: 7760 | J45: 7760 | L45: 3451 | M45: 14 | N45: 3465 | P45: 44.47164948 | R45: 44.65206186
A46: =IF(COUNTRY_INFO!A46=0," ",COUNTRY_INFO!A46) -> Congo | B46: =IF(COUNTRY_INFO!B46=0," ",COUNTRY_INFO!B46) -> Pool | C46: =IF(COUNTRY_INFO!C46=0," ",COUNTRY_INFO!C46) -> Ignié | D46: =IF(OR(COUNTRY_INFO!$U$9:$U$1000="T3 (ALB/MBD)",COUNTRY_INFO!$V$9:$V$1000="T3 (ALB/MBD)"), "T3 (ALB/MBD)", " ") -> T3 (ALB/MBD) | F46: Nov 2018 | H46: 20332 | J46: 20332 | L46: 21960 | M46: 130 | N46: 22090 | P46: 108.0070824 | R46: 108.6464686
A47: =IF(COUNTRY_INFO!A47=0," ",COUNTRY_INFO!A47) -> Congo | B47: =IF(COUNTRY_INFO!B47=0," ",COUNTRY_INFO!B47) -> Pool | C47: =IF(COUNTRY_INFO!C47=0," ",COUNTRY_INFO!C47) -> Kindamba | D47: =IF(OR(COUNTRY_INFO!$U$9:$U$1000="T3 (ALB/MBD)",COUNTRY_INFO!$V$9:$V$1000="T3 (ALB/MBD)"), "T3 (ALB/MBD)", " ") -> T3 (ALB/MBD) | F47: Nov 2018 | H47: 8485 | J47: 8485 | L47: 5414 | M47: 44 | N47: 5458 | P47: 63.80671774 | R47: 64.32527991
A48: =IF(COUNTRY_INFO!A48=0," ",COUNTRY_INFO!A48) -> Congo | B48: =IF(COUNTRY_INFO!B48=0," ",COUNTRY_INFO!B48) -> Pool | C48: =IF(COUNTRY_INFO!C48=0," ",COUNTRY_INFO!C48) -> Kinkala-Boko | D48: =IF(OR(COUNTRY_INFO!$U$9:$U$1000="T3 (ALB/MBD)",COUNTRY_INFO!$V$9:$V$1000="T3 (ALB/MBD)"), "T3 (ALB/MBD)", " ") -> T3 (ALB/MBD) | F48: Nov 2018 | H48: 19443 | J48: 19443 | L48: 13704 | M48: 141 | N48: 13845 | P48: 70.48295016 | R48: 71.20814689
A49: =IF(COUNTRY_INFO!A49=0," ",COUNTRY_INFO!A49) -> Congo | B49: =IF(COUNTRY_INFO!B49=0," ",COUNTRY_INFO!B49) -> Pool | C49: =IF(COUNTRY_INFO!C49=0," ",COUNTRY_INFO!C49) -> Mindouli | D49: =IF(OR(COUNTRY_INFO!$U$9:$U$1000="T3 (ALB/MBD)",COUNTRY_INFO!$V$9:$V$1000="T3 (ALB/MBD)"), "T3 (ALB/MBD)", " ") -> T3 (ALB/MBD) | F49: Nov 2018 | H49: 16402 | J49: 16402 | L49: 9290 | M49: 69 | N49: 9359 | P49: 56.63943422 | R49: 57.06011462
A50: =IF(COUNTRY_INFO!A50=0," ",COUNTRY_INFO!A50) -> Congo | B50: =IF(COUNTRY_INFO!B50=0," ",COUNTRY_INFO!B50) -> Sangha | C50: =IF(COUNTRY_INFO!C50=0," ",COUNTRY_INFO!C50) -> Ouesso | D50: =IF(OR(COUNTRY_INFO!$U$9:$U$1000="T3 (ALB/MBD)",COUNTRY_INFO!$V$9:$V$1000="T3 (ALB/MBD)"), "T3 (ALB/MBD)", " ") -> T3 (ALB/MBD) | F50: Nov 2018 | H50: 18963 | J50: 18963 | L50: 16756 | M50: 256 | N50: 17012 | P50: 88.36154617 | R50: 89.71154353
A51: =IF(COUNTRY_INFO!A51=0," ",COUNTRY_INFO!A51) -> Congo | B51: =IF(COUNTRY_INFO!B51=0," ",COUNTRY_INFO!B51) -> Sangha | C51: =IF(COUNTRY_INFO!C51=0," ",COUNTRY_INFO!C51) -> Sembé-Souanké | D51: =IF(OR(COUNTRY_INFO!$U$9:$U$1000="T3 (ALB/MBD)",COUNTRY_INFO!$V$9:$V$1000="T3 (ALB/MBD)"), "T3 (ALB/MBD)", " ") -> T3 (ALB/MBD) | F51: Nov 2018 | H51: 7309 | J51: 7309 | L51: 3567 | M51: 77 | N51: 3644 | P51: 48.80284581 | R51: 49.8563415

Sheet T3_R2
A1: T 3 - Albendazole (ALB) or Mebendazole (MBD) - Round 2
A2: Administrative structure, population requiring PC by age group, population treated by age group and coverage
A4: TOTAL | G4: =SUM(G$9:G$1000) -> 0 | H4: 0 | I4: 0 | J4: 0 | K4: 0 | L4: 0 | M4: 0 | N4: 0 | O4: =IF(G4<>0, IF(K4/G4*100=0, "-", K4/G4*100), " ") ->  | P4: =IF(H4<>0, IF(L4/H4*100=0, "-", L4/H4*100), " ") ->  | Q4: =IF(I4<>0, IF(M4/I4*100=0, "-", M4/I4*100), " ") ->  | R4: =IF(J4<>0, IF(N4/J4*100=0, "-", N4/J4*100), " ") -> 
D6: PC implemented | E6: Medicine | F6: Date | G6: Population targeted for T3 | K6: Population treated | O6: Programme coverage (%)
A7: Country | B7: Province/State | C7: District | G7: PreSAC | H7: SAC | I7: Adults | J7: Total | K7: PreSAC | L7: SAC | M7: Adults | N7: Total | O7: PreSAC | P7: SAC | Q7: Adults | R7: Total
A9: =IF(COUNTRY_INFO!A9=0," ",COUNTRY_INFO!A9) -> Congo | B9: =IF(COUNTRY_INFO!B9=0," ",COUNTRY_INFO!B9) -> Bouenza | C9: =IF(COUNTRY_INFO!C9=0," ",COUNTRY_INFO!C9) -> Loudima | D9: =IF(AND(COUNTRY_INFO!$U$9:$U$1000="T3 (ALB/MBD)",COUNTRY_INFO!$V$9:$V$1000="T3 (ALB/MBD)"), "T3 (ALB/MBD)", " ") ->  | J9: =SUM(G9:I9) -> 0 | N9: =SUM(K9:M9) -> 0 | O9: =IF(G9<>0, IF(K9/G9*100=0, "-", K9/G9*100), " ") -> 
A10: =IF(COUNTRY_INFO!A10=0," ",COUNTRY_INFO!A10) -> Congo | B10: =IF(COUNTRY_INFO!B10=0," ",COUNTRY_INFO!B10) -> Bouenza | C10: =IF(COUNTRY_INFO!C10=0," ",COUNTRY_INFO!C10) -> Loutété | D10: =IF(AND(COUNTRY_INFO!$U$9:$U$1000="T3 (ALB/MBD)",COUNTRY_INFO!$V$9:$V$1000="T3 (ALB/MBD)"), "T3 (ALB/MBD)", " ") ->  | J10: =SUM(G10:I10) -> 0 | N10: =SUM(K10:M10) -> 0 | O10: =IF(G10<>0, IF(K10/G10*100=0, "-", K10/G10*100), " ") ->  | P10: =IF(H10<>0, IF(L10/H10*100=0, "-", L10/H10*100), " ") ->  | Q10: =IF(I10<>0, IF(M10/I10*100=0, "-", M10/I10*100), " ") ->  | R10: =IF(J10<>0, IF(N10/J10*100=0, "-", N10/J10*100), " ") -> 
A11: =IF(COUNTRY_INFO!A11=0," ",COUNTRY_INFO!A11) -> Congo | B11: =IF(COUNTRY_INFO!B11=0," ",COUNTRY_INFO!B11) -> Bouenza | C11: =IF(COUNTRY_INFO!C11=0," ",COUNTRY_INFO!C11) -> Madingou | D11: =IF(AND(COUNTRY_INFO!$U$9:$U$1000="T3 (ALB/MBD)",COUNTRY_INFO!$V$9:$V$1000="T3 (ALB/MBD)"), "T3 (ALB/MBD)", " ") ->  | J11: 0 | N11: 0
A12: =IF(COUNTRY_INFO!A12=0," ",COUNTRY_INFO!A12) -> Congo | B12: =IF(COUNTRY_INFO!B12=0," ",COUNTRY_INFO!B12) -> Bouenza | C12: =IF(COUNTRY_INFO!C12=0," ",COUNTRY_INFO!C12) -> Mouyondzi | D12: =IF(AND(COUNTRY_INFO!$U$9:$U$1000="T3 (ALB/MBD)",COUNTRY_INFO!$V$9:$V$1000="T3 (ALB/MBD)"), "T3 (ALB/MBD)", " ") ->  | J12: 0 | N12: 0
A13: =IF(COUNTRY_INFO!A13=0," ",COUNTRY_INFO!A13) -> Congo | B13: =IF(COUNTRY_INFO!B13=0," ",COUNTRY_INFO!B13) -> Brazzaville | C13: =IF(COUNTRY_INFO!C13=0," ",COUNTRY_INFO!C13) -> Bacongo | D13: =IF(AND(COUNTRY_INFO!$U$9:$U$1000="T3 (ALB/MBD)",COUNTRY_INFO!$V$9:$V$1000="T3 (ALB/MBD)"), "T3 (ALB/MBD)", " ") ->  | J13: 0 | N13: 0
A14: =IF(COUNTRY_INFO!A14=0," ",COUNTRY_INFO!A14) -> Congo | B14: =IF(COUNTRY_INFO!B14=0," ",COUNTRY_INFO!B14) -> Brazzaville | C14: =IF(COUNTRY_INFO!C14=0," ",COUNTRY_INFO!C14) -> Makélékélé | D14: =IF(AND(COUNTRY_INFO!$U$9:$U$1000="T3 (ALB/MBD)",COUNTRY_INFO!$V$9:$V$1000="T3 (ALB/MBD)"), "T3 (ALB/MBD)", " ") ->  | J14: 0 | N14: 0
A15: =IF(COUNTRY_INFO!A15=0," ",COUNTRY_INFO!A15) -> Congo | B15: =IF(COUNTRY_INFO!B15=0," ",COUNTRY_INFO!B15) -> Brazzaville | C15: =IF(COUNTRY_INFO!C15=0," ",COUNTRY_INFO!C15) -> Mfilou | D15: =IF(AND(COUNTRY_INFO!$U$9:$U$1000="T3 (ALB/MBD)",COUNTRY_INFO!$V$9:$V$1000="T3 (ALB/MBD)"), "T3 (ALB/MBD)", " ") ->  | J15: 0 | N15: 0
A16: =IF(COUNTRY_INFO!A16=0," ",COUNTRY_INFO!A16) -> Congo | B16: =IF(COUNTRY_INFO!B16=0," ",COUNTRY_INFO!B16) -> Brazzaville | C16: =IF(COUNTRY_INFO!C16=0," ",COUNTRY_INFO!C16) -> Moungali | D16: =IF(AND(COUNTRY_INFO!$U$9:$U$1000="T3 (ALB/MBD)",COUNTRY_INFO!$V$9:$V$1000="T3 (ALB/MBD)"), "T3 (ALB/MBD)", " ") ->  | J16: 0 | N16: 0
A17: =IF(COUNTRY_INFO!A17=0," ",COUNTRY_INFO!A17) -> Congo | B17: =IF(COUNTRY_INFO!B17=0," ",COUNTRY_INFO!B17) -> Brazzaville | C17: =IF(COUNTRY_INFO!C17=0," ",COUNTRY_INFO!C17) -> Ouenzé | D17: =IF(AND(COUNTRY_INFO!$U$9:$U$1000="T3 (ALB/MBD)",COUNTRY_INFO!$V$9:$V$1000="T3 (ALB/MBD)"), "T3 (ALB/MBD)", " ") ->  | J17: 0 | N17: 0
A18: =IF(COUNTRY_INFO!A18=0," ",COUNTRY_INFO!A18) -> Congo | B18: =IF(COUNTRY_INFO!B18=0," ",COUNTRY_INFO!B18) -> Brazzaville | C18: =IF(COUNTRY_INFO!C18=0," ",COUNTRY_INFO!C18) -> Poto-Poto | D18: =IF(AND(COUNTRY_INFO!$U$9:$U$1000="T3 (ALB/MBD)",COUNTRY_INFO!$V$9:$V$1000="T3 (ALB/MBD)"), "T3 (ALB/MBD)", " ") ->  | J18: 0 | N18: 0
A19: =IF(COUNTRY_INFO!A19=0," ",COUNTRY_INFO!A19) -> Congo | B19: =IF(COUNTRY_INFO!B19=0," ",COUNTRY_INFO!B19) -> Brazzaville | C19: =IF(COUNTRY_INFO!C19=0," ",COUNTRY_INFO!C19) -> Talangaî | D19: =IF(AND(COUNTRY_INFO!$U$9:$U$1000="T3 (ALB/MBD)",COUNTRY_INFO!$V$9:$V$1000="T3 (ALB/MBD)"), "T3 (ALB/MBD)", " ") ->  | J19: 0 | N19: 0
A20: =IF(COUNTRY_INFO!A20=0," ",COUNTRY_INFO!A20) -> Congo | B20: =IF(COUNTRY_INFO!B20=0," ",COUNTRY_INFO!B20) -> Brazzaville | C20: =IF(COUNTRY_INFO!C20=0," ",COUNTRY_INFO!C20) -> Madibou | D20: =IF(AND(COUNTRY_INFO!$U$9:$U$1000="T3 (ALB/MBD)",COUNTRY_INFO!$V$9:$V$1000="T3 (ALB/MBD)"), "T3 (ALB/MBD)", " ") ->  | J20: 0 | N20: 0
A21: =IF(COUNTRY_INFO!A21=0," ",COUNTRY_INFO!A21) -> Congo | B21: =IF(COUNTRY_INFO!B21=0," ",COUNTRY_INFO!B21) -> Brazzaville | C21: =IF(COUNTRY_INFO!C21=0," ",COUNTRY_INFO!C21) -> Djiri | D21: =IF(AND(COUNTRY_INFO!$U$9:$U$1000="T3 (ALB/MBD)",COUNTRY_INFO!$V$9:$V$1000="T3 (ALB/MBD)"), "T3 (ALB/MBD)", " ") ->  | J21: 0 | N21: 0
A22: =IF(COUNTRY_INFO!A22=0," ",COUNTRY_INFO!A22) -> Congo | B22: =IF(COUNTRY_INFO!B22=0," ",COUNTRY_INFO!B22) -> Cuvette | C22: =IF(COUNTRY_INFO!C22=0," ",COUNTRY_INFO!C22) -> Mossaka Loukoléla | D22: =IF(AND(COUNTRY_INFO!$U$9:$U$1000="T3 (ALB/MBD)",COUNTRY_INFO!$V$9:$V$1000="T3 (ALB/MBD)"), "T3 (ALB/MBD)", " ") ->  | J22: 0 | N22: 0
A23: =IF(COUNTRY_INFO!A23=0," ",COUNTRY_INFO!A23) -> Congo | B23: =IF(COUNTRY_INFO!B23=0," ",COUNTRY_INFO!B23) -> Cuvette | C23: =IF(COUNTRY_INFO!C23=0," ",COUNTRY_INFO!C23) -> Owando | D23: =IF(AND(COUNTRY_INFO!$U$9:$U$1000="T3 (ALB/MBD)",COUNTRY_INFO!$V$9:$V$1000="T3 (ALB/MBD)"), "T3 (ALB/MBD)", " ") ->  | J23: 0 | N23: 0
A24: =IF(COUNTRY_INFO!A24=0," ",COUNTRY_INFO!A24) -> Congo | B24: =IF(COUNTRY_INFO!B24=0," ",COUNTRY_INFO!B24) -> Cuvette | C24: =IF(COUNTRY_INFO!C24=0," ",COUNTRY_INFO!C24) -> Oyo | D24: =IF(AND(COUNTRY_INFO!$U$9:$U$1000="T3 (ALB/MBD)",COUNTRY_INFO!$V$9:$V$1000="T3 (ALB/MBD)"), "T3 (ALB/MBD)", " ") ->  | J24: 0 | N24: 0
A25: =IF(COUNTRY_INFO!A25=0," ",COUNTRY_INFO!A25) -> Congo | B25: =IF(COUNTRY_INFO!B25=0," ",COUNTRY_INFO!B25) -> Cuvette-Ouest | C25: =IF(COUNTRY_INFO!C25=0," ",COUNTRY_INFO!C25) -> Etoumbi | D25: =IF(AND(COUNTRY_INFO!$U$9:$U$1000="T3 (ALB/MBD)",COUNTRY_INFO!$V$9:$V$1000="T3 (ALB/MBD)"), "T3 (ALB/MBD)", " ") ->  | J25: 0 | N25: 0
A26: =IF(COUNTRY_INFO!A26=0," ",COUNTRY_INFO!A26) -> Congo | B26: =IF(COUNTRY_INFO!B26=0," ",COUNTRY_INFO!B26) -> Cuvette-Ouest | C26: =IF(COUNTRY_INFO!C26=0," ",COUNTRY_INFO!C26) -> Ewo | D26: =IF(AND(COUNTRY_INFO!$U$9:$U$1000="T3 (ALB/MBD)",COUNTRY_INFO!$V$9:$V$1000="T3 (ALB/MBD)"), "T3 (ALB/MBD)", " ") ->  | J26: 0 | N26: 0
A27: =IF(COUNTRY_INFO!A27=0," ",COUNTRY_INFO!A27) -> Congo | B27: =IF(COUNTRY_INFO!B27=0," ",COUNTRY_INFO!B27) -> Kouilou | C27: =IF(COUNTRY_INFO!C27=0," ",COUNTRY_INFO!C27) -> Hinda-Mvouti | D27: =IF(AND(COUNTRY_INFO!$U$9:$U$1000="T3 (ALB/MBD)",COUNTRY_INFO!$V$9:$V$1000="T3 (ALB/MBD)"), "T3 (ALB/MBD)", " ") ->  | J27: 0 | N27: 0
A28: =IF(COUNTRY_INFO!A28=0," ",COUNTRY_INFO!A28) -> Congo | B28: =IF(COUNTRY_INFO!B28=0," ",COUNTRY_INFO!B28) -> Kouilou | C28: =IF(COUNTRY_INFO!C28=0," ",COUNTRY_INFO!C28) -> Madingo Kayes | D28: =IF(AND(COUNTRY_INFO!$U$9:$U$1000="T3 (ALB/MBD)",COUNTRY_INFO!$V$9:$V$1000="T3 (ALB/MBD)"), "T3 (ALB/MBD)", " ") ->  | J28: 0 | N28: 0
A29: =IF(COUNTRY_INFO!A29=0," ",COUNTRY_INFO!A29) -> Congo | B29: =IF(COUNTRY_INFO!B29=0," ",COUNTRY_INFO!B29) -> Lékoumou | C29: =IF(COUNTRY_INFO!C29=0," ",COUNTRY_INFO!C29) -> Sibiti | D29: =IF(AND(COUNTRY_INFO!$U$9:$U$1000="T3 (ALB/MBD)",COUNTRY_INFO!$V$9:$V$1000="T3 (ALB/MBD)"), "T3 (ALB/MBD)", " ") ->  | J29: 0 | N29: 0
A30: =IF(COUNTRY_INFO!A30=0," ",COUNTRY_INFO!A30) -> Congo | B30: =IF(COUNTRY_INFO!B30=0," ",COUNTRY_INFO!B30) -> Lékoumou | C30: =IF(COUNTRY_INFO!C30=0," ",COUNTRY_INFO!C30) -> Zanaga | D30: =IF(AND(COUNTRY_INFO!$U$9:$U$1000="T3 (ALB/MBD)",COUNTRY_INFO!$V$9:$V$1000="T3 (ALB/MBD)"), "T3 (ALB/MBD)", " ") ->  | J30: 0 | N30: 0
A31: =IF(COUNTRY_INFO!A31=0," ",COUNTRY_INFO!A31) -> Congo | B31: =IF(COUNTRY_INFO!B31=0," ",COUNTRY_INFO!B31) -> Likouala | C31: =IF(COUNTRY_INFO!C31=0," ",COUNTRY_INFO!C31) -> Bétou | D31: =IF(AND(COUNTRY_INFO!$U$9:$U$1000="T3 (ALB/MBD)",COUNTRY_INFO!$V$9:$V$1000="T3 (ALB/MBD)"), "T3 (ALB/MBD)", " ") ->  | J31: 0 | N31: 0
A32: =IF(COUNTRY_INFO!A32=0," ",COUNTRY_INFO!A32) -> Congo | B32: =IF(COUNTRY_INFO!B32=0," ",COUNTRY_INFO!B32) -> Likouala | C32: =IF(COUNTRY_INFO!C32=0," ",COUNTRY_INFO!C32) -> Impfondo | D32: =IF(AND(COUNTRY_INFO!$U$9:$U$1000="T3 (ALB/MBD)",COUNTRY_INFO!$V$9:$V$1000="T3 (ALB/MBD)"), "T3 (ALB/MBD)", " ") ->  | J32: 0 | N32: 0
A33: =IF(COUNTRY_INFO!A33=0," ",COUNTRY_INFO!A33) -> Congo | B33: =IF(COUNTRY_INFO!B33=0," ",COUNTRY_INFO!B33) -> Niari | C33: =IF(COUNTRY_INFO!C33=0," ",COUNTRY_INFO!C33) -> Dolisie | D33: =IF(AND(COUNTRY_INFO!$U$9:$U$1000="T3 (ALB/MBD)",COUNTRY_INFO!$V$9:$V$1000="T3 (ALB/MBD)"), "T3 (ALB/MBD)", " ") ->  | J33: 0 | N33: 0
A34: =IF(COUNTRY_INFO!A34=0," ",COUNTRY_INFO!A34) -> Congo | B34: =IF(COUNTRY_INFO!B34=0," ",COUNTRY_INFO!B34) -> Niari | C34: =IF(COUNTRY_INFO!C34=0," ",COUNTRY_INFO!C34) -> Kibangou | D34: =IF(AND(COUNTRY_INFO!$U$9:$U$1000="T3 (ALB/MBD)",COUNTRY_INFO!$V$9:$V$1000="T3 (ALB/MBD)"), "T3 (ALB/MBD)", " ") ->  | J34: 0 | N34: 0
A35: =IF(COUNTRY_INFO!A35=0," ",COUNTRY_INFO!A35) -> Congo | B35: =IF(COUNTRY_INFO!B35=0," ",COUNTRY_INFO!B35) -> Niari | C35: =IF(COUNTRY_INFO!C35=0," ",COUNTRY_INFO!C35) -> Mossendjo | D35: =IF(AND(COUNTRY_INFO!$U$9:$U$1000="T3 (ALB/MBD)",COUNTRY_INFO!$V$9:$V$1000="T3 (ALB/MBD)"), "T3 (ALB/MBD)", " ") ->  | J35: 0 | N35: 0
A36: =IF(COUNTRY_INFO!A36=0," ",COUNTRY_INFO!A36) -> Congo | B36: =IF(COUNTRY_INFO!B36=0," ",COUNTRY_INFO!B36) -> Plateaux | C36: =IF(COUNTRY_INFO!C36=0," ",COUNTRY_INFO!C36) -> Abala | D36: =IF(AND(COUNTRY_INFO!$U$9:$U$1000="T3 (ALB/MBD)",COUNTRY_INFO!$V$9:$V$1000="T3 (ALB/MBD)"), "T3 (ALB/MBD)", " ") ->  | J36: 0 | N36: 0
A37: =IF(COUNTRY_INFO!A37=0," ",COUNTRY_INFO!A37) -> Congo | B37: =IF(COUNTRY_INFO!B37=0," ",COUNTRY_INFO!B37) -> Plateaux | C37: =IF(COUNTRY_INFO!C37=0," ",COUNTRY_INFO!C37) -> Djambala-Lékana | D37: =IF(AND(COUNTRY_INFO!$U$9:$U$1000="T3 (ALB/MBD)",COUNTRY_INFO!$V$9:$V$1000="T3 (ALB/MBD)"), "T3 (ALB/MBD)", " ") ->  | J37: 0 | N37: 0
A38: =IF(COUNTRY_INFO!A38=0," ",COUNTRY_INFO!A38) -> Congo | B38: =IF(COUNTRY_INFO!B38=0," ",COUNTRY_INFO!B38) -> Plateaux | C38: =IF(COUNTRY_INFO!C38=0," ",COUNTRY_INFO!C38) -> Gamboma | D38: =IF(AND(COUNTRY_INFO!$U$9:$U$1000="T3 (ALB/MBD)",COUNTRY_INFO!$V$9:$V$1000="T3 (ALB/MBD)"), "T3 (ALB/MBD)", " ") ->  | J38: 0 | N38: 0
A39: =IF(COUNTRY_INFO!A39=0," ",COUNTRY_INFO!A39) -> Congo | B39: =IF(COUNTRY_INFO!B39=0," ",COUNTRY_INFO!B39) -> Pointe-Noire | C39: =IF(COUNTRY_INFO!C39=0," ",COUNTRY_INFO!C39) -> Ngoyo | D39: =IF(AND(COUNTRY_INFO!$U$9:$U$1000="T3 (ALB/MBD)",COUNTRY_INFO!$V$9:$V$1000="T3 (ALB/MBD)"), "T3 (ALB/MBD)", " ") ->  | J39: 0 | N39: 0
A40: =IF(COUNTRY_INFO!A40=0," ",COUNTRY_INFO!A40) -> Congo | B40: =IF(COUNTRY_INFO!B40=0," ",COUNTRY_INFO!B40) -> Pointe-Noire | C40: =IF(COUNTRY_INFO!C40=0," ",COUNTRY_INFO!C40) -> Mongo-Poukou | D40: =IF(AND(COUNTRY_INFO!$U$9:$U$1000="T3 (ALB/MBD)",COUNTRY_INFO!$V$9:$V$1000="T3 (ALB/MBD)"), "T3 (ALB/MBD)", " ") ->  | J40: 0 | N40: 0
A41: =IF(COUNTRY_INFO!A41=0," ",COUNTRY_INFO!A41) -> Congo | B41: =IF(COUNTRY_INFO!B41=0," ",COUNTRY_INFO!B41) -> Pointe-Noire | C41: =IF(COUNTRY_INFO!C41=0," ",COUNTRY_INFO!C41) -> Loandjili | D41: =IF(AND(COUNTRY_INFO!$U$9:$U$1000="T3 (ALB/MBD)",COUNTRY_INFO!$V$9:$V$1000="T3 (ALB/MBD)"), "T3 (ALB/MBD)", " ") ->  | J41: 0 | N41: 0
A42: =IF(COUNTRY_INFO!A42=0," ",COUNTRY_INFO!A42) -> Congo | B42: =IF(COUNTRY_INFO!B42=0," ",COUNTRY_INFO!B42) -> Pointe-Noire | C42: =IF(COUNTRY_INFO!C42=0," ",COUNTRY_INFO!C42) -> Lumumba | D42: =IF(AND(COUNTRY_INFO!$U$9:$U$1000="T3 (ALB/MBD)",COUNTRY_INFO!$V$9:$V$1000="T3 (ALB/MBD)"), "T3 (ALB/MBD)", " ") ->  | J42: 0 | N42: 0
A43: =IF(COUNTRY_INFO!A43=0," ",COUNTRY_INFO!A43) -> Congo | B43: =IF(COUNTRY_INFO!B43=0," ",COUNTRY_INFO!B43) -> Pointe-Noire | C43: =IF(COUNTRY_INFO!C43=0," ",COUNTRY_INFO!C43) -> Mvoumvou | D43: =IF(AND(COUNTRY_INFO!$U$9:$U$1000="T3 (ALB/MBD)",COUNTRY_INFO!$V$9:$V$1000="T3 (ALB/MBD)"), "T3 (ALB/MBD)", " ") ->  | J43: 0 | N43: 0
A44: =IF(COUNTRY_INFO!A44=0," ",COUNTRY_INFO!A44) -> Congo | B44: =IF(COUNTRY_INFO!B44=0," ",COUNTRY_INFO!B44) -> Pointe-Noire | C44: =IF(COUNTRY_INFO!C44=0," ",COUNTRY_INFO!C44) -> Tie-Tie | D44: =IF(AND(COUNTRY_INFO!$U$9:$U$1000="T3 (ALB/MBD)",COUNTRY_INFO!$V$9:$V$1000="T3 (ALB/MBD)"), "T3 (ALB/MBD)", " ") ->  | J44: 0 | N44: 0
A45: =IF(COUNTRY_INFO!A45=0," ",COUNTRY_INFO!A45) -> Congo | B45: =IF(COUNTRY_INFO!B45=0," ",COUNTRY_INFO!B45) -> Pool | C45: =IF(COUNTRY_INFO!C45=0," ",COUNTRY_INFO!C45) -> Goma tsétsé | D45: =IF(AND(COUNTRY_INFO!$U$9:$U$1000="T3 (ALB/MBD)",COUNTRY_INFO!$V$9:$V$1000="T3 (ALB/MBD)"), "T3 (ALB/MBD)", " ") ->  | J45: 0 | N45: 0
A46: =IF(COUNTRY_INFO!A46=0," ",COUNTRY_INFO!A46) -> Congo | B46: =IF(COUNTRY_INFO!B46=0," ",COUNTRY_INFO!B46) -> Pool | C46: =IF(COUNTRY_INFO!C46=0," ",COUNTRY_INFO!C46) -> Ignié | D46: =IF(AND(COUNTRY_INFO!$U$9:$U$1000="T3 (ALB/MBD)",COUNTRY_INFO!$V$9:$V$1000="T3 (ALB/MBD)"), "T3 (ALB/MBD)", " ") ->  | J46: 0 | N46: 0
A47: =IF(COUNTRY_INFO!A47=0," ",COUNTRY_INFO!A47) -> Congo | B47: =IF(COUNTRY_INFO!B47=0," ",COUNTRY_INFO!B47) -> Pool | C47: =IF(COUNTRY_INFO!C47=0," ",COUNTRY_INFO!C47) -> Kindamba | D47: =IF(AND(COUNTRY_INFO!$U$9:$U$1000="T3 (ALB/MBD)",COUNTRY_INFO!$V$9:$V$1000="T3 (ALB/MBD)"), "T3 (ALB/MBD)", " ") ->  | J47: 0 | N47: 0
A48: =IF(COUNTRY_INFO!A48=0," ",COUNTRY_INFO!A48) -> Congo | B48: =IF(COUNTRY_INFO!B48=0," ",COUNTRY_INFO!B48) -> Pool | C48: =IF(COUNTRY_INFO!C48=0," ",COUNTRY_INFO!C48) -> Kinkala-Boko | D48: =IF(AND(COUNTRY_INFO!$U$9:$U$1000="T3 (ALB/MBD)",COUNTRY_INFO!$V$9:$V$1000="T3 (ALB/MBD)"), "T3 (ALB/MBD)", " ") ->  | J48: 0 | N48: 0
A49: =IF(COUNTRY_INFO!A49=0," ",COUNTRY_INFO!A49) -> Congo | B49: =IF(COUNTRY_INFO!B49=0," ",COUNTRY_INFO!B49) -> Pool | C49: =IF(COUNTRY_INFO!C49=0," ",COUNTRY_INFO!C49) -> Mindouli | D49: =IF(AND(COUNTRY_INFO!$U$9:$U$1000="T3 (ALB/MBD)",COUNTRY_INFO!$V$9:$V$1000="T3 (ALB/MBD)"), "T3 (ALB/MBD)", " ") ->  | J49: 0 | N49: 0
A50: =IF(COUNTRY_INFO!A50=0," ",COUNTRY_INFO!A50) -> Congo | B50: =IF(COUNTRY_INFO!B50=0," ",COUNTRY_INFO!B50) -> Sangha | C50: =IF(COUNTRY_INFO!C50=0," ",COUNTRY_INFO!C50) -> Ouesso | D50: =IF(AND(COUNTRY_INFO!$U$9:$U$1000="T3 (ALB/MBD)",COUNTRY_INFO!$V$9:$V$1000="T3 (ALB/MBD)"), "T3 (ALB/MBD)", " ") ->  | J50: 0 | N50: 0
A51: =IF(COUNTRY_INFO!A51=0," ",COUNTRY_INFO!A51) -> Congo | B51: =IF(COUNTRY_INFO!B51=0," ",COUNTRY_INFO!B51) -> Sangha | C51: =IF(COUNTRY_INFO!C51=0," ",COUNTRY_INFO!C51) -> Sembé-Souanké | D51: =IF(AND(COUNTRY_INFO!$U$9:$U$1000="T3 (ALB/MBD)",COUNTRY_INFO!$V$9:$V$1000="T3 (ALB/MBD)"), "T3 (ALB/MBD)", " ") ->  | J51: 0 | N51: 0

Sheet DISTRICT
A1: Number of individuals treated
A2: Administrative structure, population treated by age group and gender
A4: TOTAL | D4: =SUM(D$9:D$1000) -> 962668 | E4: =SUM(E$9:E$1000) -> 0 | F4: =SUM(F$9:F$1000) -> 0 | G4: =SUM(G$9:G$1000) -> 250570.4 | H4: =SUM(H$9:H$1000) -> 250570.4 | I4: =IF(D4>0, IF(H4/D4*100<>0, H4/D4*100, "-"),0) -> 26.02874511 | J4: =SUM(J$9:J$1000) -> 678758 | K4: =SUM(K$9:K$1000) -> 0 | L4: =SUM(L$9:L$1000) -> 0 | M4: =SUM(M$9:M$1000) -> 548686.9433 | N4: =SUM(N$9:N$1000) -> 548686.9433 | O4: =IF(J4>0, IF(N4/J4*100<>0, N4/J4*100, "-"),0) -> 80.83690259 | P4: =SUM(P$9:P$1000) -> 725950 | Q4: =SUM(Q$9:Q$1000) -> 0 | R4: =SUM(R$9:R$1000) -> 0 | S4: =SUM(S$9:S$1000) -> 1086584.15 | T4: =SUM(T$9:T$1000) -> 0 | V4: 308303 | X4: =SUM(X$9:X$1000) -> 308303 | Y4: =IF(P4>0, IF(X4/P4*100<>0, X4/P4*100, "-"),0) -> 42.46890282 | Z4: =SUM(Z$9:Z$1000) -> 176253 | AA4: 0 | AB4: 0 | AC4: 66819 | AD4: 38073.1 | AF4: 0 | AH4: 38073.1 | AI4: =IF(Z4>0, IF(AH4/Z4*100<>0, AH4/Z4*100, "-"),0) -> 21.60139118
D6: Population requiring PC for LF | E6: Population treated for lymphatic filariasis | J6: Population requiring PC for ONCHO | K6: Population treated for onchocerciasis | P6: Population requiring PC for STH | Q6: Population treated for STH | Z6: Population requiring PC for SCH | AA6: Population treated for schistosomiasis | AP6: =SUM(AP9:AP1000) -> 70780.80122 | AQ6: 365839.743 | AR6: 621808.2975 | AS6: 832789.0667 | AT6: =SUM(AT9:AT1000) -> 1891217.908 | AU6: =COUNTIF(AU9:AU1000,"Y") -> 18 | AV6: =SUM(AV9:AV1000) -> 0 | AW6: 910356.9433 | AX6: 513928.1496 | AY6: =SUM(AY9:AY1000) -> 1424285.093 | AZ6: 0 | BA6: 395068.9433 | BB6: 507629.1496 | BC6: 902698.0929 | BD6: =IF(AT6<>0,BC6/AT6,0) -> 0.4773104616
A7: Country | B7: Province/State | C7: District | E7: Male | F7: Female | G7: Total treated | H7: Total in need treated | I7: (%) | K7: Male | L7: Female | M7: Total treated | N7: Total in need treated | O7: (%) | Q7: Male | R7: Female | S7: Total treated | T7: PreSAC in need treated | U7: PreSAC (%) | V7: SAC in need treated | W7: SAC (%) | X7: Total in need treated | Y7: (%) | AA7: Male | AB7: Female | AC7: Total treated | AD7: SAC in need treated | AE7: SAC (%) | AF7: Adults in need treated | AG7: Adults (%) | AH7: Total in need treated | AI7: (%) | AK7: LF | AL7: ONCHO | AM7: STH | AN7: SCH-SAC | AO7: SCH_Adults | AP7: <1 | AQ7: PreSAC | AR7: SAC | AS7: Adults | AT7: Total | AU7: Dis | AV7: PreSAC | AW7: SAC | AX7: Adults | AY7: Total | AZ7: PreSAC | BA7: SAC | BB7: Adults | BC7: Total | BD7: Coverage
A9: =IF(COUNTRY_INFO!A9=0," ",COUNTRY_INFO!A9) -> Congo | B9: =IF(COUNTRY_INFO!B9=0," ",COUNTRY_INFO!B9) -> Bouenza | C9: =IF(COUNTRY_INFO!C9=0," ",COUNTRY_INFO!C9) -> Loudima | D9: =COUNTRY_INFO!M9 -> 0 | G9: =MAX('MDA1'!M9,'MDA4'!U9) -> 0 | H9: =IF(AND(COUNTRY_INFO!H9>0,COUNTRY_INFO!H9<4),IF(D9>MAX('MDA1'!M9,'MDA4'!U9),MAX('MDA1'!M9,'MDA4'!U9),D9),0) -> 0 | I9: =IF(AND(COUNTRY_INFO!H9>0,COUNTRY_INFO!H9<4), IF(G9/D9*100<>0, IF(G9/D9*100>100,100,G9/D9*100), "-"),0) -> 0 | J9: =COUNTRY_INFO!N9 -> 48342 | M9: =MAX('MDA1'!M9,MAX('MDA3'!I9,'MDA3'!L9)+MAX('MDA3'!J9,'MDA3'!M9)) -> 40151 | N9: =IF(AND(COUNTRY_INFO!I9>0,COUNTRY_INFO!I9<4),IF(J9>MAX('MDA1'!M9,MAX('MDA3'!I9,'MDA3'!L9)+MAX('MDA3'!J9,'MDA3'!M9)),MAX('MDA1'!M9,MAX('MDA3'!I9,'MDA3'!L9)+MAX('MDA3'!J9,'MDA3'!M9)),J9),0) -> 40151 | O9: =IF(AND(COUNTRY_INFO!I9>0,COUNTRY_INFO!I9<4), IF(M9/J9*100<>0, IF(M9/J9*100>100,100,M9/J9*100), "-"),0) -> 83.05614166 | P9: =COUNTRY_INFO!O9 -> 58320 | S9: =SUM(MAX('MDA4'!R9, 'T1'!L9, MAX(T3_R1!K9, T3_R2!K9)), MAX('MDA1'!K9, 'MDA4'!S9, 'T1'!M9, MAX(T3_R1!L9, T3_R2!L9)), MAX('MDA1'!L9, 'MDA4'!T9, 'T1'!N9, MAX(T3_R1!M9, T3_R2!M9))) -> 18010 | T9: =IF(AND(COUNTRY_INFO!J9>1,COUNTRY_INFO!J9<4),IF(COUNTRY_INFO!E9>MAX('MDA4'!R9,'T1'!L9,MAX(T3_R1!K9,T3_R2!K9)),MAX('MDA4'!R9,'T1'!L9,MAX(T3_R1!K9,T3_R2!K9)),COUNTRY_INFO!E9),0) -> 0 | U9: =IF(AND(COUNTRY_INFO!J9>1,COUNTRY_INFO!J9<4), IF(T9/COUNTRY_INFO!E9*100<>0, IF(T9/COUNTRY_INFO!E9*100>100,100,T9/COUNTRY_INFO!E9*100), "-"),0) -> - | V9: =IF(AND(COUNTRY_INFO!J9>1,COUNTRY_INFO!J9<4),IF(COUNTRY_INFO!F9>MAX('MDA1'!K9,'MDA4'!S9,'T1'!M9,MAX(T3_R1!L9,T3_R2!L9)),MAX('MDA1'!K9,'MDA4'!S9,'T1'!M9,MAX(T3_R1!L9,T3_R2!L9)),COUNTRY_INFO!F9),0) -> 17873 | W9: =IF(AND(COUNTRY_INFO!J9>1,COUNTRY_INFO!J9<4), IF(V9/COUNTRY_INFO!F9*100<>0, IF(V9/COUNTRY_INFO!F9*100>100,100,V9/COUNTRY_INFO!F9*100), "-"),0) -> 51.07738912 | X9: =SUM(T9,V9) -> 17873 | Y9: =IF(AND(COUNTRY_INFO!J9>1,COUNTRY_INFO!J9<4), IF(S9/P9*100<>0, IF(X9/P9*100>100,100,X9/P9*100), "-"),0) -> 30.64643347 | Z9: =COUNTRY_INFO!P9 -> 11547.36 | AC9: =MAX('T1'!L9,'T2'!J9)+MAX('T1'!M9,'T2'!K9)+MAX('T1'!N9,'T2'!L9) -> 18010 | AD9: =IF(COUNTRY_INFO!K9=1,IF(COUNTRY_INFO!F9*0.33>MAX('T1'!M9,'T2'!K9),MAX('T1'!M9,'T2'!K9),COUNTRY_INFO!F9*0.33),IF(COUNTRY_INFO!K9=2,IF(COUNTRY_INFO!F9*0.5>MAX('T1'!M9,'T2'!K9),MAX('T1'!M9,'T2'!K9),COUNTRY_INFO!F9*0.5),IF(COUNTRY_INFO!K9=3,IF(COUNTRY_INFO!F9>MAX('T1'!M9,'T2'!K9),MAX('T1'!M9,'T2'!K9),COUNTRY_INFO!F9),0))) -> 11547.36 | AE9: =IF(AND(COUNTRY_INFO!K9>0,COUNTRY_INFO!L9<4),IF(Z9>0,IF(COUNTRY_INFO!K9=1, AD9/(COUNTRY_INFO!F9*0.33)*100, IF(COUNTRY_INFO!K9=2, AD9/(COUNTRY_INFO!F9*0.5)*100, IF(COUNTRY_INFO!K9=3, AD9/COUNTRY_INFO!F9*100))),"-"),0) -> 100 | AF9: =IF(COUNTRY_INFO!K9=2,IF(COUNTRY_INFO!G9*0.2>MAX('T1'!N9,'T2'!L9),MAX('T1'!N9,'T2'!L9),COUNTRY_INFO!G9*0.2),IF(COUNTRY_INFO!K9=3,IF(COUNTRY_INFO!G9>MAX('T1'!N9,'T2'!L9),MAX('T1'!N9,'T2'!L9),COUNTRY_INFO!G9),0)) -> 0 | AG9: =IF(AND(COUNTRY_INFO!K9>0,COUNTRY_INFO!L9<4),IF(Z9>0,IF(COUNTRY_INFO!K9=1, 0, IF(COUNTRY_INFO!K9=2, AF9/(COUNTRY_INFO!G9*0.2)*100, IF(COUNTRY_INFO!K9=3, AF9/COUNTRY_INFO!G9*100))),"-"),0) -> 0 | AH9: =SUM(AD9,AF9) -> 11547.36 | AI9: =IF(AND(COUNTRY_INFO!K9>0,COUNTRY_INFO!K9<4), IF(AC9/Z9*100<>0, IF(AH9/Z9*100>100,100,AH9/Z9*100), "-"),0) -> 100 | AK9: =IF(AND(D9<>0, D9<>"Unknown",D9<>"Stopped",D9<>"Not required"),D9/COUNTRY_INFO!D9, 0) -> 0 | AL9: =IF(AND(J9<>0,J9<>"Unknown",J9<>"Stopped",J9<>"Not required"),J9/COUNTRY_INFO!D9, 0) -> 0.3315683343 | AM9: =IF(AND(P9<>0,P9<>"Unknown",P9<>"Not required"),P9/(COUNTRY_INFO!E9+COUNTRY_INFO!F9), 0) -> 1 | AN9: =IF(AND(Z9<>0,Z9<>"Unknown",Z9<>"Not required"),IF(COUNTRY_INFO!K9=1,1,IF(COUNTRY_INFO!K9=2,0.5*COUNTRY_INFO!F9/(0.5*COUNTRY_INFO!F9+0.2*COUNTRY_INFO!G9),IF(COUNTRY_INFO!K9=3,COUNTRY_INFO!F9/(COUNTRY_INFO!F9+COUNTRY_INFO!G9)))),0) -> 1 | AO9: =IF(AND(Z9<>0,Z9<>"Unknown",Z9<>"Not required"),IF(COUNTRY_INFO!K9=1,0,IF(COUNTRY_INFO!K9=2,0.2*COUNTRY_INFO!G9/(0.5*COUNTRY_INFO!F9+0.2*COUNTRY_INFO!G9),IF(COUNTRY_INFO!K9=3,COUNTRY_INFO!G9/(COUNTRY_INFO!F9+COUNTRY_INFO!G9)))),0) -> 0 | AP9: =MAX(COUNTRY_INFO!D9*AK9*PROFILE!$G$7,COUNTRY_INFO!D9*AL9*PROFILE!$G$7) -> 2272.110955 | AQ9: =MAX(COUNTRY_INFO!D9*AK9*PROFILE!$G$8,COUNTRY_INFO!D9*AL9*PROFILE!$G$8,COUNTRY_INFO!D9*AM9*PROFILE!$G$8) -> 23327.75543 | AR9: =MAX(COUNTRY_INFO!D9*AK9*PROFILE!$G$9,COUNTRY_INFO!D9*AL9*PROFILE!$G$9,COUNTRY_INFO!D9*AM9*PROFILE!$G$9,IF(AND(DISTRICT!Z9<>"Unknown",Z9<>"Not required"),COUNTRY_INFO!P9*DISTRICT!AN9,0)) -> 34991.45735 | AS9: =MAX(COUNTRY_INFO!D9*AK9*PROFILE!$G$10,COUNTRY_INFO!D9*AL9*PROFILE!$G$10,IF(AND(DISTRICT!Z9<>"Unknown",Z9<>"Not required"),COUNTRY_INFO!P9*DISTRICT!AO9,0)) -> 26733.08481 | AT9: =SUM(AP9:AS9) -> 87324.40855 | AU9: =IF(COUNTIFS(AK9:AN9,">0")=0,0, IF(COUNTIFS(AK9:AN9,">0")<=IF(AND(OR(D9>=0,D9="Not required",D9="Unknown",D9="Stopped"),D9>0,H9>0),1,0)+IF(AND(OR(J9>=0,J9="Not required",J9="Unknown",J9="Stopped"),J9>0,N9>0),1,0)+IF(AND(OR(P9>=0,P9="Not required",P9="Unknown"),P9>0,X9>0),1,0)+IF(AND(OR(Z9>=0,Z9="Not required",Z9="Unknown"),Z9>0,AH9>0),1,0),"Y",0)) -> Y | AV9: =MAX('MDA4'!R9,'T1'!L9,'T2'!J9,T3_R1!K9,T3_R2!K9) -> 0 | AW9: =MAX('MDA1'!K9,'MDA4'!S9,'MDA3'!I9,'MDA3'!L9,'T1'!M9,'T2'!K9,T3_R1!L9,T3_R2!L9) -> 17873 | AX9: =MAX('MDA1'!L9,'MDA4'!T9,'MDA3'!J9,'MDA3'!M9,'T1'!N9,'T2'!L9,T3_R1!M9,T3_R2!M9) -> 28549 | AY9: =SUM(AV9:AX9) -> 46422 | AZ9: =MAX('MDA4'!R9,T9) -> 0 | BA9: =MAX('MDA1'!K9,'MDA4'!S9,'MDA3'!I9,'MDA3'!L9,V9,AD9) -> 17873 | BB9: =MAX('MDA1'!L9,'MDA4'!T9,'MDA3'!J9,'MDA3'!M9,AF9) -> 28549 | BC9: =IF(AT9<SUM(AZ9:BB9), AT9,SUM(AZ9:BB9)) -> 46422 | BD9: =IF(AT9<>0,BC9/AT9*100,0) -> 53.16039441
A10: =IF(COUNTRY_INFO!A10=0," ",COUNTRY_INFO!A10) -> Congo | B10: =IF(COUNTRY_INFO!B10=0," ",COUNTRY_INFO!B10) -> Bouenza | C10: =IF(COUNTRY_INFO!C10=0," ",COUNTRY_INFO!C10) -> Loutété | D10: =COUNTRY_INFO!M10 -> 54968 | G10: =MAX('MDA1'!M10,'MDA4'!U10) -> 24463 | H10: =IF(AND(COUNTRY_INFO!H10>0,COUNTRY_INFO!H10<4),IF(D10>MAX('MDA1'!M10,'MDA4'!U10),MAX('MDA1'!M10,'MDA4'!U10),D10),0) -> 24463 | I10: =IF(AND(COUNTRY_INFO!H10>0,COUNTRY_INFO!H10<4), IF(G10/D10*100<>0, IF(G10/D10*100>100,100,G10/D10*100), "-"),0) -> 44.5040751 | J10: =COUNTRY_INFO!N10 -> 30819 | M10: =MAX('MDA1'!M10,MAX('MDA3'!I10,'MDA3'!L10)+MAX('MDA3'!J10,'MDA3'!M10)) -> 24463 | N10: =IF(AND(COUNTRY_INFO!I10>0,COUNTRY_INFO!I10<4),IF(J10>MAX('MDA1'!M10,MAX('MDA3'!I10,'MDA3'!L10)+MAX('MDA3'!J10,'MDA3'!M10)),MAX('MDA1'!M10,MAX('MDA3'!I10,'MDA3'!L10)+MAX('MDA3'!J10,'MDA3'!M10)),J10),0) -> 24463 | O10: =IF(AND(COUNTRY_INFO!I10>0,COUNTRY_INFO!I10<4), IF(M10/J10*100<>0, IF(M10/J10*100>100,100,M10/J10*100), "-"),0) -> 79.37635874 | P10: =COUNTRY_INFO!O10 -> 21987 | S10: =SUM(MAX('MDA4'!R10, 'T1'!L10, MAX(T3_R1!K10, T3_R2!K10)), MAX('MDA1'!K10, 'MDA4'!S10, 'T1'!M10, MAX(T3_R1!L10, T3_R2!L10)), MAX('MDA1'!L10, 'MDA4'!T10, 'T1'!N10, MAX(T3_R1!M10, T3_R2!M10))) -> 24463 | T10: =IF(AND(COUNTRY_INFO!J10>1,COUNTRY_INFO!J10<4),IF(COUNTRY_INFO!E10>MAX('MDA4'!R10,'T1'!L10,MAX(T3_R1!K10,T3_R2!K10)),MAX('MDA4'!R10,'T1'!L10,MAX(T3_R1!K10,T3_R2!K10)),COUNTRY_INFO!E10),0) -> 0 | U10: =IF(AND(COUNTRY_INFO!J10>1,COUNTRY_INFO!J10<4), IF(T10/COUNTRY_INFO!E10*100<>0, IF(T10/COUNTRY_INFO!E10*100>100,100,T10/COUNTRY_INFO!E10*100), "-"),0) -> - | V10: =IF(AND(COUNTRY_INFO!J10>1,COUNTRY_INFO!J10<4),IF(COUNTRY_INFO!F10>MAX('MDA1'!K10,'MDA4'!S10,'T1'!M10,MAX(T3_R1!L10,T3_R2!L10)),MAX('MDA1'!K10,'MDA4'!S10,'T1'!M10,MAX(T3_R1!L10,T3_R2!L10)),COUNTRY_INFO!F10),0) -> 7397 | W10: =IF(AND(COUNTRY_INFO!J10>1,COUNTRY_INFO!J10<4), IF(V10/COUNTRY_INFO!F10*100<>0, IF(V10/COUNTRY_INFO!F10*100>100,100,V10/COUNTRY_INFO!F10*100), "-"),0) -> 56.07186173 | X10: =SUM(T10,V10) -> 7397 | Y10: =IF(AND(COUNTRY_INFO!J10>1,COUNTRY_INFO!J10<4), IF(S10/P10*100<>0, IF(X10/P10*100>100,100,X10/P10*100), "-"),0) -> 33.642607 | Z10: =COUNTRY_INFO!P10 -> 4353.36 | AC10: =MAX('T1'!L10,'T2'!J10)+MAX('T1'!M10,'T2'!K10)+MAX('T1'!N10,'T2'!L10) -> 7321 | AD10: =IF(COUNTRY_INFO!K10=1,IF(COUNTRY_INFO!F10*0.33>MAX('T1'!M10,'T2'!K10),MAX('T1'!M10,'T2'!K10),COUNTRY_INFO!F10*0.33),IF(COUNTRY_INFO!K10=2,IF(COUNTRY_INFO!F10*0.5>MAX('T1'!M10,'T2'!K10),MAX('T1'!M10,'T2'!K10),COUNTRY_INFO!F10*0.5),IF(COUNTRY_INFO!K10=3,IF(COUNTRY_INFO!F10>MAX('T1'!M10,'T2'!K10),MAX('T1'!M10,'T2'!K10),COUNTRY_INFO!F10),0))) -> 4353.36 | AE10: =IF(AND(COUNTRY_INFO!K10>0,COUNTRY_INFO!L10<4),IF(Z10>0,IF(COUNTRY_INFO!K10=1, AD10/(COUNTRY_INFO!F10*0.33)*100, IF(COUNTRY_INFO!K10=2, AD10/(COUNTRY_INFO!F10*0.5)*100, IF(COUNTRY_INFO!K10=3, AD10/COUNTRY_INFO!F10*100))),"-"),0) -> 100 | AF10: =IF(COUNTRY_INFO!K10=2,IF(COUNTRY_INFO!G10*0.2>MAX('T1'!N10,'T2'!L10),MAX('T1'!N10,'T2'!L10),COUNTRY_INFO!G10*0.2),IF(COUNTRY_INFO!K10=3,IF(COUNTRY_INFO!G10>MAX('T1'!N10,'T2'!L10),MAX('T1'!N10,'T2'!L10),COUNTRY_INFO!G10),0)) -> 0 | AG10: =IF(AND(COUNTRY_INFO!K10>0,COUNTRY_INFO!L10<4),IF(Z10>0,IF(COUNTRY_INFO!K10=1, 0, IF(COUNTRY_INFO!K10=2, AF10/(COUNTRY_INFO!G10*0.2)*100, IF(COUNTRY_INFO!K10=3, AF10/COUNTRY_INFO!G10*100))),"-"),0) -> 0 | AH10: =SUM(AD10,AF10) -> 4353.36 | AI10: =IF(AND(COUNTRY_INFO!K10>0,COUNTRY_INFO!K10<4), IF(AC10/Z10*100<>0, IF(AH10/Z10*100>100,100,AH10/Z10*100), "-"),0) -> 100 | AK10: =IF(AND(D10<>0, D10<>"Unknown",D10<>"Stopped",D10<>"Not required"),D10/COUNTRY_INFO!D10, 0) -> 1 | AL10: =IF(AND(J10<>0,J10<>"Unknown",J10<>"Stopped",J10<>"Not required"),J10/COUNTRY_INFO!D10, 0) -> 0.5606716635 | AM10: =IF(AND(P10<>0,P10<>"Unknown",P10<>"Not required"),P10/(COUNTRY_INFO!E10+COUNTRY_INFO!F10), 0) -> 1 | AN10: =IF(AND(Z10<>0,Z10<>"Unknown",Z10<>"Not required"),IF(COUNTRY_INFO!K10=1,1,IF(COUNTRY_INFO!K10=2,0.5*COUNTRY_INFO!F10/(0.5*COUNTRY_INFO!F10+0.2*COUNTRY_INFO!G10),IF(COUNTRY_INFO!K10=3,COUNTRY_INFO!F10/(COUNTRY_INFO!F10+COUNTRY_INFO!G10)))),0) -> 1 | AO10: =IF(AND(Z10<>0,Z10<>"Unknown",Z10<>"Not required"),IF(COUNTRY_INFO!K10=1,0,IF(COUNTRY_INFO!K10=2,0.2*COUNTRY_INFO!G10/(0.5*COUNTRY_INFO!F10+0.2*COUNTRY_INFO!G10),IF(COUNTRY_INFO!K10=3,COUNTRY_INFO!G10/(COUNTRY_INFO!F10+COUNTRY_INFO!G10)))),0) -> 0 | AP10: =MAX(COUNTRY_INFO!D10*AK10*PROFILE!$G$7,COUNTRY_INFO!D10*AL10*PROFILE!$G$7) -> 2583.53802 | AQ10: =MAX(COUNTRY_INFO!D10*AK10*PROFILE!$G$8,COUNTRY_INFO!D10*AL10*PROFILE!$G$8,COUNTRY_INFO!D10*AM10*PROFILE!$G$8) -> 8794.908439 | AR10: =MAX(COUNTRY_INFO!D10*AK10*PROFILE!$G$9,COUNTRY_INFO!D10*AL10*PROFILE!$G$9,COUNTRY_INFO!D10*AM10*PROFILE!$G$9,IF(AND(DISTRICT!Z10<>"Unknown",Z10<>"Not required"),COUNTRY_INFO!P10*DISTRICT!AN10,0)) -> 13192.29638 | AS10: =MAX(COUNTRY_INFO!D10*AK10*PROFILE!$G$10,COUNTRY_INFO!D10*AL10*PROFILE!$G$10,IF(AND(DISTRICT!Z10<>"Unknown",Z10<>"Not required"),COUNTRY_INFO!P10*DISTRICT!AO10,0)) -> 30397.25716 | AT10: =SUM(AP10:AS10) -> 54968 | AU10: =IF(COUNTIFS(AK10:AN10,">0")=0,0, IF(COUNTIFS(AK10:AN10,">0")<=IF(AND(OR(D10>=0,D10="Not required",D10="Unknown",D10="Stopped"),D10>0,H10>0),1,0)+IF(AND(OR(J10>=0,J10="Not required",J10="Unknown",J10="Stopped"),J10>0,N10>0),1,0)+IF(AND(OR(P10>=0,P10="Not required",P10="Unknown"),P10>0,X10>0),1,0)+IF(AND(OR(Z10>=0,Z10="Not required",Z10="Unknown"),Z10>0,AH10>0),1,0),"Y",0)) -> Y | AV10: =MAX('MDA4'!R10,'T1'!L10,'T2'!J10,T3_R1!K10,T3_R2!K10) -> 0 | AW10: =MAX('MDA1'!K10,'MDA4'!S10,'MDA3'!I10,'MDA3'!L10,'T1'!M10,'T2'!K10,T3_R1!L10,T3_R2!L10) -> 7397 | AX10: =MAX('MDA1'!L10,'MDA4'!T10,'MDA3'!J10,'MDA3'!M10,'T1'!N10,'T2'!L10,T3_R1!M10,T3_R2!M10) -> 17066 | AY10: =SUM(AV10:AX10) -> 24463 | AZ10: =MAX('MDA4'!R10,T10) -> 0 | BA10: =MAX('MDA1'!K10,'MDA4'!S10,'MDA3'!I10,'MDA3'!L10,V10,AD10) -> 7397 | BB10: =MAX('MDA1'!L10,'MDA4'!T10,'MDA3'!J10,'MDA3'!M10,AF10) -> 17066 | BC10: =IF(AT10<SUM(AZ10:BB10), AT10,SUM(AZ10:BB10)) -> 24463 | BD10: =IF(AT10<>0,BC10/AT10*100,0) -> 44.5040751
A11: =IF(COUNTRY_INFO!A11=0," ",COUNTRY_INFO!A11) -> Congo | B11: =IF(COUNTRY_INFO!B11=0," ",COUNTRY_INFO!B11) -> Bouenza | C11: =IF(COUNTRY_INFO!C11=0," ",COUNTRY_INFO!C11) -> Madingou | D11: =COUNTRY_INFO!M11 -> 108222 | G11: =MAX('MDA1'!M11,'MDA4'!U11) -> 35772 | H11: =IF(AND(COUNTRY_INFO!H11>0,COUNTRY_INFO!H11<4),IF(D11>MAX('MDA1'!M11,'MDA4'!U11),MAX('MDA1'!M11,'MDA4'!U11),D11),0) -> 35772 | I11: =IF(AND(COUNTRY_INFO!H11>0,COUNTRY_INFO!H11<4), IF(G11/D11*100<>0, IF(G11/D11*100>100,100,G11/D11*100), "-"),0) -> 33.05427732 | J11: =COUNTRY_INFO!N11 -> 48886 | M11: =MAX('MDA1'!M11,MAX('MDA3'!I11,'MDA3'!L11)+MAX('MDA3'!J11,'MDA3'!M11)) -> 35772 | N11: =IF(AND(COUNTRY_INFO!I11>0,COUNTRY_INFO!I11<4),IF(J11>MAX('MDA1'!M11,MAX('MDA3'!I11,'MDA3'!L11)+MAX('MDA3'!J11,'MDA3'!M11)),MAX('MDA1'!M11,MAX('MDA3'!I11,'MDA3'!L11)+MAX('MDA3'!J11,'MDA3'!M11)),J11),0) -> 35772 | O11: =IF(AND(COUNTRY_INFO!I11>0,COUNTRY_INFO!I11<4), IF(M11/J11*100<>0, IF(M11/J11*100>100,100,M11/J11*100), "-"),0) -> 73.17432394 | P11: =COUNTRY_INFO!O11 -> 43289 | S11: =SUM(MAX('MDA4'!R11, 'T1'!L11, MAX(T3_R1!K11, T3_R2!K11)), MAX('MDA1'!K11, 'MDA4'!S11, 'T1'!M11, MAX(T3_R1!L11, T3_R2!L11)), MAX('MDA1'!L11, 'MDA4'!T11, 'T1'!N11, MAX(T3_R1!M11, T3_R2!M11))) -> 42818.66961 | T11: =IF(AND(COUNTRY_INFO!J11>1,COUNTRY_INFO!J11<4),IF(COUNTRY_INFO!E11>MAX('MDA4'!R11,'T1'!L11,MAX(T3_R1!K11,T3_R2!K11)),MAX('MDA4'!R11,'T1'!L11,MAX(T3_R1!K11,T3_R2!K11)),COUNTRY_INFO!E11),0) -> 0 | U11: =IF(AND(COUNTRY_INFO!J11>1,COUNTRY_INFO!J11<4), IF(T11/COUNTRY_INFO!E11*100<>0, IF(T11/COUNTRY_INFO!E11*100>100,100,T11/COUNTRY_INFO!E11*100), "-"),0) -> - | V11: =IF(AND(COUNTRY_INFO!J11>1,COUNTRY_INFO!J11<4),IF(COUNTRY_INFO!F11>MAX('MDA1'!K11,'MDA4'!S11,'T1'!M11,MAX(T3_R1!L11,T3_R2!L11)),MAX('MDA1'!K11,'MDA4'!S11,'T1'!M11,MAX(T3_R1!L11,T3_R2!L11)),COUNTRY_INFO!F11),0) -> 17873 | W11: =IF(AND(COUNTRY_INFO!J11>1,COUNTRY_INFO!J11<4), IF(V11/COUNTRY_INFO!F11*100<>0, IF(V11/COUNTRY_INFO!F11*100>100,100,V11/COUNTRY_INFO!F11*100), "-"),0) -> 68.81376814 | X11: 17873 | Y11: =IF(AND(COUNTRY_INFO!J11>1,COUNTRY_INFO!J11<4), IF(S11/P11*100<>0, IF(X11/P11*100>100,100,X11/P11*100), "-"),0) -> 41.28762503 | Z11: =COUNTRY_INFO!P11 -> 8571.09 | AC11: =MAX('T1'!L11,'T2'!J11)+MAX('T1'!M11,'T2'!K11)+MAX('T1'!N11,'T2'!L11) -> 0 | AD11: =IF(COUNTRY_INFO!K11=1,IF(COUNTRY_INFO!F11*0.33>MAX('T1'!M11,'T2'!K11),MAX('T1'!M11,'T2'!K11),COUNTRY_INFO!F11*0.33),IF(COUNTRY_INFO!K11=2,IF(COUNTRY_INFO!F11*0.5>MAX('T1'!M11,'T2'!K11),MAX('T1'!M11,'T2'!K11),COUNTRY_INFO!F11*0.5),IF(COUNTRY_INFO!K11=3,IF(COUNTRY_INFO!F11>MAX('T1'!M11,'T2'!K11),MAX('T1'!M11,'T2'!K11),COUNTRY_INFO!F11),0))) -> 0 | AE11: =IF(AND(COUNTRY_INFO!K11>0,COUNTRY_INFO!L11<4),IF(Z11>0,IF(COUNTRY_INFO!K11=1, AD11/(COUNTRY_INFO!F11*0.33)*100, IF(COUNTRY_INFO!K11=2, AD11/(COUNTRY_INFO!F11*0.5)*100, IF(COUNTRY_INFO!K11=3, AD11/COUNTRY_INFO!F11*100))),"-"),0) -> 0 | AF11: =IF(COUNTRY_INFO!K11=2,IF(COUNTRY_INFO!G11*0.2>MAX('T1'!N11,'T2'!L11),MAX('T1'!N11,'T2'!L11),COUNTRY_INFO!G11*0.2),IF(COUNTRY_INFO!K11=3,IF(COUNTRY_INFO!G11>MAX('T1'!N11,'T2'!L11),MAX('T1'!N11,'T2'!L11),COUNTRY_INFO!G11),0)) -> 0 | AG11: =IF(AND(COUNTRY_INFO!K11>0,COUNTRY_INFO!L11<4),IF(Z11>0,IF(COUNTRY_INFO!K11=1, 0, IF(COUNTRY_INFO!K11=2, AF11/(COUNTRY_INFO!G11*0.2)*100, IF(COUNTRY_INFO!K11=3, AF11/COUNTRY_INFO!G11*100))),"-"),0) -> 0 | AH11: 0 | AI11: =IF(AND(COUNTRY_INFO!K11>0,COUNTRY_INFO!K11<4), IF(AC11/Z11*100<>0, IF(AH11/Z11*100>100,100,AH11/Z11*100), "-"),0) -> - | AK11: =IF(AND(D11<>0, D11<>"Unknown",D11<>"Stopped",D11<>"Not required"),D11/COUNTRY_INFO!D11, 0) -> 1 | AL11: =IF(AND(J11<>0,J11<>"Unknown",J11<>"Stopped",J11<>"Not required"),J11/COUNTRY_INFO!D11, 0) -> 0.4517196134 | AM11: =IF(AND(P11<>0,P11<>"Unknown",P11<>"Not required"),P11/(COUNTRY_INFO!E11+COUNTRY_INFO!F11), 0) -> 1 | AN11: =IF(AND(Z11<>0,Z11<>"Unknown",Z11<>"Not required"),IF(COUNTRY_INFO!K11=1,1,IF(COUNTRY_INFO!K11=2,0.5*COUNTRY_INFO!F11/(0.5*COUNTRY_INFO!F11+0.2*COUNTRY_INFO!G11),IF(COUNTRY_INFO!K11=3,COUNTRY_INFO!F11/(COUNTRY_INFO!F11+COUNTRY_INFO!G11)))),0) -> 1 | AO11: =IF(AND(Z11<>0,Z11<>"Unknown",Z11<>"Not required"),IF(COUNTRY_INFO!K11=1,0,IF(COUNTRY_INFO!K11=2,0.2*COUNTRY_INFO!G11/(0.5*COUNTRY_INFO!F11+0.2*COUNTRY_INFO!G11),IF(COUNTRY_INFO!K11=3,COUNTRY_INFO!G11/(COUNTRY_INFO!F11+COUNTRY_INFO!G11)))),0) -> 0 | AP11: =MAX(COUNTRY_INFO!D11*AK11*PROFILE!$G$7,COUNTRY_INFO!D11*AL11*PROFILE!$G$7) -> 5086.51673 | AQ11: =MAX(COUNTRY_INFO!D11*AK11*PROFILE!$G$8,COUNTRY_INFO!D11*AL11*PROFILE!$G$8,COUNTRY_INFO!D11*AM11*PROFILE!$G$8) -> 17315.57599 | AR11: =MAX(COUNTRY_INFO!D11*AK11*PROFILE!$G$9,COUNTRY_INFO!D11*AL11*PROFILE!$G$9,COUNTRY_INFO!D11*AM11*PROFILE!$G$9,IF(AND(DISTRICT!Z11<>"Unknown",Z11<>"Not required"),COUNTRY_INFO!P11*DISTRICT!AN11,0)) -> 25973.2335 | AS11: =MAX(COUNTRY_INFO!D11*AK11*PROFILE!$G$10,COUNTRY_INFO!D11*AL11*PROFILE!$G$10,IF(AND(DISTRICT!Z11<>"Unknown",Z11<>"Not required"),COUNTRY_INFO!P11*DISTRICT!AO11,0)) -> 59846.67378 | AT11: 108222 | AU11: 0 | AV11: =MAX('MDA4'!R11,'T1'!L11,'T2'!J11,T3_R1!K11,T3_R2!K11) -> 0 | AW11: =MAX('MDA1'!K11,'MDA4'!S11,'MDA3'!I11,'MDA3'!L11,'T1'!M11,'T2'!K11,T3_R1!L11,T3_R2!L11) -> 17873 | AX11: =MAX('MDA1'!L11,'MDA4'!T11,'MDA3'!J11,'MDA3'!M11,'T1'!N11,'T2'!L11,T3_R1!M11,T3_R2!M11) -> 24945.66961 | AY11: 42818.66961 | AZ11: =MAX('MDA4'!R11,T11) -> 0 | BA11: =MAX('MDA1'!K11,'MDA4'!S11,'MDA3'!I11,'MDA3'!L11,V11,AD11) -> 17873 | BB11: =MAX('MDA1'!L11,'MDA4'!T11,'MDA3'!J11,'MDA3'!M11,AF11) -> 24945.66961 | BC11: 42818.66961 | BD11: 39.56558704
A12: =IF(COUNTRY_INFO!A12=0," ",COUNTRY_INFO!A12) -> Congo | B12: =IF(COUNTRY_INFO!B12=0," ",COUNTRY_INFO!B12) -> Bouenza | C12: =IF(COUNTRY_INFO!C12=0," ",COUNTRY_INFO!C12) -> Mouyondzi | D12: =COUNTRY_INFO!M12 -> 74489 | G12: =MAX('MDA1'!M12,'MDA4'!U12) -> 27196 | H12: =IF(AND(COUNTRY_INFO!H12>0,COUNTRY_INFO!H12<4),IF(D12>MAX('MDA1'!M12,'MDA4'!U12),MAX('MDA1'!M12,'MDA4'!U12),D12),0) -> 27196 | I12: =IF(AND(COUNTRY_INFO!H12>0,COUNTRY_INFO!H12<4), IF(G12/D12*100<>0, IF(G12/D12*100>100,100,G12/D12*100), "-"),0) -> 36.51008874 | J12: =COUNTRY_INFO!N12 -> 33612 | M12: =MAX('MDA1'!M12,MAX('MDA3'!I12,'MDA3'!L12)+MAX('MDA3'!J12,'MDA3'!M12)) -> 27196 | N12: =IF(AND(COUNTRY_INFO!I12>0,COUNTRY_INFO!I12<4),IF(J12>MAX('MDA1'!M12,MAX('MDA3'!I12,'MDA3'!L12)+MAX('MDA3'!J12,'MDA3'!M12)),MAX('MDA1'!M12,MAX('MDA3'!I12,'MDA3'!L12)+MAX('MDA3'!J12,'MDA3'!M12)),J12),0) -> 27196 | O12: =IF(AND(COUNTRY_INFO!I12>0,COUNTRY_INFO!I12<4), IF(M12/J12*100<>0, IF(M12/J12*100>100,100,M12/J12*100), "-"),0) -> 80.9115792 | P12: =COUNTRY_INFO!O12 -> 29795 | S12: =SUM(MAX('MDA4'!R12, 'T1'!L12, MAX(T3_R1!K12, T3_R2!K12)), MAX('MDA1'!K12, 'MDA4'!S12, 'T1'!M12, MAX(T3_R1!L12, T3_R2!L12)), MAX('MDA1'!L12, 'MDA4'!T12, 'T1'!N12, MAX(T3_R1!M12, T3_R2!M12))) -> 28429 | T12: =IF(AND(COUNTRY_INFO!J12>1,COUNTRY_INFO!J12<4),IF(COUNTRY_INFO!E12>MAX('MDA4'!R12,'T1'!L12,MAX(T3_R1!K12,T3_R2!K12)),MAX('MDA4'!R12,'T1'!L12,MAX(T3_R1!K12,T3_R2!K12)),COUNTRY_INFO!E12),0) -> 0 | U12: =IF(AND(COUNTRY_INFO!J12>1,COUNTRY_INFO!J12<4), IF(T12/COUNTRY_INFO!E12*100<>0, IF(T12/COUNTRY_INFO!E12*100>100,100,T12/COUNTRY_INFO!E12*100), "-"),0) -> - | V12: =IF(AND(COUNTRY_INFO!J12>1,COUNTRY_INFO!J12<4),IF(COUNTRY_INFO!F12>MAX('MDA1'!K12,'MDA4'!S12,'T1'!M12,MAX(T3_R1!L12,T3_R2!L12)),MAX('MDA1'!K12,'MDA4'!S12,'T1'!M12,MAX(T3_R1!L12,T3_R2!L12)),COUNTRY_INFO!F12),0) -> 9300 | W12: =IF(AND(COUNTRY_INFO!J12>1,COUNTRY_INFO!J12<4), IF(V12/COUNTRY_INFO!F12*100<>0, IF(V12/COUNTRY_INFO!F12*100>100,100,V12/COUNTRY_INFO!F12*100), "-"),0) -> 52.02215137 | X12: 9300 | Y12: =IF(AND(COUNTRY_INFO!J12>1,COUNTRY_INFO!J12<4), IF(S12/P12*100<>0, IF(X12/P12*100>100,100,X12/P12*100), "-"),0) -> 31.21329082 | Z12: =COUNTRY_INFO!P12 -> 5899.41 | AC12: =MAX('T1'!L12,'T2'!J12)+MAX('T1'!M12,'T2'!K12)+MAX('T1'!N12,'T2'!L12) -> 9390 | AD12: =IF(COUNTRY_INFO!K12=1,IF(COUNTRY_INFO!F12*0.33>MAX('T1'!M12,'T2'!K12),MAX('T1'!M12,'T2'!K12),COUNTRY_INFO!F12*0.33),IF(COUNTRY_INFO!K12=2,IF(COUNTRY_INFO!F12*0.5>MAX('T1'!M12,'T2'!K12),MAX('T1'!M12,'T2'!K12),COUNTRY_INFO!F12*0.5),IF(COUNTRY_INFO!K12=3,IF(COUNTRY_INFO!F12>MAX('T1'!M12,'T2'!K12),MAX('T1'!M12,'T2'!K12),COUNTRY_INFO!F12),0))) -> 5899.41 | AE12: =IF(AND(COUNTRY_INFO!K12>0,COUNTRY_INFO!L12<4),IF(Z12>0,IF(COUNTRY_INFO!K12=1, AD12/(COUNTRY_INFO!F12*0.33)*100, IF(COUNTRY_INFO!K12=2, AD12/(COUNTRY_INFO!F12*0.5)*100, IF(COUNTRY_INFO!K12=3, AD12/COUNTRY_INFO!F12*100))),"-"),0) -> 100 | AF12: =IF(COUNTRY_INFO!K12=2,IF(COUNTRY_INFO!G12*0.2>MAX('T1'!N12,'T2'!L12),MAX('T1'!N12,'T2'!L12),COUNTRY_INFO!G12*0.2),IF(COUNTRY_INFO!K12=3,IF(COUNTRY_INFO!G12>MAX('T1'!N12,'T2'!L12),MAX('T1'!N12,'T2'!L12),COUNTRY_INFO!G12),0)) -> 0 | AG12: =IF(AND(COUNTRY_INFO!K12>0,COUNTRY_INFO!L12<4),IF(Z12>0,IF(COUNTRY_INFO!K12=1, 0, IF(COUNTRY_INFO!K12=2, AF12/(COUNTRY_INFO!G12*0.2)*100, IF(COUNTRY_INFO!K12=3, AF12/COUNTRY_INFO!G12*100))),"-"),0) -> 0 | AH12: 5899.41 | AI12: =IF(AND(COUNTRY_INFO!K12>0,COUNTRY_INFO!K12<4), IF(AC12/Z12*100<>0, IF(AH12/Z12*100>100,100,AH12/Z12*100), "-"),0) -> 100 | AK12: =IF(AND(D12<>0, D12<>"Unknown",D12<>"Stopped",D12<>"Not required"),D12/COUNTRY_INFO!D12, 0) -> 1 | AL12: =IF(AND(J12<>0,J12<>"Unknown",J12<>"Stopped",J12<>"Not required"),J12/COUNTRY_INFO!D12, 0) -> 0.4512344104 | AM12: =IF(AND(P12<>0,P12<>"Unknown",P12<>"Not required"),P12/(COUNTRY_INFO!E12+COUNTRY_INFO!F12), 0) -> 1 | AN12: =IF(AND(Z12<>0,Z12<>"Unknown",Z12<>"Not required"),IF(COUNTRY_INFO!K12=1,1,IF(COUNTRY_INFO!K12=2,0.5*COUNTRY_INFO!F12/(0.5*COUNTRY_INFO!F12+0.2*COUNTRY_INFO!G12),IF(COUNTRY_INFO!K12=3,COUNTRY_INFO!F12/(COUNTRY_INFO!F12+COUNTRY_INFO!G12)))),0) -> 1 | AO12: =IF(AND(Z12<>0,Z12<>"Unknown",Z12<>"Not required"),IF(COUNTRY_INFO!K12=1,0,IF(COUNTRY_INFO!K12=2,0.2*COUNTRY_INFO!G12/(0.5*COUNTRY_INFO!F12+0.2*COUNTRY_INFO!G12),IF(COUNTRY_INFO!K12=3,COUNTRY_INFO!G12/(COUNTRY_INFO!F12+COUNTRY_INFO!G12)))),0) -> 0 | AP12: =MAX(COUNTRY_INFO!D12*AK12*PROFILE!$G$7,COUNTRY_INFO!D12*AL12*PROFILE!$G$7) -> 3501.039943 | AQ12: =MAX(COUNTRY_INFO!D12*AK12*PROFILE!$G$8,COUNTRY_INFO!D12*AL12*PROFILE!$G$8,COUNTRY_INFO!D12*AM12*PROFILE!$G$8) -> 11918.27854 | AR12: =MAX(COUNTRY_INFO!D12*AK12*PROFILE!$G$9,COUNTRY_INFO!D12*AL12*PROFILE!$G$9,COUNTRY_INFO!D12*AM12*PROFILE!$G$9,IF(AND(DISTRICT!Z12<>"Unknown",Z12<>"Not required"),COUNTRY_INFO!P12*DISTRICT!AN12,0)) -> 17877.32799 | AS12: =MAX(COUNTRY_INFO!D12*AK12*PROFILE!$G$10,COUNTRY_INFO!D12*AL12*PROFILE!$G$10,IF(AND(DISTRICT!Z12<>"Unknown",Z12<>"Not required"),COUNTRY_INFO!P12*DISTRICT!AO12,0)) -> 41192.35353 | AT12: 74489 | AU12: Y | AV12: =MAX('MDA4'!R12,'T1'!L12,'T2'!J12,T3_R1!K12,T3_R2!K12) -> 0 | AW12: =MAX('MDA1'!K12,'MDA4'!S12,'MDA3'!I12,'MDA3'!L12,'T1'!M12,'T2'!K12,T3_R1!L12,T3_R2!L12) -> 9300 | AX12: =MAX('MDA1'!L12,'MDA4'!T12,'MDA3'!J12,'MDA3'!M12,'T1'!N12,'T2'!L12,T3_R1!M12,T3_R2!M12) -> 19129 | AY12: 28429 | AZ12: =MAX('MDA4'!R12,T12) -> 0 | BA12: =MAX('MDA1'!K12,'MDA4'!S12,'MDA3'!I12,'MDA3'!L12,V12,AD12) -> 9300 | BB12: =MAX('MDA1'!L12,'MDA4'!T12,'MDA3'!J12,'MDA3'!M12,AF12) -> 19129 | BC12: 28429 | BD12: 38.1653667
A13: =IF(COUNTRY_INFO!A13=0," ",COUNTRY_INFO!A13) -> Congo | B13: =IF(COUNTRY_INFO!B13=0," ",COUNTRY_INFO!B13) -> Brazzaville | C13: =IF(COUNTRY_INFO!C13=0," ",COUNTRY_INFO!C13) -> Bacongo | D13: =COUNTRY_INFO!M13 -> 0 | G13: =MAX('MDA1'!M13,'MDA4'!U13) -> 0 | H13: =IF(AND(COUNTRY_INFO!H13>0,COUNTRY_INFO!H13<4),IF(D13>MAX('MDA1'!M13,'MDA4'!U13),MAX('MDA1'!M13,'MDA4'!U13),D13),0) -> 0 | I13: =IF(AND(COUNTRY_INFO!H13>0,COUNTRY_INFO!H13<4), IF(G13/D13*100<>0, IF(G13/D13*100>100,100,G13/D13*100), "-"),0) -> 0 | J13: =COUNTRY_INFO!N13 -> 120222 | M13: =MAX('MDA1'!M13,MAX('MDA3'!I13,'MDA3'!L13)+MAX('MDA3'!J13,'MDA3'!M13)) -> 97696.94325 | N13: =IF(AND(COUNTRY_INFO!I13>0,COUNTRY_INFO!I13<4),IF(J13>MAX('MDA1'!M13,MAX('MDA3'!I13,'MDA3'!L13)+MAX('MDA3'!J13,'MDA3'!M13)),MAX('MDA1'!M13,MAX('MDA3'!I13,'MDA3'!L13)+MAX('MDA3'!J13,'MDA3'!M13)),J13),0) -> 97696.94325 | O13: =IF(AND(COUNTRY_INFO!I13>0,COUNTRY_INFO!I13<4), IF(M13/J13*100<>0, IF(M13/J13*100>100,100,M13/J13*100), "-"),0) -> 81.26378138 | P13: =COUNTRY_INFO!O13 -> 0 | S13: =SUM(MAX('MDA4'!R13, 'T1'!L13, MAX(T3_R1!K13, T3_R2!K13)), MAX('MDA1'!K13, 'MDA4'!S13, 'T1'!M13, MAX(T3_R1!L13, T3_R2!L13)), MAX('MDA1'!L13, 'MDA4'!T13, 'T1'!N13, MAX(T3_R1!M13, T3_R2!M13))) -> 11343 | T13: =IF(AND(COUNTRY_INFO!J13>1,COUNTRY_INFO!J13<4),IF(COUNTRY_INFO!E13>MAX('MDA4'!R13,'T1'!L13,MAX(T3_R1!K13,T3_R2!K13)),MAX('MDA4'!R13,'T1'!L13,MAX(T3_R1!K13,T3_R2!K13)),COUNTRY_INFO!E13),0) -> 0 | U13: =IF(AND(COUNTRY_INFO!J13>1,COUNTRY_INFO!J13<4), IF(T13/COUNTRY_INFO!E13*100<>0, IF(T13/COUNTRY_INFO!E13*100>100,100,T13/COUNTRY_INFO!E13*100), "-"),0) -> 0 | V13: =IF(AND(COUNTRY_INFO!J13>1,COUNTRY_INFO!J13<4),IF(COUNTRY_INFO!F13>MAX('MDA1'!K13,'MDA4'!S13,'T1'!M13,MAX(T3_R1!L13,T3_R2!L13)),MAX('MDA1'!K13,'MDA4'!S13,'T1'!M13,MAX(T3_R1!L13,T3_R2!L13)),COUNTRY_INFO!F13),0) -> 0 | W13: =IF(AND(COUNTRY_INFO!J13>1,COUNTRY_INFO!J13<4), IF(V13/COUNTRY_INFO!F13*100<>0, IF(V13/COUNTRY_INFO!F13*100>100,100,V13/COUNTRY_INFO!F13*100), "-"),0) -> 0 | X13: 0 | Y13: =IF(AND(COUNTRY_INFO!J13>1,COUNTRY_INFO!J13<4), IF(S13/P13*100<>0, IF(X13/P13*100>100,100,X13/P13*100), "-"),0) -> 0 | Z13: =COUNTRY_INFO!P13 -> 9716.85 | AC13: =MAX('T1'!L13,'T2'!J13)+MAX('T1'!M13,'T2'!K13)+MAX('T1'!N13,'T2'!L13) -> 0 | AD13: =IF(COUNTRY_INFO!K13=1,IF(COUNTRY_INFO!F13*0.33>MAX('T1'!M13,'T2'!K13),MAX('T1'!M13,'T2'!K13),COUNTRY_INFO!F13*0.33),IF(COUNTRY_INFO!K13=2,IF(COUNTRY_INFO!F13*0.5>MAX('T1'!M13,'T2'!K13),MAX('T1'!M13,'T2'!K13),COUNTRY_INFO!F13*0.5),IF(COUNTRY_INFO!K13=3,IF(COUNTRY_INFO!F13>MAX('T1'!M13,'T2'!K13),MAX('T1'!M13,'T2'!K13),COUNTRY_INFO!F13),0))) -> 0 | AE13: =IF(AND(COUNTRY_INFO!K13>0,COUNTRY_INFO!L13<4),IF(Z13>0,IF(COUNTRY_INFO!K13=1, AD13/(COUNTRY_INFO!F13*0.33)*100, IF(COUNTRY_INFO!K13=2, AD13/(COUNTRY_INFO!F13*0.5)*100, IF(COUNTRY_INFO!K13=3, AD13/COUNTRY_INFO!F13*100))),"-"),0) -> 0 | AF13: =IF(COUNTRY_INFO!K13=2,IF(COUNTRY_INFO!G13*0.2>MAX('T1'!N13,'T2'!L13),MAX('T1'!N13,'T2'!L13),COUNTRY_INFO!G13*0.2),IF(COUNTRY_INFO!K13=3,IF(COUNTRY_INFO!G13>MAX('T1'!N13,'T2'!L13),MAX('T1'!N13,'T2'!L13),COUNTRY_INFO!G13),0)) -> 0 | AG13: =IF(AND(COUNTRY_INFO!K13>0,COUNTRY_INFO!L13<4),IF(Z13>0,IF(COUNTRY_INFO!K13=1, 0, IF(COUNTRY_INFO!K13=2, AF13/(COUNTRY_INFO!G13*0.2)*100, IF(COUNTRY_INFO!K13=3, AF13/COUNTRY_INFO!G13*100))),"-"),0) -> 0 | AH13: 0 | AI13: =IF(AND(COUNTRY_INFO!K13>0,COUNTRY_INFO!K13<4), IF(AC13/Z13*100<>0, IF(AH13/Z13*100>100,100,AH13/Z13*100), "-"),0) -> - | AK13: =IF(AND(D13<>0, D13<>"Unknown",D13<>"Stopped",D13<>"Not required"),D13/COUNTRY_INFO!D13, 0) -> 0 | AL13: =IF(AND(J13<>0,J13<>"Unknown",J13<>"Stopped",J13<>"Not required"),J13/COUNTRY_INFO!D13, 0) -> 0.9799002347 | AM13: =IF(AND(P13<>0,P13<>"Unknown",P13<>"Not required"),P13/(COUNTRY_INFO!E13+COUNTRY_INFO!F13), 0) -> 0 | AN13: =IF(AND(Z13<>0,Z13<>"Unknown",Z13<>"Not required"),IF(COUNTRY_INFO!K13=1,1,IF(COUNTRY_INFO!K13=2,0.5*COUNTRY_INFO!F13/(0.5*COUNTRY_INFO!F13+0.2*COUNTRY_INFO!G13),IF(COUNTRY_INFO!K13=3,COUNTRY_INFO!F13/(COUNTRY_INFO!F13+COUNTRY_INFO!G13)))),0) -> 1 | AO13: =IF(AND(Z13<>0,Z13<>"Unknown",Z13<>"Not required"),IF(COUNTRY_INFO!K13=1,0,IF(COUNTRY_INFO!K13=2,0.2*COUNTRY_INFO!G13/(0.5*COUNTRY_INFO!F13+0.2*COUNTRY_INFO!G13),IF(COUNTRY_INFO!K13=3,COUNTRY_INFO!G13/(COUNTRY_INFO!F13+COUNTRY_INFO!G13)))),0) -> 0 | AP13: =MAX(COUNTRY_INFO!D13*AK13*PROFILE!$G$7,COUNTRY_INFO!D13*AL13*PROFILE!$G$7) -> 5650.525903 | AQ13: =MAX(COUNTRY_INFO!D13*AK13*PROFILE!$G$8,COUNTRY_INFO!D13*AL13*PROFILE!$G$8,COUNTRY_INFO!D13*AM13*PROFILE!$G$8) -> 19235.5822 | AR13: =MAX(COUNTRY_INFO!D13*AK13*PROFILE!$G$9,COUNTRY_INFO!D13*AL13*PROFILE!$G$9,COUNTRY_INFO!D13*AM13*PROFILE!$G$9,IF(AND(DISTRICT!Z13<>"Unknown",Z13<>"Not required"),COUNTRY_INFO!P13*DISTRICT!AN13,0)) -> 28853.22834 | AS13: =MAX(COUNTRY_INFO!D13*AK13*PROFILE!$G$10,COUNTRY_INFO!D13*AL13*PROFILE!$G$10,IF(AND(DISTRICT!Z13<>"Unknown",Z13<>"Not required"),COUNTRY_INFO!P13*DISTRICT!AO13,0)) -> 66482.66355 | AT13: 120222 | AU13: 0 | AV13: =MAX('MDA4'!R13,'T1'!L13,'T2'!J13,T3_R1!K13,T3_R2!K13) -> 0 | AW13: =MAX('MDA1'!K13,'MDA4'!S13,'MDA3'!I13,'MDA3'!L13,'T1'!M13,'T2'!K13,T3_R1!L13,T3_R2!L13) -> 29444.94325 | AX13: =MAX('MDA1'!L13,'MDA4'!T13,'MDA3'!J13,'MDA3'!M13,'T1'!N13,'T2'!L13,T3_R1!M13,T3_R2!M13) -> 68252 | AY13: 97696.94325 | AZ13: =MAX('MDA4'!R13,T13) -> 0 | BA13: =MAX('MDA1'!K13,'MDA4'!S13,'MDA3'!I13,'MDA3'!L13,V13,AD13) -> 29444.94325 | BB13: =MAX('MDA1'!L13,'MDA4'!T13,'MDA3'!J13,'MDA3'!M13,AF13) -> 68252 | BC13: 97696.94325 | BD13: 81.26378138
A14: =IF(COUNTRY_INFO!A14=0," ",COUNTRY_INFO!A14) -> Congo | B14: =IF(COUNTRY_INFO!B14=0," ",COUNTRY_INFO!B14) -> Brazzaville | C14: =IF(COUNTRY_INFO!C14=0," ",COUNTRY_INFO!C14) -> Makélékélé | D14: =COUNTRY_INFO!M14 -> 0 | G14: =MAX('MDA1'!M14,'MDA4'!U14) -> 0 | H14: =IF(AND(COUNTRY_INFO!H14>0,COUNTRY_INFO!H14<4),IF(D14>MAX('MDA1'!M14,'MDA4'!U14),MAX('MDA1'!M14,'MDA4'!U14),D14),0) -> 0 | I14: =IF(AND(COUNTRY_INFO!H14>0,COUNTRY_INFO!H14<4), IF(G14/D14*100<>0, IF(G14/D14*100>100,100,G14/D14*100), "-"),0) -> 0 | J14: =COUNTRY_INFO!N14 -> 89151 | M14: =MAX('MDA1'!M14,MAX('MDA3'!I14,'MDA3'!L14)+MAX('MDA3'!J14,'MDA3'!M14)) -> 74781 | N14: =IF(AND(COUNTRY_INFO!I14>0,COUNTRY_INFO!I14<4),IF(J14>MAX('MDA1'!M14,MAX('MDA3'!I14,'MDA3'!L14)+MAX('MDA3'!J14,'MDA3'!M14)),MAX('MDA1'!M14,MAX('MDA3'!I14,'MDA3'!L14)+MAX('MDA3'!J14,'MDA3'!M14)),J14),0) -> 74781 | O14: =IF(AND(COUNTRY_INFO!I14>0,COUNTRY_INFO!I14<4), IF(M14/J14*100<>0, IF(M14/J14*100>100,100,M14/J14*100), "-"),0) -> 83.88128008 | P14: =COUNTRY_INFO!O14 -> 0 | S14: =SUM(MAX('MDA4'!R14, 'T1'!L14, MAX(T3_R1!K14, T3_R2!K14)), MAX('MDA1'!K14, 'MDA4'!S14, 'T1'!M14, MAX(T3_R1!L14, T3_R2!L14)), MAX('MDA1'!L14, 'MDA4'!T14, 'T1'!N14, MAX(T3_R1!M14, T3_R2!M14))) -> 32498 | T14: =IF(AND(COUNTRY_INFO!J14>1,COUNTRY_INFO!J14<4),IF(COUNTRY_INFO!E14>MAX('MDA4'!R14,'T1'!L14,MAX(T3_R1!K14,T3_R2!K14)),MAX('MDA4'!R14,'T1'!L14,MAX(T3_R1!K14,T3_R2!K14)),COUNTRY_INFO!E14),0) -> 0 | U14: =IF(AND(COUNTRY_INFO!J14>1,COUNTRY_INFO!J14<4), IF(T14/COUNTRY_INFO!E14*100<>0, IF(T14/COUNTRY_INFO!E14*100>100,100,T14/COUNTRY_INFO!E14*100), "-"),0) -> 0 | V14: =IF(AND(COUNTRY_INFO!J14>1,COUNTRY_INFO!J14<4),IF(COUNTRY_INFO!F14>MAX('MDA1'!K14,'MDA4'!S14,'T1'!M14,MAX(T3_R1!L14,T3_R2!L14)),MAX('MDA1'!K14,'MDA4'!S14,'T1'!M14,MAX(T3_R1!L14,T3_R2!L14)),COUNTRY_INFO!F14),0) -> 0 | W14: =IF(AND(COUNTRY_INFO!J14>1,COUNTRY_INFO!J14<4), IF(V14/COUNTRY_INFO!F14*100<>0, IF(V14/COUNTRY_INFO!F14*100>100,100,V14/COUNTRY_INFO!F14*100), "-"),0) -> 0 | X14: 0 | Y14: =IF(AND(COUNTRY_INFO!J14>1,COUNTRY_INFO!J14<4), IF(S14/P14*100<>0, IF(X14/P14*100>100,100,X14/P14*100), "-"),0) -> 0 | Z14: =COUNTRY_INFO!P14 -> 0 | AC14: =MAX('T1'!L14,'T2'!J14)+MAX('T1'!M14,'T2'!K14)+MAX('T1'!N14,'T2'!L14) -> 0 | AD14: =IF(COUNTRY_INFO!K14=1,IF(COUNTRY_INFO!F14*0.33>MAX('T1'!M14,'T2'!K14),MAX('T1'!M14,'T2'!K14),COUNTRY_INFO!F14*0.33),IF(COUNTRY_INFO!K14=2,IF(COUNTRY_INFO!F14*0.5>MAX('T1'!M14,'T2'!K14),MAX('T1'!M14,'T2'!K14),COUNTRY_INFO!F14*0.5),IF(COUNTRY_INFO!K14=3,IF(COUNTRY_INFO!F14>MAX('T1'!M14,'T2'!K14),MAX('T1'!M14,'T2'!K14),COUNTRY_INFO!F14),0))) -> 0 | AE14: =IF(AND(COUNTRY_INFO!K14>0,COUNTRY_INFO!L14<4),IF(Z14>0,IF(COUNTRY_INFO!K14=1, AD14/(COUNTRY_INFO!F14*0.33)*100, IF(COUNTRY_INFO!K14=2, AD14/(COUNTRY_INFO!F14*0.5)*100, IF(COUNTRY_INFO!K14=3, AD14/COUNTRY_INFO!F14*100))),"-"),0) -> 0 | AF14: =IF(COUNTRY_INFO!K14=2,IF(COUNTRY_INFO!G14*0.2>MAX('T1'!N14,'T2'!L14),MAX('T1'!N14,'T2'!L14),COUNTRY_INFO!G14*0.2),IF(COUNTRY_INFO!K14=3,IF(COUNTRY_INFO!G14>MAX('T1'!N14,'T2'!L14),MAX('T1'!N14,'T2'!L14),COUNTRY_INFO!G14),0)) -> 0 | AG14: =IF(AND(COUNTRY_INFO!K14>0,COUNTRY_INFO!L14<4),IF(Z14>0,IF(COUNTRY_INFO!K14=1, 0, IF(COUNTRY_INFO!K14=2, AF14/(COUNTRY_INFO!G14*0.2)*100, IF(COUNTRY_INFO!K14=3, AF14/COUNTRY_INFO!G14*100))),"-"),0) -> 0 | AH14: 0 | AI14: =IF(AND(COUNTRY_INFO!K14>0,COUNTRY_INFO!K14<4), IF(AC14/Z14*100<>0, IF(AH14/Z14*100>100,100,AH14/Z14*100), "-"),0) -> 0 | AK14: =IF(AND(D14<>0, D14<>"Unknown",D14<>"Stopped",D14<>"Not required"),D14/COUNTRY_INFO!D14, 0) -> 0 | AL14: =IF(AND(J14<>0,J14<>"Unknown",J14<>"Stopped",J14<>"Not required"),J14/COUNTRY_INFO!D14, 0) -> 0.4066365627 | AM14: =IF(AND(P14<>0,P14<>"Unknown",P14<>"Not required"),P14/(COUNTRY_INFO!E14+COUNTRY_INFO!F14), 0) -> 0 | AN14: =IF(AND(Z14<>0,Z14<>"Unknown",Z14<>"Not required"),IF(COUNTRY_INFO!K14=1,1,IF(COUNTRY_INFO!K14=2,0.5*COUNTRY_INFO!F14/(0.5*COUNTRY_INFO!F14+0.2*COUNTRY_INFO!G14),IF(COUNTRY_INFO!K14=3,COUNTRY_INFO!F14/(COUNTRY_INFO!F14+COUNTRY_INFO!G14)))),0) -> 0 | AO14: =IF(AND(Z14<>0,Z14<>"Unknown",Z14<>"Not required"),IF(COUNTRY_INFO!K14=1,0,IF(COUNTRY_INFO!K14=2,0.2*COUNTRY_INFO!G14/(0.5*COUNTRY_INFO!F14+0.2*COUNTRY_INFO!G14),IF(COUNTRY_INFO!K14=3,COUNTRY_INFO!G14/(COUNTRY_INFO!F14+COUNTRY_INFO!G14)))),0) -> 0 | AP14: =MAX(COUNTRY_INFO!D14*AK14*PROFILE!$G$7,COUNTRY_INFO!D14*AL14*PROFILE!$G$7) -> 4190.165151 | AQ14: =MAX(COUNTRY_INFO!D14*AK14*PROFILE!$G$8,COUNTRY_INFO!D14*AL14*PROFILE!$G$8,COUNTRY_INFO!D14*AM14*PROFILE!$G$8) -> 14264.20612 | AR14: =MAX(COUNTRY_INFO!D14*AK14*PROFILE!$G$9,COUNTRY_INFO!D14*AL14*PROFILE!$G$9,COUNTRY_INFO!D14*AM14*PROFILE!$G$9,IF(AND(DISTRICT!Z14<>"Unknown",Z14<>"Not required"),COUNTRY_INFO!P14*DISTRICT!AN14,0)) -> 21396.20169 | AS14: =MAX(COUNTRY_INFO!D14*AK14*PROFILE!$G$10,COUNTRY_INFO!D14*AL14*PROFILE!$G$10,IF(AND(DISTRICT!Z14<>"Unknown",Z14<>"Not required"),COUNTRY_INFO!P14*DISTRICT!AO14,0)) -> 49300.42703 | AT14: 89151 | AU14: Y | AV14: =MAX('MDA4'!R14,'T1'!L14,'T2'!J14,T3_R1!K14,T3_R2!K14) -> 0 | AW14: =MAX('MDA1'!K14,'MDA4'!S14,'MDA3'!I14,'MDA3'!L14,'T1'!M14,'T2'!K14,T3_R1!L14,T3_R2!L14) -> 32264 | AX14: =MAX('MDA1'!L14,'MDA4'!T14,'MDA3'!J14,'MDA3'!M14,'T1'!N14,'T2'!L14,T3_R1!M14,T3_R2!M14) -> 53480 | AY14: 85744 | AZ14: =MAX('MDA4'!R14,T14) -> 0 | BA14: =MAX('MDA1'!K14,'MDA4'!S14,'MDA3'!I14,'MDA3'!L14,V14,AD14) -> 21301 | BB14: =MAX('MDA1'!L14,'MDA4'!T14,'MDA3'!J14,'MDA3'!M14,AF14) -> 53480 | BC14: 74781 | BD14: 83.88128008
A15: =IF(COUNTRY_INFO!A15=0," ",COUNTRY_INFO!A15) -> Congo | B15: =IF(COUNTRY_INFO!B15=0," ",COUNTRY_INFO!B15) -> Brazzaville | C15: =IF(COUNTRY_INFO!C15=0," ",COUNTRY_INFO!C15) -> Mfilou | D15: =COUNTRY_INFO!M15 -> 0 | G15: =MAX('MDA1'!M15,'MDA4'!U15) -> 0 | H15: =IF(AND(COUNTRY_INFO!H15>0,COUNTRY_INFO!H15<4),IF(D15>MAX('MDA1'!M15,'MDA4'!U15),MAX('MDA1'!M15,'MDA4'!U15),D15),0) -> 0 | I15: =IF(AND(COUNTRY_INFO!H15>0,COUNTRY_INFO!H15<4), IF(G15/D15*100<>0, IF(G15/D15*100>100,100,G15/D15*100), "-"),0) -> 0 | J15: =COUNTRY_INFO!N15 -> 75367 | M15: =MAX('MDA1'!M15,MAX('MDA3'!I15,'MDA3'!L15)+MAX('MDA3'!J15,'MDA3'!M15)) -> 59057 | N15: =IF(AND(COUNTRY_INFO!I15>0,COUNTRY_INFO!I15<4),IF(J15>MAX('MDA1'!M15,MAX('MDA3'!I15,'MDA3'!L15)+MAX('MDA3'!J15,'MDA3'!M15)),MAX('MDA1'!M15,MAX('MDA3'!I15,'MDA3'!L15)+MAX('MDA3'!J15,'MDA3'!M15)),J15),0) -> 59057 | O15: =IF(AND(COUNTRY_INFO!I15>0,COUNTRY_INFO!I15<4), IF(M15/J15*100<>0, IF(M15/J15*100>100,100,M15/J15*100), "-"),0) -> 78.35922884 | P15: =COUNTRY_INFO!O15 -> 0 | S15: =SUM(MAX('MDA4'!R15, 'T1'!L15, MAX(T3_R1!K15, T3_R2!K15)), MAX('MDA1'!K15, 'MDA4'!S15, 'T1'!M15, MAX(T3_R1!L15, T3_R2!L15)), MAX('MDA1'!L15, 'MDA4'!T15, 'T1'!N15, MAX(T3_R1!M15, T3_R2!M15))) -> 48787 | T15: =IF(AND(COUNTRY_INFO!J15>1,COUNTRY_INFO!J15<4),IF(COUNTRY_INFO!E15>MAX('MDA4'!R15,'T1'!L15,MAX(T3_R1!K15,T3_R2!K15)),MAX('MDA4'!R15,'T1'!L15,MAX(T3_R1!K15,T3_R2!K15)),COUNTRY_INFO!E15),0) -> 0 | U15: =IF(AND(COUNTRY_INFO!J15>1,COUNTRY_INFO!J15<4), IF(T15/COUNTRY_INFO!E15*100<>0, IF(T15/COUNTRY_INFO!E15*100>100,100,T15/COUNTRY_INFO!E15*100), "-"),0) -> 0 | V15: =IF(AND(COUNTRY_INFO!J15>1,COUNTRY_INFO!J15<4),IF(COUNTRY_INFO!F15>MAX('MDA1'!K15,'MDA4'!S15,'T1'!M15,MAX(T3_R1!L15,T3_R2!L15)),MAX('MDA1'!K15,'MDA4'!S15,'T1'!M15,MAX(T3_R1!L15,T3_R2!L15)),COUNTRY_INFO!F15),0) -> 0 | W15: =IF(AND(COUNTRY_INFO!J15>1,COUNTRY_INFO!J15<4), IF(V15/COUNTRY_INFO!F15*100<>0, IF(V15/COUNTRY_INFO!F15*100>100,100,V15/COUNTRY_INFO!F15*100), "-"),0) -> 0 | X15: 0 | Y15: =IF(AND(COUNTRY_INFO!J15>1,COUNTRY_INFO!J15<4), IF(S15/P15*100<>0, IF(X15/P15*100>100,100,X15/P15*100), "-"),0) -> 0 | Z15: =COUNTRY_INFO!P15 -> 0 | AC15: =MAX('T1'!L15,'T2'!J15)+MAX('T1'!M15,'T2'!K15)+MAX('T1'!N15,'T2'!L15) -> 0 | AD15: =IF(COUNTRY_INFO!K15=1,IF(COUNTRY_INFO!F15*0.33>MAX('T1'!M15,'T2'!K15),MAX('T1'!M15,'T2'!K15),COUNTRY_INFO!F15*0.33),IF(COUNTRY_INFO!K15=2,IF(COUNTRY_INFO!F15*0.5>MAX('T1'!M15,'T2'!K15),MAX('T1'!M15,'T2'!K15),COUNTRY_INFO!F15*0.5),IF(COUNTRY_INFO!K15=3,IF(COUNTRY_INFO!F15>MAX('T1'!M15,'T2'!K15),MAX('T1'!M15,'T2'!K15),COUNTRY_INFO!F15),0))) -> 0 | AE15: =IF(AND(COUNTRY_INFO!K15>0,COUNTRY_INFO!L15<4),IF(Z15>0,IF(COUNTRY_INFO!K15=1, AD15/(COUNTRY_INFO!F15*0.33)*100, IF(COUNTRY_INFO!K15=2, AD15/(COUNTRY_INFO!F15*0.5)*100, IF(COUNTRY_INFO!K15=3, AD15/COUNTRY_INFO!F15*100))),"-"),0) -> 0 | AF15: =IF(COUNTRY_INFO!K15=2,IF(COUNTRY_INFO!G15*0.2>MAX('T1'!N15,'T2'!L15),MAX('T1'!N15,'T2'!L15),COUNTRY_INFO!G15*0.2),IF(COUNTRY_INFO!K15=3,IF(COUNTRY_INFO!G15>MAX('T1'!N15,'T2'!L15),MAX('T1'!N15,'T2'!L15),COUNTRY_INFO!G15),0)) -> 0 | AG15: =IF(AND(COUNTRY_INFO!K15>0,COUNTRY_INFO!L15<4),IF(Z15>0,IF(COUNTRY_INFO!K15=1, 0, IF(COUNTRY_INFO!K15=2, AF15/(COUNTRY_INFO!G15*0.2)*100, IF(COUNTRY_INFO!K15=3, AF15/COUNTRY_INFO!G15*100))),"-"),0) -> 0 | AH15: 0 | AI15: =IF(AND(COUNTRY_INFO!K15>0,COUNTRY_INFO!K15<4), IF(AC15/Z15*100<>0, IF(AH15/Z15*100>100,100,AH15/Z15*100), "-"),0) -> 0 | AK15: =IF(AND(D15<>0, D15<>"Unknown",D15<>"Stopped",D15<>"Not required"),D15/COUNTRY_INFO!D15, 0) -> 0 | AL15: =IF(AND(J15<>0,J15<>"Unknown",J15<>"Stopped",J15<>"Not required"),J15/COUNTRY_INFO!D15, 0) -> 0.308610481 | AM15: =IF(AND(P15<>0,P15<>"Unknown",P15<>"Not required"),P15/(COUNTRY_INFO!E15+COUNTRY_INFO!F15), 0) -> 0 | AN15: =IF(AND(Z15<>0,Z15<>"Unknown",Z15<>"Not required"),IF(COUNTRY_INFO!K15=1,1,IF(COUNTRY_INFO!K15=2,0.5*COUNTRY_INFO!F15/(0.5*COUNTRY_INFO!F15+0.2*COUNTRY_INFO!G15),IF(COUNTRY_INFO!K15=3,COUNTRY_INFO!F15/(COUNTRY_INFO!F15+COUNTRY_INFO!G15)))),0) -> 0 | AO15: =IF(AND(Z15<>0,Z15<>"Unknown",Z15<>"Not required"),IF(COUNTRY_INFO!K15=1,0,IF(COUNTRY_INFO!K15=2,0.2*COUNTRY_INFO!G15/(0.5*COUNTRY_INFO!F15+0.2*COUNTRY_INFO!G15),IF(COUNTRY_INFO!K15=3,COUNTRY_INFO!G15/(COUNTRY_INFO!F15+COUNTRY_INFO!G15)))),0) -> 0 | AP15: =MAX(COUNTRY_INFO!D15*AK15*PROFILE!$G$7,COUNTRY_INFO!D15*AL15*PROFILE!$G$7) -> 3542.306614 | AQ15: =MAX(COUNTRY_INFO!D15*AK15*PROFILE!$G$8,COUNTRY_INFO!D15*AL15*PROFILE!$G$8,COUNTRY_INFO!D15*AM15*PROFILE!$G$8) -> 12058.75899 | AR15: =MAX(COUNTRY_INFO!D15*AK15*PROFILE!$G$9,COUNTRY_INFO!D15*AL15*PROFILE!$G$9,COUNTRY_INFO!D15*AM15*PROFILE!$G$9,IF(AND(DISTRICT!Z15<>"Unknown",Z15<>"Not required"),COUNTRY_INFO!P15*DISTRICT!AN15,0)) -> 18088.04762 | AS15: =MAX(COUNTRY_INFO!D15*AK15*PROFILE!$G$10,COUNTRY_INFO!D15*AL15*PROFILE!$G$10,IF(AND(DISTRICT!Z15<>"Unknown",Z15<>"Not required"),COUNTRY_INFO!P15*DISTRICT!AO15,0)) -> 41677.88678 | AT15: 75367 | AU15: Y | AV15: =MAX('MDA4'!R15,'T1'!L15,'T2'!J15,T3_R1!K15,T3_R2!K15) -> 0 | AW15: =MAX('MDA1'!K15,'MDA4'!S15,'MDA3'!I15,'MDA3'!L15,'T1'!M15,'T2'!K15,T3_R1!L15,T3_R2!L15) -> 48469 | AX15: =MAX('MDA1'!L15,'MDA4'!T15,'MDA3'!J15,'MDA3'!M15,'T1'!N15,'T2'!L15,T3_R1!M15,T3_R2!M15) -> 44883 | AY15: 93352 | AZ15: =MAX('MDA4'!R15,T15) -> 0 | BA15: =MAX('MDA1'!K15,'MDA4'!S15,'MDA3'!I15,'MDA3'!L15,V15,AD15) -> 14174 | BB15: =MAX('MDA1'!L15,'MDA4'!T15,'MDA3'!J15,'MDA3'!M15,AF15) -> 44883 | BC15: 59057 | BD15: 78.35922884
A16: =IF(COUNTRY_INFO!A16=0," ",COUNTRY_INFO!A16) -> Congo | B16: =IF(COUNTRY_INFO!B16=0," ",COUNTRY_INFO!B16) -> Brazzaville | C16: =IF(COUNTRY_INFO!C16=0," ",COUNTRY_INFO!C16) -> Moungali | D16: =COUNTRY_INFO!M16 -> 0 | G16: =MAX('MDA1'!M16,'MDA4'!U16) -> 0 | H16: =IF(AND(COUNTRY_INFO!H16>0,COUNTRY_INFO!H16<4),IF(D16>MAX('MDA1'!M16,'MDA4'!U16),MAX('MDA1'!M16,'MDA4'!U16),D16),0) -> 0 | I16: =IF(AND(COUNTRY_INFO!H16>0,COUNTRY_INFO!H16<4), IF(G16/D16*100<>0, IF(G16/D16*100>100,100,G16/D16*100), "-"),0) -> 0 | J16: =COUNTRY_INFO!N16 -> 0 | M16: =MAX('MDA1'!M16,MAX('MDA3'!I16,'MDA3'!L16)+MAX('MDA3'!J16,'MDA3'!M16)) -> 0 | N16: =IF(AND(COUNTRY_INFO!I16>0,COUNTRY_INFO!I16<4),IF(J16>MAX('MDA1'!M16,MAX('MDA3'!I16,'MDA3'!L16)+MAX('MDA3'!J16,'MDA3'!M16)),MAX('MDA1'!M16,MAX('MDA3'!I16,'MDA3'!L16)+MAX('MDA3'!J16,'MDA3'!M16)),J16),0) -> 0 | O16: =IF(AND(COUNTRY_INFO!I16>0,COUNTRY_INFO!I16<4), IF(M16/J16*100<>0, IF(M16/J16*100>100,100,M16/J16*100), "-"),0) -> 0 | P16: =COUNTRY_INFO!O16 -> 0 | S16: =SUM(MAX('MDA4'!R16, 'T1'!L16, MAX(T3_R1!K16, T3_R2!K16)), MAX('MDA1'!K16, 'MDA4'!S16, 'T1'!M16, MAX(T3_R1!L16, T3_R2!L16)), MAX('MDA1'!L16, 'MDA4'!T16, 'T1'!N16, MAX(T3_R1!M16, T3_R2!M16))) -> 25459 | T16: =IF(AND(COUNTRY_INFO!J16>1,COUNTRY_INFO!J16<4),IF(COUNTRY_INFO!E16>MAX('MDA4'!R16,'T1'!L16,MAX(T3_R1!K16,T3_R2!K16)),MAX('MDA4'!R16,'T1'!L16,MAX(T3_R1!K16,T3_R2!K16)),COUNTRY_INFO!E16),0) -> 0 | U16: =IF(AND(COUNTRY_INFO!J16>1,COUNTRY_INFO!J16<4), IF(T16/COUNTRY_INFO!E16*100<>0, IF(T16/COUNTRY_INFO!E16*100>100,100,T16/COUNTRY_INFO!E16*100), "-"),0) -> 0 | V16: =IF(AND(COUNTRY_INFO!J16>1,COUNTRY_INFO!J16<4),IF(COUNTRY_INFO!F16>MAX('MDA1'!K16,'MDA4'!S16,'T1'!M16,MAX(T3_R1!L16,T3_R2!L16)),MAX('MDA1'!K16,'MDA4'!S16,'T1'!M16,MAX(T3_R1!L16,T3_R2!L16)),COUNTRY_INFO!F16),0) -> 0 | W16: =IF(AND(COUNTRY_INFO!J16>1,COUNTRY_INFO!J16<4), IF(V16/COUNTRY_INFO!F16*100<>0, IF(V16/COUNTRY_INFO!F16*100>100,100,V16/COUNTRY_INFO!F16*100), "-"),0) -> 0 | X16: 0 | Y16: =IF(AND(COUNTRY_INFO!J16>1,COUNTRY_INFO!J16<4), IF(S16/P16*100<>0, IF(X16/P16*100>100,100,X16/P16*100), "-"),0) -> 0 | Z16: =COUNTRY_INFO!P16 -> 16409.58 | AC16: =MAX('T1'!L16,'T2'!J16)+MAX('T1'!M16,'T2'!K16)+MAX('T1'!N16,'T2'!L16) -> 0 | AD16: =IF(COUNTRY_INFO!K16=1,IF(COUNTRY_INFO!F16*0.33>MAX('T1'!M16,'T2'!K16),MAX('T1'!M16,'T2'!K16),COUNTRY_INFO!F16*0.33),IF(COUNTRY_INFO!K16=2,IF(COUNTRY_INFO!F16*0.5>MAX('T1'!M16,'T2'!K16),MAX('T1'!M16,'T2'!K16),COUNTRY_INFO!F16*0.5),IF(COUNTRY_INFO!K16=3,IF(COUNTRY_INFO!F16>MAX('T1'!M16,'T2'!K16),MAX('T1'!M16,'T2'!K16),COUNTRY_INFO!F16),0))) -> 0 | AE16: =IF(AND(COUNTRY_INFO!K16>0,COUNTRY_INFO!L16<4),IF(Z16>0,IF(COUNTRY_INFO!K16=1, AD16/(COUNTRY_INFO!F16*0.33)*100, IF(COUNTRY_INFO!K16=2, AD16/(COUNTRY_INFO!F16*0.5)*100, IF(COUNTRY_INFO!K16=3, AD16/COUNTRY_INFO!F16*100))),"-"),0) -> 0 | AF16: =IF(COUNTRY_INFO!K16=2,IF(COUNTRY_INFO!G16*0.2>MAX('T1'!N16,'T2'!L16),MAX('T1'!N16,'T2'!L16),COUNTRY_INFO!G16*0.2),IF(COUNTRY_INFO!K16=3,IF(COUNTRY_INFO!G16>MAX('T1'!N16,'T2'!L16),MAX('T1'!N16,'T2'!L16),COUNTRY_INFO!G16),0)) -> 0 | AG16: =IF(AND(COUNTRY_INFO!K16>0,COUNTRY_INFO!L16<4),IF(Z16>0,IF(COUNTRY_INFO!K16=1, 0, IF(COUNTRY_INFO!K16=2, AF16/(COUNTRY_INFO!G16*0.2)*100, IF(COUNTRY_INFO!K16=3, AF16/COUNTRY_INFO!G16*100))),"-"),0) -> 0 | AH16: 0 | AI16: =IF(AND(COUNTRY_INFO!K16>0,COUNTRY_INFO!K16<4), IF(AC16/Z16*100<>0, IF(AH16/Z16*100>100,100,AH16/Z16*100), "-"),0) -> - | AK16: =IF(AND(D16<>0, D16<>"Unknown",D16<>"Stopped",D16<>"Not required"),D16/COUNTRY_INFO!D16, 0) -> 0 | AL16: =IF(AND(J16<>0,J16<>"Unknown",J16<>"Stopped",J16<>"Not required"),J16/COUNTRY_INFO!D16, 0) -> 0 | AM16: =IF(AND(P16<>0,P16<>"Unknown",P16<>"Not required"),P16/(COUNTRY_INFO!E16+COUNTRY_INFO!F16), 0) -> 0 | AN16: =IF(AND(Z16<>0,Z16<>"Unknown",Z16<>"Not required"),IF(COUNTRY_INFO!K16=1,1,IF(COUNTRY_INFO!K16=2,0.5*COUNTRY_INFO!F16/(0.5*COUNTRY_INFO!F16+0.2*COUNTRY_INFO!G16),IF(COUNTRY_INFO!K16=3,COUNTRY_INFO!F16/(COUNTRY_INFO!F16+COUNTRY_INFO!G16)))),0) -> 1 | AO16: =IF(AND(Z16<>0,Z16<>"Unknown",Z16<>"Not required"),IF(COUNTRY_INFO!K16=1,0,IF(COUNTRY_INFO!K16=2,0.2*COUNTRY_INFO!G16/(0.5*COUNTRY_INFO!F16+0.2*COUNTRY_INFO!G16),IF(COUNTRY_INFO!K16=3,COUNTRY_INFO!G16/(COUNTRY_INFO!F16+COUNTRY_INFO!G16)))),0) -> 0 | AP16: =MAX(COUNTRY_INFO!D16*AK16*PROFILE!$G$7,COUNTRY_INFO!D16*AL16*PROFILE!$G$7) -> 0 | AQ16: =MAX(COUNTRY_INFO!D16*AK16*PROFILE!$G$8,COUNTRY_INFO!D16*AL16*PROFILE!$G$8,COUNTRY_INFO!D16*AM16*PROFILE!$G$8) -> 0 | AR16: =MAX(COUNTRY_INFO!D16*AK16*PROFILE!$G$9,COUNTRY_INFO!D16*AL16*PROFILE!$G$9,COUNTRY_INFO!D16*AM16*PROFILE!$G$9,IF(AND(DISTRICT!Z16<>"Unknown",Z16<>"Not required"),COUNTRY_INFO!P16*DISTRICT!AN16,0)) -> 16409.58 | AS16: =MAX(COUNTRY_INFO!D16*AK16*PROFILE!$G$10,COUNTRY_INFO!D16*AL16*PROFILE!$G$10,IF(AND(DISTRICT!Z16<>"Unknown",Z16<>"Not required"),COUNTRY_INFO!P16*DISTRICT!AO16,0)) -> 0 | AT16: 16409.58 | AU16: 0 | AV16: =MAX('MDA4'!R16,'T1'!L16,'T2'!J16,T3_R1!K16,T3_R2!K16) -> 0 | AW16: =MAX('MDA1'!K16,'MDA4'!S16,'MDA3'!I16,'MDA3'!L16,'T1'!M16,'T2'!K16,T3_R1!L16,T3_R2!L16) -> 24802 | AX16: =MAX('MDA1'!L16,'MDA4'!T16,'MDA3'!J16,'MDA3'!M16,'T1'!N16,'T2'!L16,T3_R1!M16,T3_R2!M16) -> 657 | AY16: 25459 | AZ16: =MAX('MDA4'!R16,T16) -> 0 | BA16: =MAX('MDA1'!K16,'MDA4'!S16,'MDA3'!I16,'MDA3'!L16,V16,AD16) -> 0 | BB16: =MAX('MDA1'!L16,'MDA4'!T16,'MDA3'!J16,'MDA3'!M16,AF16) -> 0 | BC16: 0 | BD16: 0
A17: =IF(COUNTRY_INFO!A17=0," ",COUNTRY_INFO!A17) -> Congo | B17: =IF(COUNTRY_INFO!B17=0," ",COUNTRY_INFO!B17) -> Brazzaville | C17: =IF(COUNTRY_INFO!C17=0," ",COUNTRY_INFO!C17) -> Ouenzé | D17: =COUNTRY_INFO!M17 -> 0 | G17: =MAX('MDA1'!M17,'MDA4'!U17) -> 0 | H17: =IF(AND(COUNTRY_INFO!H17>0,COUNTRY_INFO!H17<4),IF(D17>MAX('MDA1'!M17,'MDA4'!U17),MAX('MDA1'!M17,'MDA4'!U17),D17),0) -> 0 | I17: =IF(AND(COUNTRY_INFO!H17>0,COUNTRY_INFO!H17<4), IF(G17/D17*100<>0, IF(G17/D17*100>100,100,G17/D17*100), "-"),0) -> 0 | J17: =COUNTRY_INFO!N17 -> 0 | M17: =MAX('MDA1'!M17,MAX('MDA3'!I17,'MDA3'!L17)+MAX('MDA3'!J17,'MDA3'!M17)) -> 0 | N17: =IF(AND(COUNTRY_INFO!I17>0,COUNTRY_INFO!I17<4),IF(J17>MAX('MDA1'!M17,MAX('MDA3'!I17,'MDA3'!L17)+MAX('MDA3'!J17,'MDA3'!M17)),MAX('MDA1'!M17,MAX('MDA3'!I17,'MDA3'!L17)+MAX('MDA3'!J17,'MDA3'!M17)),J17),0) -> 0 | O17: =IF(AND(COUNTRY_INFO!I17>0,COUNTRY_INFO!I17<4), IF(M17/J17*100<>0, IF(M17/J17*100>100,100,M17/J17*100), "-"),0) -> 0 | P17: =COUNTRY_INFO!O17 -> 0 | S17: =SUM(MAX('MDA4'!R17, 'T1'!L17, MAX(T3_R1!K17, T3_R2!K17)), MAX('MDA1'!K17, 'MDA4'!S17, 'T1'!M17, MAX(T3_R1!L17, T3_R2!L17)), MAX('MDA1'!L17, 'MDA4'!T17, 'T1'!N17, MAX(T3_R1!M17, T3_R2!M17))) -> 34158 | T17: =IF(AND(COUNTRY_INFO!J17>1,COUNTRY_INFO!J17<4),IF(COUNTRY_INFO!E17>MAX('MDA4'!R17,'T1'!L17,MAX(T3_R1!K17,T3_R2!K17)),MAX('MDA4'!R17,'T1'!L17,MAX(T3_R1!K17,T3_R2!K17)),COUNTRY_INFO!E17),0) -> 0 | U17: =IF(AND(COUNTRY_INFO!J17>1,COUNTRY_INFO!J17<4), IF(T17/COUNTRY_INFO!E17*100<>0, IF(T17/COUNTRY_INFO!E17*100>100,100,T17/COUNTRY_INFO!E17*100), "-"),0) -> 0 | V17: =IF(AND(COUNTRY_INFO!J17>1,COUNTRY_INFO!J17<4),IF(COUNTRY_INFO!F17>MAX('MDA1'!K17,'MDA4'!S17,'T1'!M17,MAX(T3_R1!L17,T3_R2!L17)),MAX('MDA1'!K17,'MDA4'!S17,'T1'!M17,MAX(T3_R1!L17,T3_R2!L17)),COUNTRY_INFO!F17),0) -> 0 | W17: =IF(AND(COUNTRY_INFO!J17>1,COUNTRY_INFO!J17<4), IF(V17/COUNTRY_INFO!F17*100<>0, IF(V17/COUNTRY_INFO!F17*100>100,100,V17/COUNTRY_INFO!F17*100), "-"),0) -> 0 | X17: 0 | Y17: =IF(AND(COUNTRY_INFO!J17>1,COUNTRY_INFO!J17<4), IF(S17/P17*100<>0, IF(X17/P17*100>100,100,X17/P17*100), "-"),0) -> 0 | Z17: =COUNTRY_INFO!P17 -> 17898.87 | AC17: =MAX('T1'!L17,'T2'!J17)+MAX('T1'!M17,'T2'!K17)+MAX('T1'!N17,'T2'!L17) -> 0 | AD17: =IF(COUNTRY_INFO!K17=1,IF(COUNTRY_INFO!F17*0.33>MAX('T1'!M17,'T2'!K17),MAX('T1'!M17,'T2'!K17),COUNTRY_INFO!F17*0.33),IF(COUNTRY_INFO!K17=2,IF(COUNTRY_INFO!F17*0.5>MAX('T1'!M17,'T2'!K17),MAX('T1'!M17,'T2'!K17),COUNTRY_INFO!F17*0.5),IF(COUNTRY_INFO!K17=3,IF(COUNTRY_INFO!F17>MAX('T1'!M17,'T2'!K17),MAX('T1'!M17,'T2'!K17),COUNTRY_INFO!F17),0))) -> 0 | AE17: =IF(AND(COUNTRY_INFO!K17>0,COUNTRY_INFO!L17<4),IF(Z17>0,IF(COUNTRY_INFO!K17=1, AD17/(COUNTRY_INFO!F17*0.33)*100, IF(COUNTRY_INFO!K17=2, AD17/(COUNTRY_INFO!F17*0.5)*100, IF(COUNTRY_INFO!K17=3, AD17/COUNTRY_INFO!F17*100))),"-"),0) -> 0 | AF17: =IF(COUNTRY_INFO!K17=2,IF(COUNTRY_INFO!G17*0.2>MAX('T1'!N17,'T2'!L17),MAX('T1'!N17,'T2'!L17),COUNTRY_INFO!G17*0.2),IF(COUNTRY_INFO!K17=3,IF(COUNTRY_INFO!G17>MAX('T1'!N17,'T2'!L17),MAX('T1'!N17,'T2'!L17),COUNTRY_INFO!G17),0)) -> 0 | AG17: =IF(AND(COUNTRY_INFO!K17>0,COUNTRY_INFO!L17<4),IF(Z17>0,IF(COUNTRY_INFO!K17=1, 0, IF(COUNTRY_INFO!K17=2, AF17/(COUNTRY_INFO!G17*0.2)*100, IF(COUNTRY_INFO!K17=3, AF17/COUNTRY_INFO!G17*100))),"-"),0) -> 0 | AH17: 0 | AI17: =IF(AND(COUNTRY_INFO!K17>0,COUNTRY_INFO!K17<4), IF(AC17/Z17*100<>0, IF(AH17/Z17*100>100,100,AH17/Z17*100), "-"),0) -> - | AK17: =IF(AND(D17<>0, D17<>"Unknown",D17<>"Stopped",D17<>"Not required"),D17/COUNTRY_INFO!D17, 0) -> 0 | AL17: =IF(AND(J17<>0,J17<>"Unknown",J17<>"Stopped",J17<>"Not required"),J17/COUNTRY_INFO!D17, 0) -> 0 | AM17: =IF(AND(P17<>0,P17<>"Unknown",P17<>"Not required"),P17/(COUNTRY_INFO!E17+COUNTRY_INFO!F17), 0) -> 0 | AN17: =IF(AND(Z17<>0,Z17<>"Unknown",Z17<>"Not required"),IF(COUNTRY_INFO!K17=1,1,IF(COUNTRY_INFO!K17=2,0.5*COUNTRY_INFO!F17/(0.5*COUNTRY_INFO!F17+0.2*COUNTRY_INFO!G17),IF(COUNTRY_INFO!K17=3,COUNTRY_INFO!F17/(COUNTRY_INFO!F17+COUNTRY_INFO!G17)))),0) -> 1 | AO17: =IF(AND(Z17<>0,Z17<>"Unknown",Z17<>"Not required"),IF(COUNTRY_INFO!K17=1,0,IF(COUNTRY_INFO!K17=2,0.2*COUNTRY_INFO!G17/(0.5*COUNTRY_INFO!F17+0.2*COUNTRY_INFO!G17),IF(COUNTRY_INFO!K17=3,COUNTRY_INFO!G17/(COUNTRY_INFO!F17+COUNTRY_INFO!G17)))),0) -> 0 | AP17: =MAX(COUNTRY_INFO!D17*AK17*PROFILE!$G$7,COUNTRY_INFO!D17*AL17*PROFILE!$G$7) -> 0 | AQ17: =MAX(COUNTRY_INFO!D17*AK17*PROFILE!$G$8,COUNTRY_INFO!D17*AL17*PROFILE!$G$8,COUNTRY_INFO!D17*AM17*PROFILE!$G$8) -> 0 | AR17: =MAX(COUNTRY_INFO!D17*AK17*PROFILE!$G$9,COUNTRY_INFO!D17*AL17*PROFILE!$G$9,COUNTRY_INFO!D17*AM17*PROFILE!$G$9,IF(AND(DISTRICT!Z17<>"Unknown",Z17<>"Not required"),COUNTRY_INFO!P17*DISTRICT!AN17,0)) -> 17898.87 | AS17: =MAX(COUNTRY_INFO!D17*AK17*PROFILE!$G$10,COUNTRY_INFO!D17*AL17*PROFILE!$G$10,IF(AND(DISTRICT!Z17<>"Unknown",Z17<>"Not required"),COUNTRY_INFO!P17*DISTRICT!AO17,0)) -> 0 | AT17: 17898.87 | AU17: 0 | AV17: =MAX('MDA4'!R17,'T1'!L17,'T2'!J17,T3_R1!K17,T3_R2!K17) -> 0 | AW17: =MAX('MDA1'!K17,'MDA4'!S17,'MDA3'!I17,'MDA3'!L17,'T1'!M17,'T2'!K17,T3_R1!L17,T3_R2!L17) -> 33744 | AX17: =MAX('MDA1'!L17,'MDA4'!T17,'MDA3'!J17,'MDA3'!M17,'T1'!N17,'T2'!L17,T3_R1!M17,T3_R2!M17) -> 414 | AY17: 34158 | AZ17: =MAX('MDA4'!R17,T17) -> 0 | BA17: =MAX('MDA1'!K17,'MDA4'!S17,'MDA3'!I17,'MDA3'!L17,V17,AD17) -> 0 | BB17: =MAX('MDA1'!L17,'MDA4'!T17,'MDA3'!J17,'MDA3'!M17,AF17) -> 0 | BC17: 0 | BD17: 0
A18: =IF(COUNTRY_INFO!A18=0," ",COUNTRY_INFO!A18) -> Congo | B18: =IF(COUNTRY_INFO!B18=0," ",COUNTRY_INFO!B18) -> Brazzaville | C18: =IF(COUNTRY_INFO!C18=0," ",COUNTRY_INFO!C18) -> Poto-Poto | D18: =COUNTRY_INFO!M18 -> 0 | G18: =MAX('MDA1'!M18,'MDA4'!U18) -> 0 | H18: =IF(AND(COUNTRY_INFO!H18>0,COUNTRY_INFO!H18<4),IF(D18>MAX('MDA1'!M18,'MDA4'!U18),MAX('MDA1'!M18,'MDA4'!U18),D18),0) -> 0 | I18: =IF(AND(COUNTRY_INFO!H18>0,COUNTRY_INFO!H18<4), IF(G18/D18*100<>0, IF(G18/D18*100>100,100,G18/D18*100), "-"),0) -> 0 | J18: =COUNTRY_INFO!N18 -> 0 | M18: =MAX('MDA1'!M18,MAX('MDA3'!I18,'MDA3'!L18)+MAX('MDA3'!J18,'MDA3'!M18)) -> 0 | N18: =IF(AND(COUNTRY_INFO!I18>0,COUNTRY_INFO!I18<4),IF(J18>MAX('MDA1'!M18,MAX('MDA3'!I18,'MDA3'!L18)+MAX('MDA3'!J18,'MDA3'!M18)),MAX('MDA1'!M18,MAX('MDA3'!I18,'MDA3'!L18)+MAX('MDA3'!J18,'MDA3'!M18)),J18),0) -> 0 | O18: =IF(AND(COUNTRY_INFO!I18>0,COUNTRY_INFO!I18<4), IF(M18/J18*100<>0, IF(M18/J18*100>100,100,M18/J18*100), "-"),0) -> 0 | P18: =COUNTRY_INFO!O18 -> 0 | S18: =SUM(MAX('MDA4'!R18, 'T1'!L18, MAX(T3_R1!K18, T3_R2!K18)), MAX('MDA1'!K18, 'MDA4'!S18, 'T1'!M18, MAX(T3_R1!L18, T3_R2!L18)), MAX('MDA1'!L18, 'MDA4'!T18, 'T1'!N18, MAX(T3_R1!M18, T3_R2!M18))) -> 9597 | T18: =IF(AND(COUNTRY_INFO!J18>1,COUNTRY_INFO!J18<4),IF(COUNTRY_INFO!E18>MAX('MDA4'!R18,'T1'!L18,MAX(T3_R1!K18,T3_R2!K18)),MAX('MDA4'!R18,'T1'!L18,MAX(T3_R1!K18,T3_R2!K18)),COUNTRY_INFO!E18),0) -> 0 | U18: =IF(AND(COUNTRY_INFO!J18>1,COUNTRY_INFO!J18<4), IF(T18/COUNTRY_INFO!E18*100<>0, IF(T18/COUNTRY_INFO!E18*100>100,100,T18/COUNTRY_INFO!E18*100), "-"),0) -> 0 | V18: =IF(AND(COUNTRY_INFO!J18>1,COUNTRY_INFO!J18<4),IF(COUNTRY_INFO!F18>MAX('MDA1'!K18,'MDA4'!S18,'T1'!M18,MAX(T3_R1!L18,T3_R2!L18)),MAX('MDA1'!K18,'MDA4'!S18,'T1'!M18,MAX(T3_R1!L18,T3_R2!L18)),COUNTRY_INFO!F18),0) -> 0 | W18: =IF(AND(COUNTRY_INFO!J18>1,COUNTRY_INFO!J18<4), IF(V18/COUNTRY_INFO!F18*100<>0, IF(V18/COUNTRY_INFO!F18*100>100,100,V18/COUNTRY_INFO!F18*100), "-"),0) -> 0 | X18: 0 | Y18: =IF(AND(COUNTRY_INFO!J18>1,COUNTRY_INFO!J18<4), IF(S18/P18*100<>0, IF(X18/P18*100>100,100,X18/P18*100), "-"),0) -> 0 | Z18: =COUNTRY_INFO!P18 -> 0 | AC18: =MAX('T1'!L18,'T2'!J18)+MAX('T1'!M18,'T2'!K18)+MAX('T1'!N18,'T2'!L18) -> 0 | AD18: =IF(COUNTRY_INFO!K18=1,IF(COUNTRY_INFO!F18*0.33>MAX('T1'!M18,'T2'!K18),MAX('T1'!M18,'T2'!K18),COUNTRY_INFO!F18*0.33),IF(COUNTRY_INFO!K18=2,IF(COUNTRY_INFO!F18*0.5>MAX('T1'!M18,'T2'!K18),MAX('T1'!M18,'T2'!K18),COUNTRY_INFO!F18*0.5),IF(COUNTRY_INFO!K18=3,IF(COUNTRY_INFO!F18>MAX('T1'!M18,'T2'!K18),MAX('T1'!M18,'T2'!K18),COUNTRY_INFO!F18),0))) -> 0 | AE18: =IF(AND(COUNTRY_INFO!K18>0,COUNTRY_INFO!L18<4),IF(Z18>0,IF(COUNTRY_INFO!K18=1, AD18/(COUNTRY_INFO!F18*0.33)*100, IF(COUNTRY_INFO!K18=2, AD18/(COUNTRY_INFO!F18*0.5)*100, IF(COUNTRY_INFO!K18=3, AD18/COUNTRY_INFO!F18*100))),"-"),0) -> 0 | AF18: =IF(COUNTRY_INFO!K18=2,IF(COUNTRY_INFO!G18*0.2>MAX('T1'!N18,'T2'!L18),MAX('T1'!N18,'T2'!L18),COUNTRY_INFO!G18*0.2),IF(COUNTRY_INFO!K18=3,IF(COUNTRY_INFO!G18>MAX('T1'!N18,'T2'!L18),MAX('T1'!N18,'T2'!L18),COUNTRY_INFO!G18),0)) -> 0 | AG18: =IF(AND(COUNTRY_INFO!K18>0,COUNTRY_INFO!L18<4),IF(Z18>0,IF(COUNTRY_INFO!K18=1, 0, IF(COUNTRY_INFO!K18=2, AF18/(COUNTRY_INFO!G18*0.2)*100, IF(COUNTRY_INFO!K18=3, AF18/COUNTRY_INFO!G18*100))),"-"),0) -> 0 | AH18: 0 | AI18: =IF(AND(COUNTRY_INFO!K18>0,COUNTRY_INFO!K18<4), IF(AC18/Z18*100<>0, IF(AH18/Z18*100>100,100,AH18/Z18*100), "-"),0) -> 0 | AK18: =IF(AND(D18<>0, D18<>"Unknown",D18<>"Stopped",D18<>"Not required"),D18/COUNTRY_INFO!D18, 0) -> 0 | AL18: =IF(AND(J18<>0,J18<>"Unknown",J18<>"Stopped",J18<>"Not required"),J18/COUNTRY_INFO!D18, 0) -> 0 | AM18: =IF(AND(P18<>0,P18<>"Unknown",P18<>"Not required"),P18/(COUNTRY_INFO!E18+COUNTRY_INFO!F18), 0) -> 0 | AN18: =IF(AND(Z18<>0,Z18<>"Unknown",Z18<>"Not required"),IF(COUNTRY_INFO!K18=1,1,IF(COUNTRY_INFO!K18=2,0.5*COUNTRY_INFO!F18/(0.5*COUNTRY_INFO!F18+0.2*COUNTRY_INFO!G18),IF(COUNTRY_INFO!K18=3,COUNTRY_INFO!F18/(COUNTRY_INFO!F18+COUNTRY_INFO!G18)))),0) -> 0 | AO18: =IF(AND(Z18<>0,Z18<>"Unknown",Z18<>"Not required"),IF(COUNTRY_INFO!K18=1,0,IF(COUNTRY_INFO!K18=2,0.2*COUNTRY_INFO!G18/(0.5*COUNTRY_INFO!F18+0.2*COUNTRY_INFO!G18),IF(COUNTRY_INFO!K18=3,COUNTRY_INFO!G18/(COUNTRY_INFO!F18+COUNTRY_INFO!G18)))),0) -> 0 | AP18: =MAX(COUNTRY_INFO!D18*AK18*PROFILE!$G$7,COUNTRY_INFO!D18*AL18*PROFILE!$G$7) -> 0 | AQ18: =MAX(COUNTRY_INFO!D18*AK18*PROFILE!$G$8,COUNTRY_INFO!D18*AL18*PROFILE!$G$8,COUNTRY_INFO!D18*AM18*PROFILE!$G$8) -> 0 | AR18: =MAX(COUNTRY_INFO!D18*AK18*PROFILE!$G$9,COUNTRY_INFO!D18*AL18*PROFILE!$G$9,COUNTRY_INFO!D18*AM18*PROFILE!$G$9,IF(AND(DISTRICT!Z18<>"Unknown",Z18<>"Not required"),COUNTRY_INFO!P18*DISTRICT!AN18,0)) -> 0 | AS18: =MAX(COUNTRY_INFO!D18*AK18*PROFILE!$G$10,COUNTRY_INFO!D18*AL18*PROFILE!$G$10,IF(AND(DISTRICT!Z18<>"Unknown",Z18<>"Not required"),COUNTRY_INFO!P18*DISTRICT!AO18,0)) -> 0 | AT18: 0 | AU18: 0 | AV18: =MAX('MDA4'!R18,'T1'!L18,'T2'!J18,T3_R1!K18,T3_R2!K18) -> 0 | AW18: =MAX('MDA1'!K18,'MDA4'!S18,'MDA3'!I18,'MDA3'!L18,'T1'!M18,'T2'!K18,T3_R1!L18,T3_R2!L18) -> 9487 | AX18: =MAX('MDA1'!L18,'MDA4'!T18,'MDA3'!J18,'MDA3'!M18,'T1'!N18,'T2'!L18,T3_R1!M18,T3_R2!M18) -> 110 | AY18: 9597 | AZ18: =MAX('MDA4'!R18,T18) -> 0 | BA18: =MAX('MDA1'!K18,'MDA4'!S18,'MDA3'!I18,'MDA3'!L18,V18,AD18) -> 0 | BB18: =MAX('MDA1'!L18,'MDA4'!T18,'MDA3'!J18,'MDA3'!M18,AF18) -> 0 | BC18: 0 | BD18: 0
A19: =IF(COUNTRY_INFO!A19=0," ",COUNTRY_INFO!A19) -> Congo | B19: =IF(COUNTRY_INFO!B19=0," ",COUNTRY_INFO!B19) -> Brazzaville | C19: =IF(COUNTRY_INFO!C19=0," ",COUNTRY_INFO!C19) -> Talangaî | D19: =COUNTRY_INFO!M19 -> 0 | G19: =MAX('MDA1'!M19,'MDA4'!U19) -> 0 | H19: =IF(AND(COUNTRY_INFO!H19>0,COUNTRY_INFO!H19<4),IF(D19>MAX('MDA1'!M19,'MDA4'!U19),MAX('MDA1'!M19,'MDA4'!U19),D19),0) -> 0 | I19: =IF(AND(COUNTRY_INFO!H19>0,COUNTRY_INFO!H19<4), IF(G19/D19*100<>0, IF(G19/D19*100>100,100,G19/D19*100), "-"),0) -> 0 | J19: =COUNTRY_INFO!N19 -> 0 | M19: =MAX('MDA1'!M19,MAX('MDA3'!I19,'MDA3'!L19)+MAX('MDA3'!J19,'MDA3'!M19)) -> 0 | N19: =IF(AND(COUNTRY_INFO!I19>0,COUNTRY_INFO!I19<4),IF(J19>MAX('MDA1'!M19,MAX('MDA3'!I19,'MDA3'!L19)+MAX('MDA3'!J19,'MDA3'!M19)),MAX('MDA1'!M19,MAX('MDA3'!I19,'MDA3'!L19)+MAX('MDA3'!J19,'MDA3'!M19)),J19),0) -> 0 | O19: =IF(AND(COUNTRY_INFO!I19>0,COUNTRY_INFO!I19<4), IF(M19/J19*100<>0, IF(M19/J19*100>100,100,M19/J19*100), "-"),0) -> 0 | P19: =COUNTRY_INFO!O19 -> 0 | S19: =SUM(MAX('MDA4'!R19, 'T1'!L19, MAX(T3_R1!K19, T3_R2!K19)), MAX('MDA1'!K19, 'MDA4'!S19, 'T1'!M19, MAX(T3_R1!L19, T3_R2!L19)), MAX('MDA1'!L19, 'MDA4'!T19, 'T1'!N19, MAX(T3_R1!M19, T3_R2!M19))) -> 45465 | T19: =IF(AND(COUNTRY_INFO!J19>1,COUNTRY_INFO!J19<4),IF(COUNTRY_INFO!E19>MAX('MDA4'!R19,'T1'!L19,MAX(T3_R1!K19,T3_R2!K19)),MAX('MDA4'!R19,'T1'!L19,MAX(T3_R1!K19,T3_R2!K19)),COUNTRY_INFO!E19),0) -> 0 | U19: =IF(AND(COUNTRY_INFO!J19>1,COUNTRY_INFO!J19<4), IF(T19/COUNTRY_INFO!E19*100<>0, IF(T19/COUNTRY_INFO!E19*100>100,100,T19/COUNTRY_INFO!E19*100), "-"),0) -> 0 | V19: =IF(AND(COUNTRY_INFO!J19>1,COUNTRY_INFO!J19<4),IF(COUNTRY_INFO!F19>MAX('MDA1'!K19,'MDA4'!S19,'T1'!M19,MAX(T3_R1!L19,T3_R2!L19)),MAX('MDA1'!K19,'MDA4'!S19,'T1'!M19,MAX(T3_R1!L19,T3_R2!L19)),COUNTRY_INFO!F19),0) -> 0 | W19: =IF(AND(COUNTRY_INFO!J19>1,COUNTRY_INFO!J19<4), IF(V19/COUNTRY_INFO!F19*100<>0, IF(V19/COUNTRY_INFO!F19*100>100,100,V19/COUNTRY_INFO!F19*100), "-"),0) -> 0 | X19: 0 | Y19: =IF(AND(COUNTRY_INFO!J19>1,COUNTRY_INFO!J19<4), IF(S19/P19*100<>0, IF(X19/P19*100>100,100,X19/P19*100), "-"),0) -> 0 | Z19: =COUNTRY_INFO!P19 -> 0 | AC19: =MAX('T1'!L19,'T2'!J19)+MAX('T1'!M19,'T2'!K19)+MAX('T1'!N19,'T2'!L19) -> 0 | AD19: =IF(COUNTRY_INFO!K19=1,IF(COUNTRY_INFO!F19*0.33>MAX('T1'!M19,'T2'!K19),MAX('T1'!M19,'T2'!K19),COUNTRY_INFO!F19*0.33),IF(COUNTRY_INFO!K19=2,IF(COUNTRY_INFO!F19*0.5>MAX('T1'!M19,'T2'!K19),MAX('T1'!M19,'T2'!K19),COUNTRY_INFO!F19*0.5),IF(COUNTRY_INFO!K19=3,IF(COUNTRY_INFO!F19>MAX('T1'!M19,'T2'!K19),MAX('T1'!M19,'T2'!K19),COUNTRY_INFO!F19),0))) -> 0 | AE19: =IF(AND(COUNTRY_INFO!K19>0,COUNTRY_INFO!L19<4),IF(Z19>0,IF(COUNTRY_INFO!K19=1, AD19/(COUNTRY_INFO!F19*0.33)*100, IF(COUNTRY_INFO!K19=2, AD19/(COUNTRY_INFO!F19*0.5)*100, IF(COUNTRY_INFO!K19=3, AD19/COUNTRY_INFO!F19*100))),"-"),0) -> 0 | AF19: =IF(COUNTRY_INFO!K19=2,IF(COUNTRY_INFO!G19*0.2>MAX('T1'!N19,'T2'!L19),MAX('T1'!N19,'T2'!L19),COUNTRY_INFO!G19*0.2),IF(COUNTRY_INFO!K19=3,IF(COUNTRY_INFO!G19>MAX('T1'!N19,'T2'!L19),MAX('T1'!N19,'T2'!L19),COUNTRY_INFO!G19),0)) -> 0 | AG19: =IF(AND(COUNTRY_INFO!K19>0,COUNTRY_INFO!L19<4),IF(Z19>0,IF(COUNTRY_INFO!K19=1, 0, IF(COUNTRY_INFO!K19=2, AF19/(COUNTRY_INFO!G19*0.2)*100, IF(COUNTRY_INFO!K19=3, AF19/COUNTRY_INFO!G19*100))),"-"),0) -> 0 | AH19: 0 | AI19: =IF(AND(COUNTRY_INFO!K19>0,COUNTRY_INFO!K19<4), IF(AC19/Z19*100<>0, IF(AH19/Z19*100>100,100,AH19/Z19*100), "-"),0) -> 0 | AK19: =IF(AND(D19<>0, D19<>"Unknown",D19<>"Stopped",D19<>"Not required"),D19/COUNTRY_INFO!D19, 0) -> 0 | AL19: =IF(AND(J19<>0,J19<>"Unknown",J19<>"Stopped",J19<>"Not required"),J19/COUNTRY_INFO!D19, 0) -> 0 | AM19: =IF(AND(P19<>0,P19<>"Unknown",P19<>"Not required"),P19/(COUNTRY_INFO!E19+COUNTRY_INFO!F19), 0) -> 0 | AN19: =IF(AND(Z19<>0,Z19<>"Unknown",Z19<>"Not required"),IF(COUNTRY_INFO!K19=1,1,IF(COUNTRY_INFO!K19=2,0.5*COUNTRY_INFO!F19/(0.5*COUNTRY_INFO!F19+0.2*COUNTRY_INFO!G19),IF(COUNTRY_INFO!K19=3,COUNTRY_INFO!F19/(COUNTRY_INFO!F19+COUNTRY_INFO!G19)))),0) -> 0 | AO19: =IF(AND(Z19<>0,Z19<>"Unknown",Z19<>"Not required"),IF(COUNTRY_INFO!K19=1,0,IF(COUNTRY_INFO!K19=2,0.2*COUNTRY_INFO!G19/(0.5*COUNTRY_INFO!F19+0.2*COUNTRY_INFO!G19),IF(COUNTRY_INFO!K19=3,COUNTRY_INFO!G19/(COUNTRY_INFO!F19+COUNTRY_INFO!G19)))),0) -> 0 | AP19: =MAX(COUNTRY_INFO!D19*AK19*PROFILE!$G$7,COUNTRY_INFO!D19*AL19*PROFILE!$G$7) -> 0 | AQ19: =MAX(COUNTRY_INFO!D19*AK19*PROFILE!$G$8,COUNTRY_INFO!D19*AL19*PROFILE!$G$8,COUNTRY_INFO!D19*AM19*PROFILE!$G$8) -> 0 | AR19: =MAX(COUNTRY_INFO!D19*AK19*PROFILE!$G$9,COUNTRY_INFO!D19*AL19*PROFILE!$G$9,COUNTRY_INFO!D19*AM19*PROFILE!$G$9,IF(AND(DISTRICT!Z19<>"Unknown",Z19<>"Not required"),COUNTRY_INFO!P19*DISTRICT!AN19,0)) -> 0 | AS19: =MAX(COUNTRY_INFO!D19*AK19*PROFILE!$G$10,COUNTRY_INFO!D19*AL19*PROFILE!$G$10,IF(AND(DISTRICT!Z19<>"Unknown",Z19<>"Not required"),COUNTRY_INFO!P19*DISTRICT!AO19,0)) -> 0 | AT19: 0 | AU19: 0 | AV19: =MAX('MDA4'!R19,'T1'!L19,'T2'!J19,T3_R1!K19,T3_R2!K19) -> 0 | AW19: =MAX('MDA1'!K19,'MDA4'!S19,'MDA3'!I19,'MDA3'!L19,'T1'!M19,'T2'!K19,T3_R1!L19,T3_R2!L19) -> 44859 | AX19: =MAX('MDA1'!L19,'MDA4'!T19,'MDA3'!J19,'MDA3'!M19,'T1'!N19,'T2'!L19,T3_R1!M19,T3_R2!M19) -> 606 | AY19: 45465 | AZ19: =MAX('MDA4'!R19,T19) -> 0 | BA19: =MAX('MDA1'!K19,'MDA4'!S19,'MDA3'!I19,'MDA3'!L19,V19,AD19) -> 0 | BB19: =MAX('MDA1'!L19,'MDA4'!T19,'MDA3'!J19,'MDA3'!M19,AF19) -> 0 | BC19: 0 | BD19: 0
A20: =IF(COUNTRY_INFO!A20=0," ",COUNTRY_INFO!A20) -> Congo | B20: =IF(COUNTRY_INFO!B20=0," ",COUNTRY_INFO!B20) -> Brazzaville | C20: =IF(COUNTRY_INFO!C20=0," ",COUNTRY_INFO!C20) -> Madibou | D20: =COUNTRY_INFO!M20 -> 0 | G20: =MAX('MDA1'!M20,'MDA4'!U20) -> 0 | H20: =IF(AND(COUNTRY_INFO!H20>0,COUNTRY_INFO!H20<4),IF(D20>MAX('MDA1'!M20,'MDA4'!U20),MAX('MDA1'!M20,'MDA4'!U20),D20),0) -> 0 | I20: =IF(AND(COUNTRY_INFO!H20>0,COUNTRY_INFO!H20<4), IF(G20/D20*100<>0, IF(G20/D20*100>100,100,G20/D20*100), "-"),0) -> 0 | J20: =COUNTRY_INFO!N20 -> 101185 | M20: =MAX('MDA1'!M20,MAX('MDA3'!I20,'MDA3'!L20)+MAX('MDA3'!J20,'MDA3'!M20)) -> 82526 | N20: =IF(AND(COUNTRY_INFO!I20>0,COUNTRY_INFO!I20<4),IF(J20>MAX('MDA1'!M20,MAX('MDA3'!I20,'MDA3'!L20)+MAX('MDA3'!J20,'MDA3'!M20)),MAX('MDA1'!M20,MAX('MDA3'!I20,'MDA3'!L20)+MAX('MDA3'!J20,'MDA3'!M20)),J20),0) -> 82526 | O20: =IF(AND(COUNTRY_INFO!I20>0,COUNTRY_INFO!I20<4), IF(M20/J20*100<>0, IF(M20/J20*100>100,100,M20/J20*100), "-"),0) -> 81.55951969 | P20: =COUNTRY_INFO!O20 -> 0 | S20: =SUM(MAX('MDA4'!R20, 'T1'!L20, MAX(T3_R1!K20, T3_R2!K20)), MAX('MDA1'!K20, 'MDA4'!S20, 'T1'!M20, MAX(T3_R1!L20, T3_R2!L20)), MAX('MDA1'!L20, 'MDA4'!T20, 'T1'!N20, MAX(T3_R1!M20, T3_R2!M20))) -> 34070 | T20: =IF(AND(COUNTRY_INFO!J20>1,COUNTRY_INFO!J20<4),IF(COUNTRY_INFO!E20>MAX('MDA4'!R20,'T1'!L20,MAX(T3_R1!K20,T3_R2!K20)),MAX('MDA4'!R20,'T1'!L20,MAX(T3_R1!K20,T3_R2!K20)),COUNTRY_INFO!E20),0) -> 0 | U20: =IF(AND(COUNTRY_INFO!J20>1,COUNTRY_INFO!J20<4), IF(T20/COUNTRY_INFO!E20*100<>0, IF(T20/COUNTRY_INFO!E20*100>100,100,T20/COUNTRY_INFO!E20*100), "-"),0) -> 0 | V20: =IF(AND(COUNTRY_INFO!J20>1,COUNTRY_INFO!J20<4),IF(COUNTRY_INFO!F20>MAX('MDA1'!K20,'MDA4'!S20,'T1'!M20,MAX(T3_R1!L20,T3_R2!L20)),MAX('MDA1'!K20,'MDA4'!S20,'T1'!M20,MAX(T3_R1!L20,T3_R2!L20)),COUNTRY_INFO!F20),0) -> 0 | W20: =IF(AND(COUNTRY_INFO!J20>1,COUNTRY_INFO!J20<4), IF(V20/COUNTRY_INFO!F20*100<>0, IF(V20/COUNTRY_INFO!F20*100>100,100,V20/COUNTRY_INFO!F20*100), "-"),0) -> 0 | X20: 0 | Y20: =IF(AND(COUNTRY_INFO!J20>1,COUNTRY_INFO!J20<4), IF(S20/P20*100<>0, IF(X20/P20*100>100,100,X20/P20*100), "-"),0) -> 0 | Z20: =COUNTRY_INFO!P20 -> 0 | AC20: =MAX('T1'!L20,'T2'!J20)+MAX('T1'!M20,'T2'!K20)+MAX('T1'!N20,'T2'!L20) -> 0 | AD20: =IF(COUNTRY_INFO!K20=1,IF(COUNTRY_INFO!F20*0.33>MAX('T1'!M20,'T2'!K20),MAX('T1'!M20,'T2'!K20),COUNTRY_INFO!F20*0.33),IF(COUNTRY_INFO!K20=2,IF(COUNTRY_INFO!F20*0.5>MAX('T1'!M20,'T2'!K20),MAX('T1'!M20,'T2'!K20),COUNTRY_INFO!F20*0.5),IF(COUNTRY_INFO!K20=3,IF(COUNTRY_INFO!F20>MAX('T1'!M20,'T2'!K20),MAX('T1'!M20,'T2'!K20),COUNTRY_INFO!F20),0))) -> 0 | AE20: =IF(AND(COUNTRY_INFO!K20>0,COUNTRY_INFO!L20<4),IF(Z20>0,IF(COUNTRY_INFO!K20=1, AD20/(COUNTRY_INFO!F20*0.33)*100, IF(COUNTRY_INFO!K20=2, AD20/(COUNTRY_INFO!F20*0.5)*100, IF(COUNTRY_INFO!K20=3, AD20/COUNTRY_INFO!F20*100))),"-"),0) -> 0 | AF20: =IF(COUNTRY_INFO!K20=2,IF(COUNTRY_INFO!G20*0.2>MAX('T1'!N20,'T2'!L20),MAX('T1'!N20,'T2'!L20),COUNTRY_INFO!G20*0.2),IF(COUNTRY_INFO!K20=3,IF(COUNTRY_INFO!G20>MAX('T1'!N20,'T2'!L20),MAX('T1'!N20,'T2'!L20),COUNTRY_INFO!G20),0)) -> 0 | AG20: =IF(AND(COUNTRY_INFO!K20>0,COUNTRY_INFO!L20<4),IF(Z20>0,IF(COUNTRY_INFO!K20=1, 0, IF(COUNTRY_INFO!K20=2, AF20/(COUNTRY_INFO!G20*0.2)*100, IF(COUNTRY_INFO!K20=3, AF20/COUNTRY_INFO!G20*100))),"-"),0) -> 0 | AH20: 0 | AI20: =IF(AND(COUNTRY_INFO!K20>0,COUNTRY_INFO!K20<4), IF(AC20/Z20*100<>0, IF(AH20/Z20*100>100,100,AH20/Z20*100), "-"),0) -> 0 | AK20: =IF(AND(D20<>0, D20<>"Unknown",D20<>"Stopped",D20<>"Not required"),D20/COUNTRY_INFO!D20, 0) -> 0 | AL20: =IF(AND(J20<>0,J20<>"Unknown",J20<>"Stopped",J20<>"Not required"),J20/COUNTRY_INFO!D20, 0) -> 0.6696336984 | AM20: =IF(AND(P20<>0,P20<>"Unknown",P20<>"Not required"),P20/(COUNTRY_INFO!E20+COUNTRY_INFO!F20), 0) -> 0 | AN20: =IF(AND(Z20<>0,Z20<>"Unknown",Z20<>"Not required"),IF(COUNTRY_INFO!K20=1,1,IF(COUNTRY_INFO!K20=2,0.5*COUNTRY_INFO!F20/(0.5*COUNTRY_INFO!F20+0.2*COUNTRY_INFO!G20),IF(COUNTRY_INFO!K20=3,COUNTRY_INFO!F20/(COUNTRY_INFO!F20+COUNTRY_INFO!G20)))),0) -> 0 | AO20: =IF(AND(Z20<>0,Z20<>"Unknown",Z20<>"Not required"),IF(COUNTRY_INFO!K20=1,0,IF(COUNTRY_INFO!K20=2,0.2*COUNTRY_INFO!G20/(0.5*COUNTRY_INFO!F20+0.2*COUNTRY_INFO!G20),IF(COUNTRY_INFO!K20=3,COUNTRY_INFO!G20/(COUNTRY_INFO!F20+COUNTRY_INFO!G20)))),0) -> 0 | AP20: =MAX(COUNTRY_INFO!D20*AK20*PROFILE!$G$7,COUNTRY_INFO!D20*AL20*PROFILE!$G$7) -> 4755.77235 | AQ20: =MAX(COUNTRY_INFO!D20*AK20*PROFILE!$G$8,COUNTRY_INFO!D20*AL20*PROFILE!$G$8,COUNTRY_INFO!D20*AM20*PROFILE!$G$8) -> 16189.65235 | AR20: =MAX(COUNTRY_INFO!D20*AK20*PROFILE!$G$9,COUNTRY_INFO!D20*AL20*PROFILE!$G$9,COUNTRY_INFO!D20*AM20*PROFILE!$G$9,IF(AND(DISTRICT!Z20<>"Unknown",Z20<>"Not required"),COUNTRY_INFO!P20*DISTRICT!AN20,0)) -> 24284.35652 | AS20: =MAX(COUNTRY_INFO!D20*AK20*PROFILE!$G$10,COUNTRY_INFO!D20*AL20*PROFILE!$G$10,IF(AND(DISTRICT!Z20<>"Unknown",Z20<>"Not required"),COUNTRY_INFO!P20*DISTRICT!AO20,0)) -> 55955.21878 | AT20: 101185 | AU20: Y | AV20: =MAX('MDA4'!R20,'T1'!L20,'T2'!J20,T3_R1!K20,T3_R2!K20) -> 0 | AW20: =MAX('MDA1'!K20,'MDA4'!S20,'MDA3'!I20,'MDA3'!L20,'T1'!M20,'T2'!K20,T3_R1!L20,T3_R2!L20) -> 34042 | AX20: =MAX('MDA1'!L20,'MDA4'!T20,'MDA3'!J20,'MDA3'!M20,'T1'!N20,'T2'!L20,T3_R1!M20,T3_R2!M20) -> 61350 | AY20: 95392 | AZ20: =MAX('MDA4'!R20,T20) -> 0 | BA20: =MAX('MDA1'!K20,'MDA4'!S20,'MDA3'!I20,'MDA3'!L20,V20,AD20) -> 21176 | BB20: =MAX('MDA1'!L20,'MDA4'!T20,'MDA3'!J20,'MDA3'!M20,AF20) -> 61350 | BC20: 82526 | BD20: 81.55951969
A21: =IF(COUNTRY_INFO!A21=0," ",COUNTRY_INFO!A21) -> Congo | B21: =IF(COUNTRY_INFO!B21=0," ",COUNTRY_INFO!B21) -> Brazzaville | C21: =IF(COUNTRY_INFO!C21=0," ",COUNTRY_INFO!C21) -> Djiri | D21: =COUNTRY_INFO!M21 -> 0 | G21: =MAX('MDA1'!M21,'MDA4'!U21) -> 0 | H21: =IF(AND(COUNTRY_INFO!H21>0,COUNTRY_INFO!H21<4),IF(D21>MAX('MDA1'!M21,'MDA4'!U21),MAX('MDA1'!M21,'MDA4'!U21),D21),0) -> 0 | I21: =IF(AND(COUNTRY_INFO!H21>0,COUNTRY_INFO!H21<4), IF(G21/D21*100<>0, IF(G21/D21*100>100,100,G21/D21*100), "-"),0) -> 0 | J21: =COUNTRY_INFO!N21 -> 0 | M21: =MAX('MDA1'!M21,MAX('MDA3'!I21,'MDA3'!L21)+MAX('MDA3'!J21,'MDA3'!M21)) -> 0 | N21: =IF(AND(COUNTRY_INFO!I21>0,COUNTRY_INFO!I21<4),IF(J21>MAX('MDA1'!M21,MAX('MDA3'!I21,'MDA3'!L21)+MAX('MDA3'!J21,'MDA3'!M21)),MAX('MDA1'!M21,MAX('MDA3'!I21,'MDA3'!L21)+MAX('MDA3'!J21,'MDA3'!M21)),J21),0) -> 0 | O21: =IF(AND(COUNTRY_INFO!I21>0,COUNTRY_INFO!I21<4), IF(M21/J21*100<>0, IF(M21/J21*100>100,100,M21/J21*100), "-"),0) -> 0 | P21: =COUNTRY_INFO!O21 -> 0 | S21: =SUM(MAX('MDA4'!R21, 'T1'!L21, MAX(T3_R1!K21, T3_R2!K21)), MAX('MDA1'!K21, 'MDA4'!S21, 'T1'!M21, MAX(T3_R1!L21, T3_R2!L21)), MAX('MDA1'!L21, 'MDA4'!T21, 'T1'!N21, MAX(T3_R1!M21, T3_R2!M21))) -> 36395 | T21: =IF(AND(COUNTRY_INFO!J21>1,COUNTRY_INFO!J21<4),IF(COUNTRY_INFO!E21>MAX('MDA4'!R21,'T1'!L21,MAX(T3_R1!K21,T3_R2!K21)),MAX('MDA4'!R21,'T1'!L21,MAX(T3_R1!K21,T3_R2!K21)),COUNTRY_INFO!E21),0) -> 0 | U21: =IF(AND(COUNTRY_INFO!J21>1,COUNTRY_INFO!J21<4), IF(T21/COUNTRY_INFO!E21*100<>0, IF(T21/COUNTRY_INFO!E21*100>100,100,T21/COUNTRY_INFO!E21*100), "-"),0) -> 0 | V21: =IF(AND(COUNTRY_INFO!J21>1,COUNTRY_INFO!J21<4),IF(COUNTRY_INFO!F21>MAX('MDA1'!K21,'MDA4'!S21,'T1'!M21,MAX(T3_R1!L21,T3_R2!L21)),MAX('MDA1'!K21,'MDA4'!S21,'T1'!M21,MAX(T3_R1!L21,T3_R2!L21)),COUNTRY_INFO!F21),0) -> 0 | W21: =IF(AND(COUNTRY_INFO!J21>1,COUNTRY_INFO!J21<4), IF(V21/COUNTRY_INFO!F21*100<>0, IF(V21/COUNTRY_INFO!F21*100>100,100,V21/COUNTRY_INFO!F21*100), "-"),0) -> 0 | X21: 0 | Y21: =IF(AND(COUNTRY_INFO!J21>1,COUNTRY_INFO!J21<4), IF(S21/P21*100<>0, IF(X21/P21*100>100,100,X21/P21*100), "-"),0) -> 0 | Z21: =COUNTRY_INFO!P21 -> 0 | AC21: =MAX('T1'!L21,'T2'!J21)+MAX('T1'!M21,'T2'!K21)+MAX('T1'!N21,'T2'!L21) -> 0 | AD21: =IF(COUNTRY_INFO!K21=1,IF(COUNTRY_INFO!F21*0.33>MAX('T1'!M21,'T2'!K21),MAX('T1'!M21,'T2'!K21),COUNTRY_INFO!F21*0.33),IF(COUNTRY_INFO!K21=2,IF(COUNTRY_INFO!F21*0.5>MAX('T1'!M21,'T2'!K21),MAX('T1'!M21,'T2'!K21),COUNTRY_INFO!F21*0.5),IF(COUNTRY_INFO!K21=3,IF(COUNTRY_INFO!F21>MAX('T1'!M21,'T2'!K21),MAX('T1'!M21,'T2'!K21),COUNTRY_INFO!F21),0))) -> 0 | AE21: =IF(AND(COUNTRY_INFO!K21>0,COUNTRY_INFO!L21<4),IF(Z21>0,IF(COUNTRY_INFO!K21=1, AD21/(COUNTRY_INFO!F21*0.33)*100, IF(COUNTRY_INFO!K21=2, AD21/(COUNTRY_INFO!F21*0.5)*100, IF(COUNTRY_INFO!K21=3, AD21/COUNTRY_INFO!F21*100))),"-"),0) -> 0 | AF21: =IF(COUNTRY_INFO!K21=2,IF(COUNTRY_INFO!G21*0.2>MAX('T1'!N21,'T2'!L21),MAX('T1'!N21,'T2'!L21),COUNTRY_INFO!G21*0.2),IF(COUNTRY_INFO!K21=3,IF(COUNTRY_INFO!G21>MAX('T1'!N21,'T2'!L21),MAX('T1'!N21,'T2'!L21),COUNTRY_INFO!G21),0)) -> 0 | AG21: =IF(AND(COUNTRY_INFO!K21>0,COUNTRY_INFO!L21<4),IF(Z21>0,IF(COUNTRY_INFO!K21=1, 0, IF(COUNTRY_INFO!K21=2, AF21/(COUNTRY_INFO!G21*0.2)*100, IF(COUNTRY_INFO!K21=3, AF21/COUNTRY_INFO!G21*100))),"-"),0) -> 0 | AH21: 0 | AI21: =IF(AND(COUNTRY_INFO!K21>0,COUNTRY_INFO!K21<4), IF(AC21/Z21*100<>0, IF(AH21/Z21*100>100,100,AH21/Z21*100), "-"),0) -> 0 | AK21: =IF(AND(D21<>0, D21<>"Unknown",D21<>"Stopped",D21<>"Not required"),D21/COUNTRY_INFO!D21, 0) -> 0 | AL21: =IF(AND(J21<>0,J21<>"Unknown",J21<>"Stopped",J21<>"Not required"),J21/COUNTRY_INFO!D21, 0) -> 0 | AM21: =IF(AND(P21<>0,P21<>"Unknown",P21<>"Not required"),P21/(COUNTRY_INFO!E21+COUNTRY_INFO!F21), 0) -> 0 | AN21: =IF(AND(Z21<>0,Z21<>"Unknown",Z21<>"Not required"),IF(COUNTRY_INFO!K21=1,1,IF(COUNTRY_INFO!K21=2,0.5*COUNTRY_INFO!F21/(0.5*COUNTRY_INFO!F21+0.2*COUNTRY_INFO!G21),IF(COUNTRY_INFO!K21=3,COUNTRY_INFO!F21/(COUNTRY_INFO!F21+COUNTRY_INFO!G21)))),0) -> 0 | AO21: =IF(AND(Z21<>0,Z21<>"Unknown",Z21<>"Not required"),IF(COUNTRY_INFO!K21=1,0,IF(COUNTRY_INFO!K21=2,0.2*COUNTRY_INFO!G21/(0.5*COUNTRY_INFO!F21+0.2*COUNTRY_INFO!G21),IF(COUNTRY_INFO!K21=3,COUNTRY_INFO!G21/(COUNTRY_INFO!F21+COUNTRY_INFO!G21)))),0) -> 0 | AP21: =MAX(COUNTRY_INFO!D21*AK21*PROFILE!$G$7,COUNTRY_INFO!D21*AL21*PROFILE!$G$7) -> 0 | AQ21: =MAX(COUNTRY_INFO!D21*AK21*PROFILE!$G$8,COUNTRY_INFO!D21*AL21*PROFILE!$G$8,COUNTRY_INFO!D21*AM21*PROFILE!$G$8) -> 0 | AR21: =MAX(COUNTRY_INFO!D21*AK21*PROFILE!$G$9,COUNTRY_INFO!D21*AL21*PROFILE!$G$9,COUNTRY_INFO!D21*AM21*PROFILE!$G$9,IF(AND(DISTRICT!Z21<>"Unknown",Z21<>"Not required"),COUNTRY_INFO!P21*DISTRICT!AN21,0)) -> 0 | AS21: =MAX(COUNTRY_INFO!D21*AK21*PROFILE!$G$10,COUNTRY_INFO!D21*AL21*PROFILE!$G$10,IF(AND(DISTRICT!Z21<>"Unknown",Z21<>"Not required"),COUNTRY_INFO!P21*DISTRICT!AO21,0)) -> 0 | AT21: 0 | AU21: 0 | AV21: =MAX('MDA4'!R21,'T1'!L21,'T2'!J21,T3_R1!K21,T3_R2!K21) -> 0 | AW21: =MAX('MDA1'!K21,'MDA4'!S21,'MDA3'!I21,'MDA3'!L21,'T1'!M21,'T2'!K21,T3_R1!L21,T3_R2!L21) -> 36129 | AX21: =MAX('MDA1'!L21,'MDA4'!T21,'MDA3'!J21,'MDA3'!M21,'T1'!N21,'T2'!L21,T3_R1!M21,T3_R2!M21) -> 266 | AY21: 36395 | AZ21: =MAX('MDA4'!R21,T21) -> 0 | BA21: =MAX('MDA1'!K21,'MDA4'!S21,'MDA3'!I21,'MDA3'!L21,V21,AD21) -> 0 | BB21: =MAX('MDA1'!L21,'MDA4'!T21,'MDA3'!J21,'MDA3'!M21,AF21) -> 0 | BC21: 0 | BD21: 0
A22: =IF(COUNTRY_INFO!A22=0," ",COUNTRY_INFO!A22) -> Congo | B22: =IF(COUNTRY_INFO!B22=0," ",COUNTRY_INFO!B22) -> Cuvette | C22: =IF(COUNTRY_INFO!C22=0," ",COUNTRY_INFO!C22) -> Mossaka Loukoléla | D22: =COUNTRY_INFO!M22 -> 0 | G22: =MAX('MDA1'!M22,'MDA4'!U22) -> 0 | H22: =IF(AND(COUNTRY_INFO!H22>0,COUNTRY_INFO!H22<4),IF(D22>MAX('MDA1'!M22,'MDA4'!U22),MAX('MDA1'!M22,'MDA4'!U22),D22),0) -> 0 | I22: =IF(AND(COUNTRY_INFO!H22>0,COUNTRY_INFO!H22<4), IF(G22/D22*100<>0, IF(G22/D22*100>100,100,G22/D22*100), "-"),0) -> 0 | J22: =COUNTRY_INFO!N22 -> 0 | M22: =MAX('MDA1'!M22,MAX('MDA3'!I22,'MDA3'!L22)+MAX('MDA3'!J22,'MDA3'!M22)) -> 0 | N22: =IF(AND(COUNTRY_INFO!I22>0,COUNTRY_INFO!I22<4),IF(J22>MAX('MDA1'!M22,MAX('MDA3'!I22,'MDA3'!L22)+MAX('MDA3'!J22,'MDA3'!M22)),MAX('MDA1'!M22,MAX('MDA3'!I22,'MDA3'!L22)+MAX('MDA3'!J22,'MDA3'!M22)),J22),0) -> 0 | O22: =IF(AND(COUNTRY_INFO!I22>0,COUNTRY_INFO!I22<4), IF(M22/J22*100<>0, IF(M22/J22*100>100,100,M22/J22*100), "-"),0) -> 0 | P22: =COUNTRY_INFO!O22 -> 23366 | S22: =SUM(MAX('MDA4'!R22, 'T1'!L22, MAX(T3_R1!K22, T3_R2!K22)), MAX('MDA1'!K22, 'MDA4'!S22, 'T1'!M22, MAX(T3_R1!L22, T3_R2!L22)), MAX('MDA1'!L22, 'MDA4'!T22, 'T1'!N22, MAX(T3_R1!M22, T3_R2!M22))) -> 9619 | T22: =IF(AND(COUNTRY_INFO!J22>1,COUNTRY_INFO!J22<4),IF(COUNTRY_INFO!E22>MAX('MDA4'!R22,'T1'!L22,MAX(T3_R1!K22,T3_R2!K22)),MAX('MDA4'!R22,'T1'!L22,MAX(T3_R1!K22,T3_R2!K22)),COUNTRY_INFO!E22),0) -> 0 | U22: =IF(AND(COUNTRY_INFO!J22>1,COUNTRY_INFO!J22<4), IF(T22/COUNTRY_INFO!E22*100<>0, IF(T22/COUNTRY_INFO!E22*100>100,100,T22/COUNTRY_INFO!E22*100), "-"),0) -> - | V22: =IF(AND(COUNTRY_INFO!J22>1,COUNTRY_INFO!J22<4),IF(COUNTRY_INFO!F22>MAX('MDA1'!K22,'MDA4'!S22,'T1'!M22,MAX(T3_R1!L22,T3_R2!L22)),MAX('MDA1'!K22,'MDA4'!S22,'T1'!M22,MAX(T3_R1!L22,T3_R2!L22)),COUNTRY_INFO!F22),0) -> 9579 | W22: =IF(AND(COUNTRY_INFO!J22>1,COUNTRY_INFO!J22<4), IF(V22/COUNTRY_INFO!F22*100<>0, IF(V22/COUNTRY_INFO!F22*100>100,100,V22/COUNTRY_INFO!F22*100), "-"),0) -> 68.32382311 | X22: 9579 | Y22: =IF(AND(COUNTRY_INFO!J22>1,COUNTRY_INFO!J22<4), IF(S22/P22*100<>0, IF(X22/P22*100>100,100,X22/P22*100), "-"),0) -> 40.99546349 | Z22: =COUNTRY_INFO!P22 -> 4626.6 | AC22: =MAX('T1'!L22,'T2'!J22)+MAX('T1'!M22,'T2'!K22)+MAX('T1'!N22,'T2'!L22) -> 0 | AD22: =IF(COUNTRY_INFO!K22=1,IF(COUNTRY_INFO!F22*0.33>MAX('T1'!M22,'T2'!K22),MAX('T1'!M22,'T2'!K22),COUNTRY_INFO!F22*0.33),IF(COUNTRY_INFO!K22=2,IF(COUNTRY_INFO!F22*0.5>MAX('T1'!M22,'T2'!K22),MAX('T1'!M22,'T2'!K22),COUNTRY_INFO!F22*0.5),IF(COUNTRY_INFO!K22=3,IF(COUNTRY_INFO!F22>MAX('T1'!M22,'T2'!K22),MAX('T1'!M22,'T2'!K22),COUNTRY_INFO!F22),0))) -> 0 | AE22: =IF(AND(COUNTRY_INFO!K22>0,COUNTRY_INFO!L22<4),IF(Z22>0,IF(COUNTRY_INFO!K22=1, AD22/(COUNTRY_INFO!F22*0.33)*100, IF(COUNTRY_INFO!K22=2, AD22/(COUNTRY_INFO!F22*0.5)*100, IF(COUNTRY_INFO!K22=3, AD22/COUNTRY_INFO!F22*100))),"-"),0) -> 0 | AF22: =IF(COUNTRY_INFO!K22=2,IF(COUNTRY_INFO!G22*0.2>MAX('T1'!N22,'T2'!L22),MAX('T1'!N22,'T2'!L22),COUNTRY_INFO!G22*0.2),IF(COUNTRY_INFO!K22=3,IF(COUNTRY_INFO!G22>MAX('T1'!N22,'T2'!L22),MAX('T1'!N22,'T2'!L22),COUNTRY_INFO!G22),0)) -> 0 | AG22: =IF(AND(COUNTRY_INFO!K22>0,COUNTRY_INFO!L22<4),IF(Z22>0,IF(COUNTRY_INFO!K22=1, 0, IF(COUNTRY_INFO!K22=2, AF22/(COUNTRY_INFO!G22*0.2)*100, IF(COUNTRY_INFO!K22=3, AF22/COUNTRY_INFO!G22*100))),"-"),0) -> 0 | AH22: 0 | AI22: =IF(AND(COUNTRY_INFO!K22>0,COUNTRY_INFO!K22<4), IF(AC22/Z22*100<>0, IF(AH22/Z22*100>100,100,AH22/Z22*100), "-"),0) -> - | AK22: =IF(AND(D22<>0, D22<>"Unknown",D22<>"Stopped",D22<>"Not required"),D22/COUNTRY_INFO!D22, 0) -> 0 | AL22: =IF(AND(J22<>0,J22<>"Unknown",J22<>"Stopped",J22<>"Not required"),J22/COUNTRY_INFO!D22, 0) -> 0 | AM22: =IF(AND(P22<>0,P22<>"Unknown",P22<>"Not required"),P22/(COUNTRY_INFO!E22+COUNTRY_INFO!F22), 0) -> 1 | AN22: =IF(AND(Z22<>0,Z22<>"Unknown",Z22<>"Not required"),IF(COUNTRY_INFO!K22=1,1,IF(COUNTRY_INFO!K22=2,0.5*COUNTRY_INFO!F22/(0.5*COUNTRY_INFO!F22+0.2*COUNTRY_INFO!G22),IF(COUNTRY_INFO!K22=3,COUNTRY_INFO!F22/(COUNTRY_INFO!F22+COUNTRY_INFO!G22)))),0) -> 1 | AO22: =IF(AND(Z22<>0,Z22<>"Unknown",Z22<>"Not required"),IF(COUNTRY_INFO!K22=1,0,IF(COUNTRY_INFO!K22=2,0.2*COUNTRY_INFO!G22/(0.5*COUNTRY_INFO!F22+0.2*COUNTRY_INFO!G22),IF(COUNTRY_INFO!K22=3,COUNTRY_INFO!G22/(COUNTRY_INFO!F22+COUNTRY_INFO!G22)))),0) -> 0 | AP22: =MAX(COUNTRY_INFO!D22*AK22*PROFILE!$G$7,COUNTRY_INFO!D22*AL22*PROFILE!$G$7) -> 0 | AQ22: =MAX(COUNTRY_INFO!D22*AK22*PROFILE!$G$8,COUNTRY_INFO!D22*AL22*PROFILE!$G$8,COUNTRY_INFO!D22*AM22*PROFILE!$G$8) -> 9346.430223 | AR22: =MAX(COUNTRY_INFO!D22*AK22*PROFILE!$G$9,COUNTRY_INFO!D22*AL22*PROFILE!$G$9,COUNTRY_INFO!D22*AM22*PROFILE!$G$9,IF(AND(DISTRICT!Z22<>"Unknown",Z22<>"Not required"),COUNTRY_INFO!P22*DISTRICT!AN22,0)) -> 14019.5749 | AS22: =MAX(COUNTRY_INFO!D22*AK22*PROFILE!$G$10,COUNTRY_INFO!D22*AL22*PROFILE!$G$10,IF(AND(DISTRICT!Z22<>"Unknown",Z22<>"Not required"),COUNTRY_INFO!P22*DISTRICT!AO22,0)) -> 0 | AT22: 23366.00512 | AU22: 0 | AV22: =MAX('MDA4'!R22,'T1'!L22,'T2'!J22,T3_R1!K22,T3_R2!K22) -> 0 | AW22: =MAX('MDA1'!K22,'MDA4'!S22,'MDA3'!I22,'MDA3'!L22,'T1'!M22,'T2'!K22,T3_R1!L22,T3_R2!L22) -> 9579 | AX22: =MAX('MDA1'!L22,'MDA4'!T22,'MDA3'!J22,'MDA3'!M22,'T1'!N22,'T2'!L22,T3_R1!M22,T3_R2!M22) -> 40 | AY22: 9619 | AZ22: =MAX('MDA4'!R22,T22) -> 0 | BA22: =MAX('MDA1'!K22,'MDA4'!S22,'MDA3'!I22,'MDA3'!L22,V22,AD22) -> 9579 | BB22: =MAX('MDA1'!L22,'MDA4'!T22,'MDA3'!J22,'MDA3'!M22,AF22) -> 0 | BC22: 9579 | BD22: 40.99545451
A23: =IF(COUNTRY_INFO!A23=0," ",COUNTRY_INFO!A23) -> Congo | B23: =IF(COUNTRY_INFO!B23=0," ",COUNTRY_INFO!B23) -> Cuvette | C23: =IF(COUNTRY_INFO!C23=0," ",COUNTRY_INFO!C23) -> Owando | D23: =COUNTRY_INFO!M23 -> 85697 | G23: =MAX('MDA1'!M23,'MDA4'!U23) -> 0 | H23: =IF(AND(COUNTRY_INFO!H23>0,COUNTRY_INFO!H23<4),IF(D23>MAX('MDA1'!M23,'MDA4'!U23),MAX('MDA1'!M23,'MDA4'!U23),D23),0) -> 0 | I23: =IF(AND(COUNTRY_INFO!H23>0,COUNTRY_INFO!H23<4), IF(G23/D23*100<>0, IF(G23/D23*100>100,100,G23/D23*100), "-"),0) -> - | J23: =COUNTRY_INFO!N23 -> 0 | M23: =MAX('MDA1'!M23,MAX('MDA3'!I23,'MDA3'!L23)+MAX('MDA3'!J23,'MDA3'!M23)) -> 0 | N23: =IF(AND(COUNTRY_INFO!I23>0,COUNTRY_INFO!I23<4),IF(J23>MAX('MDA1'!M23,MAX('MDA3'!I23,'MDA3'!L23)+MAX('MDA3'!J23,'MDA3'!M23)),MAX('MDA1'!M23,MAX('MDA3'!I23,'MDA3'!L23)+MAX('MDA3'!J23,'MDA3'!M23)),J23),0) -> 0 | O23: =IF(AND(COUNTRY_INFO!I23>0,COUNTRY_INFO!I23<4), IF(M23/J23*100<>0, IF(M23/J23*100>100,100,M23/J23*100), "-"),0) -> 0 | P23: =COUNTRY_INFO!O23 -> 0 | S23: =SUM(MAX('MDA4'!R23, 'T1'!L23, MAX(T3_R1!K23, T3_R2!K23)), MAX('MDA1'!K23, 'MDA4'!S23, 'T1'!M23, MAX(T3_R1!L23, T3_R2!L23)), MAX('MDA1'!L23, 'MDA4'!T23, 'T1'!N23, MAX(T3_R1!M23, T3_R2!M23))) -> 14970 | T23: =IF(AND(COUNTRY_INFO!J23>1,COUNTRY_INFO!J23<4),IF(COUNTRY_INFO!E23>MAX('MDA4'!R23,'T1'!L23,MAX(T3_R1!K23,T3_R2!K23)),MAX('MDA4'!R23,'T1'!L23,MAX(T3_R1!K23,T3_R2!K23)),COUNTRY_INFO!E23),0) -> 0 | U23: =IF(AND(COUNTRY_INFO!J23>1,COUNTRY_INFO!J23<4), IF(T23/COUNTRY_INFO!E23*100<>0, IF(T23/COUNTRY_INFO!E23*100>100,100,T23/COUNTRY_INFO!E23*100), "-"),0) -> 0 | V23: =IF(AND(COUNTRY_INFO!J23>1,COUNTRY_INFO!J23<4),IF(COUNTRY_INFO!F23>MAX('MDA1'!K23,'MDA4'!S23,'T1'!M23,MAX(T3_R1!L23,T3_R2!L23)),MAX('MDA1'!K23,'MDA4'!S23,'T1'!M23,MAX(T3_R1!L23,T3_R2!L23)),COUNTRY_INFO!F23),0) -> 0 | W23: =IF(AND(COUNTRY_INFO!J23>1,COUNTRY_INFO!J23<4), IF(V23/COUNTRY_INFO!F23*100<>0, IF(V23/COUNTRY_INFO!F23*100>100,100,V23/COUNTRY_INFO!F23*100), "-"),0) -> 0 | X23: 0 | Y23: =IF(AND(COUNTRY_INFO!J23>1,COUNTRY_INFO!J23<4), IF(S23/P23*100<>0, IF(X23/P23*100>100,100,X23/P23*100), "-"),0) -> 0 | Z23: =COUNTRY_INFO!P23 -> 6787.11 | AC23: =MAX('T1'!L23,'T2'!J23)+MAX('T1'!M23,'T2'!K23)+MAX('T1'!N23,'T2'!L23) -> 0 | AD23: =IF(COUNTRY_INFO!K23=1,IF(COUNTRY_INFO!F23*0.33>MAX('T1'!M23,'T2'!K23),MAX('T1'!M23,'T2'!K23),COUNTRY_INFO!F23*0.33),IF(COUNTRY_INFO!K23=2,IF(COUNTRY_INFO!F23*0.5>MAX('T1'!M23,'T2'!K23),MAX('T1'!M23,'T2'!K23),COUNTRY_INFO!F23*0.5),IF(COUNTRY_INFO!K23=3,IF(COUNTRY_INFO!F23>MAX('T1'!M23,'T2'!K23),MAX('T1'!M23,'T2'!K23),COUNTRY_INFO!F23),0))) -> 0 | AE23: =IF(AND(COUNTRY_INFO!K23>0,COUNTRY_INFO!L23<4),IF(Z23>0,IF(COUNTRY_INFO!K23=1, AD23/(COUNTRY_INFO!F23*0.33)*100, IF(COUNTRY_INFO!K23=2, AD23/(COUNTRY_INFO!F23*0.5)*100, IF(COUNTRY_INFO!K23=3, AD23/COUNTRY_INFO!F23*100))),"-"),0) -> 0 | AF23: =IF(COUNTRY_INFO!K23=2,IF(COUNTRY_INFO!G23*0.2>MAX('T1'!N23,'T2'!L23),MAX('T1'!N23,'T2'!L23),COUNTRY_INFO!G23*0.2),IF(COUNTRY_INFO!K23=3,IF(COUNTRY_INFO!G23>MAX('T1'!N23,'T2'!L23),MAX('T1'!N23,'T2'!L23),COUNTRY_INFO!G23),0)) -> 0 | AG23: =IF(AND(COUNTRY_INFO!K23>0,COUNTRY_INFO!L23<4),IF(Z23>0,IF(COUNTRY_INFO!K23=1, 0, IF(COUNTRY_INFO!K23=2, AF23/(COUNTRY_INFO!G23*0.2)*100, IF(COUNTRY_INFO!K23=3, AF23/COUNTRY_INFO!G23*100))),"-"),0) -> 0 | AH23: 0 | AI23: =IF(AND(COUNTRY_INFO!K23>0,COUNTRY_INFO!K23<4), IF(AC23/Z23*100<>0, IF(AH23/Z23*100>100,100,AH23/Z23*100), "-"),0) -> - | AK23: =IF(AND(D23<>0, D23<>"Unknown",D23<>"Stopped",D23<>"Not required"),D23/COUNTRY_INFO!D23, 0) -> 1 | AL23: =IF(AND(J23<>0,J23<>"Unknown",J23<>"Stopped",J23<>"Not required"),J23/COUNTRY_INFO!D23, 0) -> 0 | AM23: =IF(AND(P23<>0,P23<>"Unknown",P23<>"Not required"),P23/(COUNTRY_INFO!E23+COUNTRY_INFO!F23), 0) -> 0 | AN23: =IF(AND(Z23<>0,Z23<>"Unknown",Z23<>"Not required"),IF(COUNTRY_INFO!K23=1,1,IF(COUNTRY_INFO!K23=2,0.5*COUNTRY_INFO!F23/(0.5*COUNTRY_INFO!F23+0.2*COUNTRY_INFO!G23),IF(COUNTRY_INFO!K23=3,COUNTRY_INFO!F23/(COUNTRY_INFO!F23+COUNTRY_INFO!G23)))),0) -> 1 | AO23: =IF(AND(Z23<>0,Z23<>"Unknown",Z23<>"Not required"),IF(COUNTRY_INFO!K23=1,0,IF(COUNTRY_INFO!K23=2,0.2*COUNTRY_INFO!G23/(0.5*COUNTRY_INFO!F23+0.2*COUNTRY_INFO!G23),IF(COUNTRY_INFO!K23=3,COUNTRY_INFO!G23/(COUNTRY_INFO!F23+COUNTRY_INFO!G23)))),0) -> 0 | AP23: =MAX(COUNTRY_INFO!D23*AK23*PROFILE!$G$7,COUNTRY_INFO!D23*AL23*PROFILE!$G$7) -> 4027.824511 | AQ23: =MAX(COUNTRY_INFO!D23*AK23*PROFILE!$G$8,COUNTRY_INFO!D23*AL23*PROFILE!$G$8,COUNTRY_INFO!D23*AM23*PROFILE!$G$8) -> 13711.56434 | AR23: =MAX(COUNTRY_INFO!D23*AK23*PROFILE!$G$9,COUNTRY_INFO!D23*AL23*PROFILE!$G$9,COUNTRY_INFO!D23*AM23*PROFILE!$G$9,IF(AND(DISTRICT!Z23<>"Unknown",Z23<>"Not required"),COUNTRY_INFO!P23*DISTRICT!AN23,0)) -> 20567.24318 | AS23: =MAX(COUNTRY_INFO!D23*AK23*PROFILE!$G$10,COUNTRY_INFO!D23*AL23*PROFILE!$G$10,IF(AND(DISTRICT!Z23<>"Unknown",Z23<>"Not required"),COUNTRY_INFO!P23*DISTRICT!AO23,0)) -> 47390.36797 | AT23: 85697 | AU23: 0 | AV23: =MAX('MDA4'!R23,'T1'!L23,'T2'!J23,T3_R1!K23,T3_R2!K23) -> 0 | AW23: =MAX('MDA1'!K23,'MDA4'!S23,'MDA3'!I23,'MDA3'!L23,'T1'!M23,'T2'!K23,T3_R1!L23,T3_R2!L23) -> 14638 | AX23: =MAX('MDA1'!L23,'MDA4'!T23,'MDA3'!J23,'MDA3'!M23,'T1'!N23,'T2'!L23,T3_R1!M23,T3_R2!M23) -> 332 | AY23: 14970 | AZ23: =MAX('MDA4'!R23,T23) -> 0 | BA23: =MAX('MDA1'!K23,'MDA4'!S23,'MDA3'!I23,'MDA3'!L23,V23,AD23) -> 0 | BB23: =MAX('MDA1'!L23,'MDA4'!T23,'MDA3'!J23,'MDA3'!M23,AF23) -> 0 | BC23: 0 | BD23: 0
A24: =IF(COUNTRY_INFO!A24=0," ",COUNTRY_INFO!A24) -> Congo | B24: =IF(COUNTRY_INFO!B24=0," ",COUNTRY_INFO!B24) -> Cuvette | C24: =IF(COUNTRY_INFO!C24=0," ",COUNTRY_INFO!C24) -> Oyo | D24: =COUNTRY_INFO!M24 -> 0 | G24: =MAX('MDA1'!M24,'MDA4'!U24) -> 0 | H24: =IF(AND(COUNTRY_INFO!H24>0,COUNTRY_INFO!H24<4),IF(D24>MAX('MDA1'!M24,'MDA4'!U24),MAX('MDA1'!M24,'MDA4'!U24),D24),0) -> 0 | I24: =IF(AND(COUNTRY_INFO!H24>0,COUNTRY_INFO!H24<4), IF(G24/D24*100<>0, IF(G24/D24*100>100,100,G24/D24*100), "-"),0) -> 0 | J24: =COUNTRY_INFO!N24 -> 0 | M24: =MAX('MDA1'!M24,MAX('MDA3'!I24,'MDA3'!L24)+MAX('MDA3'!J24,'MDA3'!M24)) -> 0 | N24: =IF(AND(COUNTRY_INFO!I24>0,COUNTRY_INFO!I24<4),IF(J24>MAX('MDA1'!M24,MAX('MDA3'!I24,'MDA3'!L24)+MAX('MDA3'!J24,'MDA3'!M24)),MAX('MDA1'!M24,MAX('MDA3'!I24,'MDA3'!L24)+MAX('MDA3'!J24,'MDA3'!M24)),J24),0) -> 0 | O24: =IF(AND(COUNTRY_INFO!I24>0,COUNTRY_INFO!I24<4), IF(M24/J24*100<>0, IF(M24/J24*100>100,100,M24/J24*100), "-"),0) -> 0 | P24: =COUNTRY_INFO!O24 -> 0 | S24: =SUM(MAX('MDA4'!R24, 'T1'!L24, MAX(T3_R1!K24, T3_R2!K24)), MAX('MDA1'!K24, 'MDA4'!S24, 'T1'!M24, MAX(T3_R1!L24, T3_R2!L24)), MAX('MDA1'!L24, 'MDA4'!T24, 'T1'!N24, MAX(T3_R1!M24, T3_R2!M24))) -> 12051 | T24: =IF(AND(COUNTRY_INFO!J24>1,COUNTRY_INFO!J24<4),IF(COUNTRY_INFO!E24>MAX('MDA4'!R24,'T1'!L24,MAX(T3_R1!K24,T3_R2!K24)),MAX('MDA4'!R24,'T1'!L24,MAX(T3_R1!K24,T3_R2!K24)),COUNTRY_INFO!E24),0) -> 0 | U24: =IF(AND(COUNTRY_INFO!J24>1,COUNTRY_INFO!J24<4), IF(T24/COUNTRY_INFO!E24*100<>0, IF(T24/COUNTRY_INFO!E24*100>100,100,T24/COUNTRY_INFO!E24*100), "-"),0) -> 0 | V24: =IF(AND(COUNTRY_INFO!J24>1,COUNTRY_INFO!J24<4),IF(COUNTRY_INFO!F24>MAX('MDA1'!K24,'MDA4'!S24,'T1'!M24,MAX(T3_R1!L24,T3_R2!L24)),MAX('MDA1'!K24,'MDA4'!S24,'T1'!M24,MAX(T3_R1!L24,T3_R2!L24)),COUNTRY_INFO!F24),0) -> 0 | W24: =IF(AND(COUNTRY_INFO!J24>1,COUNTRY_INFO!J24<4), IF(V24/COUNTRY_INFO!F24*100<>0, IF(V24/COUNTRY_INFO!F24*100>100,100,V24/COUNTRY_INFO!F24*100), "-"),0) -> 0 | X24: 0 | Y24: =IF(AND(COUNTRY_INFO!J24>1,COUNTRY_INFO!J24<4), IF(S24/P24*100<>0, IF(X24/P24*100>100,100,X24/P24*100), "-"),0) -> 0 | Z24: =COUNTRY_INFO!P24 -> 0 | AC24: =MAX('T1'!L24,'T2'!J24)+MAX('T1'!M24,'T2'!K24)+MAX('T1'!N24,'T2'!L24) -> 0 | AD24: =IF(COUNTRY_INFO!K24=1,IF(COUNTRY_INFO!F24*0.33>MAX('T1'!M24,'T2'!K24),MAX('T1'!M24,'T2'!K24),COUNTRY_INFO!F24*0.33),IF(COUNTRY_INFO!K24=2,IF(COUNTRY_INFO!F24*0.5>MAX('T1'!M24,'T2'!K24),MAX('T1'!M24,'T2'!K24),COUNTRY_INFO!F24*0.5),IF(COUNTRY_INFO!K24=3,IF(COUNTRY_INFO!F24>MAX('T1'!M24,'T2'!K24),MAX('T1'!M24,'T2'!K24),COUNTRY_INFO!F24),0))) -> 0 | AE24: =IF(AND(COUNTRY_INFO!K24>0,COUNTRY_INFO!L24<4),IF(Z24>0,IF(COUNTRY_INFO!K24=1, AD24/(COUNTRY_INFO!F24*0.33)*100, IF(COUNTRY_INFO!K24=2, AD24/(COUNTRY_INFO!F24*0.5)*100, IF(COUNTRY_INFO!K24=3, AD24/COUNTRY_INFO!F24*100))),"-"),0) -> 0 | AF24: =IF(COUNTRY_INFO!K24=2,IF(COUNTRY_INFO!G24*0.2>MAX('T1'!N24,'T2'!L24),MAX('T1'!N24,'T2'!L24),COUNTRY_INFO!G24*0.2),IF(COUNTRY_INFO!K24=3,IF(COUNTRY_INFO!G24>MAX('T1'!N24,'T2'!L24),MAX('T1'!N24,'T2'!L24),COUNTRY_INFO!G24),0)) -> 0 | AG24: =IF(AND(COUNTRY_INFO!K24>0,COUNTRY_INFO!L24<4),IF(Z24>0,IF(COUNTRY_INFO!K24=1, 0, IF(COUNTRY_INFO!K24=2, AF24/(COUNTRY_INFO!G24*0.2)*100, IF(COUNTRY_INFO!K24=3, AF24/COUNTRY_INFO!G24*100))),"-"),0) -> 0 | AH24: 0 | AI24: =IF(AND(COUNTRY_INFO!K24>0,COUNTRY_INFO!K24<4), IF(AC24/Z24*100<>0, IF(AH24/Z24*100>100,100,AH24/Z24*100), "-"),0) -> 0 | AK24: =IF(AND(D24<>0, D24<>"Unknown",D24<>"Stopped",D24<>"Not required"),D24/COUNTRY_INFO!D24, 0) -> 0 | AL24: =IF(AND(J24<>0,J24<>"Unknown",J24<>"Stopped",J24<>"Not required"),J24/COUNTRY_INFO!D24, 0) -> 0 | AM24: =IF(AND(P24<>0,P24<>"Unknown",P24<>"Not required"),P24/(COUNTRY_INFO!E24+COUNTRY_INFO!F24), 0) -> 0 | AN24: =IF(AND(Z24<>0,Z24<>"Unknown",Z24<>"Not required"),IF(COUNTRY_INFO!K24=1,1,IF(COUNTRY_INFO!K24=2,0.5*COUNTRY_INFO!F24/(0.5*COUNTRY_INFO!F24+0.2*COUNTRY_INFO!G24),IF(COUNTRY_INFO!K24=3,COUNTRY_INFO!F24/(COUNTRY_INFO!F24+COUNTRY_INFO!G24)))),0) -> 0 | AO24: =IF(AND(Z24<>0,Z24<>"Unknown",Z24<>"Not required"),IF(COUNTRY_INFO!K24=1,0,IF(COUNTRY_INFO!K24=2,0.2*COUNTRY_INFO!G24/(0.5*COUNTRY_INFO!F24+0.2*COUNTRY_INFO!G24),IF(COUNTRY_INFO!K24=3,COUNTRY_INFO!G24/(COUNTRY_INFO!F24+COUNTRY_INFO!G24)))),0) -> 0 | AP24: =MAX(COUNTRY_INFO!D24*AK24*PROFILE!$G$7,COUNTRY_INFO!D24*AL24*PROFILE!$G$7) -> 0 | AQ24: =MAX(COUNTRY_INFO!D24*AK24*PROFILE!$G$8,COUNTRY_INFO!D24*AL24*PROFILE!$G$8,COUNTRY_INFO!D24*AM24*PROFILE!$G$8) -> 0 | AR24: =MAX(COUNTRY_INFO!D24*AK24*PROFILE!$G$9,COUNTRY_INFO!D24*AL24*PROFILE!$G$9,COUNTRY_INFO!D24*AM24*PROFILE!$G$9,IF(AND(DISTRICT!Z24<>"Unknown",Z24<>"Not required"),COUNTRY_INFO!P24*DISTRICT!AN24,0)) -> 0 | AS24: =MAX(COUNTRY_INFO!D24*AK24*PROFILE!$G$10,COUNTRY_INFO!D24*AL24*PROFILE!$G$10,IF(AND(DISTRICT!Z24<>"Unknown",Z24<>"Not required"),COUNTRY_INFO!P24*DISTRICT!AO24,0)) -> 0 | AT24: 0 | AU24: 0 | AV24: =MAX('MDA4'!R24,'T1'!L24,'T2'!J24,T3_R1!K24,T3_R2!K24) -> 0 | AW24: =MAX('MDA1'!K24,'MDA4'!S24,'MDA3'!I24,'MDA3'!L24,'T1'!M24,'T2'!K24,T3_R1!L24,T3_R2!L24) -> 11976 | AX24: =MAX('MDA1'!L24,'MDA4'!T24,'MDA3'!J24,'MDA3'!M24,'T1'!N24,'T2'!L24,T3_R1!M24,T3_R2!M24) -> 75 | AY24: 12051 | AZ24: =MAX('MDA4'!R24,T24) -> 0 | BA24: =MAX('MDA1'!K24,'MDA4'!S24,'MDA3'!I24,'MDA3'!L24,V24,AD24) -> 0 | BB24: =MAX('MDA1'!L24,'MDA4'!T24,'MDA3'!J24,'MDA3'!M24,AF24) -> 0 | BC24: 0 | BD24: 0
A25: =IF(COUNTRY_INFO!A25=0," ",COUNTRY_INFO!A25) -> Congo | B25: =IF(COUNTRY_INFO!B25=0," ",COUNTRY_INFO!B25) -> Cuvette-Ouest | C25: =IF(COUNTRY_INFO!C25=0," ",COUNTRY_INFO!C25) -> Etoumbi | D25: =COUNTRY_INFO!M25 -> 43125 | G25: =MAX('MDA1'!M25,'MDA4'!U25) -> 0 | H25: =IF(AND(COUNTRY_INFO!H25>0,COUNTRY_INFO!H25<4),IF(D25>MAX('MDA1'!M25,'MDA4'!U25),MAX('MDA1'!M25,'MDA4'!U25),D25),0) -> 0 | I25: =IF(AND(COUNTRY_INFO!H25>0,COUNTRY_INFO!H25<4), IF(G25/D25*100<>0, IF(G25/D25*100>100,100,G25/D25*100), "-"),0) -> - | J25: =COUNTRY_INFO!N25 -> 0 | M25: =MAX('MDA1'!M25,MAX('MDA3'!I25,'MDA3'!L25)+MAX('MDA3'!J25,'MDA3'!M25)) -> 0 | N25: =IF(AND(COUNTRY_INFO!I25>0,COUNTRY_INFO!I25<4),IF(J25>MAX('MDA1'!M25,MAX('MDA3'!I25,'MDA3'!L25)+MAX('MDA3'!J25,'MDA3'!M25)),MAX('MDA1'!M25,MAX('MDA3'!I25,'MDA3'!L25)+MAX('MDA3'!J25,'MDA3'!M25)),J25),0) -> 0 | O25: =IF(AND(COUNTRY_INFO!I25>0,COUNTRY_INFO!I25<4), IF(M25/J25*100<>0, IF(M25/J25*100>100,100,M25/J25*100), "-"),0) -> 0 | P25: =COUNTRY_INFO!O25 -> 17250 | S25: =SUM(MAX('MDA4'!R25, 'T1'!L25, MAX(T3_R1!K25, T3_R2!K25)), MAX('MDA1'!K25, 'MDA4'!S25, 'T1'!M25, MAX(T3_R1!L25, T3_R2!L25)), MAX('MDA1'!L25, 'MDA4'!T25, 'T1'!N25, MAX(T3_R1!M25, T3_R2!M25))) -> 4222 | T25: =IF(AND(COUNTRY_INFO!J25>1,COUNTRY_INFO!J25<4),IF(COUNTRY_INFO!E25>MAX('MDA4'!R25,'T1'!L25,MAX(T3_R1!K25,T3_R2!K25)),MAX('MDA4'!R25,'T1'!L25,MAX(T3_R1!K25,T3_R2!K25)),COUNTRY_INFO!E25),0) -> 0 | U25: =IF(AND(COUNTRY_INFO!J25>1,COUNTRY_INFO!J25<4), IF(T25/COUNTRY_INFO!E25*100<>0, IF(T25/COUNTRY_INFO!E25*100>100,100,T25/COUNTRY_INFO!E25*100), "-"),0) -> - | V25: =IF(AND(COUNTRY_INFO!J25>1,COUNTRY_INFO!J25<4),IF(COUNTRY_INFO!F25>MAX('MDA1'!K25,'MDA4'!S25,'T1'!M25,MAX(T3_R1!L25,T3_R2!L25)),MAX('MDA1'!K25,'MDA4'!S25,'T1'!M25,MAX(T3_R1!L25,T3_R2!L25)),COUNTRY_INFO!F25),0) -> 4014 | W25: =IF(AND(COUNTRY_INFO!J25>1,COUNTRY_INFO!J25<4), IF(V25/COUNTRY_INFO!F25*100<>0, IF(V25/COUNTRY_INFO!F25*100>100,100,V25/COUNTRY_INFO!F25*100), "-"),0) -> 38.7826087 | X25: 4014 | Y25: =IF(AND(COUNTRY_INFO!J25>1,COUNTRY_INFO!J25<4), IF(S25/P25*100<>0, IF(X25/P25*100>100,100,X25/P25*100), "-"),0) -> 23.26956522 | Z25: =COUNTRY_INFO!P25 -> 0 | AC25: =MAX('T1'!L25,'T2'!J25)+MAX('T1'!M25,'T2'!K25)+MAX('T1'!N25,'T2'!L25) -> 0 | AD25: =IF(COUNTRY_INFO!K25=1,IF(COUNTRY_INFO!F25*0.33>MAX('T1'!M25,'T2'!K25),MAX('T1'!M25,'T2'!K25),COUNTRY_INFO!F25*0.33),IF(COUNTRY_INFO!K25=2,IF(COUNTRY_INFO!F25*0.5>MAX('T1'!M25,'T2'!K25),MAX('T1'!M25,'T2'!K25),COUNTRY_INFO!F25*0.5),IF(COUNTRY_INFO!K25=3,IF(COUNTRY_INFO!F25>MAX('T1'!M25,'T2'!K25),MAX('T1'!M25,'T2'!K25),COUNTRY_INFO!F25),0))) -> 0 | AE25: =IF(AND(COUNTRY_INFO!K25>0,COUNTRY_INFO!L25<4),IF(Z25>0,IF(COUNTRY_INFO!K25=1, AD25/(COUNTRY_INFO!F25*0.33)*100, IF(COUNTRY_INFO!K25=2, AD25/(COUNTRY_INFO!F25*0.5)*100, IF(COUNTRY_INFO!K25=3, AD25/COUNTRY_INFO!F25*100))),"-"),0) -> 0 | AF25: =IF(COUNTRY_INFO!K25=2,IF(COUNTRY_INFO!G25*0.2>MAX('T1'!N25,'T2'!L25),MAX('T1'!N25,'T2'!L25),COUNTRY_INFO!G25*0.2),IF(COUNTRY_INFO!K25=3,IF(COUNTRY_INFO!G25>MAX('T1'!N25,'T2'!L25),MAX('T1'!N25,'T2'!L25),COUNTRY_INFO!G25),0)) -> 0 | AG25: =IF(AND(COUNTRY_INFO!K25>0,COUNTRY_INFO!L25<4),IF(Z25>0,IF(COUNTRY_INFO!K25=1, 0, IF(COUNTRY_INFO!K25=2, AF25/(COUNTRY_INFO!G25*0.2)*100, IF(COUNTRY_INFO!K25=3, AF25/COUNTRY_INFO!G25*100))),"-"),0) -> 0 | AH25: 0 | AI25: =IF(AND(COUNTRY_INFO!K25>0,COUNTRY_INFO!K25<4), IF(AC25/Z25*100<>0, IF(AH25/Z25*100>100,100,AH25/Z25*100), "-"),0) -> 0 | AK25: =IF(AND(D25<>0, D25<>"Unknown",D25<>"Stopped",D25<>"Not required"),D25/COUNTRY_INFO!D25, 0) -> 1 | AL25: =IF(AND(J25<>0,J25<>"Unknown",J25<>"Stopped",J25<>"Not required"),J25/COUNTRY_INFO!D25, 0) -> 0 | AM25: =IF(AND(P25<>0,P25<>"Unknown",P25<>"Not required"),P25/(COUNTRY_INFO!E25+COUNTRY_INFO!F25), 0) -> 1 | AN25: =IF(AND(Z25<>0,Z25<>"Unknown",Z25<>"Not required"),IF(COUNTRY_INFO!K25=1,1,IF(COUNTRY_INFO!K25=2,0.5*COUNTRY_INFO!F25/(0.5*COUNTRY_INFO!F25+0.2*COUNTRY_INFO!G25),IF(COUNTRY_INFO!K25=3,COUNTRY_INFO!F25/(COUNTRY_INFO!F25+COUNTRY_INFO!G25)))),0) -> 0 | AO25: =IF(AND(Z25<>0,Z25<>"Unknown",Z25<>"Not required"),IF(COUNTRY_INFO!K25=1,0,IF(COUNTRY_INFO!K25=2,0.2*COUNTRY_INFO!G25/(0.5*COUNTRY_INFO!F25+0.2*COUNTRY_INFO!G25),IF(COUNTRY_INFO!K25=3,COUNTRY_INFO!G25/(COUNTRY_INFO!F25+COUNTRY_INFO!G25)))),0) -> 0 | AP25: =MAX(COUNTRY_INFO!D25*AK25*PROFILE!$G$7,COUNTRY_INFO!D25*AL25*PROFILE!$G$7) -> 2026.907967 | AQ25: =MAX(COUNTRY_INFO!D25*AK25*PROFILE!$G$8,COUNTRY_INFO!D25*AL25*PROFILE!$G$8,COUNTRY_INFO!D25*AM25*PROFILE!$G$8) -> 6900.022312 | AR25: =MAX(COUNTRY_INFO!D25*AK25*PROFILE!$G$9,COUNTRY_INFO!D25*AL25*PROFILE!$G$9,COUNTRY_INFO!D25*AM25*PROFILE!$G$9,IF(AND(DISTRICT!Z25<>"Unknown",Z25<>"Not required"),COUNTRY_INFO!P25*DISTRICT!AN25,0)) -> 10349.98147 | AS25: =MAX(COUNTRY_INFO!D25*AK25*PROFILE!$G$10,COUNTRY_INFO!D25*AL25*PROFILE!$G$10,IF(AND(DISTRICT!Z25<>"Unknown",Z25<>"Not required"),COUNTRY_INFO!P25*DISTRICT!AO25,0)) -> 23848.08825 | AT25: 43125 | AU25: 0 | AV25: =MAX('MDA4'!R25,'T1'!L25,'T2'!J25,T3_R1!K25,T3_R2!K25) -> 0 | AW25: =MAX('MDA1'!K25,'MDA4'!S25,'MDA3'!I25,'MDA3'!L25,'T1'!M25,'T2'!K25,T3_R1!L25,T3_R2!L25) -> 4014 | AX25: =MAX('MDA1'!L25,'MDA4'!T25,'MDA3'!J25,'MDA3'!M25,'T1'!N25,'T2'!L25,T3_R1!M25,T3_R2!M25) -> 208 | AY25: 4222 | AZ25: =MAX('MDA4'!R25,T25) -> 0 | BA25: =MAX('MDA1'!K25,'MDA4'!S25,'MDA3'!I25,'MDA3'!L25,V25,AD25) -> 4014 | BB25: =MAX('MDA1'!L25,'MDA4'!T25,'MDA3'!J25,'MDA3'!M25,AF25) -> 0 | BC25: 4014 | BD25: 9.307826087
A26: =IF(COUNTRY_INFO!A26=0," ",COUNTRY_INFO!A26) -> Congo | B26: =IF(COUNTRY_INFO!B26=0," ",COUNTRY_INFO!B26) -> Cuvette-Ouest | C26: =IF(COUNTRY_INFO!C26=0," ",COUNTRY_INFO!C26) -> Ewo | D26: =COUNTRY_INFO!M26 -> 47449 | G26: =MAX('MDA1'!M26,'MDA4'!U26) -> 0 | H26: =IF(AND(COUNTRY_INFO!H26>0,COUNTRY_INFO!H26<4),IF(D26>MAX('MDA1'!M26,'MDA4'!U26),MAX('MDA1'!M26,'MDA4'!U26),D26),0) -> 0 | I26: =IF(AND(COUNTRY_INFO!H26>0,COUNTRY_INFO!H26<4), IF(G26/D26*100<>0, IF(G26/D26*100>100,100,G26/D26*100), "-"),0) -> - | J26: =COUNTRY_INFO!N26 -> 0 | M26: =MAX('MDA1'!M26,MAX('MDA3'!I26,'MDA3'!L26)+MAX('MDA3'!J26,'MDA3'!M26)) -> 0 | N26: =IF(AND(COUNTRY_INFO!I26>0,COUNTRY_INFO!I26<4),IF(J26>MAX('MDA1'!M26,MAX('MDA3'!I26,'MDA3'!L26)+MAX('MDA3'!J26,'MDA3'!M26)),MAX('MDA1'!M26,MAX('MDA3'!I26,'MDA3'!L26)+MAX('MDA3'!J26,'MDA3'!M26)),J26),0) -> 0 | O26: =IF(AND(COUNTRY_INFO!I26>0,COUNTRY_INFO!I26<4), IF(M26/J26*100<>0, IF(M26/J26*100>100,100,M26/J26*100), "-"),0) -> 0 | P26: =COUNTRY_INFO!O26 -> 18980 | S26: =SUM(MAX('MDA4'!R26, 'T1'!L26, MAX(T3_R1!K26, T3_R2!K26)), MAX('MDA1'!K26, 'MDA4'!S26, 'T1'!M26, MAX(T3_R1!L26, T3_R2!L26)), MAX('MDA1'!L26, 'MDA4'!T26, 'T1'!N26, MAX(T3_R1!M26, T3_R2!M26))) -> 9755 | T26: =IF(AND(COUNTRY_INFO!J26>1,COUNTRY_INFO!J26<4),IF(COUNTRY_INFO!E26>MAX('MDA4'!R26,'T1'!L26,MAX(T3_R1!K26,T3_R2!K26)),MAX('MDA4'!R26,'T1'!L26,MAX(T3_R1!K26,T3_R2!K26)),COUNTRY_INFO!E26),0) -> 0 | U26: =IF(AND(COUNTRY_INFO!J26>1,COUNTRY_INFO!J26<4), IF(T26/COUNTRY_INFO!E26*100<>0, IF(T26/COUNTRY_INFO!E26*100>100,100,T26/COUNTRY_INFO!E26*100), "-"),0) -> - | V26: =IF(AND(COUNTRY_INFO!J26>1,COUNTRY_INFO!J26<4),IF(COUNTRY_INFO!F26>MAX('MDA1'!K26,'MDA4'!S26,'T1'!M26,MAX(T3_R1!L26,T3_R2!L26)),MAX('MDA1'!K26,'MDA4'!S26,'T1'!M26,MAX(T3_R1!L26,T3_R2!L26)),COUNTRY_INFO!F26),0) -> 9659 | W26: =IF(AND(COUNTRY_INFO!J26>1,COUNTRY_INFO!J26<4), IF(V26/COUNTRY_INFO!F26*100<>0, IF(V26/COUNTRY_INFO!F26*100>100,100,V26/COUNTRY_INFO!F26*100), "-"),0) -> 84.8173516 | X26: 9659 | Y26: =IF(AND(COUNTRY_INFO!J26>1,COUNTRY_INFO!J26<4), IF(S26/P26*100<>0, IF(X26/P26*100>100,100,X26/P26*100), "-"),0) -> 50.89041096 | Z26: =COUNTRY_INFO!P26 -> 3758.04 | AC26: =MAX('T1'!L26,'T2'!J26)+MAX('T1'!M26,'T2'!K26)+MAX('T1'!N26,'T2'!L26) -> 0 | AD26: =IF(COUNTRY_INFO!K26=1,IF(COUNTRY_INFO!F26*0.33>MAX('T1'!M26,'T2'!K26),MAX('T1'!M26,'T2'!K26),COUNTRY_INFO!F26*0.33),IF(COUNTRY_INFO!K26=2,IF(COUNTRY_INFO!F26*0.5>MAX('T1'!M26,'T2'!K26),MAX('T1'!M26,'T2'!K26),COUNTRY_INFO!F26*0.5),IF(COUNTRY_INFO!K26=3,IF(COUNTRY_INFO!F26>MAX('T1'!M26,'T2'!K26),MAX('T1'!M26,'T2'!K26),COUNTRY_INFO!F26),0))) -> 0 | AE26: =IF(AND(COUNTRY_INFO!K26>0,COUNTRY_INFO!L26<4),IF(Z26>0,IF(COUNTRY_INFO!K26=1, AD26/(COUNTRY_INFO!F26*0.33)*100, IF(COUNTRY_INFO!K26=2, AD26/(COUNTRY_INFO!F26*0.5)*100, IF(COUNTRY_INFO!K26=3, AD26/COUNTRY_INFO!F26*100))),"-"),0) -> 0 | AF26: =IF(COUNTRY_INFO!K26=2,IF(COUNTRY_INFO!G26*0.2>MAX('T1'!N26,'T2'!L26),MAX('T1'!N26,'T2'!L26),COUNTRY_INFO!G26*0.2),IF(COUNTRY_INFO!K26=3,IF(COUNTRY_INFO!G26>MAX('T1'!N26,'T2'!L26),MAX('T1'!N26,'T2'!L26),COUNTRY_INFO!G26),0)) -> 0 | AG26: =IF(AND(COUNTRY_INFO!K26>0,COUNTRY_INFO!L26<4),IF(Z26>0,IF(COUNTRY_INFO!K26=1, 0, IF(COUNTRY_INFO!K26=2, AF26/(COUNTRY_INFO!G26*0.2)*100, IF(COUNTRY_INFO!K26=3, AF26/COUNTRY_INFO!G26*100))),"-"),0) -> 0 | AH26: 0 | AI26: =IF(AND(COUNTRY_INFO!K26>0,COUNTRY_INFO!K26<4), IF(AC26/Z26*100<>0, IF(AH26/Z26*100>100,100,AH26/Z26*100), "-"),0) -> - | AK26: =IF(AND(D26<>0, D26<>"Unknown",D26<>"Stopped",D26<>"Not required"),D26/COUNTRY_INFO!D26, 0) -> 1 | AL26: =IF(AND(J26<>0,J26<>"Unknown",J26<>"Stopped",J26<>"Not required"),J26/COUNTRY_INFO!D26, 0) -> 0 | AM26: =IF(AND(P26<>0,P26<>"Unknown",P26<>"Not required"),P26/(COUNTRY_INFO!E26+COUNTRY_INFO!F26), 0) -> 1 | AN26: =IF(AND(Z26<>0,Z26<>"Unknown",Z26<>"Not required"),IF(COUNTRY_INFO!K26=1,1,IF(COUNTRY_INFO!K26=2,0.5*COUNTRY_INFO!F26/(0.5*COUNTRY_INFO!F26+0.2*COUNTRY_INFO!G26),IF(COUNTRY_INFO!K26=3,COUNTRY_INFO!F26/(COUNTRY_INFO!F26+COUNTRY_INFO!G26)))),0) -> 1 | AO26: =IF(AND(Z26<>0,Z26<>"Unknown",Z26<>"Not required"),IF(COUNTRY_INFO!K26=1,0,IF(COUNTRY_INFO!K26=2,0.2*COUNTRY_INFO!G26/(0.5*COUNTRY_INFO!F26+0.2*COUNTRY_INFO!G26),IF(COUNTRY_INFO!K26=3,COUNTRY_INFO!G26/(COUNTRY_INFO!F26+COUNTRY_INFO!G26)))),0) -> 0 | AP26: =MAX(COUNTRY_INFO!D26*AK26*PROFILE!$G$7,COUNTRY_INFO!D26*AL26*PROFILE!$G$7) -> 2230.139272 | AQ26: =MAX(COUNTRY_INFO!D26*AK26*PROFILE!$G$8,COUNTRY_INFO!D26*AL26*PROFILE!$G$8,COUNTRY_INFO!D26*AM26*PROFILE!$G$8) -> 7591.864549 | AR26: =MAX(COUNTRY_INFO!D26*AK26*PROFILE!$G$9,COUNTRY_INFO!D26*AL26*PROFILE!$G$9,COUNTRY_INFO!D26*AM26*PROFILE!$G$9,IF(AND(DISTRICT!Z26<>"Unknown",Z26<>"Not required"),COUNTRY_INFO!P26*DISTRICT!AN26,0)) -> 11387.73961 | AS26: =MAX(COUNTRY_INFO!D26*AK26*PROFILE!$G$10,COUNTRY_INFO!D26*AL26*PROFILE!$G$10,IF(AND(DISTRICT!Z26<>"Unknown",Z26<>"Not required"),COUNTRY_INFO!P26*DISTRICT!AO26,0)) -> 26239.25657 | AT26: 47449 | AU26: 0 | AV26: =MAX('MDA4'!R26,'T1'!L26,'T2'!J26,T3_R1!K26,T3_R2!K26) -> 0 | AW26: =MAX('MDA1'!K26,'MDA4'!S26,'MDA3'!I26,'MDA3'!L26,'T1'!M26,'T2'!K26,T3_R1!L26,T3_R2!L26) -> 9659 | AX26: =MAX('MDA1'!L26,'MDA4'!T26,'MDA3'!J26,'MDA3'!M26,'T1'!N26,'T2'!L26,T3_R1!M26,T3_R2!M26) -> 96 | AY26: 9755 | AZ26: =MAX('MDA4'!R26,T26) -> 0 | BA26: =MAX('MDA1'!K26,'MDA4'!S26,'MDA3'!I26,'MDA3'!L26,V26,AD26) -> 9659 | BB26: =MAX('MDA1'!L26,'MDA4'!T26,'MDA3'!J26,'MDA3'!M26,AF26) -> 0 | BC26: 9659 | BD26: 20.3565934
A27: =IF(COUNTRY_INFO!A27=0," ",COUNTRY_INFO!A27) -> Congo | B27: =IF(COUNTRY_INFO!B27=0," ",COUNTRY_INFO!B27) -> Kouilou | C27: =IF(COUNTRY_INFO!C27=0," ",COUNTRY_INFO!C27) -> Hinda-Mvouti | D27: =COUNTRY_INFO!M27 -> 0 | G27: =MAX('MDA1'!M27,'MDA4'!U27) -> 0 | H27: =IF(AND(COUNTRY_INFO!H27>0,COUNTRY_INFO!H27<4),IF(D27>MAX('MDA1'!M27,'MDA4'!U27),MAX('MDA1'!M27,'MDA4'!U27),D27),0) -> 0 | I27: =IF(AND(COUNTRY_INFO!H27>0,COUNTRY_INFO!H27<4), IF(G27/D27*100<>0, IF(G27/D27*100>100,100,G27/D27*100), "-"),0) -> 0 | J27: =COUNTRY_INFO!N27 -> 0 | M27: =MAX('MDA1'!M27,MAX('MDA3'!I27,'MDA3'!L27)+MAX('MDA3'!J27,'MDA3'!M27)) -> 0 | N27: =IF(AND(COUNTRY_INFO!I27>0,COUNTRY_INFO!I27<4),IF(J27>MAX('MDA1'!M27,MAX('MDA3'!I27,'MDA3'!L27)+MAX('MDA3'!J27,'MDA3'!M27)),MAX('MDA1'!M27,MAX('MDA3'!I27,'MDA3'!L27)+MAX('MDA3'!J27,'MDA3'!M27)),J27),0) -> 0 | O27: =IF(AND(COUNTRY_INFO!I27>0,COUNTRY_INFO!I27<4), IF(M27/J27*100<>0, IF(M27/J27*100>100,100,M27/J27*100), "-"),0) -> 0 | P27: =COUNTRY_INFO!O27 -> 33623 | S27: =SUM(MAX('MDA4'!R27, 'T1'!L27, MAX(T3_R1!K27, T3_R2!K27)), MAX('MDA1'!K27, 'MDA4'!S27, 'T1'!M27, MAX(T3_R1!L27, T3_R2!L27)), MAX('MDA1'!L27, 'MDA4'!T27, 'T1'!N27, MAX(T3_R1!M27, T3_R2!M27))) -> 6756 | T27: =IF(AND(COUNTRY_INFO!J27>1,COUNTRY_INFO!J27<4),IF(COUNTRY_INFO!E27>MAX('MDA4'!R27,'T1'!L27,MAX(T3_R1!K27,T3_R2!K27)),MAX('MDA4'!R27,'T1'!L27,MAX(T3_R1!K27,T3_R2!K27)),COUNTRY_INFO!E27),0) -> 0 | U27: =IF(AND(COUNTRY_INFO!J27>1,COUNTRY_INFO!J27<4), IF(T27/COUNTRY_INFO!E27*100<>0, IF(T27/COUNTRY_INFO!E27*100>100,100,T27/COUNTRY_INFO!E27*100), "-"),0) -> - | V27: =IF(AND(COUNTRY_INFO!J27>1,COUNTRY_INFO!J27<4),IF(COUNTRY_INFO!F27>MAX('MDA1'!K27,'MDA4'!S27,'T1'!M27,MAX(T3_R1!L27,T3_R2!L27)),MAX('MDA1'!K27,'MDA4'!S27,'T1'!M27,MAX(T3_R1!L27,T3_R2!L27)),COUNTRY_INFO!F27),0) -> 6535 | W27: =IF(AND(COUNTRY_INFO!J27>1,COUNTRY_INFO!J27<4), IF(V27/COUNTRY_INFO!F27*100<>0, IF(V27/COUNTRY_INFO!F27*100>100,100,V27/COUNTRY_INFO!F27*100), "-"),0) -> 32.39317934 | X27: 6535 | Y27: =IF(AND(COUNTRY_INFO!J27>1,COUNTRY_INFO!J27<4), IF(S27/P27*100<>0, IF(X27/P27*100>100,100,X27/P27*100), "-"),0) -> 19.43610029 | Z27: =COUNTRY_INFO!P27 -> 6657.42 | AC27: =MAX('T1'!L27,'T2'!J27)+MAX('T1'!M27,'T2'!K27)+MAX('T1'!N27,'T2'!L27) -> 6756 | AD27: =IF(COUNTRY_INFO!K27=1,IF(COUNTRY_INFO!F27*0.33>MAX('T1'!M27,'T2'!K27),MAX('T1'!M27,'T2'!K27),COUNTRY_INFO!F27*0.33),IF(COUNTRY_INFO!K27=2,IF(COUNTRY_INFO!F27*0.5>MAX('T1'!M27,'T2'!K27),MAX('T1'!M27,'T2'!K27),COUNTRY_INFO!F27*0.5),IF(COUNTRY_INFO!K27=3,IF(COUNTRY_INFO!F27>MAX('T1'!M27,'T2'!K27),MAX('T1'!M27,'T2'!K27),COUNTRY_INFO!F27),0))) -> 6535 | AE27: =IF(AND(COUNTRY_INFO!K27>0,COUNTRY_INFO!L27<4),IF(Z27>0,IF(COUNTRY_INFO!K27=1, AD27/(COUNTRY_INFO!F27*0.33)*100, IF(COUNTRY_INFO!K27=2, AD27/(COUNTRY_INFO!F27*0.5)*100, IF(COUNTRY_INFO!K27=3, AD27/COUNTRY_INFO!F27*100))),"-"),0) -> 98.16114951 | AF27: =IF(COUNTRY_INFO!K27=2,IF(COUNTRY_INFO!G27*0.2>MAX('T1'!N27,'T2'!L27),MAX('T1'!N27,'T2'!L27),COUNTRY_INFO!G27*0.2),IF(COUNTRY_INFO!K27=3,IF(COUNTRY_INFO!G27>MAX('T1'!N27,'T2'!L27),MAX('T1'!N27,'T2'!L27),COUNTRY_INFO!G27),0)) -> 0 | AG27: =IF(AND(COUNTRY_INFO!K27>0,COUNTRY_INFO!L27<4),IF(Z27>0,IF(COUNTRY_INFO!K27=1, 0, IF(COUNTRY_INFO!K27=2, AF27/(COUNTRY_INFO!G27*0.2)*100, IF(COUNTRY_INFO!K27=3, AF27/COUNTRY_INFO!G27*100))),"-"),0) -> 0 | AH27: 6535 | AI27: =IF(AND(COUNTRY_INFO!K27>0,COUNTRY_INFO!K27<4), IF(AC27/Z27*100<>0, IF(AH27/Z27*100>100,100,AH27/Z27*100), "-"),0) -> 98.16114951 | AK27: =IF(AND(D27<>0, D27<>"Unknown",D27<>"Stopped",D27<>"Not required"),D27/COUNTRY_INFO!D27, 0) -> 0 | AL27: =IF(AND(J27<>0,J27<>"Unknown",J27<>"Stopped",J27<>"Not required"),J27/COUNTRY_INFO!D27, 0) -> 0 | AM27: =IF(AND(P27<>0,P27<>"Unknown",P27<>"Not required"),P27/(COUNTRY_INFO!E27+COUNTRY_INFO!F27), 0) -> 1 | AN27: =IF(AND(Z27<>0,Z27<>"Unknown",Z27<>"Not required"),IF(COUNTRY_INFO!K27=1,1,IF(COUNTRY_INFO!K27=2,0.5*COUNTRY_INFO!F27/(0.5*COUNTRY_INFO!F27+0.2*COUNTRY_INFO!G27),IF(COUNTRY_INFO!K27=3,COUNTRY_INFO!F27/(COUNTRY_INFO!F27+COUNTRY_INFO!G27)))),0) -> 1 | AO27: =IF(AND(Z27<>0,Z27<>"Unknown",Z27<>"Not required"),IF(COUNTRY_INFO!K27=1,0,IF(COUNTRY_INFO!K27=2,0.2*COUNTRY_INFO!G27/(0.5*COUNTRY_INFO!F27+0.2*COUNTRY_INFO!G27),IF(COUNTRY_INFO!K27=3,COUNTRY_INFO!G27/(COUNTRY_INFO!F27+COUNTRY_INFO!G27)))),0) -> 0 | AP27: =MAX(COUNTRY_INFO!D27*AK27*PROFILE!$G$7,COUNTRY_INFO!D27*AL27*PROFILE!$G$7) -> 0 | AQ27: =MAX(COUNTRY_INFO!D27*AK27*PROFILE!$G$8,COUNTRY_INFO!D27*AL27*PROFILE!$G$8,COUNTRY_INFO!D27*AM27*PROFILE!$G$8) -> 13449.48349 | AR27: =MAX(COUNTRY_INFO!D27*AK27*PROFILE!$G$9,COUNTRY_INFO!D27*AL27*PROFILE!$G$9,COUNTRY_INFO!D27*AM27*PROFILE!$G$9,IF(AND(DISTRICT!Z27<>"Unknown",Z27<>"Not required"),COUNTRY_INFO!P27*DISTRICT!AN27,0)) -> 20174.12388 | AS27: =MAX(COUNTRY_INFO!D27*AK27*PROFILE!$G$10,COUNTRY_INFO!D27*AL27*PROFILE!$G$10,IF(AND(DISTRICT!Z27<>"Unknown",Z27<>"Not required"),COUNTRY_INFO!P27*DISTRICT!AO27,0)) -> 0 | AT27: 33623.60737 | AU27: Y | AV27: =MAX('MDA4'!R27,'T1'!L27,'T2'!J27,T3_R1!K27,T3_R2!K27) -> 0 | AW27: =MAX('MDA1'!K27,'MDA4'!S27,'MDA3'!I27,'MDA3'!L27,'T1'!M27,'T2'!K27,T3_R1!L27,T3_R2!L27) -> 6535 | AX27: =MAX('MDA1'!L27,'MDA4'!T27,'MDA3'!J27,'MDA3'!M27,'T1'!N27,'T2'!L27,T3_R1!M27,T3_R2!M27) -> 221 | AY27: 6756 | AZ27: =MAX('MDA4'!R27,T27) -> 0 | BA27: =MAX('MDA1'!K27,'MDA4'!S27,'MDA3'!I27,'MDA3'!L27,V27,AD27) -> 6535 | BB27: =MAX('MDA1'!L27,'MDA4'!T27,'MDA3'!J27,'MDA3'!M27,AF27) -> 0 | BC27: 6535 | BD27: 19.4357492
A28: =IF(COUNTRY_INFO!A28=0," ",COUNTRY_INFO!A28) -> Congo | B28: =IF(COUNTRY_INFO!B28=0," ",COUNTRY_INFO!B28) -> Kouilou | C28: =IF(COUNTRY_INFO!C28=0," ",COUNTRY_INFO!C28) -> Madingo Kayes | D28: =COUNTRY_INFO!M28 -> 0 | G28: =MAX('MDA1'!M28,'MDA4'!U28) -> 0 | H28: =IF(AND(COUNTRY_INFO!H28>0,COUNTRY_INFO!H28<4),IF(D28>MAX('MDA1'!M28,'MDA4'!U28),MAX('MDA1'!M28,'MDA4'!U28),D28),0) -> 0 | I28: =IF(AND(COUNTRY_INFO!H28>0,COUNTRY_INFO!H28<4), IF(G28/D28*100<>0, IF(G28/D28*100>100,100,G28/D28*100), "-"),0) -> 0 | J28: =COUNTRY_INFO!N28 -> 1134 | M28: =MAX('MDA1'!M28,MAX('MDA3'!I28,'MDA3'!L28)+MAX('MDA3'!J28,'MDA3'!M28)) -> 938 | N28: =IF(AND(COUNTRY_INFO!I28>0,COUNTRY_INFO!I28<4),IF(J28>MAX('MDA1'!M28,MAX('MDA3'!I28,'MDA3'!L28)+MAX('MDA3'!J28,'MDA3'!M28)),MAX('MDA1'!M28,MAX('MDA3'!I28,'MDA3'!L28)+MAX('MDA3'!J28,'MDA3'!M28)),J28),0) -> 938 | O28: =IF(AND(COUNTRY_INFO!I28>0,COUNTRY_INFO!I28<4), IF(M28/J28*100<>0, IF(M28/J28*100>100,100,M28/J28*100), "-"),0) -> 82.71604938 | P28: =COUNTRY_INFO!O28 -> 12032 | S28: =SUM(MAX('MDA4'!R28, 'T1'!L28, MAX(T3_R1!K28, T3_R2!K28)), MAX('MDA1'!K28, 'MDA4'!S28, 'T1'!M28, MAX(T3_R1!L28, T3_R2!L28)), MAX('MDA1'!L28, 'MDA4'!T28, 'T1'!N28, MAX(T3_R1!M28, T3_R2!M28))) -> 8787 | T28: =IF(AND(COUNTRY_INFO!J28>1,COUNTRY_INFO!J28<4),IF(COUNTRY_INFO!E28>MAX('MDA4'!R28,'T1'!L28,MAX(T3_R1!K28,T3_R2!K28)),MAX('MDA4'!R28,'T1'!L28,MAX(T3_R1!K28,T3_R2!K28)),COUNTRY_INFO!E28),0) -> 0 | U28: =IF(AND(COUNTRY_INFO!J28>1,COUNTRY_INFO!J28<4), IF(T28/COUNTRY_INFO!E28*100<>0, IF(T28/COUNTRY_INFO!E28*100>100,100,T28/COUNTRY_INFO!E28*100), "-"),0) -> - | V28: =IF(AND(COUNTRY_INFO!J28>1,COUNTRY_INFO!J28<4),IF(COUNTRY_INFO!F28>MAX('MDA1'!K28,'MDA4'!S28,'T1'!M28,MAX(T3_R1!L28,T3_R2!L28)),MAX('MDA1'!K28,'MDA4'!S28,'T1'!M28,MAX(T3_R1!L28,T3_R2!L28)),COUNTRY_INFO!F28),0) -> 7219 | W28: =IF(AND(COUNTRY_INFO!J28>1,COUNTRY_INFO!J28<4), IF(V28/COUNTRY_INFO!F28*100<>0, IF(V28/COUNTRY_INFO!F28*100>100,100,V28/COUNTRY_INFO!F28*100), "-"),0) -> 100 | X28: 7219 | Y28: =IF(AND(COUNTRY_INFO!J28>1,COUNTRY_INFO!J28<4), IF(S28/P28*100<>0, IF(X28/P28*100>100,100,X28/P28*100), "-"),0) -> 59.99833777 | Z28: =COUNTRY_INFO!P28 -> 2382.27 | AC28: =MAX('T1'!L28,'T2'!J28)+MAX('T1'!M28,'T2'!K28)+MAX('T1'!N28,'T2'!L28) -> 8787 | AD28: =IF(COUNTRY_INFO!K28=1,IF(COUNTRY_INFO!F28*0.33>MAX('T1'!M28,'T2'!K28),MAX('T1'!M28,'T2'!K28),COUNTRY_INFO!F28*0.33),IF(COUNTRY_INFO!K28=2,IF(COUNTRY_INFO!F28*0.5>MAX('T1'!M28,'T2'!K28),MAX('T1'!M28,'T2'!K28),COUNTRY_INFO!F28*0.5),IF(COUNTRY_INFO!K28=3,IF(COUNTRY_INFO!F28>MAX('T1'!M28,'T2'!K28),MAX('T1'!M28,'T2'!K28),COUNTRY_INFO!F28),0))) -> 2382.27 | AE28: =IF(AND(COUNTRY_INFO!K28>0,COUNTRY_INFO!L28<4),IF(Z28>0,IF(COUNTRY_INFO!K28=1, AD28/(COUNTRY_INFO!F28*0.33)*100, IF(COUNTRY_INFO!K28=2, AD28/(COUNTRY_INFO!F28*0.5)*100, IF(COUNTRY_INFO!K28=3, AD28/COUNTRY_INFO!F28*100))),"-"),0) -> 100 | AF28: =IF(COUNTRY_INFO!K28=2,IF(COUNTRY_INFO!G28*0.2>MAX('T1'!N28,'T2'!L28),MAX('T1'!N28,'T2'!L28),COUNTRY_INFO!G28*0.2),IF(COUNTRY_INFO!K28=3,IF(COUNTRY_INFO!G28>MAX('T1'!N28,'T2'!L28),MAX('T1'!N28,'T2'!L28),COUNTRY_INFO!G28),0)) -> 0 | AG28: =IF(AND(COUNTRY_INFO!K28>0,COUNTRY_INFO!L28<4),IF(Z28>0,IF(COUNTRY_INFO!K28=1, 0, IF(COUNTRY_INFO!K28=2, AF28/(COUNTRY_INFO!G28*0.2)*100, IF(COUNTRY_INFO!K28=3, AF28/COUNTRY_INFO!G28*100))),"-"),0) -> 0 | AH28: 2382.27 | AI28: =IF(AND(COUNTRY_INFO!K28>0,COUNTRY_INFO!K28<4), IF(AC28/Z28*100<>0, IF(AH28/Z28*100>100,100,AH28/Z28*100), "-"),0) -> 100 | AK28: =IF(AND(D28<>0, D28<>"Unknown",D28<>"Stopped",D28<>"Not required"),D28/COUNTRY_INFO!D28, 0) -> 0 | AL28: =IF(AND(J28<>0,J28<>"Unknown",J28<>"Stopped",J28<>"Not required"),J28/COUNTRY_INFO!D28, 0) -> 0.03770072143 | AM28: =IF(AND(P28<>0,P28<>"Unknown",P28<>"Not required"),P28/(COUNTRY_INFO!E28+COUNTRY_INFO!F28), 0) -> 1 | AN28: =IF(AND(Z28<>0,Z28<>"Unknown",Z28<>"Not required"),IF(COUNTRY_INFO!K28=1,1,IF(COUNTRY_INFO!K28=2,0.5*COUNTRY_INFO!F28/(0.5*COUNTRY_INFO!F28+0.2*COUNTRY_INFO!G28),IF(COUNTRY_INFO!K28=3,COUNTRY_INFO!F28/(COUNTRY_INFO!F28+COUNTRY_INFO!G28)))),0) -> 1 | AO28: =IF(AND(Z28<>0,Z28<>"Unknown",Z28<>"Not required"),IF(COUNTRY_INFO!K28=1,0,IF(COUNTRY_INFO!K28=2,0.2*COUNTRY_INFO!G28/(0.5*COUNTRY_INFO!F28+0.2*COUNTRY_INFO!G28),IF(COUNTRY_INFO!K28=3,COUNTRY_INFO!G28/(COUNTRY_INFO!F28+COUNTRY_INFO!G28)))),0) -> 0 | AP28: =MAX(COUNTRY_INFO!D28*AK28*PROFILE!$G$7,COUNTRY_INFO!D28*AL28*PROFILE!$G$7) -> 53.29886688 | AQ28: =MAX(COUNTRY_INFO!D28*AK28*PROFILE!$G$8,COUNTRY_INFO!D28*AL28*PROFILE!$G$8,COUNTRY_INFO!D28*AM28*PROFILE!$G$8) -> 4812.655562 | AR28: =MAX(COUNTRY_INFO!D28*AK28*PROFILE!$G$9,COUNTRY_INFO!D28*AL28*PROFILE!$G$9,COUNTRY_INFO!D28*AM28*PROFILE!$G$9,IF(AND(DISTRICT!Z28<>"Unknown",Z28<>"Not required"),COUNTRY_INFO!P28*DISTRICT!AN28,0)) -> 7218.947075 | AS28: =MAX(COUNTRY_INFO!D28*AK28*PROFILE!$G$10,COUNTRY_INFO!D28*AL28*PROFILE!$G$10,IF(AND(DISTRICT!Z28<>"Unknown",Z28<>"Not required"),COUNTRY_INFO!P28*DISTRICT!AO28,0)) -> 627.1010337 | AT28: 12712.00254 | AU28: Y | AV28: =MAX('MDA4'!R28,'T1'!L28,'T2'!J28,T3_R1!K28,T3_R2!K28) -> 0 | AW28: =MAX('MDA1'!K28,'MDA4'!S28,'MDA3'!I28,'MDA3'!L28,'T1'!M28,'T2'!K28,T3_R1!L28,T3_R2!L28) -> 8684 | AX28: =MAX('MDA1'!L28,'MDA4'!T28,'MDA3'!J28,'MDA3'!M28,'T1'!N28,'T2'!L28,T3_R1!M28,T3_R2!M28) -> 754 | AY28: 9438 | AZ28: =MAX('MDA4'!R28,T28) -> 0 | BA28: =MAX('MDA1'!K28,'MDA4'!S28,'MDA3'!I28,'MDA3'!L28,V28,AD28) -> 7219 | BB28: =MAX('MDA1'!L28,'MDA4'!T28,'MDA3'!J28,'MDA3'!M28,AF28) -> 754 | BC28: 7973 | BD28: 62.72025179
A29: =IF(COUNTRY_INFO!A29=0," ",COUNTRY_INFO!A29) -> Congo | B29: =IF(COUNTRY_INFO!B29=0," ",COUNTRY_INFO!B29) -> Lékoumou | C29: =IF(COUNTRY_INFO!C29=0," ",COUNTRY_INFO!C29) -> Sibiti | D29: =COUNTRY_INFO!M29 -> 0 | G29: =MAX('MDA1'!M29,'MDA4'!U29) -> 0 | H29: =IF(AND(COUNTRY_INFO!H29>0,COUNTRY_INFO!H29<4),IF(D29>MAX('MDA1'!M29,'MDA4'!U29),MAX('MDA1'!M29,'MDA4'!U29),D29),0) -> 0 | I29: =IF(AND(COUNTRY_INFO!H29>0,COUNTRY_INFO!H29<4), IF(G29/D29*100<>0, IF(G29/D29*100>100,100,G29/D29*100), "-"),0) -> 0 | J29: =COUNTRY_INFO!N29 -> 595 | M29: =MAX('MDA1'!M29,MAX('MDA3'!I29,'MDA3'!L29)+MAX('MDA3'!J29,'MDA3'!M29)) -> 520 | N29: =IF(AND(COUNTRY_INFO!I29>0,COUNTRY_INFO!I29<4),IF(J29>MAX('MDA1'!M29,MAX('MDA3'!I29,'MDA3'!L29)+MAX('MDA3'!J29,'MDA3'!M29)),MAX('MDA1'!M29,MAX('MDA3'!I29,'MDA3'!L29)+MAX('MDA3'!J29,'MDA3'!M29)),J29),0) -> 520 | O29: =IF(AND(COUNTRY_INFO!I29>0,COUNTRY_INFO!I29<4), IF(M29/J29*100<>0, IF(M29/J29*100>100,100,M29/J29*100), "-"),0) -> 87.39495798 | P29: =COUNTRY_INFO!O29 -> 37150 | S29: =SUM(MAX('MDA4'!R29, 'T1'!L29, MAX(T3_R1!K29, T3_R2!K29)), MAX('MDA1'!K29, 'MDA4'!S29, 'T1'!M29, MAX(T3_R1!L29, T3_R2!L29)), MAX('MDA1'!L29, 'MDA4'!T29, 'T1'!N29, MAX(T3_R1!M29, T3_R2!M29))) -> 16555 | T29: =IF(AND(COUNTRY_INFO!J29>1,COUNTRY_INFO!J29<4),IF(COUNTRY_INFO!E29>MAX('MDA4'!R29,'T1'!L29,MAX(T3_R1!K29,T3_R2!K29)),MAX('MDA4'!R29,'T1'!L29,MAX(T3_R1!K29,T3_R2!K29)),COUNTRY_INFO!E29),0) -> 0 | U29: =IF(AND(COUNTRY_INFO!J29>1,COUNTRY_INFO!J29<4), IF(T29/COUNTRY_INFO!E29*100<>0, IF(T29/COUNTRY_INFO!E29*100>100,100,T29/COUNTRY_INFO!E29*100), "-"),0) -> - | V29: =IF(AND(COUNTRY_INFO!J29>1,COUNTRY_INFO!J29<4),IF(COUNTRY_INFO!F29>MAX('MDA1'!K29,'MDA4'!S29,'T1'!M29,MAX(T3_R1!L29,T3_R2!L29)),MAX('MDA1'!K29,'MDA4'!S29,'T1'!M29,MAX(T3_R1!L29,T3_R2!L29)),COUNTRY_INFO!F29),0) -> 16262 | W29: =IF(AND(COUNTRY_INFO!J29>1,COUNTRY_INFO!J29<4), IF(V29/COUNTRY_INFO!F29*100<>0, IF(V29/COUNTRY_INFO!F29*100>100,100,V29/COUNTRY_INFO!F29*100), "-"),0) -> 72.95648273 | X29: 16262 | Y29: =IF(AND(COUNTRY_INFO!J29>1,COUNTRY_INFO!J29<4), IF(S29/P29*100<>0, IF(X29/P29*100>100,100,X29/P29*100), "-"),0) -> 43.77388964 | Z29: =COUNTRY_INFO!P29 -> 7355.7 | AC29: =MAX('T1'!L29,'T2'!J29)+MAX('T1'!M29,'T2'!K29)+MAX('T1'!N29,'T2'!L29) -> 16555 | AD29: =IF(COUNTRY_INFO!K29=1,IF(COUNTRY_INFO!F29*0.33>MAX('T1'!M29,'T2'!K29),MAX('T1'!M29,'T2'!K29),COUNTRY_INFO!F29*0.33),IF(COUNTRY_INFO!K29=2,IF(COUNTRY_INFO!F29*0.5>MAX('T1'!M29,'T2'!K29),MAX('T1'!M29,'T2'!K29),COUNTRY_INFO!F29*0.5),IF(COUNTRY_INFO!K29=3,IF(COUNTRY_INFO!F29>MAX('T1'!M29,'T2'!K29),MAX('T1'!M29,'T2'!K29),COUNTRY_INFO!F29),0))) -> 7355.7 | AE29: =IF(AND(COUNTRY_INFO!K29>0,COUNTRY_INFO!L29<4),IF(Z29>0,IF(COUNTRY_INFO!K29=1, AD29/(COUNTRY_INFO!F29*0.33)*100, IF(COUNTRY_INFO!K29=2, AD29/(COUNTRY_INFO!F29*0.5)*100, IF(COUNTRY_INFO!K29=3, AD29/COUNTRY_INFO!F29*100))),"-"),0) -> 100 | AF29: =IF(COUNTRY_INFO!K29=2,IF(COUNTRY_INFO!G29*0.2>MAX('T1'!N29,'T2'!L29),MAX('T1'!N29,'T2'!L29),COUNTRY_INFO!G29*0.2),IF(COUNTRY_INFO!K29=3,IF(COUNTRY_INFO!G29>MAX('T1'!N29,'T2'!L29),MAX('T1'!N29,'T2'!L29),COUNTRY_INFO!G29),0)) -> 0 | AG29: =IF(AND(COUNTRY_INFO!K29>0,COUNTRY_INFO!L29<4),IF(Z29>0,IF(COUNTRY_INFO!K29=1, 0, IF(COUNTRY_INFO!K29=2, AF29/(COUNTRY_INFO!G29*0.2)*100, IF(COUNTRY_INFO!K29=3, AF29/COUNTRY_INFO!G29*100))),"-"),0) -> 0 | AH29: 7355.7 | AI29: =IF(AND(COUNTRY_INFO!K29>0,COUNTRY_INFO!K29<4), IF(AC29/Z29*100<>0, IF(AH29/Z29*100>100,100,AH29/Z29*100), "-"),0) -> 100 | AK29: =IF(AND(D29<>0, D29<>"Unknown",D29<>"Stopped",D29<>"Not required"),D29/COUNTRY_INFO!D29, 0) -> 0 | AL29: =IF(AND(J29<>0,J29<>"Unknown",J29<>"Stopped",J29<>"Not required"),J29/COUNTRY_INFO!D29, 0) -> 0.006406391317 | AM29: =IF(AND(P29<>0,P29<>"Unknown",P29<>"Not required"),P29/(COUNTRY_INFO!E29+COUNTRY_INFO!F29), 0) -> 1 | AN29: =IF(AND(Z29<>0,Z29<>"Unknown",Z29<>"Not required"),IF(COUNTRY_INFO!K29=1,1,IF(COUNTRY_INFO!K29=2,0.5*COUNTRY_INFO!F29/(0.5*COUNTRY_INFO!F29+0.2*COUNTRY_INFO!G29),IF(COUNTRY_INFO!K29=3,COUNTRY_INFO!F29/(COUNTRY_INFO!F29+COUNTRY_INFO!G29)))),0) -> 1 | AO29: =IF(AND(Z29<>0,Z29<>"Unknown",Z29<>"Not required"),IF(COUNTRY_INFO!K29=1,0,IF(COUNTRY_INFO!K29=2,0.2*COUNTRY_INFO!G29/(0.5*COUNTRY_INFO!F29+0.2*COUNTRY_INFO!G29),IF(COUNTRY_INFO!K29=3,COUNTRY_INFO!G29/(COUNTRY_INFO!F29+COUNTRY_INFO!G29)))),0) -> 0 | AP29: =MAX(COUNTRY_INFO!D29*AK29*PROFILE!$G$7,COUNTRY_INFO!D29*AL29*PROFILE!$G$7) -> 27.96545484 | AQ29: =MAX(COUNTRY_INFO!D29*AK29*PROFILE!$G$8,COUNTRY_INFO!D29*AL29*PROFILE!$G$8,COUNTRY_INFO!D29*AM29*PROFILE!$G$8) -> 14860.20805 | AR29: =MAX(COUNTRY_INFO!D29*AK29*PROFILE!$G$9,COUNTRY_INFO!D29*AL29*PROFILE!$G$9,COUNTRY_INFO!D29*AM29*PROFILE!$G$9,IF(AND(DISTRICT!Z29<>"Unknown",Z29<>"Not required"),COUNTRY_INFO!P29*DISTRICT!AN29,0)) -> 22290.20009 | AS29: =MAX(COUNTRY_INFO!D29*AK29*PROFILE!$G$10,COUNTRY_INFO!D29*AL29*PROFILE!$G$10,IF(AND(DISTRICT!Z29<>"Unknown",Z29<>"Not required"),COUNTRY_INFO!P29*DISTRICT!AO29,0)) -> 329.034493 | AT29: 37507.40809 | AU29: Y | AV29: =MAX('MDA4'!R29,'T1'!L29,'T2'!J29,T3_R1!K29,T3_R2!K29) -> 0 | AW29: =MAX('MDA1'!K29,'MDA4'!S29,'MDA3'!I29,'MDA3'!L29,'T1'!M29,'T2'!K29,T3_R1!L29,T3_R2!L29) -> 16262 | AX29: =MAX('MDA1'!L29,'MDA4'!T29,'MDA3'!J29,'MDA3'!M29,'T1'!N29,'T2'!L29,T3_R1!M29,T3_R2!M29) -> 413 | AY29: 16675 | AZ29: =MAX('MDA4'!R29,T29) -> 0 | BA29: =MAX('MDA1'!K29,'MDA4'!S29,'MDA3'!I29,'MDA3'!L29,V29,AD29) -> 16262 | BB29: =MAX('MDA1'!L29,'MDA4'!T29,'MDA3'!J29,'MDA3'!M29,AF29) -> 413 | BC29: 16675 | BD29: 44.45788405
A30: =IF(COUNTRY_INFO!A30=0," ",COUNTRY_INFO!A30) -> Congo | B30: =IF(COUNTRY_INFO!B30=0," ",COUNTRY_INFO!B30) -> Lékoumou | C30: =IF(COUNTRY_INFO!C30=0," ",COUNTRY_INFO!C30) -> Zanaga | D30: =COUNTRY_INFO!M30 -> 0 | G30: =MAX('MDA1'!M30,'MDA4'!U30) -> 0 | H30: =IF(AND(COUNTRY_INFO!H30>0,COUNTRY_INFO!H30<4),IF(D30>MAX('MDA1'!M30,'MDA4'!U30),MAX('MDA1'!M30,'MDA4'!U30),D30),0) -> 0 | I30: =IF(AND(COUNTRY_INFO!H30>0,COUNTRY_INFO!H30<4), IF(G30/D30*100<>0, IF(G30/D30*100>100,100,G30/D30*100), "-"),0) -> 0 | J30: =COUNTRY_INFO!N30 -> 0 | M30: =MAX('MDA1'!M30,MAX('MDA3'!I30,'MDA3'!L30)+MAX('MDA3'!J30,'MDA3'!M30)) -> 0 | N30: =IF(AND(COUNTRY_INFO!I30>0,COUNTRY_INFO!I30<4),IF(J30>MAX('MDA1'!M30,MAX('MDA3'!I30,'MDA3'!L30)+MAX('MDA3'!J30,'MDA3'!M30)),MAX('MDA1'!M30,MAX('MDA3'!I30,'MDA3'!L30)+MAX('MDA3'!J30,'MDA3'!M30)),J30),0) -> 0 | O30: =IF(AND(COUNTRY_INFO!I30>0,COUNTRY_INFO!I30<4), IF(M30/J30*100<>0, IF(M30/J30*100>100,100,M30/J30*100), "-"),0) -> 0 | P30: =COUNTRY_INFO!O30 -> 10697 | S30: =SUM(MAX('MDA4'!R30, 'T1'!L30, MAX(T3_R1!K30, T3_R2!K30)), MAX('MDA1'!K30, 'MDA4'!S30, 'T1'!M30, MAX(T3_R1!L30, T3_R2!L30)), MAX('MDA1'!L30, 'MDA4'!T30, 'T1'!N30, MAX(T3_R1!M30, T3_R2!M30))) -> 5093 | T30: =IF(AND(COUNTRY_INFO!J30>1,COUNTRY_INFO!J30<4),IF(COUNTRY_INFO!E30>MAX('MDA4'!R30,'T1'!L30,MAX(T3_R1!K30,T3_R2!K30)),MAX('MDA4'!R30,'T1'!L30,MAX(T3_R1!K30,T3_R2!K30)),COUNTRY_INFO!E30),0) -> 0 | U30: =IF(AND(COUNTRY_INFO!J30>1,COUNTRY_INFO!J30<4), IF(T30/COUNTRY_INFO!E30*100<>0, IF(T30/COUNTRY_INFO!E30*100>100,100,T30/COUNTRY_INFO!E30*100), "-"),0) -> - | V30: =IF(AND(COUNTRY_INFO!J30>1,COUNTRY_INFO!J30<4),IF(COUNTRY_INFO!F30>MAX('MDA1'!K30,'MDA4'!S30,'T1'!M30,MAX(T3_R1!L30,T3_R2!L30)),MAX('MDA1'!K30,'MDA4'!S30,'T1'!M30,MAX(T3_R1!L30,T3_R2!L30)),COUNTRY_INFO!F30),0) -> 5065 | W30: =IF(AND(COUNTRY_INFO!J30>1,COUNTRY_INFO!J30<4), IF(V30/COUNTRY_INFO!F30*100<>0, IF(V30/COUNTRY_INFO!F30*100>100,100,V30/COUNTRY_INFO!F30*100), "-"),0) -> 78.91866625 | X30: 5065 | Y30: =IF(AND(COUNTRY_INFO!J30>1,COUNTRY_INFO!J30<4), IF(S30/P30*100<>0, IF(X30/P30*100>100,100,X30/P30*100), "-"),0) -> 47.34972422 | Z30: =COUNTRY_INFO!P30 -> 0 | AC30: =MAX('T1'!L30,'T2'!J30)+MAX('T1'!M30,'T2'!K30)+MAX('T1'!N30,'T2'!L30) -> 0 | AD30: =IF(COUNTRY_INFO!K30=1,IF(COUNTRY_INFO!F30*0.33>MAX('T1'!M30,'T2'!K30),MAX('T1'!M30,'T2'!K30),COUNTRY_INFO!F30*0.33),IF(COUNTRY_INFO!K30=2,IF(COUNTRY_INFO!F30*0.5>MAX('T1'!M30,'T2'!K30),MAX('T1'!M30,'T2'!K30),COUNTRY_INFO!F30*0.5),IF(COUNTRY_INFO!K30=3,IF(COUNTRY_INFO!F30>MAX('T1'!M30,'T2'!K30),MAX('T1'!M30,'T2'!K30),COUNTRY_INFO!F30),0))) -> 0 | AE30: =IF(AND(COUNTRY_INFO!K30>0,COUNTRY_INFO!L30<4),IF(Z30>0,IF(COUNTRY_INFO!K30=1, AD30/(COUNTRY_INFO!F30*0.33)*100, IF(COUNTRY_INFO!K30=2, AD30/(COUNTRY_INFO!F30*0.5)*100, IF(COUNTRY_INFO!K30=3, AD30/COUNTRY_INFO!F30*100))),"-"),0) -> 0 | AF30: =IF(COUNTRY_INFO!K30=2,IF(COUNTRY_INFO!G30*0.2>MAX('T1'!N30,'T2'!L30),MAX('T1'!N30,'T2'!L30),COUNTRY_INFO!G30*0.2),IF(COUNTRY_INFO!K30=3,IF(COUNTRY_INFO!G30>MAX('T1'!N30,'T2'!L30),MAX('T1'!N30,'T2'!L30),COUNTRY_INFO!G30),0)) -> 0 | AG30: =IF(AND(COUNTRY_INFO!K30>0,COUNTRY_INFO!L30<4),IF(Z30>0,IF(COUNTRY_INFO!K30=1, 0, IF(COUNTRY_INFO!K30=2, AF30/(COUNTRY_INFO!G30*0.2)*100, IF(COUNTRY_INFO!K30=3, AF30/COUNTRY_INFO!G30*100))),"-"),0) -> 0 | AH30: 0 | AI30: =IF(AND(COUNTRY_INFO!K30>0,COUNTRY_INFO!K30<4), IF(AC30/Z30*100<>0, IF(AH30/Z30*100>100,100,AH30/Z30*100), "-"),0) -> 0 | AK30: =IF(AND(D30<>0, D30<>"Unknown",D30<>"Stopped",D30<>"Not required"),D30/COUNTRY_INFO!D30, 0) -> 0 | AL30: =IF(AND(J30<>0,J30<>"Unknown",J30<>"Stopped",J30<>"Not required"),J30/COUNTRY_INFO!D30, 0) -> 0 | AM30: =IF(AND(P30<>0,P30<>"Unknown",P30<>"Not required"),P30/(COUNTRY_INFO!E30+COUNTRY_INFO!F30), 0) -> 1 | AN30: =IF(AND(Z30<>0,Z30<>"Unknown",Z30<>"Not required"),IF(COUNTRY_INFO!K30=1,1,IF(COUNTRY_INFO!K30=2,0.5*COUNTRY_INFO!F30/(0.5*COUNTRY_INFO!F30+0.2*COUNTRY_INFO!G30),IF(COUNTRY_INFO!K30=3,COUNTRY_INFO!F30/(COUNTRY_INFO!F30+COUNTRY_INFO!G30)))),0) -> 0 | AO30: =IF(AND(Z30<>0,Z30<>"Unknown",Z30<>"Not required"),IF(COUNTRY_INFO!K30=1,0,IF(COUNTRY_INFO!K30=2,0.2*COUNTRY_INFO!G30/(0.5*COUNTRY_INFO!F30+0.2*COUNTRY_INFO!G30),IF(COUNTRY_INFO!K30=3,COUNTRY_INFO!G30/(COUNTRY_INFO!F30+COUNTRY_INFO!G30)))),0) -> 0 | AP30: =MAX(COUNTRY_INFO!D30*AK30*PROFILE!$G$7,COUNTRY_INFO!D30*AL30*PROFILE!$G$7) -> 0 | AQ30: =MAX(COUNTRY_INFO!D30*AK30*PROFILE!$G$8,COUNTRY_INFO!D30*AL30*PROFILE!$G$8,COUNTRY_INFO!D30*AM30*PROFILE!$G$8) -> 4278.733836 | AR30: =MAX(COUNTRY_INFO!D30*AK30*PROFILE!$G$9,COUNTRY_INFO!D30*AL30*PROFILE!$G$9,COUNTRY_INFO!D30*AM30*PROFILE!$G$9,IF(AND(DISTRICT!Z30<>"Unknown",Z30<>"Not required"),COUNTRY_INFO!P30*DISTRICT!AN30,0)) -> 6418.068509 | AS30: =MAX(COUNTRY_INFO!D30*AK30*PROFILE!$G$10,COUNTRY_INFO!D30*AL30*PROFILE!$G$10,IF(AND(DISTRICT!Z30<>"Unknown",Z30<>"Not required"),COUNTRY_INFO!P30*DISTRICT!AO30,0)) -> 0 | AT30: 10696.80235 | AU30: Y | AV30: =MAX('MDA4'!R30,'T1'!L30,'T2'!J30,T3_R1!K30,T3_R2!K30) -> 0 | AW30: =MAX('MDA1'!K30,'MDA4'!S30,'MDA3'!I30,'MDA3'!L30,'T1'!M30,'T2'!K30,T3_R1!L30,T3_R2!L30) -> 5065 | AX30: =MAX('MDA1'!L30,'MDA4'!T30,'MDA3'!J30,'MDA3'!M30,'T1'!N30,'T2'!L30,T3_R1!M30,T3_R2!M30) -> 28 | AY30: 5093 | AZ30: =MAX('MDA4'!R30,T30) -> 0 | BA30: =MAX('MDA1'!K30,'MDA4'!S30,'MDA3'!I30,'MDA3'!L30,V30,AD30) -> 5065 | BB30: =MAX('MDA1'!L30,'MDA4'!T30,'MDA3'!J30,'MDA3'!M30,AF30) -> 0 | BC30: 5065 | BD30: 47.35059915
A31: =IF(COUNTRY_INFO!A31=0," ",COUNTRY_INFO!A31) -> Congo | B31: =IF(COUNTRY_INFO!B31=0," ",COUNTRY_INFO!B31) -> Likouala | C31: =IF(COUNTRY_INFO!C31=0," ",COUNTRY_INFO!C31) -> Bétou | D31: =COUNTRY_INFO!M31 -> 0 | G31: =MAX('MDA1'!M31,'MDA4'!U31) -> 0 | H31: =IF(AND(COUNTRY_INFO!H31>0,COUNTRY_INFO!H31<4),IF(D31>MAX('MDA1'!M31,'MDA4'!U31),MAX('MDA1'!M31,'MDA4'!U31),D31),0) -> 0 | I31: =IF(AND(COUNTRY_INFO!H31>0,COUNTRY_INFO!H31<4), IF(G31/D31*100<>0, IF(G31/D31*100>100,100,G31/D31*100), "-"),0) -> 0 | J31: =COUNTRY_INFO!N31 -> 0 | M31: =MAX('MDA1'!M31,MAX('MDA3'!I31,'MDA3'!L31)+MAX('MDA3'!J31,'MDA3'!M31)) -> 0 | N31: =IF(AND(COUNTRY_INFO!I31>0,COUNTRY_INFO!I31<4),IF(J31>MAX('MDA1'!M31,MAX('MDA3'!I31,'MDA3'!L31)+MAX('MDA3'!J31,'MDA3'!M31)),MAX('MDA1'!M31,MAX('MDA3'!I31,'MDA3'!L31)+MAX('MDA3'!J31,'MDA3'!M31)),J31),0) -> 0 | O31: =IF(AND(COUNTRY_INFO!I31>0,COUNTRY_INFO!I31<4), IF(M31/J31*100<>0, IF(M31/J31*100>100,100,M31/J31*100), "-"),0) -> 0 | P31: =COUNTRY_INFO!O31 -> 25280 | S31: =SUM(MAX('MDA4'!R31, 'T1'!L31, MAX(T3_R1!K31, T3_R2!K31)), MAX('MDA1'!K31, 'MDA4'!S31, 'T1'!M31, MAX(T3_R1!L31, T3_R2!L31)), MAX('MDA1'!L31, 'MDA4'!T31, 'T1'!N31, MAX(T3_R1!M31, T3_R2!M31))) -> 9946 | T31: =IF(AND(COUNTRY_INFO!J31>1,COUNTRY_INFO!J31<4),IF(COUNTRY_INFO!E31>MAX('MDA4'!R31,'T1'!L31,MAX(T3_R1!K31,T3_R2!K31)),MAX('MDA4'!R31,'T1'!L31,MAX(T3_R1!K31,T3_R2!K31)),COUNTRY_INFO!E31),0) -> 0 | U31: =IF(AND(COUNTRY_INFO!J31>1,COUNTRY_INFO!J31<4), IF(T31/COUNTRY_INFO!E31*100<>0, IF(T31/COUNTRY_INFO!E31*100>100,100,T31/COUNTRY_INFO!E31*100), "-"),0) -> - | V31: =IF(AND(COUNTRY_INFO!J31>1,COUNTRY_INFO!J31<4),IF(COUNTRY_INFO!F31>MAX('MDA1'!K31,'MDA4'!S31,'T1'!M31,MAX(T3_R1!L31,T3_R2!L31)),MAX('MDA1'!K31,'MDA4'!S31,'T1'!M31,MAX(T3_R1!L31,T3_R2!L31)),COUNTRY_INFO!F31),0) -> 9428 | W31: =IF(AND(COUNTRY_INFO!J31>1,COUNTRY_INFO!J31<4), IF(V31/COUNTRY_INFO!F31*100<>0, IF(V31/COUNTRY_INFO!F31*100>100,100,V31/COUNTRY_INFO!F31*100), "-"),0) -> 62.157173 | X31: 9428 | Y31: =IF(AND(COUNTRY_INFO!J31>1,COUNTRY_INFO!J31<4), IF(S31/P31*100<>0, IF(X31/P31*100>100,100,X31/P31*100), "-"),0) -> 37.2943038 | Z31: =COUNTRY_INFO!P31 -> 0 | AC31: =MAX('T1'!L31,'T2'!J31)+MAX('T1'!M31,'T2'!K31)+MAX('T1'!N31,'T2'!L31) -> 0 | AD31: =IF(COUNTRY_INFO!K31=1,IF(COUNTRY_INFO!F31*0.33>MAX('T1'!M31,'T2'!K31),MAX('T1'!M31,'T2'!K31),COUNTRY_INFO!F31*0.33),IF(COUNTRY_INFO!K31=2,IF(COUNTRY_INFO!F31*0.5>MAX('T1'!M31,'T2'!K31),MAX('T1'!M31,'T2'!K31),COUNTRY_INFO!F31*0.5),IF(COUNTRY_INFO!K31=3,IF(COUNTRY_INFO!F31>MAX('T1'!M31,'T2'!K31),MAX('T1'!M31,'T2'!K31),COUNTRY_INFO!F31),0))) -> 0 | AE31: =IF(AND(COUNTRY_INFO!K31>0,COUNTRY_INFO!L31<4),IF(Z31>0,IF(COUNTRY_INFO!K31=1, AD31/(COUNTRY_INFO!F31*0.33)*100, IF(COUNTRY_INFO!K31=2, AD31/(COUNTRY_INFO!F31*0.5)*100, IF(COUNTRY_INFO!K31=3, AD31/COUNTRY_INFO!F31*100))),"-"),0) -> 0 | AF31: =IF(COUNTRY_INFO!K31=2,IF(COUNTRY_INFO!G31*0.2>MAX('T1'!N31,'T2'!L31),MAX('T1'!N31,'T2'!L31),COUNTRY_INFO!G31*0.2),IF(COUNTRY_INFO!K31=3,IF(COUNTRY_INFO!G31>MAX('T1'!N31,'T2'!L31),MAX('T1'!N31,'T2'!L31),COUNTRY_INFO!G31),0)) -> 0 | AG31: =IF(AND(COUNTRY_INFO!K31>0,COUNTRY_INFO!L31<4),IF(Z31>0,IF(COUNTRY_INFO!K31=1, 0, IF(COUNTRY_INFO!K31=2, AF31/(COUNTRY_INFO!G31*0.2)*100, IF(COUNTRY_INFO!K31=3, AF31/COUNTRY_INFO!G31*100))),"-"),0) -> 0 | AH31: 0 | AI31: =IF(AND(COUNTRY_INFO!K31>0,COUNTRY_INFO!K31<4), IF(AC31/Z31*100<>0, IF(AH31/Z31*100>100,100,AH31/Z31*100), "-"),0) -> 0 | AK31: =IF(AND(D31<>0, D31<>"Unknown",D31<>"Stopped",D31<>"Not required"),D31/COUNTRY_INFO!D31, 0) -> 0 | AL31: =IF(AND(J31<>0,J31<>"Unknown",J31<>"Stopped",J31<>"Not required"),J31/COUNTRY_INFO!D31, 0) -> 0 | AM31: =IF(AND(P31<>0,P31<>"Unknown",P31<>"Not required"),P31/(COUNTRY_INFO!E31+COUNTRY_INFO!F31), 0) -> 1 | AN31: =IF(AND(Z31<>0,Z31<>"Unknown",Z31<>"Not required"),IF(COUNTRY_INFO!K31=1,1,IF(COUNTRY_INFO!K31=2,0.5*COUNTRY_INFO!F31/(0.5*COUNTRY_INFO!F31+0.2*COUNTRY_INFO!G31),IF(COUNTRY_INFO!K31=3,COUNTRY_INFO!F31/(COUNTRY_INFO!F31+COUNTRY_INFO!G31)))),0) -> 0 | AO31: =IF(AND(Z31<>0,Z31<>"Unknown",Z31<>"Not required"),IF(COUNTRY_INFO!K31=1,0,IF(COUNTRY_INFO!K31=2,0.2*COUNTRY_INFO!G31/(0.5*COUNTRY_INFO!F31+0.2*COUNTRY_INFO!G31),IF(COUNTRY_INFO!K31=3,COUNTRY_INFO!G31/(COUNTRY_INFO!F31+COUNTRY_INFO!G31)))),0) -> 0 | AP31: =MAX(COUNTRY_INFO!D31*AK31*PROFILE!$G$7,COUNTRY_INFO!D31*AL31*PROFILE!$G$7) -> 0 | AQ31: =MAX(COUNTRY_INFO!D31*AK31*PROFILE!$G$8,COUNTRY_INFO!D31*AL31*PROFILE!$G$8,COUNTRY_INFO!D31*AM31*PROFILE!$G$8) -> 10111.7127 | AR31: =MAX(COUNTRY_INFO!D31*AK31*PROFILE!$G$9,COUNTRY_INFO!D31*AL31*PROFILE!$G$9,COUNTRY_INFO!D31*AM31*PROFILE!$G$9,IF(AND(DISTRICT!Z31<>"Unknown",Z31<>"Not required"),COUNTRY_INFO!P31*DISTRICT!AN31,0)) -> 15167.49284 | AS31: =MAX(COUNTRY_INFO!D31*AK31*PROFILE!$G$10,COUNTRY_INFO!D31*AL31*PROFILE!$G$10,IF(AND(DISTRICT!Z31<>"Unknown",Z31<>"Not required"),COUNTRY_INFO!P31*DISTRICT!AO31,0)) -> 0 | AT31: 25279.20554 | AU31: Y | AV31: =MAX('MDA4'!R31,'T1'!L31,'T2'!J31,T3_R1!K31,T3_R2!K31) -> 0 | AW31: =MAX('MDA1'!K31,'MDA4'!S31,'MDA3'!I31,'MDA3'!L31,'T1'!M31,'T2'!K31,T3_R1!L31,T3_R2!L31) -> 9428 | AX31: =MAX('MDA1'!L31,'MDA4'!T31,'MDA3'!J31,'MDA3'!M31,'T1'!N31,'T2'!L31,T3_R1!M31,T3_R2!M31) -> 518 | AY31: 9946 | AZ31: =MAX('MDA4'!R31,T31) -> 0 | BA31: =MAX('MDA1'!K31,'MDA4'!S31,'MDA3'!I31,'MDA3'!L31,V31,AD31) -> 9428 | BB31: =MAX('MDA1'!L31,'MDA4'!T31,'MDA3'!J31,'MDA3'!M31,AF31) -> 0 | BC31: 9428 | BD31: 37.29547586
A32: =IF(COUNTRY_INFO!A32=0," ",COUNTRY_INFO!A32) -> Congo | B32: =IF(COUNTRY_INFO!B32=0," ",COUNTRY_INFO!B32) -> Likouala | C32: =IF(COUNTRY_INFO!C32=0," ",COUNTRY_INFO!C32) -> Impfondo | D32: =COUNTRY_INFO!M32 -> 128037 | G32: =MAX('MDA1'!M32,'MDA4'!U32) -> 0 | H32: =IF(AND(COUNTRY_INFO!H32>0,COUNTRY_INFO!H32<4),IF(D32>MAX('MDA1'!M32,'MDA4'!U32),MAX('MDA1'!M32,'MDA4'!U32),D32),0) -> 0 | I32: =IF(AND(COUNTRY_INFO!H32>0,COUNTRY_INFO!H32<4), IF(G32/D32*100<>0, IF(G32/D32*100>100,100,G32/D32*100), "-"),0) -> - | J32: =COUNTRY_INFO!N32 -> 0 | M32: =MAX('MDA1'!M32,MAX('MDA3'!I32,'MDA3'!L32)+MAX('MDA3'!J32,'MDA3'!M32)) -> 0 | N32: =IF(AND(COUNTRY_INFO!I32>0,COUNTRY_INFO!I32<4),IF(J32>MAX('MDA1'!M32,MAX('MDA3'!I32,'MDA3'!L32)+MAX('MDA3'!J32,'MDA3'!M32)),MAX('MDA1'!M32,MAX('MDA3'!I32,'MDA3'!L32)+MAX('MDA3'!J32,'MDA3'!M32)),J32),0) -> 0 | O32: =IF(AND(COUNTRY_INFO!I32>0,COUNTRY_INFO!I32<4), IF(M32/J32*100<>0, IF(M32/J32*100>100,100,M32/J32*100), "-"),0) -> 0 | P32: =COUNTRY_INFO!O32 -> 51215 | S32: =SUM(MAX('MDA4'!R32, 'T1'!L32, MAX(T3_R1!K32, T3_R2!K32)), MAX('MDA1'!K32, 'MDA4'!S32, 'T1'!M32, MAX(T3_R1!L32, T3_R2!L32)), MAX('MDA1'!L32, 'MDA4'!T32, 'T1'!N32, MAX(T3_R1!M32, T3_R2!M32))) -> 21651 | T32: =IF(AND(COUNTRY_INFO!J32>1,COUNTRY_INFO!J32<4),IF(COUNTRY_INFO!E32>MAX('MDA4'!R32,'T1'!L32,MAX(T3_R1!K32,T3_R2!K32)),MAX('MDA4'!R32,'T1'!L32,MAX(T3_R1!K32,T3_R2!K32)),COUNTRY_INFO!E32),0) -> 0 | U32: =IF(AND(COUNTRY_INFO!J32>1,COUNTRY_INFO!J32<4), IF(T32/COUNTRY_INFO!E32*100<>0, IF(T32/COUNTRY_INFO!E32*100>100,100,T32/COUNTRY_INFO!E32*100), "-"),0) -> - | V32: =IF(AND(COUNTRY_INFO!J32>1,COUNTRY_INFO!J32<4),IF(COUNTRY_INFO!F32>MAX('MDA1'!K32,'MDA4'!S32,'T1'!M32,MAX(T3_R1!L32,T3_R2!L32)),MAX('MDA1'!K32,'MDA4'!S32,'T1'!M32,MAX(T3_R1!L32,T3_R2!L32)),COUNTRY_INFO!F32),0) -> 21332 | W32: =IF(AND(COUNTRY_INFO!J32>1,COUNTRY_INFO!J32<4), IF(V32/COUNTRY_INFO!F32*100<>0, IF(V32/COUNTRY_INFO!F32*100>100,100,V32/COUNTRY_INFO!F32*100), "-"),0) -> 69.41976634 | X32: 21332 | Y32: =IF(AND(COUNTRY_INFO!J32>1,COUNTRY_INFO!J32<4), IF(S32/P32*100<>0, IF(X32/P32*100>100,100,X32/P32*100), "-"),0) -> 41.65185981 | Z32: =COUNTRY_INFO!P32 -> 0 | AC32: =MAX('T1'!L32,'T2'!J32)+MAX('T1'!M32,'T2'!K32)+MAX('T1'!N32,'T2'!L32) -> 0 | AD32: =IF(COUNTRY_INFO!K32=1,IF(COUNTRY_INFO!F32*0.33>MAX('T1'!M32,'T2'!K32),MAX('T1'!M32,'T2'!K32),COUNTRY_INFO!F32*0.33),IF(COUNTRY_INFO!K32=2,IF(COUNTRY_INFO!F32*0.5>MAX('T1'!M32,'T2'!K32),MAX('T1'!M32,'T2'!K32),COUNTRY_INFO!F32*0.5),IF(COUNTRY_INFO!K32=3,IF(COUNTRY_INFO!F32>MAX('T1'!M32,'T2'!K32),MAX('T1'!M32,'T2'!K32),COUNTRY_INFO!F32),0))) -> 0 | AE32: =IF(AND(COUNTRY_INFO!K32>0,COUNTRY_INFO!L32<4),IF(Z32>0,IF(COUNTRY_INFO!K32=1, AD32/(COUNTRY_INFO!F32*0.33)*100, IF(COUNTRY_INFO!K32=2, AD32/(COUNTRY_INFO!F32*0.5)*100, IF(COUNTRY_INFO!K32=3, AD32/COUNTRY_INFO!F32*100))),"-"),0) -> 0 | AF32: =IF(COUNTRY_INFO!K32=2,IF(COUNTRY_INFO!G32*0.2>MAX('T1'!N32,'T2'!L32),MAX('T1'!N32,'T2'!L32),COUNTRY_INFO!G32*0.2),IF(COUNTRY_INFO!K32=3,IF(COUNTRY_INFO!G32>MAX('T1'!N32,'T2'!L32),MAX('T1'!N32,'T2'!L32),COUNTRY_INFO!G32),0)) -> 0 | AG32: =IF(AND(COUNTRY_INFO!K32>0,COUNTRY_INFO!L32<4),IF(Z32>0,IF(COUNTRY_INFO!K32=1, 0, IF(COUNTRY_INFO!K32=2, AF32/(COUNTRY_INFO!G32*0.2)*100, IF(COUNTRY_INFO!K32=3, AF32/COUNTRY_INFO!G32*100))),"-"),0) -> 0 | AH32: 0 | AI32: =IF(AND(COUNTRY_INFO!K32>0,COUNTRY_INFO!K32<4), IF(AC32/Z32*100<>0, IF(AH32/Z32*100>100,100,AH32/Z32*100), "-"),0) -> 0 | AK32: =IF(AND(D32<>0, D32<>"Unknown",D32<>"Stopped",D32<>"Not required"),D32/COUNTRY_INFO!D32, 0) -> 1 | AL32: =IF(AND(J32<>0,J32<>"Unknown",J32<>"Stopped",J32<>"Not required"),J32/COUNTRY_INFO!D32, 0) -> 0 | AM32: =IF(AND(P32<>0,P32<>"Unknown",P32<>"Not required"),P32/(COUNTRY_INFO!E32+COUNTRY_INFO!F32), 0) -> 1 | AN32: =IF(AND(Z32<>0,Z32<>"Unknown",Z32<>"Not required"),IF(COUNTRY_INFO!K32=1,1,IF(COUNTRY_INFO!K32=2,0.5*COUNTRY_INFO!F32/(0.5*COUNTRY_INFO!F32+0.2*COUNTRY_INFO!G32),IF(COUNTRY_INFO!K32=3,COUNTRY_INFO!F32/(COUNTRY_INFO!F32+COUNTRY_INFO!G32)))),0) -> 0 | AO32: =IF(AND(Z32<>0,Z32<>"Unknown",Z32<>"Not required"),IF(COUNTRY_INFO!K32=1,0,IF(COUNTRY_INFO!K32=2,0.2*COUNTRY_INFO!G32/(0.5*COUNTRY_INFO!F32+0.2*COUNTRY_INFO!G32),IF(COUNTRY_INFO!K32=3,COUNTRY_INFO!G32/(COUNTRY_INFO!F32+COUNTRY_INFO!G32)))),0) -> 0 | AP32: =MAX(COUNTRY_INFO!D32*AK32*PROFILE!$G$7,COUNTRY_INFO!D32*AL32*PROFILE!$G$7) -> 6017.836877 | AQ32: =MAX(COUNTRY_INFO!D32*AK32*PROFILE!$G$8,COUNTRY_INFO!D32*AL32*PROFILE!$G$8,COUNTRY_INFO!D32*AM32*PROFILE!$G$8) -> 20485.98624 | AR32: =MAX(COUNTRY_INFO!D32*AK32*PROFILE!$G$9,COUNTRY_INFO!D32*AL32*PROFILE!$G$9,COUNTRY_INFO!D32*AM32*PROFILE!$G$9,IF(AND(DISTRICT!Z32<>"Unknown",Z32<>"Not required"),COUNTRY_INFO!P32*DISTRICT!AN32,0)) -> 30728.82498 | AS32: =MAX(COUNTRY_INFO!D32*AK32*PROFILE!$G$10,COUNTRY_INFO!D32*AL32*PROFILE!$G$10,IF(AND(DISTRICT!Z32<>"Unknown",Z32<>"Not required"),COUNTRY_INFO!P32*DISTRICT!AO32,0)) -> 70804.3519 | AT32: 128037 | AU32: 0 | AV32: =MAX('MDA4'!R32,'T1'!L32,'T2'!J32,T3_R1!K32,T3_R2!K32) -> 0 | AW32: =MAX('MDA1'!K32,'MDA4'!S32,'MDA3'!I32,'MDA3'!L32,'T1'!M32,'T2'!K32,T3_R1!L32,T3_R2!L32) -> 21332 | AX32: =MAX('MDA1'!L32,'MDA4'!T32,'MDA3'!J32,'MDA3'!M32,'T1'!N32,'T2'!L32,T3_R1!M32,T3_R2!M32) -> 319 | AY32: 21651 | AZ32: =MAX('MDA4'!R32,T32) -> 0 | BA32: =MAX('MDA1'!K32,'MDA4'!S32,'MDA3'!I32,'MDA3'!L32,V32,AD32) -> 21332 | BB32: =MAX('MDA1'!L32,'MDA4'!T32,'MDA3'!J32,'MDA3'!M32,AF32) -> 0 | BC32: 21332 | BD32: 16.66080898
A33: =IF(COUNTRY_INFO!A33=0," ",COUNTRY_INFO!A33) -> Congo | B33: =IF(COUNTRY_INFO!B33=0," ",COUNTRY_INFO!B33) -> Niari | C33: =IF(COUNTRY_INFO!C33=0," ",COUNTRY_INFO!C33) -> Dolisie | D33: =COUNTRY_INFO!M33 -> 172567 | G33: =MAX('MDA1'!M33,'MDA4'!U33) -> 99898 | H33: =IF(AND(COUNTRY_INFO!H33>0,COUNTRY_INFO!H33<4),IF(D33>MAX('MDA1'!M33,'MDA4'!U33),MAX('MDA1'!M33,'MDA4'!U33),D33),0) -> 99898 | I33: =IF(AND(COUNTRY_INFO!H33>0,COUNTRY_INFO!H33<4), IF(G33/D33*100<>0, IF(G33/D33*100>100,100,G33/D33*100), "-"),0) -> 57.88939948 | J33: =COUNTRY_INFO!N33 -> 8525 | M33: =MAX('MDA1'!M33,MAX('MDA3'!I33,'MDA3'!L33)+MAX('MDA3'!J33,'MDA3'!M33)) -> 6823 | N33: =IF(AND(COUNTRY_INFO!I33>0,COUNTRY_INFO!I33<4),IF(J33>MAX('MDA1'!M33,MAX('MDA3'!I33,'MDA3'!L33)+MAX('MDA3'!J33,'MDA3'!M33)),MAX('MDA1'!M33,MAX('MDA3'!I33,'MDA3'!L33)+MAX('MDA3'!J33,'MDA3'!M33)),J33),0) -> 6823 | O33: =IF(AND(COUNTRY_INFO!I33>0,COUNTRY_INFO!I33<4), IF(M33/J33*100<>0, IF(M33/J33*100>100,100,M33/J33*100), "-"),0) -> 80.03519062 | P33: =COUNTRY_INFO!O33 -> 69027 | S33: =SUM(MAX('MDA4'!R33, 'T1'!L33, MAX(T3_R1!K33, T3_R2!K33)), MAX('MDA1'!K33, 'MDA4'!S33, 'T1'!M33, MAX(T3_R1!L33, T3_R2!L33)), MAX('MDA1'!L33, 'MDA4'!T33, 'T1'!N33, MAX(T3_R1!M33, T3_R2!M33))) -> 115399.48 | T33: =IF(AND(COUNTRY_INFO!J33>1,COUNTRY_INFO!J33<4),IF(COUNTRY_INFO!E33>MAX('MDA4'!R33,'T1'!L33,MAX(T3_R1!K33,T3_R2!K33)),MAX('MDA4'!R33,'T1'!L33,MAX(T3_R1!K33,T3_R2!K33)),COUNTRY_INFO!E33),0) -> 0 | U33: =IF(AND(COUNTRY_INFO!J33>1,COUNTRY_INFO!J33<4), IF(T33/COUNTRY_INFO!E33*100<>0, IF(T33/COUNTRY_INFO!E33*100>100,100,T33/COUNTRY_INFO!E33*100), "-"),0) -> - | V33: =IF(AND(COUNTRY_INFO!J33>1,COUNTRY_INFO!J33<4),IF(COUNTRY_INFO!F33>MAX('MDA1'!K33,'MDA4'!S33,'T1'!M33,MAX(T3_R1!L33,T3_R2!L33)),MAX('MDA1'!K33,'MDA4'!S33,'T1'!M33,MAX(T3_R1!L33,T3_R2!L33)),COUNTRY_INFO!F33),0) -> 39477 | W33: =IF(AND(COUNTRY_INFO!J33>1,COUNTRY_INFO!J33<4), IF(V33/COUNTRY_INFO!F33*100<>0, IF(V33/COUNTRY_INFO!F33*100>100,100,V33/COUNTRY_INFO!F33*100), "-"),0) -> 95.3182345 | X33: 39477 | Y33: =IF(AND(COUNTRY_INFO!J33>1,COUNTRY_INFO!J33<4), IF(S33/P33*100<>0, IF(X33/P33*100>100,100,X33/P33*100), "-"),0) -> 57.19066452 | Z33: =COUNTRY_INFO!P33 -> 13667.28 | AC33: =MAX('T1'!L33,'T2'!J33)+MAX('T1'!M33,'T2'!K33)+MAX('T1'!N33,'T2'!L33) -> 0 | AD33: =IF(COUNTRY_INFO!K33=1,IF(COUNTRY_INFO!F33*0.33>MAX('T1'!M33,'T2'!K33),MAX('T1'!M33,'T2'!K33),COUNTRY_INFO!F33*0.33),IF(COUNTRY_INFO!K33=2,IF(COUNTRY_INFO!F33*0.5>MAX('T1'!M33,'T2'!K33),MAX('T1'!M33,'T2'!K33),COUNTRY_INFO!F33*0.5),IF(COUNTRY_INFO!K33=3,IF(COUNTRY_INFO!F33>MAX('T1'!M33,'T2'!K33),MAX('T1'!M33,'T2'!K33),COUNTRY_INFO!F33),0))) -> 0 | AE33: =IF(AND(COUNTRY_INFO!K33>0,COUNTRY_INFO!L33<4),IF(Z33>0,IF(COUNTRY_INFO!K33=1, AD33/(COUNTRY_INFO!F33*0.33)*100, IF(COUNTRY_INFO!K33=2, AD33/(COUNTRY_INFO!F33*0.5)*100, IF(COUNTRY_INFO!K33=3, AD33/COUNTRY_INFO!F33*100))),"-"),0) -> 0 | AF33: =IF(COUNTRY_INFO!K33=2,IF(COUNTRY_INFO!G33*0.2>MAX('T1'!N33,'T2'!L33),MAX('T1'!N33,'T2'!L33),COUNTRY_INFO!G33*0.2),IF(COUNTRY_INFO!K33=3,IF(COUNTRY_INFO!G33>MAX('T1'!N33,'T2'!L33),MAX('T1'!N33,'T2'!L33),COUNTRY_INFO!G33),0)) -> 0 | AG33: =IF(AND(COUNTRY_INFO!K33>0,COUNTRY_INFO!L33<4),IF(Z33>0,IF(COUNTRY_INFO!K33=1, 0, IF(COUNTRY_INFO!K33=2, AF33/(COUNTRY_INFO!G33*0.2)*100, IF(COUNTRY_INFO!K33=3, AF33/COUNTRY_INFO!G33*100))),"-"),0) -> 0 | AH33: 0 | AI33: =IF(AND(COUNTRY_INFO!K33>0,COUNTRY_INFO!K33<4), IF(AC33/Z33*100<>0, IF(AH33/Z33*100>100,100,AH33/Z33*100), "-"),0) -> - | AK33: =IF(AND(D33<>0, D33<>"Unknown",D33<>"Stopped",D33<>"Not required"),D33/COUNTRY_INFO!D33, 0) -> 1 | AL33: =IF(AND(J33<>0,J33<>"Unknown",J33<>"Stopped",J33<>"Not required"),J33/COUNTRY_INFO!D33, 0) -> 0.04940110218 | AM33: =IF(AND(P33<>0,P33<>"Unknown",P33<>"Not required"),P33/(COUNTRY_INFO!E33+COUNTRY_INFO!F33), 0) -> 1 | AN33: =IF(AND(Z33<>0,Z33<>"Unknown",Z33<>"Not required"),IF(COUNTRY_INFO!K33=1,1,IF(COUNTRY_INFO!K33=2,0.5*COUNTRY_INFO!F33/(0.5*COUNTRY_INFO!F33+0.2*COUNTRY_INFO!G33),IF(COUNTRY_INFO!K33=3,COUNTRY_INFO!F33/(COUNTRY_INFO!F33+COUNTRY_INFO!G33)))),0) -> 1 | AO33: =IF(AND(Z33<>0,Z33<>"Unknown",Z33<>"Not required"),IF(COUNTRY_INFO!K33=1,0,IF(COUNTRY_INFO!K33=2,0.2*COUNTRY_INFO!G33/(0.5*COUNTRY_INFO!F33+0.2*COUNTRY_INFO!G33),IF(COUNTRY_INFO!K33=3,COUNTRY_INFO!G33/(COUNTRY_INFO!F33+COUNTRY_INFO!G33)))),0) -> 0 | AP33: =MAX(COUNTRY_INFO!D33*AK33*PROFILE!$G$7,COUNTRY_INFO!D33*AL33*PROFILE!$G$7) -> 8110.780918 | AQ33: =MAX(COUNTRY_INFO!D33*AK33*PROFILE!$G$8,COUNTRY_INFO!D33*AL33*PROFILE!$G$8,COUNTRY_INFO!D33*AM33*PROFILE!$G$8) -> 27610.80928 | AR33: =MAX(COUNTRY_INFO!D33*AK33*PROFILE!$G$9,COUNTRY_INFO!D33*AL33*PROFILE!$G$9,COUNTRY_INFO!D33*AM33*PROFILE!$G$9,IF(AND(DISTRICT!Z33<>"Unknown",Z33<>"Not required"),COUNTRY_INFO!P33*DISTRICT!AN33,0)) -> 41416.00585 | AS33: =MAX(COUNTRY_INFO!D33*AK33*PROFILE!$G$10,COUNTRY_INFO!D33*AL33*PROFILE!$G$10,IF(AND(DISTRICT!Z33<>"Unknown",Z33<>"Not required"),COUNTRY_INFO!P33*DISTRICT!AO33,0)) -> 95429.40395 | AT33: 172567 | AU33: 0 | AV33: =MAX('MDA4'!R33,'T1'!L33,'T2'!J33,T3_R1!K33,T3_R2!K33) -> 0 | AW33: =MAX('MDA1'!K33,'MDA4'!S33,'MDA3'!I33,'MDA3'!L33,'T1'!M33,'T2'!K33,T3_R1!L33,T3_R2!L33) -> 39477 | AX33: =MAX('MDA1'!L33,'MDA4'!T33,'MDA3'!J33,'MDA3'!M33,'T1'!N33,'T2'!L33,T3_R1!M33,T3_R2!M33) -> 75922.48 | AY33: 115399.48 | AZ33: =MAX('MDA4'!R33,T33) -> 0 | BA33: =MAX('MDA1'!K33,'MDA4'!S33,'MDA3'!I33,'MDA3'!L33,V33,AD33) -> 39477 | BB33: =MAX('MDA1'!L33,'MDA4'!T33,'MDA3'!J33,'MDA3'!M33,AF33) -> 75922.48 | BC33: 115399.48 | BD33: 66.8722757
